Workbook

Sheet Passageavgifter (hidden)
B3: Passageavgift JA | D3: Passageavgift UA
A4: Område | B4: P | C4: G | D4: P | E4: G
A5: Göteborg: C | B5: 0 | C5: 0 | D5: 0 | E5: 0
A6: Malmö: D | B6: 0 | C6: 0 | D6: 0 | E6: 0
A7: Malmö: E | B7: 0 | C7: 0 | D7: 0 | E7: 0
A8: Ulriksdal – Skavstaby: F | B8: 0 | C8: 0 | D8: 0 | E8: 0
A9: Huvudsta – Barkarby: G | B9: 0 | C9: 0 | D9: 0 | E9: 0
A10: Flemingsberg – Björnkulla – Malmsjö – Södertälje Syd övre :H | B10: 0 | C10: 0 | D10: 0 | E10: 0
B17: Statistik | C17: Statistik | E17: Andelar av persontågen i högtrafik | J17: Andelar av godstågspassager i högtrafik
A18: Område | B18: Persontåg | C18: godståg | E18: Snabb | F18: Pendel | G18: Fjärr | H18: Reg | J18: Vagnslast | K18: Lokal | L18: system | M18: malm | N18: kombi
A19: Göteborg: C | B19: 70103 | C19: 7106 | E19: 0.09715900173 | F19: 0.4382357558 | G19: 0.06765029038 | H19: 0.3969549521 | J19: 0.14 | K19: 0.5 | L19: 0.22 | M19: 0 | N19: 0.14
A20: Malmö: D | B20: 37301 | C20: 3883 | E20: 0.1063388626 | F20: 0.4626777251 | G20: 0.0740521327 | H20: 0.3569312796 | J20: 0.21 | K20: 0.37 | L20: 0.21 | M20: 0 | N20: 0.21
A21: Malmö: E | B21: 28908 | C21: 1650 | E21: 0.0181531176 | F21: 0.6140489345 | G21: 0.1093133386 | H21: 0.2584846093 | J21: 0.333 | K21: 0 | L21: 0.333 | M21: 0 | N21: 0.333
A22: Ulriksdal – Skavstaby: F | B22: 55187 | C22: 0 | E22: 0.05502392344 | F22: 0.7320574163 | G22: 0.03209728868 | H22: 0.1808213716 | J22: 0.2713178295 | K22: 0 | L22: 0.4573643411 | M22: 0 | N22: 0.2713178295
A23: Huvudsta – Barkarby: G | B23: 24651 | C23: 0 | E23: 0 | F23: 0.7345844504 | G23: 0 | H23: 0.2654155496 | J23: 0.2713178295 | K23: 0 | L23: 0.4573643411 | M23: 0 | N23: 0.2713178295
A24: Flemingsberg – Björnkulla – Malmsjö – Södertälje Syd övre :H | B24: 30393 | C24: 726 | E24: 0.3475721066 | F24: 0.1931361811 | G24: 0.0259218693 | H24: 0.433369843 | J24: 0.2713178295 | K24: 0 | L24: 0.4573643411 | M24: 0 | N24: 0.2713178295
A30: Passageavgifter JA | E30: =+SUMPRODUCT($B$19:$B$28,E19:E28,$B$5:$B$14) -> 0 | F30: =+SUMPRODUCT($B$19:$B$28,F19:F28,$B$5:$B$14) -> 0 | G30: =+SUMPRODUCT($B$19:$B$28,G19:G28,$B$5:$B$14) -> 0 | H30: =+SUMPRODUCT($B$19:$B$28,H19:H28,$B$5:$B$14) -> 0 | J30: =+SUMPRODUCT($C$19:$C$28,J19:J28,$C$5:$C$14) -> 0 | K30: =+SUMPRODUCT($C$19:$C$28,K19:K28,$C$5:$C$14) -> 0 | L30: =+SUMPRODUCT($C$19:$C$28,L19:L28,$C$5:$C$14) -> 0 | M30: =+SUMPRODUCT($C$19:$C$28,M19:M28,$C$5:$C$14) -> 0 | N30: =+SUMPRODUCT($C$19:$C$28,N19:N28,$C$5:$C$14) -> 0
A31: Passageavgift UA | E31: =+SUMPRODUCT($B$19:$B$28,E19:E28,$D$5:$D$14) -> 0 | F31: =+SUMPRODUCT($B$19:$B$28,F19:F28,$D$5:$D$14) -> 0 | G31: =+SUMPRODUCT($B$19:$B$28,G19:G28,$D$5:$D$14) -> 0 | H31: =+SUMPRODUCT($B$19:$B$28,H19:H28,$D$5:$D$14) -> 0 | J31: =+SUMPRODUCT($C$19:$C$28,J19:J28,$E$5:$E$14) -> 0 | K31: =+SUMPRODUCT($C$19:$C$28,K19:K28,$E$5:$E$14) -> 0 | L31: =+SUMPRODUCT($C$19:$C$28,L19:L28,$E$5:$E$14) -> 0 | M31: =+SUMPRODUCT($C$19:$C$28,M19:M28,$E$5:$E$14) -> 0 | N31: =+SUMPRODUCT($C$19:$C$28,N19:N28,$E$5:$E$14) -> 0
B33: JA | C33: UA
A34: Snabbtåg | B34: =+E30/1000000 -> 0 | C34: =+E31/1000000 -> 0
A35: Långväga IC, nattåg | B35: =+G30/1000000 -> 0 | C35: =+G31/1000000 -> 0
A36: Pendeltåg | B36: =+F30/1000000 -> 0 | C36: =+F31/1000000 -> 0
A37: Regionaltåg | B37: =+H30/1000000 -> 0 | C37: =+H31/1000000 -> 0
A38: alla persontåg | B38: =+SUM(B34:B37) -> 0 | C38: =+SUM(C34:C37) -> 0
A40: Vagnslast | B40: =+J30/1000000 -> 0 | C40: =+J31/1000000 -> 0
A41: Lokal | B41: =+K30/1000000 -> 0 | C41: =+K31/1000000 -> 0
A42: system | B42: =+L30/1000000 -> 0 | C42: =+L31/1000000 -> 0
A43: malm | B43: =+M30/1000000 -> 0 | C43: =+M31/1000000 -> 0
A44: kombi | B44: =+N30/1000000 -> 0 | C44: =+N31/1000000 -> 0
A45: Alla godståg | B45: =+SUM(B40:B44) -> 0 | C45: =+SUM(C40:C44) -> 0

Sheet Handledning
A1: Handledning
A2: I denna flik: - Kort beskrivning av de flikar som en användare normalt sett använder - Kort beskrivning av hantering av olika typer av effekter - Persontågstyper i prognos och kalkyl som används i modellen För mer information om handhavande, vänligen se Banseks användarhandledning som finns publicerad på Bansekwebben.
A4: Flik
A5: Beskrivning av åtgärd | B5: Här beskrivs och definieras kalkylspecifika förutsättningar
B6: =+'Beskrivning av åtgärd'!A33 -> 1. Beskriv aktuell åtgärd och effekter i kalkylen
B7: =+'Beskrivning av åtgärd'!A46 -> 2. Korrigering av prognosindata
B8: =+'Beskrivning av åtgärd'!A53 -> 3. Byggtid och kalkylperiod
B9: =+'Beskrivning av åtgärd'!A59 -> 4. Kalkylspecifika tillväxttal
B10: =+'Beskrivning av åtgärd'!A65 -> 5. Om åtgärden innebär förändringar i kapacitetsberäkningens linjedelar
B11: =+'Beskrivning av åtgärd'!A85 -> 6. Om åtgärden innebär andra förändringar i kapacitetsberäkningen:
B12: =+'Beskrivning av åtgärd'!A102 -> 7. Om effekterna beräknas utanför modellen - med tidtabellsanalys/simulering
B13: ='Beskrivning av åtgärd'!A146 -> 8. Åtgärd som påverkar drivmedelstyp (exempelvis elektrifiering)
B14: ='Beskrivning av åtgärd'!A156 -> 9. Förändrade banavgifter
B15: ='Beskrivning av åtgärd'!A179 -> 10. Andel gjutjärnsbromsar
A16: Länkar | B16: Nyckel länk-bandel-linjedel
B17: Förändrad gångtid UA-JA persontåg per länk
B18: Elektrifiering per länk i JA och UA
B19: Avstånd per länk i JA och UA
B20: Fyrspår i JA och UA
A21: Tidtabellsanalys person | B21: Redovisa förändrad tidtabellstid samt förseningstid framtagen med tidtabellsanalys
A22: Persontågslinjer | B22: Ändra antal dubbelturer för aktuella persontrafiklinjer i kolumn H
B23: Ändra tågtyp per linje i kolumn K
A24: Bangods_linjedel | B24: Per Bangodssträcka följande:
B25: Byte av drivmedelstyp, exempelvis vid elektrifiering
B26: Gångtidsförändring, minuter
B27: Avståndsförändring, km
B28: Förändrad förseningstid, minuter
A29: Bansek_gods | B29: Resultat från separat Bansek_gods kalkyl läggs in här
A30: Trafikomflyttningar | B30: Om annat än defaultsatta värden ska användas så anges detta här
B31: Default: 50 % av tillkommande/försvinnande resenärer är överflyttade från/till personbil
B32: samt 100 % gods till/från lastbil
B33: Här anges också om det överflyttade godset ska ha en annan fördelning av lastbils-/fartygsttper
B34: än de defaultsatta (fördelning enligt bas-prognosen)
A35: Investering och UH | B35: Ange investeringskostnad per år under byggtiden i UA och JA, exkl skattefaktor
B36: Kostnader för Underhåll, reinvestering och drift ; tre alternativ
B37: Alternativ 1: Uppgift finns om förändrad genomsnittlig årlig kostnad; ange beloppet under alternativ 1
B38: Alternativ 2: Uppgifter finns årliga kostnader under kalkylperioden; ange årliga belopp under alternativ 2 för UA och JA
B39: Alternativ 3: Beräknas med schablonvärden
A40: Plankorsningar | B40: Här anges om några plankorsningar åtgärdas i UA. Man kan göra en ändring av skyddsnivå för olika plankorsningar, men saknar möjligheten att ange ÅDT (för väg- eller cykeltrafik) för en plankorsning, ändra till planskildhet eller beräkna omledningseffekter. I sådana fall ska Plankorsningsmodellen användas.
A41: Kap.ber UA | B41: Ange förändrad linjedelsindelning, se över formler och parametervärden
A42: Kap.ber JA | B42: Ange förändrad linjedelsindelning, se över formler och parametervärden om förändringar i JA
A45: Kort beskrivning av hantering av olika typer av effekter
A47: Om åtgärden innebär förändrade gångtider och/eller förändrade avstånd
A48: 1. Sök fram aktuella länkar i "Länkar" | C48: Tips är att filtrera på stråk eller Linjedel
A49: Ändra tider och avstånd per länk | C49: OBS varje länk avser EN RIKTNING
A51: 2. Sök fram aktuell sträcka i "Bangods_linjedel" | C51: Tips är att filtera på stråk eller sträcka
A52: Ange aktuella förändringar per sträcka | C52: OBS varje sträcka avser BÅDA RKTNINGARNA
A54: Om åtgärden innebär förändringar i kapacitetsarkets linjedelsindelning; fler eller färre linjedelar:
A55: 1. Beskriv vilka ändringar som görs i linjedelsindelningen i flik "Beskrivning av åtgärd". | C55: Obs särskilt viktigt att ange linjedelar i JA och UA under punkt 4
A58: 2. Ändra i "Kap.beräkning UA" | C58: Lägg till nya linjedelar, se över parametervärden och formler i kapacitetsberäkningen
C59: Se också till att antal tåg på de nya linjedelarna är korrekta
A61: 3. Ändra i nyckeln flik "Länkar"
A63: Om åtgärden innebär elektrifiering
A64: Ändra värde i kolumn V "EL UA" i flik "länkar"
A66: Förändrad turtäthet Persontåg
A67: Ange förändrat antal dubbelturer i flik "Persontågslinjer"
A69: Om åtgärden innebär förändring i kapacitetspåverkande variabler (dubbelspår, fjb osv)
A70: Beskriv förändring i "Beskrivning av åtgärd"
A71: Genomför förändringen i "Kap.ber UA"
A73: Persontågstyper i prognos och kalkyl
C74: Tågtypnr | D74: Min platser | E74: Beläggnings- | F74: kostnad minsta tåg | H74: kostnad extra platser | J74: Drivmedel
E75: grad | F75: kr/tågkm | G75: kr/tågminut | H75: kr/km | I75: kr/minut
A76: IC/IR-tåg | B76: =+Indata_Kalkylvärden!A33 -> GIR-200 | C76: =+Indata_Kalkylvärden!B33 -> 1 | D76: =+Indata_Kalkylvärden!C33 -> 150 | E76: =+Indata_Kalkylvärden!D33 -> 0.5 | F76: =+Indata_Kalkylvärden!L33 -> 13.07369128 | G76: =+Indata_Kalkylvärden!M33 -> 51.88452541 | H76: =+Indata_Kalkylvärden!N33 -> 0.0755704698 | I76: =+Indata_Kalkylvärden!O33 -> 0.1403451582 | J76: E
A77: Snabbtåg | B77: =+Indata_Kalkylvärden!A31 -> GHS-T250 | C77: =+Indata_Kalkylvärden!B31 -> 2 | D77: =+Indata_Kalkylvärden!C31 -> 240 | E77: =+Indata_Kalkylvärden!D31 -> 0.65 | F77: =+Indata_Kalkylvärden!L31 -> 21.56 | G77: =+Indata_Kalkylvärden!M31 -> 99.53 | H77: =+Indata_Kalkylvärden!N31 -> 0.08 | I77: =+Indata_Kalkylvärden!O31 -> 0.32 | J77: E
A78: Snabbtåg stambanor | B78: =+Indata_Kalkylvärden!A39 -> GHS-T250 | C78: =+Indata_Kalkylvärden!B39 -> 5 | D78: =+Indata_Kalkylvärden!C39 -> 240 | E78: =+Indata_Kalkylvärden!D39 -> 0.65 | F78: =+Indata_Kalkylvärden!L39 -> 21.56 | G78: =+Indata_Kalkylvärden!M39 -> 99.53 | H78: =+Indata_Kalkylvärden!N39 -> 0.08 | I78: =+Indata_Kalkylvärden!O39 -> 0.32 | J78: E
A79: Pendeltåg | B79: =+Indata_Kalkylvärden!A35 -> GPL-B160 | C79: =+Indata_Kalkylvärden!B35 -> 15 | D79: =+Indata_Kalkylvärden!C35 -> 215 | E79: =+Indata_Kalkylvärden!D35 -> 0.35 | F79: =+Indata_Kalkylvärden!L35 -> 13.95894535 | G79: =+Indata_Kalkylvärden!M35 -> 47.04801534 | H79: =+Indata_Kalkylvärden!N35 -> 0.0647746884 | I79: =+Indata_Kalkylvärden!O35 -> 0.107957814 | J79: E
A80: Nattåg | B80: =+Indata_Kalkylvärden!A34 -> GNT-B200 | C80: =+Indata_Kalkylvärden!B34 -> 16 | D80: =+Indata_Kalkylvärden!C34 -> 250 | E80: =+Indata_Kalkylvärden!D34 -> 0.5 | F80: =+Indata_Kalkylvärden!L34 -> 39.91200384 | G80: =+Indata_Kalkylvärden!M34 -> 111.3476894 | H80: =+Indata_Kalkylvärden!N34 -> 0.1295493768 | I80: =+Indata_Kalkylvärden!O34 -> 0.2806903164 | J80: E
A81: Bimodalt reg.tåg eldrift | B81: =+Indata_Kalkylvärden!A37 -> GRB-C160(el) | C81: =+Indata_Kalkylvärden!B37 -> 17 | D81: =+Indata_Kalkylvärden!C37 -> 150 | E81: =+Indata_Kalkylvärden!D37 -> 0.35 | F81: =+Indata_Kalkylvärden!L37 -> 12.80379674 | G81: =+Indata_Kalkylvärden!M37 -> 54.06527325 | H81: =+Indata_Kalkylvärden!N37 -> 0.0863662512 | I81: =+Indata_Kalkylvärden!O37 -> 0.1835282838 | J81: E
A82: Bimodalt reg.tåg dieseldrift | B82: =+Indata_Kalkylvärden!A38 -> GRB-C140(fbr | C82: =+Indata_Kalkylvärden!B38 -> 17 | D82: =+Indata_Kalkylvärden!C38 -> 150 | E82: =+Indata_Kalkylvärden!D38 -> 0.35 | F82: =+Indata_Kalkylvärden!L38 -> 20.32845638 | G82: =+Indata_Kalkylvärden!M38 -> 54.06527325 | H82: =+Indata_Kalkylvärden!N38 -> 0.0863662512 | I82: =+Indata_Kalkylvärden!O38 -> 0.1835282838 | J82: D
A83: Pendeltåg Stockholm | B83: =+Indata_Kalkylvärden!A36 -> GPLS-B160 | C83: =+Indata_Kalkylvärden!B36 -> 18 | D83: =+Indata_Kalkylvärden!C36 -> 375 | E83: =+Indata_Kalkylvärden!D36 -> 0.35 | F83: =+Indata_Kalkylvärden!L36 -> 22.57397891 | G83: =+Indata_Kalkylvärden!M36 -> 39.9875743 | H83: =+Indata_Kalkylvärden!N36 -> 0.053978907 | I83: =+Indata_Kalkylvärden!O36 -> 0.053978907 | J83: E
A84: Höghastighetståg | B84: =+Indata_Kalkylvärden!A30 -> GHS-B320 | C84: =+Indata_Kalkylvärden!B30 -> 3 | D84: =+Indata_Kalkylvärden!C30 -> 250 | E84: =+Indata_Kalkylvärden!D30 -> 0.65 | F84: =+Indata_Kalkylvärden!L30 -> 21.66 | G84: =+Indata_Kalkylvärden!M30 -> 108.56 | H84: =+Indata_Kalkylvärden!N30 -> 0.08 | I84: =+Indata_Kalkylvärden!O30 -> 0.31 | J84: E
A85: Snabba regionaltåg | B85: =+Indata_Kalkylvärden!A32 -> GIR-C250 | C85: =+Indata_Kalkylvärden!B32 -> 4 | D85: =+Indata_Kalkylvärden!C32 -> 220 | E85: =+Indata_Kalkylvärden!D32 -> 0.65 | F85: =+Indata_Kalkylvärden!L32 -> 19.14092042 | G85: =+Indata_Kalkylvärden!M32 -> 86.5389837 | H85: =+Indata_Kalkylvärden!N32 -> 0.0863662512 | I85: =+Indata_Kalkylvärden!O32 -> 0.2483029722 | J85: E

Sheet Kalkylsammanställning
F1: Känslighetsanalyser | G1: Välj: | H1: Instruktion
A2: Kalkylsammanställning, miljoner kronor | B2: ='Beskrivning av åtgärd'!B11 -> Totalt | C2: =+B2 -> Totalt | D2: =+C2 -> Totalt | F2: KA Volym | G2: 1 | H2: För att göra KA "trafiktillväxt", ändra från default 1 till 0,8 respektive 1,2 och klistra in värden från kalkylsammanställningstabell (kolumn A-D) in tabell nedan. | M2: Lista för val KA
B3: Prognosåret | C3: Öppningsår | D3: Nuvärde | F3: KA Gemensamt tidsvärde | G3: Nej | H3: För att göra KA "Gemensamt tidsvärde", ändra från default "nej" i listan till "ja" och klistra in värden från kalkylsammanställningstabell (kolumn A-D) in tabell nedan.
A4: Investeringskostnad | D4: =-Diskontering!C49 -> 0 | M4: 1 | N4: Nej
A5: Kostnader för underhåll | D5: =+Diskontering!C52+Diskontering!C53+Diskontering!C55+Diskontering!C57+Diskontering!C59 -> 0 | F5: Känslighetsanalyser (Fyll i enligt instruktion ovan, värden kopplade till SEB-IT flik) | M5: 1.2 | N5: Ja
A6: Kostnad för reinvestering | D6: =+Diskontering!C54+Diskontering!C56+Diskontering!C58+Diskontering!C60 -> 0 | G6: Övriga "utgifter" (mnkr) | H6: Summa nyttor (mnkr) | M6: 0.8
A7: Infrastruktur järnväg | B7: =IF('Beskrivning av åtgärd'!$B$12="Ja",-(IF(B$2="Persontrafik",Kalkylsammanställning!B222,IF(B$2="Godstrafik",Kalkylsammanställning!E222,Kalkylsammanställning!H222))), IF(B$2="Persontrafik",Kalkylsammanställning!B222,IF(B$2="Godstrafik",Kalkylsammanställning!E222,Kalkylsammanställning!H222))) -> 0 | C7: =IF('Beskrivning av åtgärd'!$B$12="Ja",-(IF(C$2="Persontrafik",Kalkylsammanställning!C222,IF(C$2="Godstrafik",Kalkylsammanställning!F222,Kalkylsammanställning!I222))), IF(C$2="Persontrafik",Kalkylsammanställning!C222,IF(C$2="Godstrafik",Kalkylsammanställning!F222,Kalkylsammanställning!I222))) -> 0 | D7: =IF('Beskrivning av åtgärd'!$B$12="Ja",-(IF(D$2="Persontrafik",Kalkylsammanställning!D222,IF(D$2="Godstrafik",Kalkylsammanställning!G222,Kalkylsammanställning!J222))), IF(D$2="Persontrafik",Kalkylsammanställning!D222,IF(D$2="Godstrafik",Kalkylsammanställning!G222,Kalkylsammanställning!J222))) -> 0 | G7: = negativ summering av D5:D8 | H7: = D37
A8: Infrastruktur väg | B8: =IF('Beskrivning av åtgärd'!$B$12="Ja",-(IF(B$2="Persontrafik",Kalkylsammanställning!B223,IF(B$2="Godstrafik",Kalkylsammanställning!E223,Kalkylsammanställning!H223))), IF(B$2="Persontrafik",Kalkylsammanställning!B223,IF(B$2="Godstrafik",Kalkylsammanställning!E223,Kalkylsammanställning!H223))) -> 1.860975008e-15 | C8: =IF('Beskrivning av åtgärd'!$B$12="Ja",-(IF(C$2="Persontrafik",Kalkylsammanställning!C223,IF(C$2="Godstrafik",Kalkylsammanställning!F223,Kalkylsammanställning!I223))), IF(C$2="Persontrafik",Kalkylsammanställning!C223,IF(C$2="Godstrafik",Kalkylsammanställning!F223,Kalkylsammanställning!I223))) -> 1.406451593e-15 | D8: =IF('Beskrivning av åtgärd'!$B$12="Ja",-(IF(D$2="Persontrafik",Kalkylsammanställning!D223,IF(D$2="Godstrafik",Kalkylsammanställning!G223,Kalkylsammanställning!J223))), IF(D$2="Persontrafik",Kalkylsammanställning!D223,IF(D$2="Godstrafik",Kalkylsammanställning!G223,Kalkylsammanställning!J223))) -> 4.190878658e-14 | F8: Enhetligt tidsvärde på privata resor | G8: Beräknas i SEB-IT
A9: Effekter för persontrafikföretag | F9: Trafiktillväxt +20%
A10: Biljettintäkter | B10: =IF('Beskrivning av åtgärd'!$B$12="Ja",-(IF(B$2="Persontrafik",Kalkylsammanställning!B198,IF(B$2="Godstrafik",Kalkylsammanställning!E198,Kalkylsammanställning!H198))),IF(B$2="Persontrafik",Kalkylsammanställning!B198,IF(B$2="Godstrafik",Kalkylsammanställning!E198,Kalkylsammanställning!H198))) -> 0 | C10: =IF('Beskrivning av åtgärd'!$B$12="Ja",-(IF(C$2="Persontrafik",Kalkylsammanställning!C198,IF(C$2="Godstrafik",Kalkylsammanställning!F198,Kalkylsammanställning!I198))),IF(C$2="Persontrafik",Kalkylsammanställning!C198,IF(C$2="Godstrafik",Kalkylsammanställning!F198,Kalkylsammanställning!I198))) -> 0 | D10: =IF('Beskrivning av åtgärd'!$B$12="Ja",-(IF(D$2="Persontrafik",Kalkylsammanställning!D198,IF(D$2="Godstrafik",Kalkylsammanställning!G198,Kalkylsammanställning!J198))),IF(D$2="Persontrafik",Kalkylsammanställning!D198,IF(D$2="Godstrafik",Kalkylsammanställning!G198,Kalkylsammanställning!J198))) -> 0 | F10: Trafiktillväxt -20%
A11: Fordonskostnader kollektivtrafik | B11: =IF('Beskrivning av åtgärd'!$B$12="Ja",-(IF(B$2="Persontrafik",Kalkylsammanställning!B199,IF(B$2="Godstrafik",Kalkylsammanställning!E199,Kalkylsammanställning!H199))),IF(B$2="Persontrafik",Kalkylsammanställning!B199,IF(B$2="Godstrafik",Kalkylsammanställning!E199,Kalkylsammanställning!H199))) -> 0 | C11: =IF('Beskrivning av åtgärd'!$B$12="Ja",-(IF(C$2="Persontrafik",Kalkylsammanställning!C199,IF(C$2="Godstrafik",Kalkylsammanställning!F199,Kalkylsammanställning!I199))),IF(C$2="Persontrafik",Kalkylsammanställning!C199,IF(C$2="Godstrafik",Kalkylsammanställning!F199,Kalkylsammanställning!I199))) -> 0 | D11: =IF('Beskrivning av åtgärd'!$B$12="Ja",-(IF(D$2="Persontrafik",Kalkylsammanställning!D199,IF(D$2="Godstrafik",Kalkylsammanställning!G199,Kalkylsammanställning!J199))),IF(D$2="Persontrafik",Kalkylsammanställning!D199,IF(D$2="Godstrafik",Kalkylsammanställning!G199,Kalkylsammanställning!J199))) -> 0
A12: Omkostnader | B12: =IF('Beskrivning av åtgärd'!$B$12="Ja",-(IF(B$2="Persontrafik",Kalkylsammanställning!B200,IF(B$2="Godstrafik",Kalkylsammanställning!E200,Kalkylsammanställning!H200))),IF(B$2="Persontrafik",Kalkylsammanställning!B200,IF(B$2="Godstrafik",Kalkylsammanställning!E200,Kalkylsammanställning!H200))) -> 0 | C12: =IF('Beskrivning av åtgärd'!$B$12="Ja",-(IF(C$2="Persontrafik",Kalkylsammanställning!C200,IF(C$2="Godstrafik",Kalkylsammanställning!F200,Kalkylsammanställning!I200))),IF(C$2="Persontrafik",Kalkylsammanställning!C200,IF(C$2="Godstrafik",Kalkylsammanställning!F200,Kalkylsammanställning!I200))) -> 0 | D12: =IF('Beskrivning av åtgärd'!$B$12="Ja",-(IF(D$2="Persontrafik",Kalkylsammanställning!D200,IF(D$2="Godstrafik",Kalkylsammanställning!G200,Kalkylsammanställning!J200))),IF(D$2="Persontrafik",Kalkylsammanställning!D200,IF(D$2="Godstrafik",Kalkylsammanställning!G200,Kalkylsammanställning!J200))) -> 0
A13: Moms på biljettintäkter | B13: =IF('Beskrivning av åtgärd'!$B$12="Ja",-(IF(B$2="Persontrafik",Kalkylsammanställning!B201,IF(B$2="Godstrafik",Kalkylsammanställning!E201,Kalkylsammanställning!H201))),IF(B$2="Persontrafik",Kalkylsammanställning!B201,IF(B$2="Godstrafik",Kalkylsammanställning!E201,Kalkylsammanställning!H201))) -> 0 | C13: =IF('Beskrivning av åtgärd'!$B$12="Ja",-(IF(C$2="Persontrafik",Kalkylsammanställning!C201,IF(C$2="Godstrafik",Kalkylsammanställning!F201,Kalkylsammanställning!I201))),IF(C$2="Persontrafik",Kalkylsammanställning!C201,IF(C$2="Godstrafik",Kalkylsammanställning!F201,Kalkylsammanställning!I201))) -> 0 | D13: =IF('Beskrivning av åtgärd'!$B$12="Ja",-(IF(D$2="Persontrafik",Kalkylsammanställning!D201,IF(D$2="Godstrafik",Kalkylsammanställning!G201,Kalkylsammanställning!J201))),IF(D$2="Persontrafik",Kalkylsammanställning!D201,IF(D$2="Godstrafik",Kalkylsammanställning!G201,Kalkylsammanställning!J201))) -> 0
A14: Banavgifter | B14: =IF('Beskrivning av åtgärd'!$B$12="Ja",-(IF(B$2="Persontrafik",Kalkylsammanställning!B202,IF(B$2="Godstrafik",Kalkylsammanställning!E202,Kalkylsammanställning!H202))),IF(B$2="Persontrafik",Kalkylsammanställning!B202,IF(B$2="Godstrafik",Kalkylsammanställning!E202,Kalkylsammanställning!H202))) -> 0 | C14: =IF('Beskrivning av åtgärd'!$B$12="Ja",-(IF(C$2="Persontrafik",Kalkylsammanställning!C202,IF(C$2="Godstrafik",Kalkylsammanställning!F202,Kalkylsammanställning!I202))),IF(C$2="Persontrafik",Kalkylsammanställning!C202,IF(C$2="Godstrafik",Kalkylsammanställning!F202,Kalkylsammanställning!I202))) -> 0 | D14: =IF('Beskrivning av åtgärd'!$B$12="Ja",-(IF(D$2="Persontrafik",Kalkylsammanställning!D202,IF(D$2="Godstrafik",Kalkylsammanställning!G202,Kalkylsammanställning!J202))),IF(D$2="Persontrafik",Kalkylsammanställning!D202,IF(D$2="Godstrafik",Kalkylsammanställning!G202,Kalkylsammanställning!J202))) -> 0
A15: Budgeteffekter
A16: Drivmedelsskatt och moms | B16: =IF('Beskrivning av åtgärd'!$B$12="Ja",-(IF(B$2="Persontrafik",Kalkylsammanställning!B204,IF(B$2="Godstrafik",Kalkylsammanställning!E204,Kalkylsammanställning!H204))),IF(B$2="Persontrafik",Kalkylsammanställning!B204,IF(B$2="Godstrafik",Kalkylsammanställning!E204,Kalkylsammanställning!H204))) -> -9.620015465e-16 | C16: =IF('Beskrivning av åtgärd'!$B$12="Ja",-(IF(C$2="Persontrafik",Kalkylsammanställning!C204,IF(C$2="Godstrafik",Kalkylsammanställning!F204,Kalkylsammanställning!I204))),IF(C$2="Persontrafik",Kalkylsammanställning!C204,IF(C$2="Godstrafik",Kalkylsammanställning!F204,Kalkylsammanställning!I204))) -> -9.986485347e-16 | D16: =IF('Beskrivning av åtgärd'!$B$12="Ja",-(IF(D$2="Persontrafik",Kalkylsammanställning!D204,IF(D$2="Godstrafik",Kalkylsammanställning!G204,Kalkylsammanställning!J204))),IF(D$2="Persontrafik",Kalkylsammanställning!D204,IF(D$2="Godstrafik",Kalkylsammanställning!G204,Kalkylsammanställning!J204))) -> -2.30583683e-14
A17: Moms på biljettintäkter | B17: =IF('Beskrivning av åtgärd'!$B$12="Ja",-(IF(B$2="Persontrafik",Kalkylsammanställning!B205,IF(B$2="Godstrafik",Kalkylsammanställning!E205,Kalkylsammanställning!H205))),IF(B$2="Persontrafik",Kalkylsammanställning!B205,IF(B$2="Godstrafik",Kalkylsammanställning!E205,Kalkylsammanställning!H205))) -> 0 | C17: =IF('Beskrivning av åtgärd'!$B$12="Ja",-(IF(C$2="Persontrafik",Kalkylsammanställning!C205,IF(C$2="Godstrafik",Kalkylsammanställning!F205,Kalkylsammanställning!I205))),IF(C$2="Persontrafik",Kalkylsammanställning!C205,IF(C$2="Godstrafik",Kalkylsammanställning!F205,Kalkylsammanställning!I205))) -> 0 | D17: =IF('Beskrivning av åtgärd'!$B$12="Ja",-(IF(D$2="Persontrafik",Kalkylsammanställning!D205,IF(D$2="Godstrafik",Kalkylsammanställning!G205,Kalkylsammanställning!J205))),IF(D$2="Persontrafik",Kalkylsammanställning!D205,IF(D$2="Godstrafik",Kalkylsammanställning!G205,Kalkylsammanställning!J205))) -> 0
A18: Banavgifter | B18: =IF('Beskrivning av åtgärd'!$B$12="Ja",-(IF(B$2="Persontrafik",Kalkylsammanställning!B206,IF(B$2="Godstrafik",Kalkylsammanställning!E206,Kalkylsammanställning!H206))),IF(B$2="Persontrafik",Kalkylsammanställning!B206,IF(B$2="Godstrafik",Kalkylsammanställning!E206,Kalkylsammanställning!H206))) -> 0 | C18: =IF('Beskrivning av åtgärd'!$B$12="Ja",-(IF(C$2="Persontrafik",Kalkylsammanställning!C206,IF(C$2="Godstrafik",Kalkylsammanställning!F206,Kalkylsammanställning!I206))),IF(C$2="Persontrafik",Kalkylsammanställning!C206,IF(C$2="Godstrafik",Kalkylsammanställning!F206,Kalkylsammanställning!I206))) -> 0 | D18: =IF('Beskrivning av åtgärd'!$B$12="Ja",-(IF(D$2="Persontrafik",Kalkylsammanställning!D206,IF(D$2="Godstrafik",Kalkylsammanställning!G206,Kalkylsammanställning!J206))),IF(D$2="Persontrafik",Kalkylsammanställning!D206,IF(D$2="Godstrafik",Kalkylsammanställning!G206,Kalkylsammanställning!J206))) -> 0
A19: Skattefinansieringskostnad
A20: Skattefinansieringskostnad | D20: =+(D4+D5+D6+D8)*(INDATABLAD!D6-1) -> 8.381757316e-15
A21: Effekter för resenärer
A22: Reskostnader | B22: =IF('Beskrivning av åtgärd'!$B$12="Ja",-(IF(B$2="Persontrafik",Kalkylsammanställning!B208,IF(B$2="Godstrafik",Kalkylsammanställning!E208,Kalkylsammanställning!H208))),IF(B$2="Persontrafik",Kalkylsammanställning!B208,IF(B$2="Godstrafik",Kalkylsammanställning!E208,Kalkylsammanställning!H208))) -> 0 | C22: =IF('Beskrivning av åtgärd'!$B$12="Ja",-(IF(C$2="Persontrafik",Kalkylsammanställning!C208,IF(C$2="Godstrafik",Kalkylsammanställning!F208,Kalkylsammanställning!I208))),IF(C$2="Persontrafik",Kalkylsammanställning!C208,IF(C$2="Godstrafik",Kalkylsammanställning!F208,Kalkylsammanställning!I208))) -> 0 | D22: =IF('Beskrivning av åtgärd'!$B$12="Ja",-(IF(D$2="Persontrafik",Kalkylsammanställning!D208,IF(D$2="Godstrafik",Kalkylsammanställning!G208,Kalkylsammanställning!J208))),IF(D$2="Persontrafik",Kalkylsammanställning!D208,IF(D$2="Godstrafik",Kalkylsammanställning!G208,Kalkylsammanställning!J208))) -> 0
A23: Åktid | B23: =IF('Beskrivning av åtgärd'!$B$12="Ja",-(IF(B$2="Persontrafik",Kalkylsammanställning!B209,IF(B$2="Godstrafik",Kalkylsammanställning!E209,Kalkylsammanställning!H209))),IF(B$2="Persontrafik",Kalkylsammanställning!B209,IF(B$2="Godstrafik",Kalkylsammanställning!E209,Kalkylsammanställning!H209))) -> 0 | C23: =IF('Beskrivning av åtgärd'!$B$12="Ja",-(IF(C$2="Persontrafik",Kalkylsammanställning!C209,IF(C$2="Godstrafik",Kalkylsammanställning!F209,Kalkylsammanställning!I209))),IF(C$2="Persontrafik",Kalkylsammanställning!C209,IF(C$2="Godstrafik",Kalkylsammanställning!F209,Kalkylsammanställning!I209))) -> 0 | D23: =IF('Beskrivning av åtgärd'!$B$12="Ja",-(IF(D$2="Persontrafik",Kalkylsammanställning!D209,IF(D$2="Godstrafik",Kalkylsammanställning!G209,Kalkylsammanställning!J209))),IF(D$2="Persontrafik",Kalkylsammanställning!D209,IF(D$2="Godstrafik",Kalkylsammanställning!G209,Kalkylsammanställning!J209))) -> 0
A24: Turintervall | B24: =IF('Beskrivning av åtgärd'!$B$12="Ja",-(IF(B$2="Persontrafik",Kalkylsammanställning!B210,IF(B$2="Godstrafik",Kalkylsammanställning!E210,Kalkylsammanställning!H210))),IF(B$2="Persontrafik",Kalkylsammanställning!B210,IF(B$2="Godstrafik",Kalkylsammanställning!E210,Kalkylsammanställning!H210))) -> 0 | C24: =IF('Beskrivning av åtgärd'!$B$12="Ja",-(IF(C$2="Persontrafik",Kalkylsammanställning!C210,IF(C$2="Godstrafik",Kalkylsammanställning!F210,Kalkylsammanställning!I210))),IF(C$2="Persontrafik",Kalkylsammanställning!C210,IF(C$2="Godstrafik",Kalkylsammanställning!F210,Kalkylsammanställning!I210))) -> 0 | D24: =IF('Beskrivning av åtgärd'!$B$12="Ja",-(IF(D$2="Persontrafik",Kalkylsammanställning!D210,IF(D$2="Godstrafik",Kalkylsammanställning!G210,Kalkylsammanställning!J210))),IF(D$2="Persontrafik",Kalkylsammanställning!D210,IF(D$2="Godstrafik",Kalkylsammanställning!G210,Kalkylsammanställning!J210))) -> 0
A25: Förseningstid | B25: =IF('Beskrivning av åtgärd'!$B$12="Ja",-(IF(B$2="Persontrafik",Kalkylsammanställning!B211,IF(B$2="Godstrafik",Kalkylsammanställning!E211,Kalkylsammanställning!H211))),IF(B$2="Persontrafik",Kalkylsammanställning!B211,IF(B$2="Godstrafik",Kalkylsammanställning!E211,Kalkylsammanställning!H211))) -> 0 | C25: =IF('Beskrivning av åtgärd'!$B$12="Ja",-(IF(C$2="Persontrafik",Kalkylsammanställning!C211,IF(C$2="Godstrafik",Kalkylsammanställning!F211,Kalkylsammanställning!I211))),IF(C$2="Persontrafik",Kalkylsammanställning!C211,IF(C$2="Godstrafik",Kalkylsammanställning!F211,Kalkylsammanställning!I211))) -> 0 | D25: =IF('Beskrivning av åtgärd'!$B$12="Ja",-(IF(D$2="Persontrafik",Kalkylsammanställning!D211,IF(D$2="Godstrafik",Kalkylsammanställning!G211,Kalkylsammanställning!J211))),IF(D$2="Persontrafik",Kalkylsammanställning!D211,IF(D$2="Godstrafik",Kalkylsammanställning!G211,Kalkylsammanställning!J211))) -> 0
A26: Effekter för godskunder
A27: Transportkostnader | B27: =IF('Beskrivning av åtgärd'!$B$12="Ja",-(IF('Beskrivning av åtgärd'!$B$10="JA",Kalkylsammanställning!E213,IF(B$2="Persontrafik",Kalkylsammanställning!B213,IF(B$2="Godstrafik",Kalkylsammanställning!E213,Kalkylsammanställning!H213)))),IF('Beskrivning av åtgärd'!$B$10="JA",Kalkylsammanställning!E213,IF(B$2="Persontrafik",Kalkylsammanställning!B213,IF(B$2="Godstrafik",Kalkylsammanställning!E213,Kalkylsammanställning!H213)))) -> 7.59829716e-15 | C27: =IF('Beskrivning av åtgärd'!$B$12="Ja",-(IF('Beskrivning av åtgärd'!$B$10="JA",Kalkylsammanställning!F213,IF(C$2="Persontrafik",Kalkylsammanställning!C213,IF(C$2="Godstrafik",Kalkylsammanställning!F213,Kalkylsammanställning!I213)))),IF('Beskrivning av åtgärd'!$B$10="JA",Kalkylsammanställning!F213,IF(C$2="Persontrafik",Kalkylsammanställning!C213,IF(C$2="Godstrafik",Kalkylsammanställning!F213,Kalkylsammanställning!I213)))) -> 5.798593405e-15 | D27: =IF('Beskrivning av åtgärd'!$B$12="Ja",-(IF('Beskrivning av åtgärd'!$B$10="JA",Kalkylsammanställning!G213,IF(D$2="Persontrafik",Kalkylsammanställning!D213,IF(D$2="Godstrafik",Kalkylsammanställning!G213,Kalkylsammanställning!J213)))),IF('Beskrivning av åtgärd'!$B$10="JA",Kalkylsammanställning!G213,IF(D$2="Persontrafik",Kalkylsammanställning!D213,IF(D$2="Godstrafik",Kalkylsammanställning!G213,Kalkylsammanställning!J213)))) -> 1.72612188e-13
A28: Transporttid | B28: =IF('Beskrivning av åtgärd'!$B$12="Ja",-(IF('Beskrivning av åtgärd'!$B$10="JA",Kalkylsammanställning!E214,IF(B$2="Persontrafik",Kalkylsammanställning!B214,IF(B$2="Godstrafik",Kalkylsammanställning!E214,Kalkylsammanställning!H214)))),IF('Beskrivning av åtgärd'!$B$10="JA",Kalkylsammanställning!E214,IF(B$2="Persontrafik",Kalkylsammanställning!B214,IF(B$2="Godstrafik",Kalkylsammanställning!E214,Kalkylsammanställning!H214)))) -> 3.167315131e-16 | C28: =IF('Beskrivning av åtgärd'!$B$12="Ja",-(IF('Beskrivning av åtgärd'!$B$10="JA",Kalkylsammanställning!F214,IF(C$2="Persontrafik",Kalkylsammanställning!C214,IF(C$2="Godstrafik",Kalkylsammanställning!F214,Kalkylsammanställning!I214)))),IF('Beskrivning av åtgärd'!$B$10="JA",Kalkylsammanställning!F214,IF(C$2="Persontrafik",Kalkylsammanställning!C214,IF(C$2="Godstrafik",Kalkylsammanställning!F214,Kalkylsammanställning!I214)))) -> 2.836919697e-16 | D28: =IF('Beskrivning av åtgärd'!$B$12="Ja",-(IF('Beskrivning av åtgärd'!$B$10="JA",Kalkylsammanställning!G214,IF(D$2="Persontrafik",Kalkylsammanställning!D214,IF(D$2="Godstrafik",Kalkylsammanställning!G214,Kalkylsammanställning!J214)))),IF('Beskrivning av åtgärd'!$B$10="JA",Kalkylsammanställning!G214,IF(D$2="Persontrafik",Kalkylsammanställning!D214,IF(D$2="Godstrafik",Kalkylsammanställning!G214,Kalkylsammanställning!J214)))) -> 7.407594529e-15
A29: Förseningstid | B29: =IF('Beskrivning av åtgärd'!$B$12="Ja",-(IF('Beskrivning av åtgärd'!$B$10="JA",Kalkylsammanställning!E215,IF(B$2="Persontrafik",Kalkylsammanställning!B215,IF(B$2="Godstrafik",Kalkylsammanställning!E215,Kalkylsammanställning!H215)))),IF('Beskrivning av åtgärd'!$B$10="JA",Kalkylsammanställning!E215,IF(B$2="Persontrafik",Kalkylsammanställning!B215,IF(B$2="Godstrafik",Kalkylsammanställning!E215,Kalkylsammanställning!H215)))) -> 0 | C29: =IF('Beskrivning av åtgärd'!$B$12="Ja",-(IF('Beskrivning av åtgärd'!$B$10="JA",Kalkylsammanställning!F215,IF(C$2="Persontrafik",Kalkylsammanställning!C215,IF(C$2="Godstrafik",Kalkylsammanställning!F215,Kalkylsammanställning!I215)))),IF('Beskrivning av åtgärd'!$B$10="JA",Kalkylsammanställning!F215,IF(C$2="Persontrafik",Kalkylsammanställning!C215,IF(C$2="Godstrafik",Kalkylsammanställning!F215,Kalkylsammanställning!I215)))) -> 0 | D29: =IF('Beskrivning av åtgärd'!$B$12="Ja",-(IF('Beskrivning av åtgärd'!$B$10="JA",Kalkylsammanställning!G215,IF(D$2="Persontrafik",Kalkylsammanställning!D215,IF(D$2="Godstrafik",Kalkylsammanställning!G215,Kalkylsammanställning!J215)))),IF('Beskrivning av åtgärd'!$B$10="JA",Kalkylsammanställning!G215,IF(D$2="Persontrafik",Kalkylsammanställning!D215,IF(D$2="Godstrafik",Kalkylsammanställning!G215,Kalkylsammanställning!J215)))) -> 0
A30: Externa effekter
A31: Luftföroreningar-PM avgas | B31: =IF('Beskrivning av åtgärd'!$B$12="Ja",-(IF(B$2="Persontrafik",Kalkylsammanställning!B217,IF(B$2="Godstrafik",Kalkylsammanställning!E217,Kalkylsammanställning!H217))),IF(B$2="Persontrafik",Kalkylsammanställning!B217,IF(B$2="Godstrafik",Kalkylsammanställning!E217,Kalkylsammanställning!H217))) -> 3.48927258e-18 | C31: =IF('Beskrivning av åtgärd'!$B$12="Ja",-(IF(C$2="Persontrafik",Kalkylsammanställning!C217,IF(C$2="Godstrafik",Kalkylsammanställning!F217,Kalkylsammanställning!I217))),IF(C$2="Persontrafik",Kalkylsammanställning!C217,IF(C$2="Godstrafik",Kalkylsammanställning!F217,Kalkylsammanställning!I217))) -> 1.702465006e-17 | D31: =IF('Beskrivning av åtgärd'!$B$12="Ja",-(IF(D$2="Persontrafik",Kalkylsammanställning!D217,IF(D$2="Godstrafik",Kalkylsammanställning!G217,Kalkylsammanställning!J217))),IF(D$2="Persontrafik",Kalkylsammanställning!D217,IF(D$2="Godstrafik",Kalkylsammanställning!G217,Kalkylsammanställning!J217))) -> 1.023342896e-16
A32: Luftföroreningar-NOx | B32: =IF('Beskrivning av åtgärd'!$B$12="Ja",-(IF(B$2="Persontrafik",Kalkylsammanställning!B218,IF(B$2="Godstrafik",Kalkylsammanställning!E218,Kalkylsammanställning!H218))),IF(B$2="Persontrafik",Kalkylsammanställning!B218,IF(B$2="Godstrafik",Kalkylsammanställning!E218,Kalkylsammanställning!H218))) -> 1.633431473e-17 | C32: =IF('Beskrivning av åtgärd'!$B$12="Ja",-(IF(C$2="Persontrafik",Kalkylsammanställning!C218,IF(C$2="Godstrafik",Kalkylsammanställning!F218,Kalkylsammanställning!I218))),IF(C$2="Persontrafik",Kalkylsammanställning!C218,IF(C$2="Godstrafik",Kalkylsammanställning!F218,Kalkylsammanställning!I218))) -> 4.255099704e-17 | D32: =IF('Beskrivning av åtgärd'!$B$12="Ja",-(IF(D$2="Persontrafik",Kalkylsammanställning!D218,IF(D$2="Godstrafik",Kalkylsammanställning!G218,Kalkylsammanställning!J218))),IF(D$2="Persontrafik",Kalkylsammanställning!D218,IF(D$2="Godstrafik",Kalkylsammanställning!G218,Kalkylsammanställning!J218))) -> 3.32459654e-16
A33: Luftföroreningar-PM slitage | B33: =IF('Beskrivning av åtgärd'!$B$12="Ja",-(IF(B$2="Persontrafik",Kalkylsammanställning!B219,IF(B$2="Godstrafik",Kalkylsammanställning!E219,Kalkylsammanställning!H219))),IF(B$2="Persontrafik",Kalkylsammanställning!B219,IF(B$2="Godstrafik",Kalkylsammanställning!E219,Kalkylsammanställning!H219))) -> 2.804567075e-16 | C33: =IF('Beskrivning av åtgärd'!$B$12="Ja",-(IF(C$2="Persontrafik",Kalkylsammanställning!C219,IF(C$2="Godstrafik",Kalkylsammanställning!F219,Kalkylsammanställning!I219))),IF(C$2="Persontrafik",Kalkylsammanställning!C219,IF(C$2="Godstrafik",Kalkylsammanställning!F219,Kalkylsammanställning!I219))) -> 2.14042088e-16 | D33: =IF('Beskrivning av åtgärd'!$B$12="Ja",-(IF(D$2="Persontrafik",Kalkylsammanställning!D219,IF(D$2="Godstrafik",Kalkylsammanställning!G219,Kalkylsammanställning!J219))),IF(D$2="Persontrafik",Kalkylsammanställning!D219,IF(D$2="Godstrafik",Kalkylsammanställning!G219,Kalkylsammanställning!J219))) -> 6.96144881e-15
A34: Luftföroreningar-NH3 | B34: =IF('Beskrivning av åtgärd'!$B$12="Ja",-(IF(B$2="Persontrafik",Kalkylsammanställning!B220,IF(B$2="Godstrafik",Kalkylsammanställning!E220,Kalkylsammanställning!H220))),IF(B$2="Persontrafik",Kalkylsammanställning!B220,IF(B$2="Godstrafik",Kalkylsammanställning!E220,Kalkylsammanställning!H220))) -> 0 | C34: =IF('Beskrivning av åtgärd'!$B$12="Ja",-(IF(C$2="Persontrafik",Kalkylsammanställning!C220,IF(C$2="Godstrafik",Kalkylsammanställning!F220,Kalkylsammanställning!I220))),IF(C$2="Persontrafik",Kalkylsammanställning!C220,IF(C$2="Godstrafik",Kalkylsammanställning!F220,Kalkylsammanställning!I220))) -> 0 | D34: =IF('Beskrivning av åtgärd'!$B$12="Ja",-(IF(D$2="Persontrafik",Kalkylsammanställning!D220,IF(D$2="Godstrafik",Kalkylsammanställning!G220,Kalkylsammanställning!J220))),IF(D$2="Persontrafik",Kalkylsammanställning!D220,IF(D$2="Godstrafik",Kalkylsammanställning!G220,Kalkylsammanställning!J220))) -> 0
A35: Trafikolyckor | B35: =IF('Beskrivning av åtgärd'!$B$12="Ja",-(IF(B$2="Persontrafik",Kalkylsammanställning!B221,IF(B$2="Godstrafik",Kalkylsammanställning!E221,Kalkylsammanställning!H221))),IF(B$2="Persontrafik",Kalkylsammanställning!B221,IF(B$2="Godstrafik",Kalkylsammanställning!E221,Kalkylsammanställning!H221))) -> 2.418813634e-15 | C35: =IF('Beskrivning av åtgärd'!$B$12="Ja",-(IF(C$2="Persontrafik",Kalkylsammanställning!C221,IF(C$2="Godstrafik",Kalkylsammanställning!F221,Kalkylsammanställning!I221))),IF(C$2="Persontrafik",Kalkylsammanställning!C221,IF(C$2="Godstrafik",Kalkylsammanställning!F221,Kalkylsammanställning!I221))) -> 1.846017253e-15 | D35: =IF('Beskrivning av åtgärd'!$B$12="Ja",-(IF(D$2="Persontrafik",Kalkylsammanställning!D221,IF(D$2="Godstrafik",Kalkylsammanställning!G221,Kalkylsammanställning!J221))),IF(D$2="Persontrafik",Kalkylsammanställning!D221,IF(D$2="Godstrafik",Kalkylsammanställning!G221,Kalkylsammanställning!J221))) -> 6.003938165e-14
A36: Buller | B36: =IF('Beskrivning av åtgärd'!$B$12="Ja",-(IF(B$2="Persontrafik",Kalkylsammanställning!B224,IF(B$2="Godstrafik",Kalkylsammanställning!E224,Kalkylsammanställning!H224))),IF(B$2="Persontrafik",Kalkylsammanställning!B224,IF(B$2="Godstrafik",Kalkylsammanställning!E224,Kalkylsammanställning!H224))) -> 1.472662097e-14 | C36: =IF('Beskrivning av åtgärd'!$B$12="Ja",-(IF(C$2="Persontrafik",Kalkylsammanställning!C224,IF(C$2="Godstrafik",Kalkylsammanställning!F224,Kalkylsammanställning!I224))),IF(C$2="Persontrafik",Kalkylsammanställning!C224,IF(C$2="Godstrafik",Kalkylsammanställning!F224,Kalkylsammanställning!I224))) -> 9.7122379e-16 | D36: =IF('Beskrivning av åtgärd'!$B$12="Ja",-(IF(D$2="Persontrafik",Kalkylsammanställning!D224,IF(D$2="Godstrafik",Kalkylsammanställning!G224,Kalkylsammanställning!J224))),IF(D$2="Persontrafik",Kalkylsammanställning!D224,IF(D$2="Godstrafik",Kalkylsammanställning!G224,Kalkylsammanställning!J224))) -> 9.243117239e-13
A37: SUMMA effekter | B37: =+SUM(B7:B36) -> 2.625971703e-14 | C37: =+SUM(C7:C36) -> 9.580947211e-15 | D37: =+SUM(D10:D36) -> 1.15709052e-12
A38: Nettoresultat | D38: =+D37+(D4+D5+D6+D7+D8) -> 1.198999306e-12
A39: Nettonuvärdeskvot | D39: =+IF(D4=0,"-",D38/(-D4-D5-D6-D7-D8)) -> -
A40: NUK | D40: =+IF(D4=0,"-",D37/(-D4-D5-D6-D7-D8)) -> -
A41: CO2 MSEK | B41: =+IF('Beskrivning av åtgärd'!$B11="Persontrafik",Kalkylsammanställning!B227,IF('Beskrivning av åtgärd'!$B11="godstrafik",Kalkylsammanställning!E227,Kalkylsammanställning!H227)) -> 1.136801256e-15 | C41: =+IF('Beskrivning av åtgärd'!$B11="Persontrafik",Kalkylsammanställning!C227,IF('Beskrivning av åtgärd'!$B11="godstrafik",Kalkylsammanställning!F227,Kalkylsammanställning!I227)) -> 2.424628326e-15 | D41: =+IF('Beskrivning av åtgärd'!$B11="Persontrafik",Kalkylsammanställning!D227,IF('Beskrivning av åtgärd'!$B11="godstrafik",Kalkylsammanställning!G227,Kalkylsammanställning!J227)) -> 2.70240382e-14
A42: Investeringskostnad | D42: =+D4 -> 0
A43: Drift, underhåll och reinvestering | D43: =+D5+D6+D7+D8 -> 4.190878658e-14
A44: Persontrafikföretag | D44: =+SUM(D10:D14) -> 0
A45: Budgeteffekter | D45: =+SUM(D16:D20) -> -1.467661098e-14
A46: Resenärer | D46: =+SUM(D22:D25) -> 0
A47: Godskunder | D47: =+SUM(D27:D29) -> 1.800197825e-13
A48: Externa effekter | D48: =+SUM(D31:D36) -> 9.917473483e-13
A49: SUMMA effekter | D49: =+SUM(D44:D48) -> 1.15709052e-12
A50: Nettoresultat | D50: =+D49+D43+D42 -> 1.198999306e-12
A51: Nettonuvärdeskvot | D51: =+IF(D42=0,"-",D50/-D42) -> -
A52: Kalkylperiod, år | D52: =+'Beskrivning av åtgärd'!C56 -> 60
A55: Kalkylförutsättningar
A56: Kalkylränta | B56: =+Diskontering!B2 -> 0.035
A57: Moms biljettintäkter | B57: =+Diskontering!B3 -> 0.05660377358
A58: Byggstart | B58: =+Diskontering!B29 -> 2028
A59: Byggtid | B59: =+Diskontering!B28 -> 3
A60: Trafikstart | B60: =+Diskontering!B4 -> 2028
A61: Diskonteringsår | B61: =+Diskontering!B4 -> 2028
A62: Kalkylperiod, år | B62: =+Diskontering!B5 -> 60
... 68 more rows

Sheet 2. Samhällsekonomisk analys
A1: Samlad effektbedömning version 2024 | BN1: m | BO1: u | BQ1: Instruktioner | BT1: Kommentar Upprättaren | BU1: Kommentar Regional granskare | BV1: Kommentar Nationell granskare
AV2: Samlad Effektbedömning
A3: 2. Samhällsekonomisk analys
A5: Tabell 2.1 Allmänna kalkylförutsättningar för samhällsekonomisk kalkyl
A6: Prognos persontrafik - huvudanalys | AJ6: Basprognoser 2026-05-04
A7: Avvikelse från prognos persontrafik | AJ7: Upprättaren skriver in, värden: JA eller NEJ
A8: Prognos godstrafik - huvudanalys | AJ8: Basprognoser 2026-05-04
A9: Avvikelse från prognos godstrafik | AJ9: Upprättaren skriver in, värden: JA eller NEJ
A10: ASEK-version | AJ10: ASEK 8.1
A11: Avvikelse från ASEK | AJ11: Upprättaren skriver in, värden: JA eller NEJ
A12: Prisnivå för kalkylvärden | AJ12: 2019
A13: Kalkylränta % | AJ13: =INDATABLAD!D4 -> 3.5
A14: Prognosår 1 | AJ14: 2045
A15: Diskonteringsår | AJ15: 2028
A16: Öppningsår | AJ16: =AJ15+AJ17 -> 2031
A17: Utförandetid/byggtid, antal år (projektspecifik) | AJ17: ='Beskrivning av åtgärd'!C55 -> 3
A18: Kalkylperiod från startår för effekter | AJ18: ='Beskrivning av åtgärd'!C56 -> 60
A19: Kalkylverktyg - samhällsekonomi | AJ19: Bansek 2045 2026.1
A20: Datum för samhällsekonomisk kalkyl | AJ20: ='Beskrivning av åtgärd'!B15 -> 2026-05-04
A21: Trafiktillväxttal persontrafik på järnväg period t o m 2045 | AJ21: =Diskontering!B14 -> 0.0126 | BC21: Namn och tillväxttal hämtas för de rader som har tillväxttal. Samkalk har 6 som default. Övriga har 4.
A22: Trafiktillväxttal persontrafik på järnväg period 2045-2065 | AJ22: =Diskontering!B15 -> 0.0117
A23: Trafiktillväxttal godstrafik på järnväg period t o m 2045 | AJ23: =Diskontering!B17 -> 0.0079
A24: Trafiktillväxttal godstrafik på järnväg period 2045-2065 | AJ24: =Diskontering!B18 -> 0.0042
A25: Trafiktillväxttal | AJ25: Ej angett
A26: Trafiktillväxttal | AJ26: Ej angett
A27: Trafiktillväxttal | AJ27: Ej angett
A28: Trafiktillväxttal | AJ28: Ej angett
A29: Trafiktillväxttal | AJ29: Ej angett
A30: Trafiktillväxttal | AJ30: Ej angett
A31: Trafiktillväxttal | AJ31: Ej angett
A32: Trafiktillväxttal | AJ32: Ej angett
A33: Trafiktillväxttal | AJ33: Ej angett
A34: Trafiktillväxttal | AJ34: Ej angett
A35: Trafiktillväxttal | AJ35: Ej angett
A36: Trafiktillväxttal | AJ36: Ej angett
A37: Trafiktillväxttal | AJ37: Ej angett
A38: Trafiktillväxttal | AJ38: Ej angett
A40: Kommentar
BQ41: Avvikelser från gällande förutsättningar beskrivs här
A44: Tabell 2.2 Nyckeltal samhällsekonomi
AS45: Omräknad investeringskostnad (mnkr) | BB45: Netto-nuvärde (mnkr) | BH45: NNK | BM45: Övriga "utgifter" (mnkr) | BN45: Summa nyttor (mnkr)
A52: Enhetligt tidsvärde på privata resor | BB52: - | BH52: - | BN52: =Kalkylsammanställning!H8 -> 0 | BQ52: Länk behövs
A53: Trafiktillväxt +20% | BB53: - | BH53: - | BM53: =Kalkylsammanställning!G9 -> 0 | BN53: =Kalkylsammanställning!H9 -> 0 | BQ53: Länk behövs
A54: Trafiktillväxt -20% | BB54: - | BH54: - | BM54: =Kalkylsammanställning!G10 -> 0 | BN54: =Kalkylsammanställning!H10 -> 0 | BQ54: Länk behövs
A55: Ej angett | BB55: - | BH55: -
A56: Ej angett | BB56: - | BH56: -
A59: Kommentar
A60: test2
A62: Samhällsekonomisk analys
... 64 more rows

Sheet Beskrivning av åtgärd
A1: Beskrivning av åtgärd
A2: Förutsättningar
A3: Resandeprognos | B3: BAS 2024-04-01
A4: Prognosår resandeprognos | B4: 2045
A5: Godsprognos | B5: BAS 2024-04-01
A6: Prognosår godsprognos | B6: 2045
A7: Öppningsår | B7: =+C54+C55 -> 2031
A8: Diskonteringsår | B8: 2028
A10: Separat Bansek Gods? | B10: Nej
A11: Val av effektredovisning | B11: Totalt
A12: Omvänd kalkyl | B12: Nej
A14: Objektnamn:
A15: Datum för samhällsekonomisk kalkyl: | B15: 2026-05-04 | C15: ange datum åååå-mm-dd
A17: INNEHÅLL
A18: 1. Beskriv aktuell åtgärd och effekter i kalkylen
A19: 2. Korrigering av prognosindata
A20: 3. Byggtid och kalkylperiod
A21: 4. Kalkylspecifika tillväxttal
A22: 5. Om åtgärden innebär förändringar i kapacitetsberäkningens linjedelar
A23: 6. Om åtgärden innebär andra förändringar i kapacitetsberäkningen:
A24: 7. Om effekterna beräknas utanför modellen - med tidtabellsanalys/simulering
A25: 8. Åtgärd som påverkar drivmedelstyp, exempelvis elektrifiering
A26: 9. Förändrade banavgifter
A27: 10. Andel gjutjärnsbromsar
A33: 1. Beskriv aktuell åtgärd och effekter i kalkylen
A34: Allmän beskrivning av åtgärden
A36: Beräkningsbara effekter | C36: Beskriv kortfattat om åtgärden innebär en förändring,
A37: Gångtider
A38: Avstånd
A39: Turtäthet/antal tåg
A40: Kapacitetsutnyttjande
A41: Ändring drivmedel/byte av tågtyp
A42: Banavgifter
A43: Kostnader för DoU (ange beräkningsmetod)
A44: Bromsar godståg (anges under punkt 10 nedan)
A46: 2. Korrigering av prognosindata
A47: Har korrigering av personprognosindata genomförts?
A48: Har korrigering av godsprognosindata genomförts?
A49: I så fall; ange sträckor och omräkningsfaktor (infoga rader vid behov)
A53: 3. Byggtid och kalkylperiod
A54: Byggstart | C54: 2028
A55: Byggtid | C55: 3
A56: Kalkylperiod, år | C56: 60
A59: 4. Kalkylspecifika tillväxttal | C59: Kalkylspecifik | D59: standard | H59: Trafiktillväxt KA
A60: Trafiktillväxt 1 godstrafik | B60: Basår-prognosår 1 | C60: =+IF(Kalkylsammanställning!G$2=1,"",'Beskrivning av åtgärd'!H60) ->  | D60: =+INDATABLAD!D20 -> 0.0079 | E60: per år | G60: =+(1+D60)^(2045-2019) -> 1.227025463 | H60: =+((G60*Kalkylsammanställning!G2))^(1/(2045-2019))-1 -> 0.0079
A61: Trafiktillväxt 2 godstrafik | B61: Proggnosår 1-prognosår 2 | C61: =+D61 -> 0.0042 | D61: =+INDATABLAD!D21 -> 0.0042 | E61: per år
A62: Trafiktillväxt 1 persontrafik | B62: Basår-prognosår 1 | C62: =+IF(Kalkylsammanställning!G$2=1,"",'Beskrivning av åtgärd'!H62) ->  | D62: =+INDATABLAD!D17 -> 0.0126 | E62: per år | G62: =+(1+D62)^(2045-2019) -> 1.384796634 | H62: =+((G62*Kalkylsammanställning!G$2))^(1/(2045-2019))-1 -> 0.0126
... 36 more rows

Sheet Länkar
K1: Ange gångtidsdifferenser (per riktning) | AK1: Tåg/dygn | AL1: JA | AM1: JA | AN1: JA | AO1: UA | AP1: UA | AQ1: UA | AX1: Plankorsningsberäkningar | AZ1: PER LINJEDEL | BA1: PER LINJEDEL | BB1: PER LINJEDEL | BC1: PER LINJEDEL | BD1: PER LINJEDEL | BE1: PER LINJEDEL | BF1: PER LINJEDEL | BG1: PER LINJEDEL
A2: Från nod | B2: Till nod | C2: Länk | D2: Från station | E2: Till station | F2: Bandel | G2: Stråknamn | H2: Stråknr | I2: Linjedel JA | J2: Linjedel UA | K2: IR-tåg (1) | L2: Snabbtåg (2) | M2: Snabbtåg stambanor (5) | N2: Pendel/Reg-tåg (15) | O2: Nattåg (16) | P2: Dieselmotor-vagn (17) | Q2: Pendeltåg storstäder (18) | R2: HH-tåg (3) | S2: Snabba reg.tåg (4) | T2: Prognoskorr.-faktor | U2: EL JA | V2: EL UA | W2: Fyrspår JA | X2: Fyrspår UA | Y2: Avstånd km persontåg JA | Z2: Avstånd km persontåg UA | AB2: Stråknamn | AD2: Bandel | AF2: Bandel Länkar TTA | AG2: Diff bandel? | AI2: - | AJ2: EMME-länk | AL2: S | AM2: Ö | AN2: L | AO2: S | AP2: Ö | AQ2: L | AX2: P Bandeltkm per år | AY2: Längd linjedel | AZ2: Fordonskm, godståg, JA | BA2: Fordonskm, persontåg, JA | BB2: Fordonskm, totalt, JA | BC2: Fordonskm, godståg, UA | BD2: Fordonskm, persontåg, UA | BE2: Fordonskm, totalt, UA | BF2: Fordonskm JA | BG2: Fordonskm UA
A3: =Länkar_TTA!A2 -> 1140 | B3: =Länkar_TTA!B2 -> 1501 | C3: =TEXT(Länkar_TTA!C2,0) -> 11401501 | D3: =Länkar_TTA!D2 -> Hölö | E3: =Länkar_TTA!E2 -> Vagnhärad | F3: =Länkar_TTA!F2 -> 421 | G3: =Länkar_TTA!G2 -> Södra stambanan | H3: =Länkar_TTA!H2 -> 2 | I3: =Länkar_TTA!I2 -> L4800 | J3: =+I3 -> L4800 | T3: =+Kalkylsammanställning!G$2 -> 1 | U3: =Länkar_TTA!M2 -> Ja | V3: =+U3 -> Ja | W3: =Länkar_TTA!K2 -> 0 | X3: =+W3 -> 0 | Y3: =+IFERROR(VLOOKUP(C3,LinjeLänk_Data!F:G,2,FALSE),"-") -> - | Z3: =+Y3 -> - | AB3: =+G3 -> Södra stambanan | AD3: =+F3 -> 421 | AF3: =+VLOOKUP(C3,Länkar_TTA!C:O,13,FALSE) ->  | AG3: =+AD3-AF3 ->  | AI3: - | AJ3: =+CONCATENATE(D3,AI3,E3) -> Hölö-Vagnhärad | AL3: =+SUMIF('Linjelänk JA_KAP'!$H:$H,$C3,'Linjelänk JA_KAP'!CY:CY) -> 0 | AM3: =+SUMIF('Linjelänk JA_KAP'!$H:$H,$C3,'Linjelänk JA_KAP'!CZ:CZ) -> 0 | AN3: =+SUMIF('Linjelänk JA_KAP'!$H:$H,$C3,'Linjelänk JA_KAP'!DA:DA) -> 0 | AO3: =+SUMIF('Linjelänk UA_KAP'!$H:$H,$C3,'Linjelänk UA_KAP'!CY:CY) -> 0 | AP3: =+SUMIF('Linjelänk UA_KAP'!$H:$H,$C3,'Linjelänk UA_KAP'!CZ:CZ) -> 0 | AQ3: =+SUMIF('Linjelänk UA_KAP'!$H:$H,$C3,'Linjelänk UA_KAP'!DA:DA) -> 0 | AS3: =+VLOOKUP($AJ3,Länkar_TTA!$Q:$T,2,FALSE) -> 0 | AT3: =+VLOOKUP($AJ3,Länkar_TTA!$Q:$T,3,FALSE) -> 0 | AU3: =+VLOOKUP($AJ3,Länkar_TTA!$Q:$T,4,FALSE) -> 0 | AX3: =+IFERROR(Y3*(AL3+AM3+AN3)*320,0) -> 0 | AY3: =IFERROR(VLOOKUP(I3,Bangods_linjedel!B:F,5,FALSE),0) -> 46.91 | AZ3: =VLOOKUP(I3,'Kap.ber JA'!DK:DN,2,FALSE)*AY3 -> 89363.55 | BA3: =VLOOKUP(I3,'Kap.ber JA'!$DK:$DN,3,FALSE)*AY3 -> 0 | BB3: =VLOOKUP(I3,'Kap.ber JA'!$DK:$DN,4,FALSE)*AY3 -> 89363.55 | BC3: =IFERROR(VLOOKUP(J3,'Kap.ber UA'!$DJ:$DM,2,FALSE)*AY3,0) -> 89363.55 | BD3: =IFERROR(VLOOKUP(J3,'Kap.ber UA'!$DJ:$DM,3,FALSE)*AY3,0) -> 0 | BE3: =IFERROR(VLOOKUP(J3,'Kap.ber UA'!$DJ:$DM,4,FALSE)*AY3,0) -> 89363.55 | BF3: =IF('Beskrivning av åtgärd'!$B$11="Persontrafik",BA3,IF('Beskrivning av åtgärd'!$B$11="Godstrafik",AZ3,BB3)) -> 89363.55 | BG3: =IF('Beskrivning av åtgärd'!$B$11="Persontrafik",BD3,IF('Beskrivning av åtgärd'!$B$11="Godstrafik",BC3,BE3)) -> 89363.55
A4: =Länkar_TTA!A3 -> 1140 | B4: =Länkar_TTA!B3 -> 681131 | C4: =TEXT(Länkar_TTA!C3,0) -> 1140681131 | D4: =Länkar_TTA!D3 -> Hölö | E4: =Länkar_TTA!E3 -> Järna | F4: =Länkar_TTA!F3 -> 421 | G4: =Länkar_TTA!G3 -> Södra stambanan | H4: =Länkar_TTA!H3 -> 2 | I4: =Länkar_TTA!I3 -> L4800 | J4: L4800 | T4: =+Kalkylsammanställning!G$2 -> 1 | U4: =Länkar_TTA!M3 -> Ja | V4: Ja | W4: =Länkar_TTA!K3 -> 0 | X4: 0 | Y4: =+IFERROR(VLOOKUP(C4,LinjeLänk_Data!F:G,2,FALSE),"-") -> - | Z4: - | AB4: Södra stambanan | AD4: 421 | AF4: =+VLOOKUP(C4,Länkar_TTA!C:O,13,FALSE) ->  | AG4: =+AD4-AF4 ->  | AI4: - | AJ4: Hölö-Järna | AL4: =+SUMIF('Linjelänk JA_KAP'!$H:$H,$C4,'Linjelänk JA_KAP'!CY:CY) -> 0 | AM4: =+SUMIF('Linjelänk JA_KAP'!$H:$H,$C4,'Linjelänk JA_KAP'!CZ:CZ) -> 0 | AN4: =+SUMIF('Linjelänk JA_KAP'!$H:$H,$C4,'Linjelänk JA_KAP'!DA:DA) -> 0 | AO4: =+SUMIF('Linjelänk UA_KAP'!$H:$H,$C4,'Linjelänk UA_KAP'!CY:CY) -> 0 | AP4: =+SUMIF('Linjelänk UA_KAP'!$H:$H,$C4,'Linjelänk UA_KAP'!CZ:CZ) -> 0 | AQ4: =+SUMIF('Linjelänk UA_KAP'!$H:$H,$C4,'Linjelänk UA_KAP'!DA:DA) -> 0 | AS4: =+VLOOKUP($AJ4,Länkar_TTA!$Q:$T,2,FALSE) -> 0 | AT4: =+VLOOKUP($AJ4,Länkar_TTA!$Q:$T,3,FALSE) -> 0 | AU4: =+VLOOKUP($AJ4,Länkar_TTA!$Q:$T,4,FALSE) -> 0 | AX4: =+IFERROR(Y4*(AL4+AM4+AN4)*320,0) -> 0 | AY4: =IFERROR(VLOOKUP(I4,Bangods_linjedel!B:F,5,FALSE),0) -> 46.91 | AZ4: =VLOOKUP(I4,'Kap.ber JA'!DK:DN,2,FALSE)*AY4 -> 89363.55 | BA4: =VLOOKUP(I4,'Kap.ber JA'!$DK:$DN,3,FALSE)*AY4 -> 0 | BB4: =VLOOKUP(I4,'Kap.ber JA'!$DK:$DN,4,FALSE)*AY4 -> 89363.55 | BC4: =IFERROR(VLOOKUP(J4,'Kap.ber UA'!$DJ:$DM,2,FALSE)*AY4,0) -> 89363.55 | BD4: =IFERROR(VLOOKUP(J4,'Kap.ber UA'!$DJ:$DM,3,FALSE)*AY4,0) -> 0 | BE4: =IFERROR(VLOOKUP(J4,'Kap.ber UA'!$DJ:$DM,4,FALSE)*AY4,0) -> 89363.55 | BF4: =IF('Beskrivning av åtgärd'!$B$11="Persontrafik",BA4,IF('Beskrivning av åtgärd'!$B$11="Godstrafik",AZ4,BB4)) -> 89363.55 | BG4: =IF('Beskrivning av åtgärd'!$B$11="Persontrafik",BD4,IF('Beskrivning av åtgärd'!$B$11="Godstrafik",BC4,BE4)) -> 89363.55
A5: =Länkar_TTA!A4 -> 1141 | B5: =Länkar_TTA!B4 -> 3801 | C5: =TEXT(Länkar_TTA!C4,0) -> 11413801 | D5: =Länkar_TTA!D4 -> Hässleholm kp NS | E5: =Länkar_TTA!E4 -> Lund C | F5: =Länkar_TTA!F4 -> 0 | G5: =Länkar_TTA!G4 -> Södra stambanan | H5: =Länkar_TTA!H4 -> 2 | I5: =Länkar_TTA!I4 -> L4830 | J5: L4830 | T5: =+Kalkylsammanställning!G$2 -> 1 | U5: =Länkar_TTA!M4 -> Ja | V5: Ja | W5: =Länkar_TTA!K4 -> 0 | X5: 0 | Y5: =+IFERROR(VLOOKUP(C5,LinjeLänk_Data!F:G,2,FALSE),"-") -> 56.36470032 | Z5: 56.36470032 | AB5: Södra stambanan | AD5: 0 | AF5: =+VLOOKUP(C5,Länkar_TTA!C:O,13,FALSE) ->  | AI5: - | AJ5: Hässleholm kp NS-Lund C | AL5: =+SUMIF('Linjelänk JA_KAP'!$H:$H,$C5,'Linjelänk JA_KAP'!CY:CY) -> 23 | AM5: =+SUMIF('Linjelänk JA_KAP'!$H:$H,$C5,'Linjelänk JA_KAP'!CZ:CZ) -> 39 | AN5: =+SUMIF('Linjelänk JA_KAP'!$H:$H,$C5,'Linjelänk JA_KAP'!DA:DA) -> 0 | AO5: =+SUMIF('Linjelänk UA_KAP'!$H:$H,$C5,'Linjelänk UA_KAP'!CY:CY) -> 23 | AP5: =+SUMIF('Linjelänk UA_KAP'!$H:$H,$C5,'Linjelänk UA_KAP'!CZ:CZ) -> 39 | AQ5: =+SUMIF('Linjelänk UA_KAP'!$H:$H,$C5,'Linjelänk UA_KAP'!DA:DA) -> 0 | AS5: =+VLOOKUP($AJ5,Länkar_TTA!$Q:$T,2,FALSE) -> 23 | AT5: =+VLOOKUP($AJ5,Länkar_TTA!$Q:$T,3,FALSE) -> 39 | AU5: =+VLOOKUP($AJ5,Länkar_TTA!$Q:$T,4,FALSE) -> 0 | AX5: 1118275.654 | AY5: =IFERROR(VLOOKUP(I5,Bangods_linjedel!B:F,5,FALSE),0) -> 59.06 | AZ5: =VLOOKUP(I5,'Kap.ber JA'!DK:DN,2,FALSE)*AY5 -> 251595.6 | BA5: =VLOOKUP(I5,'Kap.ber JA'!$DK:$DN,3,FALSE)*AY5 -> 2343500.8 | BB5: =VLOOKUP(I5,'Kap.ber JA'!$DK:$DN,4,FALSE)*AY5 -> 2595096.4 | BC5: =IFERROR(VLOOKUP(J5,'Kap.ber UA'!$DJ:$DM,2,FALSE)*AY5,0) -> 251595.6 | BD5: =IFERROR(VLOOKUP(J5,'Kap.ber UA'!$DJ:$DM,3,FALSE)*AY5,0) -> 2343500.8 | BE5: =IFERROR(VLOOKUP(J5,'Kap.ber UA'!$DJ:$DM,4,FALSE)*AY5,0) -> 2595096.4 | BF5: =IF('Beskrivning av åtgärd'!$B$11="Persontrafik",BA5,IF('Beskrivning av åtgärd'!$B$11="Godstrafik",AZ5,BB5)) -> 2595096.4 | BG5: =IF('Beskrivning av åtgärd'!$B$11="Persontrafik",BD5,IF('Beskrivning av åtgärd'!$B$11="Godstrafik",BC5,BE5)) -> 2595096.4
A6: =Länkar_TTA!A5 -> 1141 | B6: =Länkar_TTA!B5 -> 9909 | C6: =TEXT(Länkar_TTA!C5,0) -> 11419909 | D6: =Länkar_TTA!D5 -> Hässleholm kp NS | E6: =Länkar_TTA!E5 -> Hässleholm kp SSB | F6: =Länkar_TTA!F5 -> 0 | G6: =Länkar_TTA!G5 -> Södra stambanan | H6: =Länkar_TTA!H5 -> 2 | I6: =Länkar_TTA!I5 -> L4830 | J6: =+I6 -> L4830 | T6: =+Kalkylsammanställning!G$2 -> 1 | U6: =Länkar_TTA!M5 -> Ja | V6: Ja | W6: =Länkar_TTA!K5 -> 0 | X6: 0 | Y6: =+IFERROR(VLOOKUP(C6,LinjeLänk_Data!F:G,2,FALSE),"-") -> 2.700000048 | Z6: 2.700000048 | AB6: Södra stambanan | AD6: 0 | AF6: =+VLOOKUP(C6,Länkar_TTA!C:O,13,FALSE) ->  | AI6: - | AJ6: Hässleholm kp NS-Hässleholm kp SSB | AL6: =+SUMIF('Linjelänk JA_KAP'!$H:$H,$C6,'Linjelänk JA_KAP'!CY:CY) -> 23 | AM6: =+SUMIF('Linjelänk JA_KAP'!$H:$H,$C6,'Linjelänk JA_KAP'!CZ:CZ) -> 39 | AN6: =+SUMIF('Linjelänk JA_KAP'!$H:$H,$C6,'Linjelänk JA_KAP'!DA:DA) -> 0 | AO6: =+SUMIF('Linjelänk UA_KAP'!$H:$H,$C6,'Linjelänk UA_KAP'!CY:CY) -> 23 | AP6: =+SUMIF('Linjelänk UA_KAP'!$H:$H,$C6,'Linjelänk UA_KAP'!CZ:CZ) -> 39 | AQ6: =+SUMIF('Linjelänk UA_KAP'!$H:$H,$C6,'Linjelänk UA_KAP'!DA:DA) -> 0 | AS6: =+VLOOKUP($AJ6,Länkar_TTA!$Q:$T,2,FALSE) -> 23 | AT6: =+VLOOKUP($AJ6,Länkar_TTA!$Q:$T,3,FALSE) -> 39 | AU6: =+VLOOKUP($AJ6,Länkar_TTA!$Q:$T,4,FALSE) -> 0 | AX6: 53568.00095 | AY6: =IFERROR(VLOOKUP(I6,Bangods_linjedel!B:F,5,FALSE),0) -> 59.06 | AZ6: =VLOOKUP(I6,'Kap.ber JA'!DK:DN,2,FALSE)*AY6 -> 251595.6 | BA6: =VLOOKUP(I6,'Kap.ber JA'!$DK:$DN,3,FALSE)*AY6 -> 2343500.8 | BB6: =VLOOKUP(I6,'Kap.ber JA'!$DK:$DN,4,FALSE)*AY6 -> 2595096.4 | BC6: =IFERROR(VLOOKUP(J6,'Kap.ber UA'!$DJ:$DM,2,FALSE)*AY6,0) -> 251595.6 | BD6: =IFERROR(VLOOKUP(J6,'Kap.ber UA'!$DJ:$DM,3,FALSE)*AY6,0) -> 2343500.8 | BE6: =IFERROR(VLOOKUP(J6,'Kap.ber UA'!$DJ:$DM,4,FALSE)*AY6,0) -> 2595096.4 | BF6: =IF('Beskrivning av åtgärd'!$B$11="Persontrafik",BA6,IF('Beskrivning av åtgärd'!$B$11="Godstrafik",AZ6,BB6)) -> 2595096.4 | BG6: =IF('Beskrivning av åtgärd'!$B$11="Persontrafik",BD6,IF('Beskrivning av åtgärd'!$B$11="Godstrafik",BC6,BE6)) -> 2595096.4
A7: =Länkar_TTA!A6 -> 1142 | B7: =Länkar_TTA!B6 -> 1806 | C7: =TEXT(Länkar_TTA!C6,0) -> 11421806 | D7: =Länkar_TTA!D6 -> Sjögestad södra | E7: =Länkar_TTA!E6 -> Mantorp | F7: =Länkar_TTA!F6 -> 505 | G7: =Länkar_TTA!G6 -> Södra stambanan | H7: =Länkar_TTA!H6 -> 2 | I7: =Länkar_TTA!I6 -> L4804 | J7: L4804 | T7: =+Kalkylsammanställning!G$2 -> 1 | U7: =Länkar_TTA!M6 -> Ja | V7: Ja | W7: =Länkar_TTA!K6 -> 0 | X7: 0 | Y7: =+IFERROR(VLOOKUP(C7,LinjeLänk_Data!F:G,2,FALSE),"-") -> 3.75703001 | Z7: 3.75703001 | AB7: Södra stambanan | AD7: 505 | AF7: =+VLOOKUP(C7,Länkar_TTA!C:O,13,FALSE) ->  | AI7: - | AJ7: Sjögestad södra-Mantorp | AL7: =+SUMIF('Linjelänk JA_KAP'!$H:$H,$C7,'Linjelänk JA_KAP'!CY:CY) -> 24 | AM7: =+SUMIF('Linjelänk JA_KAP'!$H:$H,$C7,'Linjelänk JA_KAP'!CZ:CZ) -> 37 | AN7: =+SUMIF('Linjelänk JA_KAP'!$H:$H,$C7,'Linjelänk JA_KAP'!DA:DA) -> 52 | AO7: =+SUMIF('Linjelänk UA_KAP'!$H:$H,$C7,'Linjelänk UA_KAP'!CY:CY) -> 24 | AP7: =+SUMIF('Linjelänk UA_KAP'!$H:$H,$C7,'Linjelänk UA_KAP'!CZ:CZ) -> 37 | AQ7: =+SUMIF('Linjelänk UA_KAP'!$H:$H,$C7,'Linjelänk UA_KAP'!DA:DA) -> 52 | AS7: =+VLOOKUP($AJ7,Länkar_TTA!$Q:$T,2,FALSE) -> 24 | AT7: =+VLOOKUP($AJ7,Länkar_TTA!$Q:$T,3,FALSE) -> 37 | AU7: =+VLOOKUP($AJ7,Länkar_TTA!$Q:$T,4,FALSE) -> 52 | AX7: 135854.2052 | AY7: =IFERROR(VLOOKUP(I7,Bangods_linjedel!B:F,5,FALSE),0) -> 31.92 | AZ7: =VLOOKUP(I7,'Kap.ber JA'!DK:DN,2,FALSE)*AY7 -> 161036.4 | BA7: =VLOOKUP(I7,'Kap.ber JA'!$DK:$DN,3,FALSE)*AY7 -> 2308454.4 | BB7: =VLOOKUP(I7,'Kap.ber JA'!$DK:$DN,4,FALSE)*AY7 -> 2469490.8 | BC7: =IFERROR(VLOOKUP(J7,'Kap.ber UA'!$DJ:$DM,2,FALSE)*AY7,0) -> 161036.4 | BD7: =IFERROR(VLOOKUP(J7,'Kap.ber UA'!$DJ:$DM,3,FALSE)*AY7,0) -> 2308454.4 | BE7: =IFERROR(VLOOKUP(J7,'Kap.ber UA'!$DJ:$DM,4,FALSE)*AY7,0) -> 2469490.8 | BF7: =IF('Beskrivning av åtgärd'!$B$11="Persontrafik",BA7,IF('Beskrivning av åtgärd'!$B$11="Godstrafik",AZ7,BB7)) -> 2469490.8 | BG7: =IF('Beskrivning av åtgärd'!$B$11="Persontrafik",BD7,IF('Beskrivning av åtgärd'!$B$11="Godstrafik",BC7,BE7)) -> 2469490.8
A8: =Länkar_TTA!A7 -> 1142 | B8: =Länkar_TTA!B7 -> 1906 | C8: =TEXT(Länkar_TTA!C7,0) -> 11421906 | D8: =Länkar_TTA!D7 -> Sjögestad södra | E8: =Länkar_TTA!E7 -> Vikingstad | F8: =Länkar_TTA!F7 -> 505 | G8: =Länkar_TTA!G7 -> Södra stambanan | H8: =Länkar_TTA!H7 -> 2 | I8: =Länkar_TTA!I7 -> L4804 | J8: L4804 | T8: =+Kalkylsammanställning!G$2 -> 1 | U8: =Länkar_TTA!M7 -> Ja | V8: Ja | W8: =Länkar_TTA!K7 -> 0 | X8: 0 | Y8: =+IFERROR(VLOOKUP(C8,LinjeLänk_Data!F:G,2,FALSE),"-") -> 5.612969875 | Z8: 5.612969875 | AB8: Södra stambanan | AD8: 505 | AF8: =+VLOOKUP(C8,Länkar_TTA!C:O,13,FALSE) ->  | AI8: - | AJ8: Sjögestad södra-Vikingstad | AL8: =+SUMIF('Linjelänk JA_KAP'!$H:$H,$C8,'Linjelänk JA_KAP'!CY:CY) -> 24 | AM8: =+SUMIF('Linjelänk JA_KAP'!$H:$H,$C8,'Linjelänk JA_KAP'!CZ:CZ) -> 37 | AN8: =+SUMIF('Linjelänk JA_KAP'!$H:$H,$C8,'Linjelänk JA_KAP'!DA:DA) -> 52 | AO8: =+SUMIF('Linjelänk UA_KAP'!$H:$H,$C8,'Linjelänk UA_KAP'!CY:CY) -> 24 | AP8: =+SUMIF('Linjelänk UA_KAP'!$H:$H,$C8,'Linjelänk UA_KAP'!CZ:CZ) -> 37 | AQ8: =+SUMIF('Linjelänk UA_KAP'!$H:$H,$C8,'Linjelänk UA_KAP'!DA:DA) -> 52 | AS8: =+VLOOKUP($AJ8,Länkar_TTA!$Q:$T,2,FALSE) -> 24 | AT8: =+VLOOKUP($AJ8,Länkar_TTA!$Q:$T,3,FALSE) -> 37 | AU8: =+VLOOKUP($AJ8,Länkar_TTA!$Q:$T,4,FALSE) -> 52 | AX8: 202964.9907 | AY8: =IFERROR(VLOOKUP(I8,Bangods_linjedel!B:F,5,FALSE),0) -> 31.92 | AZ8: =VLOOKUP(I8,'Kap.ber JA'!DK:DN,2,FALSE)*AY8 -> 161036.4 | BA8: =VLOOKUP(I8,'Kap.ber JA'!$DK:$DN,3,FALSE)*AY8 -> 2308454.4 | BB8: =VLOOKUP(I8,'Kap.ber JA'!$DK:$DN,4,FALSE)*AY8 -> 2469490.8 | BC8: =IFERROR(VLOOKUP(J8,'Kap.ber UA'!$DJ:$DM,2,FALSE)*AY8,0) -> 161036.4 | BD8: =IFERROR(VLOOKUP(J8,'Kap.ber UA'!$DJ:$DM,3,FALSE)*AY8,0) -> 2308454.4 | BE8: =IFERROR(VLOOKUP(J8,'Kap.ber UA'!$DJ:$DM,4,FALSE)*AY8,0) -> 2469490.8 | BF8: =IF('Beskrivning av åtgärd'!$B$11="Persontrafik",BA8,IF('Beskrivning av åtgärd'!$B$11="Godstrafik",AZ8,BB8)) -> 2469490.8 | BG8: =IF('Beskrivning av åtgärd'!$B$11="Persontrafik",BD8,IF('Beskrivning av åtgärd'!$B$11="Godstrafik",BC8,BE8)) -> 2469490.8
A9: =Länkar_TTA!A8 -> 1300 | B9: =Länkar_TTA!B8 -> 1305 | C9: =TEXT(Länkar_TTA!C8,0) -> 13001305 | D9: =Länkar_TTA!D8 -> Enköping | E9: =Länkar_TTA!E8 -> Grillby | F9: =Länkar_TTA!F8 -> 444 | G9: =Länkar_TTA!G8 -> Mälarbanan | H9: =Länkar_TTA!H8 -> 16 | I9: =Länkar_TTA!I8 -> L2704 | J9: L2704 | T9: =+Kalkylsammanställning!G$2 -> 1 | U9: =Länkar_TTA!M8 -> Ja | V9: Ja | W9: =Länkar_TTA!K8 -> 0 | X9: 0 | Y9: =+IFERROR(VLOOKUP(C9,LinjeLänk_Data!F:G,2,FALSE),"-") -> 8.380000114 | Z9: 8.380000114 | AB9: Mälarbanan | AD9: 444 | AF9: =+VLOOKUP(C9,Länkar_TTA!C:O,13,FALSE) ->  | AI9: - | AJ9: Enköping-Grillby | AL9: =+SUMIF('Linjelänk JA_KAP'!$H:$H,$C9,'Linjelänk JA_KAP'!CY:CY) -> 0 | AM9: =+SUMIF('Linjelänk JA_KAP'!$H:$H,$C9,'Linjelänk JA_KAP'!CZ:CZ) -> 56 | AN9: =+SUMIF('Linjelänk JA_KAP'!$H:$H,$C9,'Linjelänk JA_KAP'!DA:DA) -> 0 | AO9: =+SUMIF('Linjelänk UA_KAP'!$H:$H,$C9,'Linjelänk UA_KAP'!CY:CY) -> 0 | AP9: =+SUMIF('Linjelänk UA_KAP'!$H:$H,$C9,'Linjelänk UA_KAP'!CZ:CZ) -> 56 | AQ9: =+SUMIF('Linjelänk UA_KAP'!$H:$H,$C9,'Linjelänk UA_KAP'!DA:DA) -> 0 | AS9: =+VLOOKUP($AJ9,Länkar_TTA!$Q:$T,2,FALSE) -> 0 | AT9: =+VLOOKUP($AJ9,Länkar_TTA!$Q:$T,3,FALSE) -> 56 | AU9: =+VLOOKUP($AJ9,Länkar_TTA!$Q:$T,4,FALSE) -> 0 | AX9: 150169.6021 | AY9: =IFERROR(VLOOKUP(I9,Bangods_linjedel!B:F,5,FALSE),0) -> 56.56 | AZ9: =VLOOKUP(I9,'Kap.ber JA'!DK:DN,2,FALSE)*AY9 -> 85688.4 | BA9: =VLOOKUP(I9,'Kap.ber JA'!$DK:$DN,3,FALSE)*AY9 -> 2027110.4 | BB9: =VLOOKUP(I9,'Kap.ber JA'!$DK:$DN,4,FALSE)*AY9 -> 2112798.8 | BC9: =IFERROR(VLOOKUP(J9,'Kap.ber UA'!$DJ:$DM,2,FALSE)*AY9,0) -> 85688.4 | BD9: =IFERROR(VLOOKUP(J9,'Kap.ber UA'!$DJ:$DM,3,FALSE)*AY9,0) -> 2027110.4 | BE9: =IFERROR(VLOOKUP(J9,'Kap.ber UA'!$DJ:$DM,4,FALSE)*AY9,0) -> 2112798.8 | BF9: =IF('Beskrivning av åtgärd'!$B$11="Persontrafik",BA9,IF('Beskrivning av åtgärd'!$B$11="Godstrafik",AZ9,BB9)) -> 2112798.8 | BG9: =IF('Beskrivning av åtgärd'!$B$11="Persontrafik",BD9,IF('Beskrivning av åtgärd'!$B$11="Godstrafik",BC9,BE9)) -> 2112798.8
A10: =Länkar_TTA!A9 -> 1300 | B10: =Länkar_TTA!B9 -> 5804 | C10: =TEXT(Länkar_TTA!C9,0) -> 13005804 | D10: =Länkar_TTA!D9 -> Enköping | E10: =Länkar_TTA!E9 -> Västerås Norra | F10: =Länkar_TTA!F9 -> 444 | G10: =Länkar_TTA!G9 -> Mälarbanan | H10: =Länkar_TTA!H9 -> 16 | I10: =Länkar_TTA!I9 -> L2704 | J10: L2704 | T10: =+Kalkylsammanställning!G$2 -> 1 | U10: =Länkar_TTA!M9 -> Ja | V10: Ja | W10: =Länkar_TTA!K9 -> 0 | X10: 0 | Y10: =+IFERROR(VLOOKUP(C10,LinjeLänk_Data!F:G,2,FALSE),"-") -> 29.69000053 | Z10: 29.69000053 | AB10: Mälarbanan | AD10: 444 | AF10: =+VLOOKUP(C10,Länkar_TTA!C:O,13,FALSE) ->  | AI10: - | AJ10: Enköping-Västerås Norra | AL10: =+SUMIF('Linjelänk JA_KAP'!$H:$H,$C10,'Linjelänk JA_KAP'!CY:CY) -> 0 | AM10: =+SUMIF('Linjelänk JA_KAP'!$H:$H,$C10,'Linjelänk JA_KAP'!CZ:CZ) -> 56 | AN10: =+SUMIF('Linjelänk JA_KAP'!$H:$H,$C10,'Linjelänk JA_KAP'!DA:DA) -> 0 | AO10: =+SUMIF('Linjelänk UA_KAP'!$H:$H,$C10,'Linjelänk UA_KAP'!CY:CY) -> 0 | AP10: =+SUMIF('Linjelänk UA_KAP'!$H:$H,$C10,'Linjelänk UA_KAP'!CZ:CZ) -> 56 | AQ10: =+SUMIF('Linjelänk UA_KAP'!$H:$H,$C10,'Linjelänk UA_KAP'!DA:DA) -> 0 | AS10: =+VLOOKUP($AJ10,Länkar_TTA!$Q:$T,2,FALSE) -> 0 | AT10: =+VLOOKUP($AJ10,Länkar_TTA!$Q:$T,3,FALSE) -> 56 | AU10: =+VLOOKUP($AJ10,Länkar_TTA!$Q:$T,4,FALSE) -> 0 | AX10: 532044.8096 | AY10: =IFERROR(VLOOKUP(I10,Bangods_linjedel!B:F,5,FALSE),0) -> 56.56 | AZ10: =VLOOKUP(I10,'Kap.ber JA'!DK:DN,2,FALSE)*AY10 -> 85688.4 | BA10: =VLOOKUP(I10,'Kap.ber JA'!$DK:$DN,3,FALSE)*AY10 -> 2027110.4 | BB10: =VLOOKUP(I10,'Kap.ber JA'!$DK:$DN,4,FALSE)*AY10 -> 2112798.8 | BC10: =IFERROR(VLOOKUP(J10,'Kap.ber UA'!$DJ:$DM,2,FALSE)*AY10,0) -> 85688.4 | BD10: =IFERROR(VLOOKUP(J10,'Kap.ber UA'!$DJ:$DM,3,FALSE)*AY10,0) -> 2027110.4 | BE10: =IFERROR(VLOOKUP(J10,'Kap.ber UA'!$DJ:$DM,4,FALSE)*AY10,0) -> 2112798.8 | BF10: =IF('Beskrivning av åtgärd'!$B$11="Persontrafik",BA10,IF('Beskrivning av åtgärd'!$B$11="Godstrafik",AZ10,BB10)) -> 2112798.8 | BG10: =IF('Beskrivning av åtgärd'!$B$11="Persontrafik",BD10,IF('Beskrivning av åtgärd'!$B$11="Godstrafik",BC10,BE10)) -> 2112798.8
A11: =Länkar_TTA!A10 -> 1301 | B11: =Länkar_TTA!B10 -> 1305 | C11: =TEXT(Länkar_TTA!C10,0) -> 13011305 | D11: =Länkar_TTA!D10 -> Bålsta | E11: =Länkar_TTA!E10 -> Grillby | F11: =Länkar_TTA!F10 -> 444 | G11: =Länkar_TTA!G10 -> Mälarbanan | H11: =Länkar_TTA!H10 -> 16 | I11: =Länkar_TTA!I10 -> L2704 | J11: L2704 | T11: =+Kalkylsammanställning!G$2 -> 1 | U11: =Länkar_TTA!M10 -> Ja | V11: Ja | W11: =Länkar_TTA!K10 -> 0 | X11: 0 | Y11: =+IFERROR(VLOOKUP(C11,LinjeLänk_Data!F:G,2,FALSE),"-") -> 18.48999977 | Z11: 18.48999977 | AB11: Mälarbanan | AD11: 444 | AF11: =+VLOOKUP(C11,Länkar_TTA!C:O,13,FALSE) ->  | AI11: - | AJ11: Bålsta-Grillby | AL11: =+SUMIF('Linjelänk JA_KAP'!$H:$H,$C11,'Linjelänk JA_KAP'!CY:CY) -> 0 | AM11: =+SUMIF('Linjelänk JA_KAP'!$H:$H,$C11,'Linjelänk JA_KAP'!CZ:CZ) -> 56 | AN11: =+SUMIF('Linjelänk JA_KAP'!$H:$H,$C11,'Linjelänk JA_KAP'!DA:DA) -> 0 | AO11: =+SUMIF('Linjelänk UA_KAP'!$H:$H,$C11,'Linjelänk UA_KAP'!CY:CY) -> 0 | AP11: =+SUMIF('Linjelänk UA_KAP'!$H:$H,$C11,'Linjelänk UA_KAP'!CZ:CZ) -> 56 | AQ11: =+SUMIF('Linjelänk UA_KAP'!$H:$H,$C11,'Linjelänk UA_KAP'!DA:DA) -> 0 | AS11: =+VLOOKUP($AJ11,Länkar_TTA!$Q:$T,2,FALSE) -> 0 | AT11: =+VLOOKUP($AJ11,Länkar_TTA!$Q:$T,3,FALSE) -> 56 | AU11: =+VLOOKUP($AJ11,Länkar_TTA!$Q:$T,4,FALSE) -> 0 | AX11: 331340.7959 | AY11: =IFERROR(VLOOKUP(I11,Bangods_linjedel!B:F,5,FALSE),0) -> 56.56 | AZ11: =VLOOKUP(I11,'Kap.ber JA'!DK:DN,2,FALSE)*AY11 -> 85688.4 | BA11: =VLOOKUP(I11,'Kap.ber JA'!$DK:$DN,3,FALSE)*AY11 -> 2027110.4 | BB11: =VLOOKUP(I11,'Kap.ber JA'!$DK:$DN,4,FALSE)*AY11 -> 2112798.8 | BC11: =IFERROR(VLOOKUP(J11,'Kap.ber UA'!$DJ:$DM,2,FALSE)*AY11,0) -> 85688.4 | BD11: =IFERROR(VLOOKUP(J11,'Kap.ber UA'!$DJ:$DM,3,FALSE)*AY11,0) -> 2027110.4 | BE11: =IFERROR(VLOOKUP(J11,'Kap.ber UA'!$DJ:$DM,4,FALSE)*AY11,0) -> 2112798.8 | BF11: =IF('Beskrivning av åtgärd'!$B$11="Persontrafik",BA11,IF('Beskrivning av åtgärd'!$B$11="Godstrafik",AZ11,BB11)) -> 2112798.8 | BG11: =IF('Beskrivning av åtgärd'!$B$11="Persontrafik",BD11,IF('Beskrivning av åtgärd'!$B$11="Godstrafik",BC11,BE11)) -> 2112798.8
A12: =Länkar_TTA!A11 -> 1301 | B12: =Länkar_TTA!B11 -> 639071 | C12: =TEXT(Länkar_TTA!C11,0) -> 1301639071 | D12: =Länkar_TTA!D11 -> Bålsta | E12: =Länkar_TTA!E11 -> Bro | F12: =Länkar_TTA!F11 -> 444 | G12: =Länkar_TTA!G11 -> Mälarbanan | H12: =Länkar_TTA!H11 -> 16 | I12: =Länkar_TTA!I11 -> L2703 | J12: L2703 | T12: =+Kalkylsammanställning!G$2 -> 1 | U12: =Länkar_TTA!M11 -> Ja | V12: Ja | W12: =Länkar_TTA!K11 -> 0 | X12: 0 | Y12: =+IFERROR(VLOOKUP(C12,LinjeLänk_Data!F:G,2,FALSE),"-") -> 8.869999886 | Z12: 8.869999886 | AB12: Mälarbanan | AD12: 444 | AF12: =+VLOOKUP(C12,Länkar_TTA!C:O,13,FALSE) ->  | AI12: - | AJ12: Bålsta-Bro | AL12: =+SUMIF('Linjelänk JA_KAP'!$H:$H,$C12,'Linjelänk JA_KAP'!CY:CY) -> 0 | AM12: =+SUMIF('Linjelänk JA_KAP'!$H:$H,$C12,'Linjelänk JA_KAP'!CZ:CZ) -> 56 | AN12: =+SUMIF('Linjelänk JA_KAP'!$H:$H,$C12,'Linjelänk JA_KAP'!DA:DA) -> 44 | AO12: =+SUMIF('Linjelänk UA_KAP'!$H:$H,$C12,'Linjelänk UA_KAP'!CY:CY) -> 0 | AP12: =+SUMIF('Linjelänk UA_KAP'!$H:$H,$C12,'Linjelänk UA_KAP'!CZ:CZ) -> 56 | AQ12: =+SUMIF('Linjelänk UA_KAP'!$H:$H,$C12,'Linjelänk UA_KAP'!DA:DA) -> 44 | AS12: =+VLOOKUP($AJ12,Länkar_TTA!$Q:$T,2,FALSE) -> 0 | AT12: =+VLOOKUP($AJ12,Länkar_TTA!$Q:$T,3,FALSE) -> 56 | AU12: =+VLOOKUP($AJ12,Länkar_TTA!$Q:$T,4,FALSE) -> 44 | AX12: 283839.9963 | AY12: =IFERROR(VLOOKUP(I12,Bangods_linjedel!B:F,5,FALSE),0) -> 17.2 | AZ12: =VLOOKUP(I12,'Kap.ber JA'!DK:DN,2,FALSE)*AY12 -> 1634 | BA12: =VLOOKUP(I12,'Kap.ber JA'!$DK:$DN,3,FALSE)*AY12 -> 1100800 | BB12: =VLOOKUP(I12,'Kap.ber JA'!$DK:$DN,4,FALSE)*AY12 -> 1102434 | BC12: =IFERROR(VLOOKUP(J12,'Kap.ber UA'!$DJ:$DM,2,FALSE)*AY12,0) -> 1634 | BD12: =IFERROR(VLOOKUP(J12,'Kap.ber UA'!$DJ:$DM,3,FALSE)*AY12,0) -> 1100800 | BE12: =IFERROR(VLOOKUP(J12,'Kap.ber UA'!$DJ:$DM,4,FALSE)*AY12,0) -> 1102434 | BF12: =IF('Beskrivning av åtgärd'!$B$11="Persontrafik",BA12,IF('Beskrivning av åtgärd'!$B$11="Godstrafik",AZ12,BB12)) -> 1102434 | BG12: =IF('Beskrivning av åtgärd'!$B$11="Persontrafik",BD12,IF('Beskrivning av åtgärd'!$B$11="Godstrafik",BC12,BE12)) -> 1102434
A13: =Länkar_TTA!A12 -> 1305 | B13: =Länkar_TTA!B12 -> 1300 | C13: =TEXT(Länkar_TTA!C12,0) -> 13051300 | D13: =Länkar_TTA!D12 -> Grillby | E13: =Länkar_TTA!E12 -> Enköping | F13: =Länkar_TTA!F12 -> 444 | G13: =Länkar_TTA!G12 -> Mälarbanan | H13: =Länkar_TTA!H12 -> 16 | I13: =Länkar_TTA!I12 -> L2704 | J13: L2704 | T13: =+Kalkylsammanställning!G$2 -> 1 | U13: =Länkar_TTA!M12 -> Ja | V13: Ja | W13: =Länkar_TTA!K12 -> 0 | X13: 0 | Y13: =+IFERROR(VLOOKUP(C13,LinjeLänk_Data!F:G,2,FALSE),"-") -> 8.380000114 | Z13: 8.380000114 | AB13: Mälarbanan | AD13: 444 | AF13: =+VLOOKUP(C13,Länkar_TTA!C:O,13,FALSE) ->  | AI13: - | AJ13: Grillby-Enköping | AL13: =+SUMIF('Linjelänk JA_KAP'!$H:$H,$C13,'Linjelänk JA_KAP'!CY:CY) -> 0 | AM13: =+SUMIF('Linjelänk JA_KAP'!$H:$H,$C13,'Linjelänk JA_KAP'!CZ:CZ) -> 56 | AN13: =+SUMIF('Linjelänk JA_KAP'!$H:$H,$C13,'Linjelänk JA_KAP'!DA:DA) -> 0 | AO13: =+SUMIF('Linjelänk UA_KAP'!$H:$H,$C13,'Linjelänk UA_KAP'!CY:CY) -> 0 | AP13: =+SUMIF('Linjelänk UA_KAP'!$H:$H,$C13,'Linjelänk UA_KAP'!CZ:CZ) -> 56 | AQ13: =+SUMIF('Linjelänk UA_KAP'!$H:$H,$C13,'Linjelänk UA_KAP'!DA:DA) -> 0 | AS13: =+VLOOKUP($AJ13,Länkar_TTA!$Q:$T,2,FALSE) -> 0 | AT13: =+VLOOKUP($AJ13,Länkar_TTA!$Q:$T,3,FALSE) -> 56 | AU13: =+VLOOKUP($AJ13,Länkar_TTA!$Q:$T,4,FALSE) -> 0 | AX13: 150169.6021 | AY13: =IFERROR(VLOOKUP(I13,Bangods_linjedel!B:F,5,FALSE),0) -> 56.56 | AZ13: =VLOOKUP(I13,'Kap.ber JA'!DK:DN,2,FALSE)*AY13 -> 85688.4 | BA13: =VLOOKUP(I13,'Kap.ber JA'!$DK:$DN,3,FALSE)*AY13 -> 2027110.4 | BB13: =VLOOKUP(I13,'Kap.ber JA'!$DK:$DN,4,FALSE)*AY13 -> 2112798.8 | BC13: =IFERROR(VLOOKUP(J13,'Kap.ber UA'!$DJ:$DM,2,FALSE)*AY13,0) -> 85688.4 | BD13: =IFERROR(VLOOKUP(J13,'Kap.ber UA'!$DJ:$DM,3,FALSE)*AY13,0) -> 2027110.4 | BE13: =IFERROR(VLOOKUP(J13,'Kap.ber UA'!$DJ:$DM,4,FALSE)*AY13,0) -> 2112798.8 | BF13: =IF('Beskrivning av åtgärd'!$B$11="Persontrafik",BA13,IF('Beskrivning av åtgärd'!$B$11="Godstrafik",AZ13,BB13)) -> 2112798.8 | BG13: =IF('Beskrivning av åtgärd'!$B$11="Persontrafik",BD13,IF('Beskrivning av åtgärd'!$B$11="Godstrafik",BC13,BE13)) -> 2112798.8
A14: =Länkar_TTA!A13 -> 1305 | B14: =Länkar_TTA!B13 -> 1301 | C14: =TEXT(Länkar_TTA!C13,0) -> 13051301 | D14: =Länkar_TTA!D13 -> Grillby | E14: =Länkar_TTA!E13 -> Bålsta | F14: =Länkar_TTA!F13 -> 444 | G14: =Länkar_TTA!G13 -> Mälarbanan | H14: =Länkar_TTA!H13 -> 16 | I14: =Länkar_TTA!I13 -> L2704 | J14: L2704 | T14: =+Kalkylsammanställning!G$2 -> 1 | U14: =Länkar_TTA!M13 -> Ja | V14: Ja | W14: =Länkar_TTA!K13 -> 0 | X14: 0 | Y14: =+IFERROR(VLOOKUP(C14,LinjeLänk_Data!F:G,2,FALSE),"-") -> 18.48999977 | Z14: 18.48999977 | AB14: Mälarbanan | AD14: 444 | AF14: =+VLOOKUP(C14,Länkar_TTA!C:O,13,FALSE) ->  | AI14: - | AJ14: Grillby-Bålsta | AL14: =+SUMIF('Linjelänk JA_KAP'!$H:$H,$C14,'Linjelänk JA_KAP'!CY:CY) -> 0 | AM14: =+SUMIF('Linjelänk JA_KAP'!$H:$H,$C14,'Linjelänk JA_KAP'!CZ:CZ) -> 56 | AN14: =+SUMIF('Linjelänk JA_KAP'!$H:$H,$C14,'Linjelänk JA_KAP'!DA:DA) -> 0 | AO14: =+SUMIF('Linjelänk UA_KAP'!$H:$H,$C14,'Linjelänk UA_KAP'!CY:CY) -> 0 | AP14: =+SUMIF('Linjelänk UA_KAP'!$H:$H,$C14,'Linjelänk UA_KAP'!CZ:CZ) -> 56 | AQ14: =+SUMIF('Linjelänk UA_KAP'!$H:$H,$C14,'Linjelänk UA_KAP'!DA:DA) -> 0 | AS14: =+VLOOKUP($AJ14,Länkar_TTA!$Q:$T,2,FALSE) -> 0 | AT14: =+VLOOKUP($AJ14,Länkar_TTA!$Q:$T,3,FALSE) -> 56 | AU14: =+VLOOKUP($AJ14,Länkar_TTA!$Q:$T,4,FALSE) -> 0 | AX14: 331340.7959 | AY14: =IFERROR(VLOOKUP(I14,Bangods_linjedel!B:F,5,FALSE),0) -> 56.56 | AZ14: =VLOOKUP(I14,'Kap.ber JA'!DK:DN,2,FALSE)*AY14 -> 85688.4 | BA14: =VLOOKUP(I14,'Kap.ber JA'!$DK:$DN,3,FALSE)*AY14 -> 2027110.4 | BB14: =VLOOKUP(I14,'Kap.ber JA'!$DK:$DN,4,FALSE)*AY14 -> 2112798.8 | BC14: =IFERROR(VLOOKUP(J14,'Kap.ber UA'!$DJ:$DM,2,FALSE)*AY14,0) -> 85688.4 | BD14: =IFERROR(VLOOKUP(J14,'Kap.ber UA'!$DJ:$DM,3,FALSE)*AY14,0) -> 2027110.4 | BE14: =IFERROR(VLOOKUP(J14,'Kap.ber UA'!$DJ:$DM,4,FALSE)*AY14,0) -> 2112798.8 | BF14: =IF('Beskrivning av åtgärd'!$B$11="Persontrafik",BA14,IF('Beskrivning av åtgärd'!$B$11="Godstrafik",AZ14,BB14)) -> 2112798.8 | BG14: =IF('Beskrivning av åtgärd'!$B$11="Persontrafik",BD14,IF('Beskrivning av åtgärd'!$B$11="Godstrafik",BC14,BE14)) -> 2112798.8
A15: =Länkar_TTA!A14 -> 1400 | B15: =Länkar_TTA!B14 -> 1402 | C15: =TEXT(Länkar_TTA!C14,0) -> 14001402 | D15: =Länkar_TTA!D14 -> Uppsala Central | E15: =Länkar_TTA!E14 -> Uppsala norra utfarten | F15: =Länkar_TTA!F14 -> 434 | G15: =Länkar_TTA!G14 -> Ostkustbanan | H15: =Länkar_TTA!H14 -> 5 | I15: =Länkar_TTA!I14 -> L1412 | J15: L1412 | T15: =+Kalkylsammanställning!G$2 -> 1 | U15: =Länkar_TTA!M14 -> Ja | V15: Ja | W15: =Länkar_TTA!K14 -> 0 | X15: 0 | Y15: =+IFERROR(VLOOKUP(C15,LinjeLänk_Data!F:G,2,FALSE),"-") -> 0.9512490034 | Z15: 0.9512490034 | AB15: Ostkustbanan | AD15: 434 | AF15: =+VLOOKUP(C15,Länkar_TTA!C:O,13,FALSE) ->  | AI15: - | AJ15: Uppsala Central-Uppsala norra utfarten | AL15: =+SUMIF('Linjelänk JA_KAP'!$H:$H,$C15,'Linjelänk JA_KAP'!CY:CY) -> 16 | AM15: =+SUMIF('Linjelänk JA_KAP'!$H:$H,$C15,'Linjelänk JA_KAP'!CZ:CZ) -> 57 | AN15: =+SUMIF('Linjelänk JA_KAP'!$H:$H,$C15,'Linjelänk JA_KAP'!DA:DA) -> 34 | AO15: =+SUMIF('Linjelänk UA_KAP'!$H:$H,$C15,'Linjelänk UA_KAP'!CY:CY) -> 16 | AP15: =+SUMIF('Linjelänk UA_KAP'!$H:$H,$C15,'Linjelänk UA_KAP'!CZ:CZ) -> 57 | AQ15: =+SUMIF('Linjelänk UA_KAP'!$H:$H,$C15,'Linjelänk UA_KAP'!DA:DA) -> 34 | AS15: =+VLOOKUP($AJ15,Länkar_TTA!$Q:$T,2,FALSE) -> 16 | AT15: =+VLOOKUP($AJ15,Länkar_TTA!$Q:$T,3,FALSE) -> 57 | AU15: =+VLOOKUP($AJ15,Länkar_TTA!$Q:$T,4,FALSE) -> 34 | AX15: 32570.76588 | AY15: =IFERROR(VLOOKUP(I15,Bangods_linjedel!B:F,5,FALSE),0) -> 0.95 | AZ15: =VLOOKUP(I15,'Kap.ber JA'!DK:DN,2,FALSE)*AY15 -> 3600.5 | BA15: =VLOOKUP(I15,'Kap.ber JA'!$DK:$DN,3,FALSE)*AY15 -> 65056 | BB15: =VLOOKUP(I15,'Kap.ber JA'!$DK:$DN,4,FALSE)*AY15 -> 68656.5 | BC15: =IFERROR(VLOOKUP(J15,'Kap.ber UA'!$DJ:$DM,2,FALSE)*AY15,0) -> 3600.5 | BD15: =IFERROR(VLOOKUP(J15,'Kap.ber UA'!$DJ:$DM,3,FALSE)*AY15,0) -> 65056 | BE15: =IFERROR(VLOOKUP(J15,'Kap.ber UA'!$DJ:$DM,4,FALSE)*AY15,0) -> 68656.5 | BF15: =IF('Beskrivning av åtgärd'!$B$11="Persontrafik",BA15,IF('Beskrivning av åtgärd'!$B$11="Godstrafik",AZ15,BB15)) -> 68656.5 | BG15: =IF('Beskrivning av åtgärd'!$B$11="Persontrafik",BD15,IF('Beskrivning av åtgärd'!$B$11="Godstrafik",BC15,BE15)) -> 68656.5
A16: =Länkar_TTA!A15 -> 1400 | B16: =Länkar_TTA!B15 -> 1408 | C16: =TEXT(Länkar_TTA!C15,0) -> 14001408 | D16: =Länkar_TTA!D15 -> Uppsala Central | E16: =Länkar_TTA!E15 -> Säby | F16: =Länkar_TTA!F15 -> 430 | G16: =Länkar_TTA!G15 -> Ostkustbanan | H16: =Länkar_TTA!H15 -> 5 | I16: =Länkar_TTA!I15 -> L1420 | J16: L1420 | T16: =+Kalkylsammanställning!G$2 -> 1 | U16: =Länkar_TTA!M15 -> Ja | V16: Ja | W16: =Länkar_TTA!K15 -> fyrspår | X16: fyrspår | Y16: =+IFERROR(VLOOKUP(C16,LinjeLänk_Data!F:G,2,FALSE),"-") -> 4.422910213 | Z16: 4.422910213 | AB16: Ostkustbanan | AD16: 430 | AF16: =+VLOOKUP(C16,Länkar_TTA!C:O,13,FALSE) ->  | AI16: - | AJ16: Uppsala Central-Säby | AL16: =+SUMIF('Linjelänk JA_KAP'!$H:$H,$C16,'Linjelänk JA_KAP'!CY:CY) -> 16 | AM16: =+SUMIF('Linjelänk JA_KAP'!$H:$H,$C16,'Linjelänk JA_KAP'!CZ:CZ) -> 117 | AN16: =+SUMIF('Linjelänk JA_KAP'!$H:$H,$C16,'Linjelänk JA_KAP'!DA:DA) -> 38 | AO16: =+SUMIF('Linjelänk UA_KAP'!$H:$H,$C16,'Linjelänk UA_KAP'!CY:CY) -> 16 | AP16: =+SUMIF('Linjelänk UA_KAP'!$H:$H,$C16,'Linjelänk UA_KAP'!CZ:CZ) -> 117 | AQ16: =+SUMIF('Linjelänk UA_KAP'!$H:$H,$C16,'Linjelänk UA_KAP'!DA:DA) -> 38 | AS16: =+VLOOKUP($AJ16,Länkar_TTA!$Q:$T,2,FALSE) -> 16 | AT16: =+VLOOKUP($AJ16,Länkar_TTA!$Q:$T,3,FALSE) -> 117 | AU16: =+VLOOKUP($AJ16,Länkar_TTA!$Q:$T,4,FALSE) -> 38 | AX16: 242021.6469 | AY16: =IFERROR(VLOOKUP(I16,Bangods_linjedel!B:F,5,FALSE),0) -> 20.78 | AZ16: =VLOOKUP(I16,'Kap.ber JA'!DK:DN,2,FALSE)*AY16 -> 39378.1 | BA16: =VLOOKUP(I16,'Kap.ber JA'!$DK:$DN,3,FALSE)*AY16 -> 1143731.2 | BB16: =VLOOKUP(I16,'Kap.ber JA'!$DK:$DN,4,FALSE)*AY16 -> 1183109.3 | BC16: =IFERROR(VLOOKUP(J16,'Kap.ber UA'!$DJ:$DM,2,FALSE)*AY16,0) -> 39378.1 | BD16: =IFERROR(VLOOKUP(J16,'Kap.ber UA'!$DJ:$DM,3,FALSE)*AY16,0) -> 1143731.2 | BE16: =IFERROR(VLOOKUP(J16,'Kap.ber UA'!$DJ:$DM,4,FALSE)*AY16,0) -> 1183109.3 | BF16: =IF('Beskrivning av åtgärd'!$B$11="Persontrafik",BA16,IF('Beskrivning av åtgärd'!$B$11="Godstrafik",AZ16,BB16)) -> 1183109.3 | BG16: =IF('Beskrivning av åtgärd'!$B$11="Persontrafik",BD16,IF('Beskrivning av åtgärd'!$B$11="Godstrafik",BC16,BE16)) -> 1183109.3
A17: =Länkar_TTA!A16 -> 1401 | B17: =Länkar_TTA!B16 -> 1409 | C17: =TEXT(Länkar_TTA!C16,0) -> 14011409 | D17: =Länkar_TTA!D16 -> Knivsta | E17: =Länkar_TTA!E16 -> Alsike | F17: =Länkar_TTA!F16 -> 430 | G17: =Länkar_TTA!G16 -> Ostkustbanan | H17: =Länkar_TTA!H16 -> 5 | I17: =Länkar_TTA!I16 -> L1420 | J17: L1420 | T17: =+Kalkylsammanställning!G$2 -> 1 | U17: =Länkar_TTA!M16 -> Ja | V17: Ja | W17: =Länkar_TTA!K16 -> fyrspår | X17: fyrspår | Y17: =+IFERROR(VLOOKUP(C17,LinjeLänk_Data!F:G,2,FALSE),"-") -> 4.077320099 | Z17: 4.077320099 | AB17: Ostkustbanan | AD17: 430 | AF17: =+VLOOKUP(C17,Länkar_TTA!C:O,13,FALSE) ->  | AI17: - | AJ17: Knivsta-Alsike | AL17: =+SUMIF('Linjelänk JA_KAP'!$H:$H,$C17,'Linjelänk JA_KAP'!CY:CY) -> 16 | AM17: =+SUMIF('Linjelänk JA_KAP'!$H:$H,$C17,'Linjelänk JA_KAP'!CZ:CZ) -> 117 | AN17: =+SUMIF('Linjelänk JA_KAP'!$H:$H,$C17,'Linjelänk JA_KAP'!DA:DA) -> 38 | AO17: =+SUMIF('Linjelänk UA_KAP'!$H:$H,$C17,'Linjelänk UA_KAP'!CY:CY) -> 16 | AP17: =+SUMIF('Linjelänk UA_KAP'!$H:$H,$C17,'Linjelänk UA_KAP'!CZ:CZ) -> 117 | AQ17: =+SUMIF('Linjelänk UA_KAP'!$H:$H,$C17,'Linjelänk UA_KAP'!DA:DA) -> 38 | AS17: =+VLOOKUP($AJ17,Länkar_TTA!$Q:$T,2,FALSE) -> 16 | AT17: =+VLOOKUP($AJ17,Länkar_TTA!$Q:$T,3,FALSE) -> 117 | AU17: =+VLOOKUP($AJ17,Länkar_TTA!$Q:$T,4,FALSE) -> 38 | AX17: 223110.9558 | AY17: =IFERROR(VLOOKUP(I17,Bangods_linjedel!B:F,5,FALSE),0) -> 20.78 | AZ17: =VLOOKUP(I17,'Kap.ber JA'!DK:DN,2,FALSE)*AY17 -> 39378.1 | BA17: =VLOOKUP(I17,'Kap.ber JA'!$DK:$DN,3,FALSE)*AY17 -> 1143731.2 | BB17: =VLOOKUP(I17,'Kap.ber JA'!$DK:$DN,4,FALSE)*AY17 -> 1183109.3 | BC17: =IFERROR(VLOOKUP(J17,'Kap.ber UA'!$DJ:$DM,2,FALSE)*AY17,0) -> 39378.1 | BD17: =IFERROR(VLOOKUP(J17,'Kap.ber UA'!$DJ:$DM,3,FALSE)*AY17,0) -> 1143731.2 | BE17: =IFERROR(VLOOKUP(J17,'Kap.ber UA'!$DJ:$DM,4,FALSE)*AY17,0) -> 1183109.3 | BF17: =IF('Beskrivning av åtgärd'!$B$11="Persontrafik",BA17,IF('Beskrivning av åtgärd'!$B$11="Godstrafik",AZ17,BB17)) -> 1183109.3 | BG17: =IF('Beskrivning av åtgärd'!$B$11="Persontrafik",BD17,IF('Beskrivning av åtgärd'!$B$11="Godstrafik",BC17,BE17)) -> 1183109.3
A18: =Länkar_TTA!A17 -> 1401 | B18: =Länkar_TTA!B17 -> 9372 | C18: =TEXT(Länkar_TTA!C17,0) -> 14019372 | D18: =Länkar_TTA!D17 -> Knivsta | E18: =Länkar_TTA!E17 -> Myrbacken | F18: =Länkar_TTA!F17 -> 430 | G18: =Länkar_TTA!G17 -> Ostkustbanan | H18: =Länkar_TTA!H17 -> 5 | I18: =Länkar_TTA!I17 -> L1420 | J18: L1420 | T18: =+Kalkylsammanställning!G$2 -> 1 | U18: =Länkar_TTA!M17 -> Ja | V18: Ja | W18: =Länkar_TTA!K17 -> fyrspår | X18: fyrspår | Y18: =+IFERROR(VLOOKUP(C18,LinjeLänk_Data!F:G,2,FALSE),"-") -> 3.700000048 | Z18: 3.700000048 | AB18: Ostkustbanan | AD18: 430 | AF18: =+VLOOKUP(C18,Länkar_TTA!C:O,13,FALSE) ->  | AI18: - | AJ18: Knivsta-Myrbacken | AL18: =+SUMIF('Linjelänk JA_KAP'!$H:$H,$C18,'Linjelänk JA_KAP'!CY:CY) -> 16 | AM18: =+SUMIF('Linjelänk JA_KAP'!$H:$H,$C18,'Linjelänk JA_KAP'!CZ:CZ) -> 117 | AN18: =+SUMIF('Linjelänk JA_KAP'!$H:$H,$C18,'Linjelänk JA_KAP'!DA:DA) -> 38 | AO18: =+SUMIF('Linjelänk UA_KAP'!$H:$H,$C18,'Linjelänk UA_KAP'!CY:CY) -> 16 | AP18: =+SUMIF('Linjelänk UA_KAP'!$H:$H,$C18,'Linjelänk UA_KAP'!CZ:CZ) -> 117 | AQ18: =+SUMIF('Linjelänk UA_KAP'!$H:$H,$C18,'Linjelänk UA_KAP'!DA:DA) -> 38 | AS18: =+VLOOKUP($AJ18,Länkar_TTA!$Q:$T,2,FALSE) -> 16 | AT18: =+VLOOKUP($AJ18,Länkar_TTA!$Q:$T,3,FALSE) -> 117 | AU18: =+VLOOKUP($AJ18,Länkar_TTA!$Q:$T,4,FALSE) -> 38 | AX18: 202464.0026 | AY18: =IFERROR(VLOOKUP(I18,Bangods_linjedel!B:F,5,FALSE),0) -> 20.78 | AZ18: =VLOOKUP(I18,'Kap.ber JA'!DK:DN,2,FALSE)*AY18 -> 39378.1 | BA18: =VLOOKUP(I18,'Kap.ber JA'!$DK:$DN,3,FALSE)*AY18 -> 1143731.2 | BB18: =VLOOKUP(I18,'Kap.ber JA'!$DK:$DN,4,FALSE)*AY18 -> 1183109.3 | BC18: =IFERROR(VLOOKUP(J18,'Kap.ber UA'!$DJ:$DM,2,FALSE)*AY18,0) -> 39378.1 | BD18: =IFERROR(VLOOKUP(J18,'Kap.ber UA'!$DJ:$DM,3,FALSE)*AY18,0) -> 1143731.2 | BE18: =IFERROR(VLOOKUP(J18,'Kap.ber UA'!$DJ:$DM,4,FALSE)*AY18,0) -> 1183109.3 | BF18: =IF('Beskrivning av åtgärd'!$B$11="Persontrafik",BA18,IF('Beskrivning av åtgärd'!$B$11="Godstrafik",AZ18,BB18)) -> 1183109.3 | BG18: =IF('Beskrivning av åtgärd'!$B$11="Persontrafik",BD18,IF('Beskrivning av åtgärd'!$B$11="Godstrafik",BC18,BE18)) -> 1183109.3
A19: =Länkar_TTA!A18 -> 1402 | B19: =Länkar_TTA!B18 -> 1400 | C19: =TEXT(Länkar_TTA!C18,0) -> 14021400 | D19: =Länkar_TTA!D18 -> Uppsala norra utfarten | E19: =Länkar_TTA!E18 -> Uppsala Central | F19: =Länkar_TTA!F18 -> 434 | G19: =Länkar_TTA!G18 -> Ostkustbanan | H19: =Länkar_TTA!H18 -> 5 | I19: =Länkar_TTA!I18 -> L1412 | J19: L1412 | T19: =+Kalkylsammanställning!G$2 -> 1 | U19: =Länkar_TTA!M18 -> Ja | V19: Ja | W19: =Länkar_TTA!K18 -> 0 | X19: 0 | Y19: =+IFERROR(VLOOKUP(C19,LinjeLänk_Data!F:G,2,FALSE),"-") -> 0.9512490034 | Z19: 0.9512490034 | AB19: Ostkustbanan | AD19: 434 | AF19: =+VLOOKUP(C19,Länkar_TTA!C:O,13,FALSE) ->  | AI19: - | AJ19: Uppsala norra utfarten-Uppsala Central | AL19: =+SUMIF('Linjelänk JA_KAP'!$H:$H,$C19,'Linjelänk JA_KAP'!CY:CY) -> 16 | AM19: =+SUMIF('Linjelänk JA_KAP'!$H:$H,$C19,'Linjelänk JA_KAP'!CZ:CZ) -> 57 | AN19: =+SUMIF('Linjelänk JA_KAP'!$H:$H,$C19,'Linjelänk JA_KAP'!DA:DA) -> 34 | AO19: =+SUMIF('Linjelänk UA_KAP'!$H:$H,$C19,'Linjelänk UA_KAP'!CY:CY) -> 16 | AP19: =+SUMIF('Linjelänk UA_KAP'!$H:$H,$C19,'Linjelänk UA_KAP'!CZ:CZ) -> 57 | AQ19: =+SUMIF('Linjelänk UA_KAP'!$H:$H,$C19,'Linjelänk UA_KAP'!DA:DA) -> 34 | AS19: =+VLOOKUP($AJ19,Länkar_TTA!$Q:$T,2,FALSE) -> 16 | AT19: =+VLOOKUP($AJ19,Länkar_TTA!$Q:$T,3,FALSE) -> 57 | AU19: =+VLOOKUP($AJ19,Länkar_TTA!$Q:$T,4,FALSE) -> 34 | AX19: 32570.76588 | AY19: =IFERROR(VLOOKUP(I19,Bangods_linjedel!B:F,5,FALSE),0) -> 0.95 | AZ19: =VLOOKUP(I19,'Kap.ber JA'!DK:DN,2,FALSE)*AY19 -> 3600.5 | BA19: =VLOOKUP(I19,'Kap.ber JA'!$DK:$DN,3,FALSE)*AY19 -> 65056 | BB19: =VLOOKUP(I19,'Kap.ber JA'!$DK:$DN,4,FALSE)*AY19 -> 68656.5 | BC19: =IFERROR(VLOOKUP(J19,'Kap.ber UA'!$DJ:$DM,2,FALSE)*AY19,0) -> 3600.5 | BD19: =IFERROR(VLOOKUP(J19,'Kap.ber UA'!$DJ:$DM,3,FALSE)*AY19,0) -> 65056 | BE19: =IFERROR(VLOOKUP(J19,'Kap.ber UA'!$DJ:$DM,4,FALSE)*AY19,0) -> 68656.5 | BF19: =IF('Beskrivning av åtgärd'!$B$11="Persontrafik",BA19,IF('Beskrivning av åtgärd'!$B$11="Godstrafik",AZ19,BB19)) -> 68656.5 | BG19: =IF('Beskrivning av åtgärd'!$B$11="Persontrafik",BD19,IF('Beskrivning av åtgärd'!$B$11="Godstrafik",BC19,BE19)) -> 68656.5
A20: =Länkar_TTA!A19 -> 1402 | B20: =Länkar_TTA!B19 -> 1406 | C20: =TEXT(Länkar_TTA!C19,0) -> 14021406 | D20: =Länkar_TTA!D19 -> Uppsala norra utfarten | E20: =Länkar_TTA!E19 -> Uppsala Norra | F20: =Länkar_TTA!F19 -> 431 | G20: =Länkar_TTA!G19 -> Dalabanan | H20: =Länkar_TTA!H19 -> 6 | I20: =Länkar_TTA!I19 -> L2000 | J20: L2000 | T20: =+Kalkylsammanställning!G$2 -> 1 | U20: =Länkar_TTA!M19 -> Ja | V20: Ja | W20: =Länkar_TTA!K19 -> 0 | X20: 0 | Y20: =+IFERROR(VLOOKUP(C20,LinjeLänk_Data!F:G,2,FALSE),"-") -> 1.435119987 | Z20: 1.435119987 | AB20: Dalabanan | AD20: 431 | AF20: =+VLOOKUP(C20,Länkar_TTA!C:O,13,FALSE) ->  | AI20: - | AJ20: Uppsala norra utfarten-Uppsala Norra | AL20: =+SUMIF('Linjelänk JA_KAP'!$H:$H,$C20,'Linjelänk JA_KAP'!CY:CY) -> 0 | AM20: =+SUMIF('Linjelänk JA_KAP'!$H:$H,$C20,'Linjelänk JA_KAP'!CZ:CZ) -> 35 | AN20: =+SUMIF('Linjelänk JA_KAP'!$H:$H,$C20,'Linjelänk JA_KAP'!DA:DA) -> 0 | AO20: =+SUMIF('Linjelänk UA_KAP'!$H:$H,$C20,'Linjelänk UA_KAP'!CY:CY) -> 0 | AP20: =+SUMIF('Linjelänk UA_KAP'!$H:$H,$C20,'Linjelänk UA_KAP'!CZ:CZ) -> 35 | AQ20: =+SUMIF('Linjelänk UA_KAP'!$H:$H,$C20,'Linjelänk UA_KAP'!DA:DA) -> 0 | AS20: =+VLOOKUP($AJ20,Länkar_TTA!$Q:$T,2,FALSE) -> 0 | AT20: =+VLOOKUP($AJ20,Länkar_TTA!$Q:$T,3,FALSE) -> 35 | AU20: =+VLOOKUP($AJ20,Länkar_TTA!$Q:$T,4,FALSE) -> 0 | AX20: 16073.34385 | AY20: =IFERROR(VLOOKUP(I20,Bangods_linjedel!B:F,5,FALSE),0) -> 61.35 | AZ20: =VLOOKUP(I20,'Kap.ber JA'!DK:DN,2,FALSE)*AY20 -> 5521.5 | BA20: =VLOOKUP(I20,'Kap.ber JA'!$DK:$DN,3,FALSE)*AY20 -> 1374240 | BB20: =VLOOKUP(I20,'Kap.ber JA'!$DK:$DN,4,FALSE)*AY20 -> 1379761.5 | BC20: =IFERROR(VLOOKUP(J20,'Kap.ber UA'!$DJ:$DM,2,FALSE)*AY20,0) -> 5521.5 | BD20: =IFERROR(VLOOKUP(J20,'Kap.ber UA'!$DJ:$DM,3,FALSE)*AY20,0) -> 1374240 | BE20: =IFERROR(VLOOKUP(J20,'Kap.ber UA'!$DJ:$DM,4,FALSE)*AY20,0) -> 1379761.5 | BF20: =IF('Beskrivning av åtgärd'!$B$11="Persontrafik",BA20,IF('Beskrivning av åtgärd'!$B$11="Godstrafik",AZ20,BB20)) -> 1379761.5 | BG20: =IF('Beskrivning av åtgärd'!$B$11="Persontrafik",BD20,IF('Beskrivning av åtgärd'!$B$11="Godstrafik",BC20,BE20)) -> 1379761.5
A21: =Länkar_TTA!A20 -> 1402 | B21: =Länkar_TTA!B20 -> 9331 | C21: =TEXT(Länkar_TTA!C20,0) -> 14029331 | D21: =Länkar_TTA!D20 -> Uppsala norra utfarten | E21: =Länkar_TTA!E20 -> Löten | F21: =Länkar_TTA!F20 -> 434 | G21: =Länkar_TTA!G20 -> Ostkustbanan | H21: =Länkar_TTA!H20 -> 5 | I21: =Länkar_TTA!I20 -> L1413 | J21: L1413 | T21: =+Kalkylsammanställning!G$2 -> 1 | U21: =Länkar_TTA!M20 -> Ja | V21: Ja | W21: =Länkar_TTA!K20 -> 0 | X21: 0 | Y21: =+IFERROR(VLOOKUP(C21,LinjeLänk_Data!F:G,2,FALSE),"-") -> 1.518169999 | Z21: 1.518169999 | AB21: Ostkustbanan | AD21: 434 | AF21: =+VLOOKUP(C21,Länkar_TTA!C:O,13,FALSE) ->  | AI21: - | AJ21: Uppsala norra utfarten-Löten | AL21: =+SUMIF('Linjelänk JA_KAP'!$H:$H,$C21,'Linjelänk JA_KAP'!CY:CY) -> 16 | AM21: =+SUMIF('Linjelänk JA_KAP'!$H:$H,$C21,'Linjelänk JA_KAP'!CZ:CZ) -> 22 | AN21: =+SUMIF('Linjelänk JA_KAP'!$H:$H,$C21,'Linjelänk JA_KAP'!DA:DA) -> 34 | AO21: =+SUMIF('Linjelänk UA_KAP'!$H:$H,$C21,'Linjelänk UA_KAP'!CY:CY) -> 16 | AP21: =+SUMIF('Linjelänk UA_KAP'!$H:$H,$C21,'Linjelänk UA_KAP'!CZ:CZ) -> 22 | AQ21: =+SUMIF('Linjelänk UA_KAP'!$H:$H,$C21,'Linjelänk UA_KAP'!DA:DA) -> 34 | AS21: =+VLOOKUP($AJ21,Länkar_TTA!$Q:$T,2,FALSE) -> 16 | AT21: =+VLOOKUP($AJ21,Länkar_TTA!$Q:$T,3,FALSE) -> 22 | AU21: =+VLOOKUP($AJ21,Länkar_TTA!$Q:$T,4,FALSE) -> 34 | AX21: 34978.63678 | AY21: =IFERROR(VLOOKUP(I21,Bangods_linjedel!B:F,5,FALSE),0) -> 60.01 | AZ21: =VLOOKUP(I21,'Kap.ber JA'!DK:DN,2,FALSE)*AY21 -> 222037 | BA21: =VLOOKUP(I21,'Kap.ber JA'!$DK:$DN,3,FALSE)*AY21 -> 2765260.8 | BB21: =VLOOKUP(I21,'Kap.ber JA'!$DK:$DN,4,FALSE)*AY21 -> 2987297.8 | BC21: =IFERROR(VLOOKUP(J21,'Kap.ber UA'!$DJ:$DM,2,FALSE)*AY21,0) -> 222037 | BD21: =IFERROR(VLOOKUP(J21,'Kap.ber UA'!$DJ:$DM,3,FALSE)*AY21,0) -> 2765260.8 | BE21: =IFERROR(VLOOKUP(J21,'Kap.ber UA'!$DJ:$DM,4,FALSE)*AY21,0) -> 2987297.8 | BF21: =IF('Beskrivning av åtgärd'!$B$11="Persontrafik",BA21,IF('Beskrivning av åtgärd'!$B$11="Godstrafik",AZ21,BB21)) -> 2987297.8 | BG21: =IF('Beskrivning av åtgärd'!$B$11="Persontrafik",BD21,IF('Beskrivning av åtgärd'!$B$11="Godstrafik",BC21,BE21)) -> 2987297.8
A22: =Länkar_TTA!A21 -> 1403 | B22: =Länkar_TTA!B21 -> 1408 | C22: =TEXT(Länkar_TTA!C21,0) -> 14031408 | D22: =Länkar_TTA!D21 -> Bergsbrunna | E22: =Länkar_TTA!E21 -> Säby | F22: =Länkar_TTA!F21 -> 430 | G22: =Länkar_TTA!G21 -> Ostkustbanan | H22: =Länkar_TTA!H21 -> 5 | I22: =Länkar_TTA!I21 -> L1420 | J22: L1420 | T22: =+Kalkylsammanställning!G$2 -> 1 | U22: =Länkar_TTA!M21 -> Ja | V22: Ja | W22: =Länkar_TTA!K21 -> fyrspår | X22: fyrspår | Y22: =+IFERROR(VLOOKUP(C22,LinjeLänk_Data!F:G,2,FALSE),"-") -> 2.930419922 | Z22: 2.930419922 | AB22: Ostkustbanan | AD22: 430 | AF22: =+VLOOKUP(C22,Länkar_TTA!C:O,13,FALSE) ->  | AI22: - | AJ22: Bergsbrunna-Säby | AL22: =+SUMIF('Linjelänk JA_KAP'!$H:$H,$C22,'Linjelänk JA_KAP'!CY:CY) -> 16 | AM22: =+SUMIF('Linjelänk JA_KAP'!$H:$H,$C22,'Linjelänk JA_KAP'!CZ:CZ) -> 117 | AN22: =+SUMIF('Linjelänk JA_KAP'!$H:$H,$C22,'Linjelänk JA_KAP'!DA:DA) -> 38 | AO22: =+SUMIF('Linjelänk UA_KAP'!$H:$H,$C22,'Linjelänk UA_KAP'!CY:CY) -> 16 | AP22: =+SUMIF('Linjelänk UA_KAP'!$H:$H,$C22,'Linjelänk UA_KAP'!CZ:CZ) -> 117 | AQ22: =+SUMIF('Linjelänk UA_KAP'!$H:$H,$C22,'Linjelänk UA_KAP'!DA:DA) -> 38 | AS22: =+VLOOKUP($AJ22,Länkar_TTA!$Q:$T,2,FALSE) -> 16 | AT22: =+VLOOKUP($AJ22,Länkar_TTA!$Q:$T,3,FALSE) -> 117 | AU22: =+VLOOKUP($AJ22,Länkar_TTA!$Q:$T,4,FALSE) -> 38 | AX22: 160352.5781 | AY22: =IFERROR(VLOOKUP(I22,Bangods_linjedel!B:F,5,FALSE),0) -> 20.78 | AZ22: =VLOOKUP(I22,'Kap.ber JA'!DK:DN,2,FALSE)*AY22 -> 39378.1 | BA22: =VLOOKUP(I22,'Kap.ber JA'!$DK:$DN,3,FALSE)*AY22 -> 1143731.2 | BB22: =VLOOKUP(I22,'Kap.ber JA'!$DK:$DN,4,FALSE)*AY22 -> 1183109.3 | BC22: =IFERROR(VLOOKUP(J22,'Kap.ber UA'!$DJ:$DM,2,FALSE)*AY22,0) -> 39378.1 | BD22: =IFERROR(VLOOKUP(J22,'Kap.ber UA'!$DJ:$DM,3,FALSE)*AY22,0) -> 1143731.2 | BE22: =IFERROR(VLOOKUP(J22,'Kap.ber UA'!$DJ:$DM,4,FALSE)*AY22,0) -> 1183109.3 | BF22: =IF('Beskrivning av åtgärd'!$B$11="Persontrafik",BA22,IF('Beskrivning av åtgärd'!$B$11="Godstrafik",AZ22,BB22)) -> 1183109.3 | BG22: =IF('Beskrivning av åtgärd'!$B$11="Persontrafik",BD22,IF('Beskrivning av åtgärd'!$B$11="Godstrafik",BC22,BE22)) -> 1183109.3
A23: =Länkar_TTA!A22 -> 1403 | B23: =Länkar_TTA!B22 -> 1409 | C23: =TEXT(Länkar_TTA!C22,0) -> 14031409 | D23: =Länkar_TTA!D22 -> Bergsbrunna | E23: =Länkar_TTA!E22 -> Alsike | F23: =Länkar_TTA!F22 -> 430 | G23: =Länkar_TTA!G22 -> Ostkustbanan | H23: =Länkar_TTA!H22 -> 5 | I23: =Länkar_TTA!I22 -> L1420 | J23: L1420 | T23: =+Kalkylsammanställning!G$2 -> 1 | U23: =Länkar_TTA!M22 -> Ja | V23: Ja | W23: =Länkar_TTA!K22 -> fyrspår | X23: fyrspår | Y23: =+IFERROR(VLOOKUP(C23,LinjeLänk_Data!F:G,2,FALSE),"-") -> 5.651649952 | Z23: 5.651649952 | AB23: Ostkustbanan | AD23: 430 | AF23: =+VLOOKUP(C23,Länkar_TTA!C:O,13,FALSE) ->  | AI23: - | AJ23: Bergsbrunna-Alsike | AL23: =+SUMIF('Linjelänk JA_KAP'!$H:$H,$C23,'Linjelänk JA_KAP'!CY:CY) -> 16 | AM23: =+SUMIF('Linjelänk JA_KAP'!$H:$H,$C23,'Linjelänk JA_KAP'!CZ:CZ) -> 117 | AN23: =+SUMIF('Linjelänk JA_KAP'!$H:$H,$C23,'Linjelänk JA_KAP'!DA:DA) -> 38 | AO23: =+SUMIF('Linjelänk UA_KAP'!$H:$H,$C23,'Linjelänk UA_KAP'!CY:CY) -> 16 | AP23: =+SUMIF('Linjelänk UA_KAP'!$H:$H,$C23,'Linjelänk UA_KAP'!CZ:CZ) -> 117 | AQ23: =+SUMIF('Linjelänk UA_KAP'!$H:$H,$C23,'Linjelänk UA_KAP'!DA:DA) -> 38 | AS23: =+VLOOKUP($AJ23,Länkar_TTA!$Q:$T,2,FALSE) -> 16 | AT23: =+VLOOKUP($AJ23,Länkar_TTA!$Q:$T,3,FALSE) -> 117 | AU23: =+VLOOKUP($AJ23,Länkar_TTA!$Q:$T,4,FALSE) -> 38 | AX23: 309258.2854 | AY23: =IFERROR(VLOOKUP(I23,Bangods_linjedel!B:F,5,FALSE),0) -> 20.78 | AZ23: =VLOOKUP(I23,'Kap.ber JA'!DK:DN,2,FALSE)*AY23 -> 39378.1 | BA23: =VLOOKUP(I23,'Kap.ber JA'!$DK:$DN,3,FALSE)*AY23 -> 1143731.2 | BB23: =VLOOKUP(I23,'Kap.ber JA'!$DK:$DN,4,FALSE)*AY23 -> 1183109.3 | BC23: =IFERROR(VLOOKUP(J23,'Kap.ber UA'!$DJ:$DM,2,FALSE)*AY23,0) -> 39378.1 | BD23: =IFERROR(VLOOKUP(J23,'Kap.ber UA'!$DJ:$DM,3,FALSE)*AY23,0) -> 1143731.2 | BE23: =IFERROR(VLOOKUP(J23,'Kap.ber UA'!$DJ:$DM,4,FALSE)*AY23,0) -> 1183109.3 | BF23: =IF('Beskrivning av åtgärd'!$B$11="Persontrafik",BA23,IF('Beskrivning av åtgärd'!$B$11="Godstrafik",AZ23,BB23)) -> 1183109.3 | BG23: =IF('Beskrivning av åtgärd'!$B$11="Persontrafik",BD23,IF('Beskrivning av åtgärd'!$B$11="Godstrafik",BC23,BE23)) -> 1183109.3
A24: =Länkar_TTA!A23 -> 1404 | B24: =Länkar_TTA!B23 -> 1410 | C24: =TEXT(Länkar_TTA!C23,0) -> 14041410 | D24: =Länkar_TTA!D23 -> Storvreta | E24: =Länkar_TTA!E23 -> Vattholma | F24: =Länkar_TTA!F23 -> 434 | G24: =Länkar_TTA!G23 -> Ostkustbanan | H24: =Länkar_TTA!H23 -> 5 | I24: =Länkar_TTA!I23 -> L1413 | J24: L1413 | T24: =+Kalkylsammanställning!G$2 -> 1 | U24: =Länkar_TTA!M23 -> Ja | V24: Ja | W24: =Länkar_TTA!K23 -> 0 | X24: 0 | Y24: =+IFERROR(VLOOKUP(C24,LinjeLänk_Data!F:G,2,FALSE),"-") -> 7.889999866 | Z24: 7.889999866 | AB24: Ostkustbanan | AD24: 434 | AF24: =+VLOOKUP(C24,Länkar_TTA!C:O,13,FALSE) ->  | AI24: - | AJ24: Storvreta-Vattholma | AL24: =+SUMIF('Linjelänk JA_KAP'!$H:$H,$C24,'Linjelänk JA_KAP'!CY:CY) -> 16 | AM24: =+SUMIF('Linjelänk JA_KAP'!$H:$H,$C24,'Linjelänk JA_KAP'!CZ:CZ) -> 22 | AN24: =+SUMIF('Linjelänk JA_KAP'!$H:$H,$C24,'Linjelänk JA_KAP'!DA:DA) -> 34 | AO24: =+SUMIF('Linjelänk UA_KAP'!$H:$H,$C24,'Linjelänk UA_KAP'!CY:CY) -> 16 | AP24: =+SUMIF('Linjelänk UA_KAP'!$H:$H,$C24,'Linjelänk UA_KAP'!CZ:CZ) -> 22 | AQ24: =+SUMIF('Linjelänk UA_KAP'!$H:$H,$C24,'Linjelänk UA_KAP'!DA:DA) -> 34 | AS24: =+VLOOKUP($AJ24,Länkar_TTA!$Q:$T,2,FALSE) -> 16 | AT24: =+VLOOKUP($AJ24,Länkar_TTA!$Q:$T,3,FALSE) -> 22 | AU24: =+VLOOKUP($AJ24,Länkar_TTA!$Q:$T,4,FALSE) -> 34 | AX24: 181785.5969 | AY24: =IFERROR(VLOOKUP(I24,Bangods_linjedel!B:F,5,FALSE),0) -> 60.01 | AZ24: =VLOOKUP(I24,'Kap.ber JA'!DK:DN,2,FALSE)*AY24 -> 222037 | BA24: =VLOOKUP(I24,'Kap.ber JA'!$DK:$DN,3,FALSE)*AY24 -> 2765260.8 | BB24: =VLOOKUP(I24,'Kap.ber JA'!$DK:$DN,4,FALSE)*AY24 -> 2987297.8 | BC24: =IFERROR(VLOOKUP(J24,'Kap.ber UA'!$DJ:$DM,2,FALSE)*AY24,0) -> 222037 | BD24: =IFERROR(VLOOKUP(J24,'Kap.ber UA'!$DJ:$DM,3,FALSE)*AY24,0) -> 2765260.8 | BE24: =IFERROR(VLOOKUP(J24,'Kap.ber UA'!$DJ:$DM,4,FALSE)*AY24,0) -> 2987297.8 | BF24: =IF('Beskrivning av åtgärd'!$B$11="Persontrafik",BA24,IF('Beskrivning av åtgärd'!$B$11="Godstrafik",AZ24,BB24)) -> 2987297.8 | BG24: =IF('Beskrivning av åtgärd'!$B$11="Persontrafik",BD24,IF('Beskrivning av åtgärd'!$B$11="Godstrafik",BC24,BE24)) -> 2987297.8
A25: =Länkar_TTA!A24 -> 1404 | B25: =Länkar_TTA!B24 -> 9331 | C25: =TEXT(Länkar_TTA!C24,0) -> 14049331 | D25: =Länkar_TTA!D24 -> Storvreta | E25: =Länkar_TTA!E24 -> Löten | F25: =Länkar_TTA!F24 -> 434 | G25: =Länkar_TTA!G24 -> Ostkustbanan | H25: =Länkar_TTA!H24 -> 5 | I25: =Länkar_TTA!I24 -> L1413 | J25: L1413 | T25: =+Kalkylsammanställning!G$2 -> 1 | U25: =Länkar_TTA!M24 -> Ja | V25: Ja | W25: =Länkar_TTA!K24 -> 0 | X25: 0 | Y25: =+IFERROR(VLOOKUP(C25,LinjeLänk_Data!F:G,2,FALSE),"-") -> 9.970000267 | Z25: 9.970000267 | AB25: Ostkustbanan | AD25: 434 | AF25: =+VLOOKUP(C25,Länkar_TTA!C:O,13,FALSE) ->  | AI25: - | AJ25: Storvreta-Löten | AL25: =+SUMIF('Linjelänk JA_KAP'!$H:$H,$C25,'Linjelänk JA_KAP'!CY:CY) -> 16 | AM25: =+SUMIF('Linjelänk JA_KAP'!$H:$H,$C25,'Linjelänk JA_KAP'!CZ:CZ) -> 22 | AN25: =+SUMIF('Linjelänk JA_KAP'!$H:$H,$C25,'Linjelänk JA_KAP'!DA:DA) -> 34 | AO25: =+SUMIF('Linjelänk UA_KAP'!$H:$H,$C25,'Linjelänk UA_KAP'!CY:CY) -> 16 | AP25: =+SUMIF('Linjelänk UA_KAP'!$H:$H,$C25,'Linjelänk UA_KAP'!CZ:CZ) -> 22 | AQ25: =+SUMIF('Linjelänk UA_KAP'!$H:$H,$C25,'Linjelänk UA_KAP'!DA:DA) -> 34 | AS25: =+VLOOKUP($AJ25,Länkar_TTA!$Q:$T,2,FALSE) -> 16 | AT25: =+VLOOKUP($AJ25,Länkar_TTA!$Q:$T,3,FALSE) -> 22 | AU25: =+VLOOKUP($AJ25,Länkar_TTA!$Q:$T,4,FALSE) -> 34 | AX25: 229708.8062 | AY25: =IFERROR(VLOOKUP(I25,Bangods_linjedel!B:F,5,FALSE),0) -> 60.01 | AZ25: =VLOOKUP(I25,'Kap.ber JA'!DK:DN,2,FALSE)*AY25 -> 222037 | BA25: =VLOOKUP(I25,'Kap.ber JA'!$DK:$DN,3,FALSE)*AY25 -> 2765260.8 | BB25: =VLOOKUP(I25,'Kap.ber JA'!$DK:$DN,4,FALSE)*AY25 -> 2987297.8 | BC25: =IFERROR(VLOOKUP(J25,'Kap.ber UA'!$DJ:$DM,2,FALSE)*AY25,0) -> 222037 | BD25: =IFERROR(VLOOKUP(J25,'Kap.ber UA'!$DJ:$DM,3,FALSE)*AY25,0) -> 2765260.8 | BE25: =IFERROR(VLOOKUP(J25,'Kap.ber UA'!$DJ:$DM,4,FALSE)*AY25,0) -> 2987297.8 | BF25: =IF('Beskrivning av åtgärd'!$B$11="Persontrafik",BA25,IF('Beskrivning av åtgärd'!$B$11="Godstrafik",AZ25,BB25)) -> 2987297.8 | BG25: =IF('Beskrivning av åtgärd'!$B$11="Persontrafik",BD25,IF('Beskrivning av åtgärd'!$B$11="Godstrafik",BC25,BE25)) -> 2987297.8
A26: =Länkar_TTA!A25 -> 1405 | B26: =Länkar_TTA!B25 -> 1419 | C26: =TEXT(Länkar_TTA!C25,0) -> 14051419 | D26: =Länkar_TTA!D25 -> Gimo | E26: =Länkar_TTA!E25 -> Hargshamn | F26: =Länkar_TTA!F25 -> 435 | G26: =Länkar_TTA!G25 -> Hargshamnsbanan | H26: =Länkar_TTA!H25 -> 55 | I26: =Länkar_TTA!I25 -> L1600 | J26: L1600 | T26: =+Kalkylsammanställning!G$2 -> 1 | U26: =Länkar_TTA!M25 -> Nej | V26: Nej | W26: =Länkar_TTA!K25 -> 0 | X26: 0 | Y26: =+IFERROR(VLOOKUP(C26,LinjeLänk_Data!F:G,2,FALSE),"-") -> - | Z26: - | AB26: Hargshamnsbanan | AD26: 435 | AF26: =+VLOOKUP(C26,Länkar_TTA!C:O,13,FALSE) ->  | AI26: - | AJ26: Gimo-Hargshamn | AL26: =+SUMIF('Linjelänk JA_KAP'!$H:$H,$C26,'Linjelänk JA_KAP'!CY:CY) -> 0 | AM26: =+SUMIF('Linjelänk JA_KAP'!$H:$H,$C26,'Linjelänk JA_KAP'!CZ:CZ) -> 0 | AN26: =+SUMIF('Linjelänk JA_KAP'!$H:$H,$C26,'Linjelänk JA_KAP'!DA:DA) -> 0 | AO26: =+SUMIF('Linjelänk UA_KAP'!$H:$H,$C26,'Linjelänk UA_KAP'!CY:CY) -> 0 | AP26: =+SUMIF('Linjelänk UA_KAP'!$H:$H,$C26,'Linjelänk UA_KAP'!CZ:CZ) -> 0 | AQ26: =+SUMIF('Linjelänk UA_KAP'!$H:$H,$C26,'Linjelänk UA_KAP'!DA:DA) -> 0 | AS26: =+VLOOKUP($AJ26,Länkar_TTA!$Q:$T,2,FALSE) -> 0 | AT26: =+VLOOKUP($AJ26,Länkar_TTA!$Q:$T,3,FALSE) -> 0 | AU26: =+VLOOKUP($AJ26,Länkar_TTA!$Q:$T,4,FALSE) -> 0 | AX26: 0 | AY26: =IFERROR(VLOOKUP(I26,Bangods_linjedel!B:F,5,FALSE),0) -> 62.99 | AZ26: =VLOOKUP(I26,'Kap.ber JA'!DK:DN,2,FALSE)*AY26 -> 0 | BA26: =VLOOKUP(I26,'Kap.ber JA'!$DK:$DN,3,FALSE)*AY26 -> 0 | BB26: =VLOOKUP(I26,'Kap.ber JA'!$DK:$DN,4,FALSE)*AY26 -> 0 | BC26: =IFERROR(VLOOKUP(J26,'Kap.ber UA'!$DJ:$DM,2,FALSE)*AY26,0) -> 0 | BD26: =IFERROR(VLOOKUP(J26,'Kap.ber UA'!$DJ:$DM,3,FALSE)*AY26,0) -> 0 | BE26: =IFERROR(VLOOKUP(J26,'Kap.ber UA'!$DJ:$DM,4,FALSE)*AY26,0) -> 0 | BF26: =IF('Beskrivning av åtgärd'!$B$11="Persontrafik",BA26,IF('Beskrivning av åtgärd'!$B$11="Godstrafik",AZ26,BB26)) -> 0 | BG26: =IF('Beskrivning av åtgärd'!$B$11="Persontrafik",BD26,IF('Beskrivning av åtgärd'!$B$11="Godstrafik",BC26,BE26)) -> 0
A27: =Länkar_TTA!A26 -> 1406 | B27: =Länkar_TTA!B26 -> 1402 | C27: =TEXT(Länkar_TTA!C26,0) -> 14061402 | D27: =Länkar_TTA!D26 -> Uppsala Norra | E27: =Länkar_TTA!E26 -> Uppsala norra utfarten | F27: =Länkar_TTA!F26 -> 431 | G27: =Länkar_TTA!G26 -> Dalabanan | H27: =Länkar_TTA!H26 -> 6 | I27: =Länkar_TTA!I26 -> L2000 | J27: L2000 | T27: =+Kalkylsammanställning!G$2 -> 1 | U27: =Länkar_TTA!M26 -> Ja | V27: Ja | W27: =Länkar_TTA!K26 -> 0 | X27: 0 | Y27: =+IFERROR(VLOOKUP(C27,LinjeLänk_Data!F:G,2,FALSE),"-") -> 1.435119987 | Z27: 1.435119987 | AB27: Dalabanan | AD27: 431 | AF27: =+VLOOKUP(C27,Länkar_TTA!C:O,13,FALSE) ->  | AI27: - | AJ27: Uppsala Norra-Uppsala norra utfarten | AL27: =+SUMIF('Linjelänk JA_KAP'!$H:$H,$C27,'Linjelänk JA_KAP'!CY:CY) -> 0 | AM27: =+SUMIF('Linjelänk JA_KAP'!$H:$H,$C27,'Linjelänk JA_KAP'!CZ:CZ) -> 35 | AN27: =+SUMIF('Linjelänk JA_KAP'!$H:$H,$C27,'Linjelänk JA_KAP'!DA:DA) -> 0 | AO27: =+SUMIF('Linjelänk UA_KAP'!$H:$H,$C27,'Linjelänk UA_KAP'!CY:CY) -> 0 | AP27: =+SUMIF('Linjelänk UA_KAP'!$H:$H,$C27,'Linjelänk UA_KAP'!CZ:CZ) -> 35 | AQ27: =+SUMIF('Linjelänk UA_KAP'!$H:$H,$C27,'Linjelänk UA_KAP'!DA:DA) -> 0 | AS27: =+VLOOKUP($AJ27,Länkar_TTA!$Q:$T,2,FALSE) -> 0 | AT27: =+VLOOKUP($AJ27,Länkar_TTA!$Q:$T,3,FALSE) -> 35 | AU27: =+VLOOKUP($AJ27,Länkar_TTA!$Q:$T,4,FALSE) -> 0 | AX27: 16073.34385 | AY27: =IFERROR(VLOOKUP(I27,Bangods_linjedel!B:F,5,FALSE),0) -> 61.35 | AZ27: =VLOOKUP(I27,'Kap.ber JA'!DK:DN,2,FALSE)*AY27 -> 5521.5 | BA27: =VLOOKUP(I27,'Kap.ber JA'!$DK:$DN,3,FALSE)*AY27 -> 1374240 | BB27: =VLOOKUP(I27,'Kap.ber JA'!$DK:$DN,4,FALSE)*AY27 -> 1379761.5 | BC27: =IFERROR(VLOOKUP(J27,'Kap.ber UA'!$DJ:$DM,2,FALSE)*AY27,0) -> 5521.5 | BD27: =IFERROR(VLOOKUP(J27,'Kap.ber UA'!$DJ:$DM,3,FALSE)*AY27,0) -> 1374240 | BE27: =IFERROR(VLOOKUP(J27,'Kap.ber UA'!$DJ:$DM,4,FALSE)*AY27,0) -> 1379761.5 | BF27: =IF('Beskrivning av åtgärd'!$B$11="Persontrafik",BA27,IF('Beskrivning av åtgärd'!$B$11="Godstrafik",AZ27,BB27)) -> 1379761.5 | BG27: =IF('Beskrivning av åtgärd'!$B$11="Persontrafik",BD27,IF('Beskrivning av åtgärd'!$B$11="Godstrafik",BC27,BE27)) -> 1379761.5
A28: =Länkar_TTA!A27 -> 1406 | B28: =Länkar_TTA!B27 -> 1421 | C28: =TEXT(Länkar_TTA!C27,0) -> 14061421 | D28: =Länkar_TTA!D27 -> Uppsala Norra | E28: =Länkar_TTA!E27 -> Vänge | F28: =Länkar_TTA!F27 -> 431 | G28: =Länkar_TTA!G27 -> Dalabanan | H28: =Länkar_TTA!H27 -> 6 | I28: =Länkar_TTA!I27 -> L2000 | J28: L2000 | T28: =+Kalkylsammanställning!G$2 -> 1 | U28: =Länkar_TTA!M27 -> Ja | V28: Ja | W28: =Länkar_TTA!K27 -> 0 | X28: 0 | Y28: =+IFERROR(VLOOKUP(C28,LinjeLänk_Data!F:G,2,FALSE),"-") -> 9.659999847 | Z28: 9.659999847 | AB28: Dalabanan | AD28: 431 | AF28: =+VLOOKUP(C28,Länkar_TTA!C:O,13,FALSE) ->  | AI28: - | AJ28: Uppsala Norra-Vänge | AL28: =+SUMIF('Linjelänk JA_KAP'!$H:$H,$C28,'Linjelänk JA_KAP'!CY:CY) -> 0 | AM28: =+SUMIF('Linjelänk JA_KAP'!$H:$H,$C28,'Linjelänk JA_KAP'!CZ:CZ) -> 35 | AN28: =+SUMIF('Linjelänk JA_KAP'!$H:$H,$C28,'Linjelänk JA_KAP'!DA:DA) -> 0 | AO28: =+SUMIF('Linjelänk UA_KAP'!$H:$H,$C28,'Linjelänk UA_KAP'!CY:CY) -> 0 | AP28: =+SUMIF('Linjelänk UA_KAP'!$H:$H,$C28,'Linjelänk UA_KAP'!CZ:CZ) -> 35 | AQ28: =+SUMIF('Linjelänk UA_KAP'!$H:$H,$C28,'Linjelänk UA_KAP'!DA:DA) -> 0 | AS28: =+VLOOKUP($AJ28,Länkar_TTA!$Q:$T,2,FALSE) -> 0 | AT28: =+VLOOKUP($AJ28,Länkar_TTA!$Q:$T,3,FALSE) -> 35 | AU28: =+VLOOKUP($AJ28,Länkar_TTA!$Q:$T,4,FALSE) -> 0 | AX28: 108191.9983 | AY28: =IFERROR(VLOOKUP(I28,Bangods_linjedel!B:F,5,FALSE),0) -> 61.35 | AZ28: =VLOOKUP(I28,'Kap.ber JA'!DK:DN,2,FALSE)*AY28 -> 5521.5 | BA28: =VLOOKUP(I28,'Kap.ber JA'!$DK:$DN,3,FALSE)*AY28 -> 1374240 | BB28: =VLOOKUP(I28,'Kap.ber JA'!$DK:$DN,4,FALSE)*AY28 -> 1379761.5 | BC28: =IFERROR(VLOOKUP(J28,'Kap.ber UA'!$DJ:$DM,2,FALSE)*AY28,0) -> 5521.5 | BD28: =IFERROR(VLOOKUP(J28,'Kap.ber UA'!$DJ:$DM,3,FALSE)*AY28,0) -> 1374240 | BE28: =IFERROR(VLOOKUP(J28,'Kap.ber UA'!$DJ:$DM,4,FALSE)*AY28,0) -> 1379761.5 | BF28: =IF('Beskrivning av åtgärd'!$B$11="Persontrafik",BA28,IF('Beskrivning av åtgärd'!$B$11="Godstrafik",AZ28,BB28)) -> 1379761.5 | BG28: =IF('Beskrivning av åtgärd'!$B$11="Persontrafik",BD28,IF('Beskrivning av åtgärd'!$B$11="Godstrafik",BC28,BE28)) -> 1379761.5
A29: =Länkar_TTA!A28 -> 1407 | B29: =Länkar_TTA!B28 -> 1418 | C29: =TEXT(Länkar_TTA!C28,0) -> 14071418 | D29: =Länkar_TTA!D28 -> Brunna | E29: =Länkar_TTA!E28 -> Järlåsa | F29: =Länkar_TTA!F28 -> 431 | G29: =Länkar_TTA!G28 -> Dalabanan | H29: =Länkar_TTA!H28 -> 6 | I29: =Länkar_TTA!I28 -> L2000 | J29: L2000 | T29: =+Kalkylsammanställning!G$2 -> 1 | U29: =Länkar_TTA!M28 -> Ja | V29: Ja | W29: =Länkar_TTA!K28 -> 0 | X29: 0 | Y29: =+IFERROR(VLOOKUP(C29,LinjeLänk_Data!F:G,2,FALSE),"-") -> 13.18000031 | Z29: 13.18000031 | AB29: Dalabanan | AD29: 431 | AF29: =+VLOOKUP(C29,Länkar_TTA!C:O,13,FALSE) ->  | AI29: - | AJ29: Brunna-Järlåsa | AL29: =+SUMIF('Linjelänk JA_KAP'!$H:$H,$C29,'Linjelänk JA_KAP'!CY:CY) -> 0 | AM29: =+SUMIF('Linjelänk JA_KAP'!$H:$H,$C29,'Linjelänk JA_KAP'!CZ:CZ) -> 35 | AN29: =+SUMIF('Linjelänk JA_KAP'!$H:$H,$C29,'Linjelänk JA_KAP'!DA:DA) -> 0 | AO29: =+SUMIF('Linjelänk UA_KAP'!$H:$H,$C29,'Linjelänk UA_KAP'!CY:CY) -> 0 | AP29: =+SUMIF('Linjelänk UA_KAP'!$H:$H,$C29,'Linjelänk UA_KAP'!CZ:CZ) -> 35 | AQ29: =+SUMIF('Linjelänk UA_KAP'!$H:$H,$C29,'Linjelänk UA_KAP'!DA:DA) -> 0 | AS29: =+VLOOKUP($AJ29,Länkar_TTA!$Q:$T,2,FALSE) -> 0 | AT29: =+VLOOKUP($AJ29,Länkar_TTA!$Q:$T,3,FALSE) -> 35 | AU29: =+VLOOKUP($AJ29,Länkar_TTA!$Q:$T,4,FALSE) -> 0 | AX29: 147616.0034 | AY29: =IFERROR(VLOOKUP(I29,Bangods_linjedel!B:F,5,FALSE),0) -> 61.35 | AZ29: =VLOOKUP(I29,'Kap.ber JA'!DK:DN,2,FALSE)*AY29 -> 5521.5 | BA29: =VLOOKUP(I29,'Kap.ber JA'!$DK:$DN,3,FALSE)*AY29 -> 1374240 | BB29: =VLOOKUP(I29,'Kap.ber JA'!$DK:$DN,4,FALSE)*AY29 -> 1379761.5 | BC29: =IFERROR(VLOOKUP(J29,'Kap.ber UA'!$DJ:$DM,2,FALSE)*AY29,0) -> 5521.5 | BD29: =IFERROR(VLOOKUP(J29,'Kap.ber UA'!$DJ:$DM,3,FALSE)*AY29,0) -> 1374240 | BE29: =IFERROR(VLOOKUP(J29,'Kap.ber UA'!$DJ:$DM,4,FALSE)*AY29,0) -> 1379761.5 | BF29: =IF('Beskrivning av åtgärd'!$B$11="Persontrafik",BA29,IF('Beskrivning av åtgärd'!$B$11="Godstrafik",AZ29,BB29)) -> 1379761.5 | BG29: =IF('Beskrivning av åtgärd'!$B$11="Persontrafik",BD29,IF('Beskrivning av åtgärd'!$B$11="Godstrafik",BC29,BE29)) -> 1379761.5
A30: =Länkar_TTA!A29 -> 1407 | B30: =Länkar_TTA!B29 -> 1421 | C30: =TEXT(Länkar_TTA!C29,0) -> 14071421 | D30: =Länkar_TTA!D29 -> Brunna | E30: =Länkar_TTA!E29 -> Vänge | F30: =Länkar_TTA!F29 -> 431 | G30: =Länkar_TTA!G29 -> Dalabanan | H30: =Länkar_TTA!H29 -> 6 | I30: =Länkar_TTA!I29 -> L2000 | J30: L2000 | T30: =+Kalkylsammanställning!G$2 -> 1 | U30: =Länkar_TTA!M29 -> Ja | V30: Ja | W30: =Länkar_TTA!K29 -> 0 | X30: 0 | Y30: =+IFERROR(VLOOKUP(C30,LinjeLänk_Data!F:G,2,FALSE),"-") -> 0.8500000238 | Z30: 0.8500000238 | AB30: Dalabanan | AD30: 431 | AF30: =+VLOOKUP(C30,Länkar_TTA!C:O,13,FALSE) ->  | AI30: - | AJ30: Brunna-Vänge | AL30: =+SUMIF('Linjelänk JA_KAP'!$H:$H,$C30,'Linjelänk JA_KAP'!CY:CY) -> 0 | AM30: =+SUMIF('Linjelänk JA_KAP'!$H:$H,$C30,'Linjelänk JA_KAP'!CZ:CZ) -> 35 | AN30: =+SUMIF('Linjelänk JA_KAP'!$H:$H,$C30,'Linjelänk JA_KAP'!DA:DA) -> 0 | AO30: =+SUMIF('Linjelänk UA_KAP'!$H:$H,$C30,'Linjelänk UA_KAP'!CY:CY) -> 0 | AP30: =+SUMIF('Linjelänk UA_KAP'!$H:$H,$C30,'Linjelänk UA_KAP'!CZ:CZ) -> 35 | AQ30: =+SUMIF('Linjelänk UA_KAP'!$H:$H,$C30,'Linjelänk UA_KAP'!DA:DA) -> 0 | AS30: =+VLOOKUP($AJ30,Länkar_TTA!$Q:$T,2,FALSE) -> 0 | AT30: =+VLOOKUP($AJ30,Länkar_TTA!$Q:$T,3,FALSE) -> 35 | AU30: =+VLOOKUP($AJ30,Länkar_TTA!$Q:$T,4,FALSE) -> 0 | AX30: 9520.000267 | AY30: =IFERROR(VLOOKUP(I30,Bangods_linjedel!B:F,5,FALSE),0) -> 61.35 | AZ30: =VLOOKUP(I30,'Kap.ber JA'!DK:DN,2,FALSE)*AY30 -> 5521.5 | BA30: =VLOOKUP(I30,'Kap.ber JA'!$DK:$DN,3,FALSE)*AY30 -> 1374240 | BB30: =VLOOKUP(I30,'Kap.ber JA'!$DK:$DN,4,FALSE)*AY30 -> 1379761.5 | BC30: =IFERROR(VLOOKUP(J30,'Kap.ber UA'!$DJ:$DM,2,FALSE)*AY30,0) -> 5521.5 | BD30: =IFERROR(VLOOKUP(J30,'Kap.ber UA'!$DJ:$DM,3,FALSE)*AY30,0) -> 1374240 | BE30: =IFERROR(VLOOKUP(J30,'Kap.ber UA'!$DJ:$DM,4,FALSE)*AY30,0) -> 1379761.5 | BF30: =IF('Beskrivning av åtgärd'!$B$11="Persontrafik",BA30,IF('Beskrivning av åtgärd'!$B$11="Godstrafik",AZ30,BB30)) -> 1379761.5 | BG30: =IF('Beskrivning av åtgärd'!$B$11="Persontrafik",BD30,IF('Beskrivning av åtgärd'!$B$11="Godstrafik",BC30,BE30)) -> 1379761.5
A31: =Länkar_TTA!A30 -> 1408 | B31: =Länkar_TTA!B30 -> 1400 | C31: =TEXT(Länkar_TTA!C30,0) -> 14081400 | D31: =Länkar_TTA!D30 -> Säby | E31: =Länkar_TTA!E30 -> Uppsala Central | F31: =Länkar_TTA!F30 -> 430 | G31: =Länkar_TTA!G30 -> Ostkustbanan | H31: =Länkar_TTA!H30 -> 5 | I31: =Länkar_TTA!I30 -> L1420 | J31: L1420 | T31: =+Kalkylsammanställning!G$2 -> 1 | U31: =Länkar_TTA!M30 -> Ja | V31: Ja | W31: =Länkar_TTA!K30 -> fyrspår | X31: fyrspår | Y31: =+IFERROR(VLOOKUP(C31,LinjeLänk_Data!F:G,2,FALSE),"-") -> 4.422910213 | Z31: 4.422910213 | AB31: Ostkustbanan | AD31: 430 | AF31: =+VLOOKUP(C31,Länkar_TTA!C:O,13,FALSE) ->  | AI31: - | AJ31: Säby-Uppsala Central | AL31: =+SUMIF('Linjelänk JA_KAP'!$H:$H,$C31,'Linjelänk JA_KAP'!CY:CY) -> 16 | AM31: =+SUMIF('Linjelänk JA_KAP'!$H:$H,$C31,'Linjelänk JA_KAP'!CZ:CZ) -> 117 | AN31: =+SUMIF('Linjelänk JA_KAP'!$H:$H,$C31,'Linjelänk JA_KAP'!DA:DA) -> 38 | AO31: =+SUMIF('Linjelänk UA_KAP'!$H:$H,$C31,'Linjelänk UA_KAP'!CY:CY) -> 16 | AP31: =+SUMIF('Linjelänk UA_KAP'!$H:$H,$C31,'Linjelänk UA_KAP'!CZ:CZ) -> 117 | AQ31: =+SUMIF('Linjelänk UA_KAP'!$H:$H,$C31,'Linjelänk UA_KAP'!DA:DA) -> 38 | AS31: =+VLOOKUP($AJ31,Länkar_TTA!$Q:$T,2,FALSE) -> 16 | AT31: =+VLOOKUP($AJ31,Länkar_TTA!$Q:$T,3,FALSE) -> 117 | AU31: =+VLOOKUP($AJ31,Länkar_TTA!$Q:$T,4,FALSE) -> 38 | AX31: 242021.6469 | AY31: =IFERROR(VLOOKUP(I31,Bangods_linjedel!B:F,5,FALSE),0) -> 20.78 | AZ31: =VLOOKUP(I31,'Kap.ber JA'!DK:DN,2,FALSE)*AY31 -> 39378.1 | BA31: =VLOOKUP(I31,'Kap.ber JA'!$DK:$DN,3,FALSE)*AY31 -> 1143731.2 | BB31: =VLOOKUP(I31,'Kap.ber JA'!$DK:$DN,4,FALSE)*AY31 -> 1183109.3 | BC31: =IFERROR(VLOOKUP(J31,'Kap.ber UA'!$DJ:$DM,2,FALSE)*AY31,0) -> 39378.1 | BD31: =IFERROR(VLOOKUP(J31,'Kap.ber UA'!$DJ:$DM,3,FALSE)*AY31,0) -> 1143731.2 | BE31: =IFERROR(VLOOKUP(J31,'Kap.ber UA'!$DJ:$DM,4,FALSE)*AY31,0) -> 1183109.3 | BF31: =IF('Beskrivning av åtgärd'!$B$11="Persontrafik",BA31,IF('Beskrivning av åtgärd'!$B$11="Godstrafik",AZ31,BB31)) -> 1183109.3 | BG31: =IF('Beskrivning av åtgärd'!$B$11="Persontrafik",BD31,IF('Beskrivning av åtgärd'!$B$11="Godstrafik",BC31,BE31)) -> 1183109.3
A32: =Länkar_TTA!A31 -> 1408 | B32: =Länkar_TTA!B31 -> 1403 | C32: =TEXT(Länkar_TTA!C31,0) -> 14081403 | D32: =Länkar_TTA!D31 -> Säby | E32: =Länkar_TTA!E31 -> Bergsbrunna | F32: =Länkar_TTA!F31 -> 430 | G32: =Länkar_TTA!G31 -> Ostkustbanan | H32: =Länkar_TTA!H31 -> 5 | I32: =Länkar_TTA!I31 -> L1420 | J32: L1420 | T32: =+Kalkylsammanställning!G$2 -> 1 | U32: =Länkar_TTA!M31 -> Ja | V32: Ja | W32: =Länkar_TTA!K31 -> fyrspår | X32: fyrspår | Y32: =+IFERROR(VLOOKUP(C32,LinjeLänk_Data!F:G,2,FALSE),"-") -> 2.930419922 | Z32: 2.930419922 | AB32: Ostkustbanan | AD32: 430 | AF32: =+VLOOKUP(C32,Länkar_TTA!C:O,13,FALSE) ->  | AI32: - | AJ32: Säby-Bergsbrunna | AL32: =+SUMIF('Linjelänk JA_KAP'!$H:$H,$C32,'Linjelänk JA_KAP'!CY:CY) -> 16 | AM32: =+SUMIF('Linjelänk JA_KAP'!$H:$H,$C32,'Linjelänk JA_KAP'!CZ:CZ) -> 117 | AN32: =+SUMIF('Linjelänk JA_KAP'!$H:$H,$C32,'Linjelänk JA_KAP'!DA:DA) -> 38 | AO32: =+SUMIF('Linjelänk UA_KAP'!$H:$H,$C32,'Linjelänk UA_KAP'!CY:CY) -> 16 | AP32: =+SUMIF('Linjelänk UA_KAP'!$H:$H,$C32,'Linjelänk UA_KAP'!CZ:CZ) -> 117 | AQ32: =+SUMIF('Linjelänk UA_KAP'!$H:$H,$C32,'Linjelänk UA_KAP'!DA:DA) -> 38 | AS32: =+VLOOKUP($AJ32,Länkar_TTA!$Q:$T,2,FALSE) -> 16 | AT32: =+VLOOKUP($AJ32,Länkar_TTA!$Q:$T,3,FALSE) -> 117 | AU32: =+VLOOKUP($AJ32,Länkar_TTA!$Q:$T,4,FALSE) -> 38 | AX32: 160352.5781 | AY32: =IFERROR(VLOOKUP(I32,Bangods_linjedel!B:F,5,FALSE),0) -> 20.78 | AZ32: =VLOOKUP(I32,'Kap.ber JA'!DK:DN,2,FALSE)*AY32 -> 39378.1 | BA32: =VLOOKUP(I32,'Kap.ber JA'!$DK:$DN,3,FALSE)*AY32 -> 1143731.2 | BB32: =VLOOKUP(I32,'Kap.ber JA'!$DK:$DN,4,FALSE)*AY32 -> 1183109.3 | BC32: =IFERROR(VLOOKUP(J32,'Kap.ber UA'!$DJ:$DM,2,FALSE)*AY32,0) -> 39378.1 | BD32: =IFERROR(VLOOKUP(J32,'Kap.ber UA'!$DJ:$DM,3,FALSE)*AY32,0) -> 1143731.2 | BE32: =IFERROR(VLOOKUP(J32,'Kap.ber UA'!$DJ:$DM,4,FALSE)*AY32,0) -> 1183109.3 | BF32: =IF('Beskrivning av åtgärd'!$B$11="Persontrafik",BA32,IF('Beskrivning av åtgärd'!$B$11="Godstrafik",AZ32,BB32)) -> 1183109.3 | BG32: =IF('Beskrivning av åtgärd'!$B$11="Persontrafik",BD32,IF('Beskrivning av åtgärd'!$B$11="Godstrafik",BC32,BE32)) -> 1183109.3
A33: =Länkar_TTA!A32 -> 1409 | B33: =Länkar_TTA!B32 -> 1401 | C33: =TEXT(Länkar_TTA!C32,0) -> 14091401 | D33: =Länkar_TTA!D32 -> Alsike | E33: =Länkar_TTA!E32 -> Knivsta | F33: =Länkar_TTA!F32 -> 430 | G33: =Länkar_TTA!G32 -> Ostkustbanan | H33: =Länkar_TTA!H32 -> 5 | I33: =Länkar_TTA!I32 -> L1420 | J33: L1420 | T33: =+Kalkylsammanställning!G$2 -> 1 | U33: =Länkar_TTA!M32 -> Ja | V33: Ja | W33: =Länkar_TTA!K32 -> fyrspår | X33: fyrspår | Y33: =+IFERROR(VLOOKUP(C33,LinjeLänk_Data!F:G,2,FALSE),"-") -> 4.077320099 | Z33: 4.077320099 | AB33: Ostkustbanan | AD33: 430 | AF33: =+VLOOKUP(C33,Länkar_TTA!C:O,13,FALSE) ->  | AI33: - | AJ33: Alsike-Knivsta | AL33: =+SUMIF('Linjelänk JA_KAP'!$H:$H,$C33,'Linjelänk JA_KAP'!CY:CY) -> 16 | AM33: =+SUMIF('Linjelänk JA_KAP'!$H:$H,$C33,'Linjelänk JA_KAP'!CZ:CZ) -> 117 | AN33: =+SUMIF('Linjelänk JA_KAP'!$H:$H,$C33,'Linjelänk JA_KAP'!DA:DA) -> 38 | AO33: =+SUMIF('Linjelänk UA_KAP'!$H:$H,$C33,'Linjelänk UA_KAP'!CY:CY) -> 16 | AP33: =+SUMIF('Linjelänk UA_KAP'!$H:$H,$C33,'Linjelänk UA_KAP'!CZ:CZ) -> 117 | AQ33: =+SUMIF('Linjelänk UA_KAP'!$H:$H,$C33,'Linjelänk UA_KAP'!DA:DA) -> 38 | AS33: =+VLOOKUP($AJ33,Länkar_TTA!$Q:$T,2,FALSE) -> 16 | AT33: =+VLOOKUP($AJ33,Länkar_TTA!$Q:$T,3,FALSE) -> 117 | AU33: =+VLOOKUP($AJ33,Länkar_TTA!$Q:$T,4,FALSE) -> 38 | AX33: 223110.9558 | AY33: =IFERROR(VLOOKUP(I33,Bangods_linjedel!B:F,5,FALSE),0) -> 20.78 | AZ33: =VLOOKUP(I33,'Kap.ber JA'!DK:DN,2,FALSE)*AY33 -> 39378.1 | BA33: =VLOOKUP(I33,'Kap.ber JA'!$DK:$DN,3,FALSE)*AY33 -> 1143731.2 | BB33: =VLOOKUP(I33,'Kap.ber JA'!$DK:$DN,4,FALSE)*AY33 -> 1183109.3 | BC33: =IFERROR(VLOOKUP(J33,'Kap.ber UA'!$DJ:$DM,2,FALSE)*AY33,0) -> 39378.1 | BD33: =IFERROR(VLOOKUP(J33,'Kap.ber UA'!$DJ:$DM,3,FALSE)*AY33,0) -> 1143731.2 | BE33: =IFERROR(VLOOKUP(J33,'Kap.ber UA'!$DJ:$DM,4,FALSE)*AY33,0) -> 1183109.3 | BF33: =IF('Beskrivning av åtgärd'!$B$11="Persontrafik",BA33,IF('Beskrivning av åtgärd'!$B$11="Godstrafik",AZ33,BB33)) -> 1183109.3 | BG33: =IF('Beskrivning av åtgärd'!$B$11="Persontrafik",BD33,IF('Beskrivning av åtgärd'!$B$11="Godstrafik",BC33,BE33)) -> 1183109.3
A34: =Länkar_TTA!A33 -> 1409 | B34: =Länkar_TTA!B33 -> 1403 | C34: =TEXT(Länkar_TTA!C33,0) -> 14091403 | D34: =Länkar_TTA!D33 -> Alsike | E34: =Länkar_TTA!E33 -> Bergsbrunna | F34: =Länkar_TTA!F33 -> 430 | G34: =Länkar_TTA!G33 -> Ostkustbanan | H34: =Länkar_TTA!H33 -> 5 | I34: =Länkar_TTA!I33 -> L1420 | J34: L1420 | T34: =+Kalkylsammanställning!G$2 -> 1 | U34: =Länkar_TTA!M33 -> Ja | V34: Ja | W34: =Länkar_TTA!K33 -> fyrspår | X34: fyrspår | Y34: =+IFERROR(VLOOKUP(C34,LinjeLänk_Data!F:G,2,FALSE),"-") -> 5.651649952 | Z34: 5.651649952 | AB34: Ostkustbanan | AD34: 430 | AF34: =+VLOOKUP(C34,Länkar_TTA!C:O,13,FALSE) ->  | AI34: - | AJ34: Alsike-Bergsbrunna | AL34: =+SUMIF('Linjelänk JA_KAP'!$H:$H,$C34,'Linjelänk JA_KAP'!CY:CY) -> 16 | AM34: =+SUMIF('Linjelänk JA_KAP'!$H:$H,$C34,'Linjelänk JA_KAP'!CZ:CZ) -> 117 | AN34: =+SUMIF('Linjelänk JA_KAP'!$H:$H,$C34,'Linjelänk JA_KAP'!DA:DA) -> 38 | AO34: =+SUMIF('Linjelänk UA_KAP'!$H:$H,$C34,'Linjelänk UA_KAP'!CY:CY) -> 16 | AP34: =+SUMIF('Linjelänk UA_KAP'!$H:$H,$C34,'Linjelänk UA_KAP'!CZ:CZ) -> 117 | AQ34: =+SUMIF('Linjelänk UA_KAP'!$H:$H,$C34,'Linjelänk UA_KAP'!DA:DA) -> 38 | AS34: =+VLOOKUP($AJ34,Länkar_TTA!$Q:$T,2,FALSE) -> 16 | AT34: =+VLOOKUP($AJ34,Länkar_TTA!$Q:$T,3,FALSE) -> 117 | AU34: =+VLOOKUP($AJ34,Länkar_TTA!$Q:$T,4,FALSE) -> 38 | AX34: 309258.2854 | AY34: =IFERROR(VLOOKUP(I34,Bangods_linjedel!B:F,5,FALSE),0) -> 20.78 | AZ34: =VLOOKUP(I34,'Kap.ber JA'!DK:DN,2,FALSE)*AY34 -> 39378.1 | BA34: =VLOOKUP(I34,'Kap.ber JA'!$DK:$DN,3,FALSE)*AY34 -> 1143731.2 | BB34: =VLOOKUP(I34,'Kap.ber JA'!$DK:$DN,4,FALSE)*AY34 -> 1183109.3 | BC34: =IFERROR(VLOOKUP(J34,'Kap.ber UA'!$DJ:$DM,2,FALSE)*AY34,0) -> 39378.1 | BD34: =IFERROR(VLOOKUP(J34,'Kap.ber UA'!$DJ:$DM,3,FALSE)*AY34,0) -> 1143731.2 | BE34: =IFERROR(VLOOKUP(J34,'Kap.ber UA'!$DJ:$DM,4,FALSE)*AY34,0) -> 1183109.3 | BF34: =IF('Beskrivning av åtgärd'!$B$11="Persontrafik",BA34,IF('Beskrivning av åtgärd'!$B$11="Godstrafik",AZ34,BB34)) -> 1183109.3 | BG34: =IF('Beskrivning av åtgärd'!$B$11="Persontrafik",BD34,IF('Beskrivning av åtgärd'!$B$11="Godstrafik",BC34,BE34)) -> 1183109.3
A35: =Länkar_TTA!A34 -> 1410 | B35: =Länkar_TTA!B34 -> 1404 | C35: =TEXT(Länkar_TTA!C34,0) -> 14101404 | D35: =Länkar_TTA!D34 -> Vattholma | E35: =Länkar_TTA!E34 -> Storvreta | F35: =Länkar_TTA!F34 -> 434 | G35: =Länkar_TTA!G34 -> Ostkustbanan | H35: =Länkar_TTA!H34 -> 5 | I35: =Länkar_TTA!I34 -> L1413 | J35: L1413 | T35: =+Kalkylsammanställning!G$2 -> 1 | U35: =Länkar_TTA!M34 -> Ja | V35: Ja | W35: =Länkar_TTA!K34 -> 0 | X35: 0 | Y35: =+IFERROR(VLOOKUP(C35,LinjeLänk_Data!F:G,2,FALSE),"-") -> 7.889999866 | Z35: 7.889999866 | AB35: Ostkustbanan | AD35: 434 | AF35: =+VLOOKUP(C35,Länkar_TTA!C:O,13,FALSE) ->  | AI35: - | AJ35: Vattholma-Storvreta | AL35: =+SUMIF('Linjelänk JA_KAP'!$H:$H,$C35,'Linjelänk JA_KAP'!CY:CY) -> 16 | AM35: =+SUMIF('Linjelänk JA_KAP'!$H:$H,$C35,'Linjelänk JA_KAP'!CZ:CZ) -> 22 | AN35: =+SUMIF('Linjelänk JA_KAP'!$H:$H,$C35,'Linjelänk JA_KAP'!DA:DA) -> 34 | AO35: =+SUMIF('Linjelänk UA_KAP'!$H:$H,$C35,'Linjelänk UA_KAP'!CY:CY) -> 16 | AP35: =+SUMIF('Linjelänk UA_KAP'!$H:$H,$C35,'Linjelänk UA_KAP'!CZ:CZ) -> 22 | AQ35: =+SUMIF('Linjelänk UA_KAP'!$H:$H,$C35,'Linjelänk UA_KAP'!DA:DA) -> 34 | AS35: =+VLOOKUP($AJ35,Länkar_TTA!$Q:$T,2,FALSE) -> 16 | AT35: =+VLOOKUP($AJ35,Länkar_TTA!$Q:$T,3,FALSE) -> 22 | AU35: =+VLOOKUP($AJ35,Länkar_TTA!$Q:$T,4,FALSE) -> 34 | AX35: 181785.5969 | AY35: =IFERROR(VLOOKUP(I35,Bangods_linjedel!B:F,5,FALSE),0) -> 60.01 | AZ35: =VLOOKUP(I35,'Kap.ber JA'!DK:DN,2,FALSE)*AY35 -> 222037 | BA35: =VLOOKUP(I35,'Kap.ber JA'!$DK:$DN,3,FALSE)*AY35 -> 2765260.8 | BB35: =VLOOKUP(I35,'Kap.ber JA'!$DK:$DN,4,FALSE)*AY35 -> 2987297.8 | BC35: =IFERROR(VLOOKUP(J35,'Kap.ber UA'!$DJ:$DM,2,FALSE)*AY35,0) -> 222037 | BD35: =IFERROR(VLOOKUP(J35,'Kap.ber UA'!$DJ:$DM,3,FALSE)*AY35,0) -> 2765260.8 | BE35: =IFERROR(VLOOKUP(J35,'Kap.ber UA'!$DJ:$DM,4,FALSE)*AY35,0) -> 2987297.8 | BF35: =IF('Beskrivning av åtgärd'!$B$11="Persontrafik",BA35,IF('Beskrivning av åtgärd'!$B$11="Godstrafik",AZ35,BB35)) -> 2987297.8 | BG35: =IF('Beskrivning av åtgärd'!$B$11="Persontrafik",BD35,IF('Beskrivning av åtgärd'!$B$11="Godstrafik",BC35,BE35)) -> 2987297.8
A36: =Länkar_TTA!A35 -> 1410 | B36: =Länkar_TTA!B35 -> 1415 | C36: =TEXT(Länkar_TTA!C35,0) -> 14101415 | D36: =Länkar_TTA!D35 -> Vattholma | E36: =Länkar_TTA!E35 -> Skyttorp | F36: =Länkar_TTA!F35 -> 434 | G36: =Länkar_TTA!G35 -> Ostkustbanan | H36: =Länkar_TTA!H35 -> 5 | I36: =Länkar_TTA!I35 -> L1413 | J36: L1413 | T36: =+Kalkylsammanställning!G$2 -> 1 | U36: =Länkar_TTA!M35 -> Ja | V36: Ja | W36: =Länkar_TTA!K35 -> 0 | X36: 0 | Y36: =+IFERROR(VLOOKUP(C36,LinjeLänk_Data!F:G,2,FALSE),"-") -> 6.139999866 | Z36: 6.139999866 | AB36: Ostkustbanan | AD36: 434 | AF36: =+VLOOKUP(C36,Länkar_TTA!C:O,13,FALSE) ->  | AI36: - | AJ36: Vattholma-Skyttorp | AL36: =+SUMIF('Linjelänk JA_KAP'!$H:$H,$C36,'Linjelänk JA_KAP'!CY:CY) -> 16 | AM36: =+SUMIF('Linjelänk JA_KAP'!$H:$H,$C36,'Linjelänk JA_KAP'!CZ:CZ) -> 22 | AN36: =+SUMIF('Linjelänk JA_KAP'!$H:$H,$C36,'Linjelänk JA_KAP'!DA:DA) -> 34 | AO36: =+SUMIF('Linjelänk UA_KAP'!$H:$H,$C36,'Linjelänk UA_KAP'!CY:CY) -> 16 | AP36: =+SUMIF('Linjelänk UA_KAP'!$H:$H,$C36,'Linjelänk UA_KAP'!CZ:CZ) -> 22 | AQ36: =+SUMIF('Linjelänk UA_KAP'!$H:$H,$C36,'Linjelänk UA_KAP'!DA:DA) -> 34 | AS36: =+VLOOKUP($AJ36,Länkar_TTA!$Q:$T,2,FALSE) -> 16 | AT36: =+VLOOKUP($AJ36,Länkar_TTA!$Q:$T,3,FALSE) -> 22 | AU36: =+VLOOKUP($AJ36,Länkar_TTA!$Q:$T,4,FALSE) -> 34 | AX36: 141465.5969 | AY36: =IFERROR(VLOOKUP(I36,Bangods_linjedel!B:F,5,FALSE),0) -> 60.01 | AZ36: =VLOOKUP(I36,'Kap.ber JA'!DK:DN,2,FALSE)*AY36 -> 222037 | BA36: =VLOOKUP(I36,'Kap.ber JA'!$DK:$DN,3,FALSE)*AY36 -> 2765260.8 | BB36: =VLOOKUP(I36,'Kap.ber JA'!$DK:$DN,4,FALSE)*AY36 -> 2987297.8 | BC36: =IFERROR(VLOOKUP(J36,'Kap.ber UA'!$DJ:$DM,2,FALSE)*AY36,0) -> 222037 | BD36: =IFERROR(VLOOKUP(J36,'Kap.ber UA'!$DJ:$DM,3,FALSE)*AY36,0) -> 2765260.8 | BE36: =IFERROR(VLOOKUP(J36,'Kap.ber UA'!$DJ:$DM,4,FALSE)*AY36,0) -> 2987297.8 | BF36: =IF('Beskrivning av åtgärd'!$B$11="Persontrafik",BA36,IF('Beskrivning av åtgärd'!$B$11="Godstrafik",AZ36,BB36)) -> 2987297.8 | BG36: =IF('Beskrivning av åtgärd'!$B$11="Persontrafik",BD36,IF('Beskrivning av åtgärd'!$B$11="Godstrafik",BC36,BE36)) -> 2987297.8
A37: =Länkar_TTA!A36 -> 1415 | B37: =Länkar_TTA!B36 -> 1410 | C37: =TEXT(Länkar_TTA!C36,0) -> 14151410 | D37: =Länkar_TTA!D36 -> Skyttorp | E37: =Länkar_TTA!E36 -> Vattholma | F37: =Länkar_TTA!F36 -> 434 | G37: =Länkar_TTA!G36 -> Ostkustbanan | H37: =Länkar_TTA!H36 -> 5 | I37: =Länkar_TTA!I36 -> L1413 | J37: L1413 | T37: =+Kalkylsammanställning!G$2 -> 1 | U37: =Länkar_TTA!M36 -> Ja | V37: Ja | W37: =Länkar_TTA!K36 -> 0 | X37: 0 | Y37: =+IFERROR(VLOOKUP(C37,LinjeLänk_Data!F:G,2,FALSE),"-") -> 6.139999866 | Z37: 6.139999866 | AB37: Ostkustbanan | AD37: 434 | AF37: =+VLOOKUP(C37,Länkar_TTA!C:O,13,FALSE) ->  | AI37: - | AJ37: Skyttorp-Vattholma | AL37: =+SUMIF('Linjelänk JA_KAP'!$H:$H,$C37,'Linjelänk JA_KAP'!CY:CY) -> 16 | AM37: =+SUMIF('Linjelänk JA_KAP'!$H:$H,$C37,'Linjelänk JA_KAP'!CZ:CZ) -> 22 | AN37: =+SUMIF('Linjelänk JA_KAP'!$H:$H,$C37,'Linjelänk JA_KAP'!DA:DA) -> 34 | AO37: =+SUMIF('Linjelänk UA_KAP'!$H:$H,$C37,'Linjelänk UA_KAP'!CY:CY) -> 16 | AP37: =+SUMIF('Linjelänk UA_KAP'!$H:$H,$C37,'Linjelänk UA_KAP'!CZ:CZ) -> 22 | AQ37: =+SUMIF('Linjelänk UA_KAP'!$H:$H,$C37,'Linjelänk UA_KAP'!DA:DA) -> 34 | AS37: =+VLOOKUP($AJ37,Länkar_TTA!$Q:$T,2,FALSE) -> 16 | AT37: =+VLOOKUP($AJ37,Länkar_TTA!$Q:$T,3,FALSE) -> 22 | AU37: =+VLOOKUP($AJ37,Länkar_TTA!$Q:$T,4,FALSE) -> 34 | AX37: 141465.5969 | AY37: =IFERROR(VLOOKUP(I37,Bangods_linjedel!B:F,5,FALSE),0) -> 60.01 | AZ37: =VLOOKUP(I37,'Kap.ber JA'!DK:DN,2,FALSE)*AY37 -> 222037 | BA37: =VLOOKUP(I37,'Kap.ber JA'!$DK:$DN,3,FALSE)*AY37 -> 2765260.8 | BB37: =VLOOKUP(I37,'Kap.ber JA'!$DK:$DN,4,FALSE)*AY37 -> 2987297.8 | BC37: =IFERROR(VLOOKUP(J37,'Kap.ber UA'!$DJ:$DM,2,FALSE)*AY37,0) -> 222037 | BD37: =IFERROR(VLOOKUP(J37,'Kap.ber UA'!$DJ:$DM,3,FALSE)*AY37,0) -> 2765260.8 | BE37: =IFERROR(VLOOKUP(J37,'Kap.ber UA'!$DJ:$DM,4,FALSE)*AY37,0) -> 2987297.8 | BF37: =IF('Beskrivning av åtgärd'!$B$11="Persontrafik",BA37,IF('Beskrivning av åtgärd'!$B$11="Godstrafik",AZ37,BB37)) -> 2987297.8 | BG37: =IF('Beskrivning av åtgärd'!$B$11="Persontrafik",BD37,IF('Beskrivning av åtgärd'!$B$11="Godstrafik",BC37,BE37)) -> 2987297.8
A38: =Länkar_TTA!A37 -> 1415 | B38: =Länkar_TTA!B37 -> 6610 | C38: =TEXT(Länkar_TTA!C37,0) -> 14156610 | D38: =Länkar_TTA!D37 -> Skyttorp | E38: =Länkar_TTA!E37 -> Örbyhus | F38: =Länkar_TTA!F37 -> 434 | G38: =Länkar_TTA!G37 -> Ostkustbanan | H38: =Länkar_TTA!H37 -> 5 | I38: =Länkar_TTA!I37 -> L1413 | J38: L1413 | T38: =+Kalkylsammanställning!G$2 -> 1 | U38: =Länkar_TTA!M37 -> Ja | V38: Ja | W38: =Länkar_TTA!K37 -> 0 | X38: 0 | Y38: =+IFERROR(VLOOKUP(C38,LinjeLänk_Data!F:G,2,FALSE),"-") -> 17.22999954 | Z38: 17.22999954 | AB38: Ostkustbanan | AD38: 434 | AF38: =+VLOOKUP(C38,Länkar_TTA!C:O,13,FALSE) ->  | AI38: - | AJ38: Skyttorp-Örbyhus | AL38: =+SUMIF('Linjelänk JA_KAP'!$H:$H,$C38,'Linjelänk JA_KAP'!CY:CY) -> 16 | AM38: =+SUMIF('Linjelänk JA_KAP'!$H:$H,$C38,'Linjelänk JA_KAP'!CZ:CZ) -> 22 | AN38: =+SUMIF('Linjelänk JA_KAP'!$H:$H,$C38,'Linjelänk JA_KAP'!DA:DA) -> 34 | AO38: =+SUMIF('Linjelänk UA_KAP'!$H:$H,$C38,'Linjelänk UA_KAP'!CY:CY) -> 16 | AP38: =+SUMIF('Linjelänk UA_KAP'!$H:$H,$C38,'Linjelänk UA_KAP'!CZ:CZ) -> 22 | AQ38: =+SUMIF('Linjelänk UA_KAP'!$H:$H,$C38,'Linjelänk UA_KAP'!DA:DA) -> 34 | AS38: =+VLOOKUP($AJ38,Länkar_TTA!$Q:$T,2,FALSE) -> 16 | AT38: =+VLOOKUP($AJ38,Länkar_TTA!$Q:$T,3,FALSE) -> 22 | AU38: =+VLOOKUP($AJ38,Länkar_TTA!$Q:$T,4,FALSE) -> 34 | AX38: 396979.1895 | AY38: =IFERROR(VLOOKUP(I38,Bangods_linjedel!B:F,5,FALSE),0) -> 60.01 | AZ38: =VLOOKUP(I38,'Kap.ber JA'!DK:DN,2,FALSE)*AY38 -> 222037 | BA38: =VLOOKUP(I38,'Kap.ber JA'!$DK:$DN,3,FALSE)*AY38 -> 2765260.8 | BB38: =VLOOKUP(I38,'Kap.ber JA'!$DK:$DN,4,FALSE)*AY38 -> 2987297.8 | BC38: =IFERROR(VLOOKUP(J38,'Kap.ber UA'!$DJ:$DM,2,FALSE)*AY38,0) -> 222037 | BD38: =IFERROR(VLOOKUP(J38,'Kap.ber UA'!$DJ:$DM,3,FALSE)*AY38,0) -> 2765260.8 | BE38: =IFERROR(VLOOKUP(J38,'Kap.ber UA'!$DJ:$DM,4,FALSE)*AY38,0) -> 2987297.8 | BF38: =IF('Beskrivning av åtgärd'!$B$11="Persontrafik",BA38,IF('Beskrivning av åtgärd'!$B$11="Godstrafik",AZ38,BB38)) -> 2987297.8 | BG38: =IF('Beskrivning av åtgärd'!$B$11="Persontrafik",BD38,IF('Beskrivning av åtgärd'!$B$11="Godstrafik",BC38,BE38)) -> 2987297.8
A39: =Länkar_TTA!A38 -> 1418 | B39: =Länkar_TTA!B38 -> 1407 | C39: =TEXT(Länkar_TTA!C38,0) -> 14181407 | D39: =Länkar_TTA!D38 -> Järlåsa | E39: =Länkar_TTA!E38 -> Brunna | F39: =Länkar_TTA!F38 -> 431 | G39: =Länkar_TTA!G38 -> Dalabanan | H39: =Länkar_TTA!H38 -> 6 | I39: =Länkar_TTA!I38 -> L2000 | J39: L2000 | T39: =+Kalkylsammanställning!G$2 -> 1 | U39: =Länkar_TTA!M38 -> Ja | V39: Ja | W39: =Länkar_TTA!K38 -> 0 | X39: 0 | Y39: =+IFERROR(VLOOKUP(C39,LinjeLänk_Data!F:G,2,FALSE),"-") -> 13.18000031 | Z39: 13.18000031 | AB39: Dalabanan | AD39: 431 | AF39: =+VLOOKUP(C39,Länkar_TTA!C:O,13,FALSE) ->  | AI39: - | AJ39: Järlåsa-Brunna | AL39: =+SUMIF('Linjelänk JA_KAP'!$H:$H,$C39,'Linjelänk JA_KAP'!CY:CY) -> 0 | AM39: =+SUMIF('Linjelänk JA_KAP'!$H:$H,$C39,'Linjelänk JA_KAP'!CZ:CZ) -> 35 | AN39: =+SUMIF('Linjelänk JA_KAP'!$H:$H,$C39,'Linjelänk JA_KAP'!DA:DA) -> 0 | AO39: =+SUMIF('Linjelänk UA_KAP'!$H:$H,$C39,'Linjelänk UA_KAP'!CY:CY) -> 0 | AP39: =+SUMIF('Linjelänk UA_KAP'!$H:$H,$C39,'Linjelänk UA_KAP'!CZ:CZ) -> 35 | AQ39: =+SUMIF('Linjelänk UA_KAP'!$H:$H,$C39,'Linjelänk UA_KAP'!DA:DA) -> 0 | AS39: =+VLOOKUP($AJ39,Länkar_TTA!$Q:$T,2,FALSE) -> 0 | AT39: =+VLOOKUP($AJ39,Länkar_TTA!$Q:$T,3,FALSE) -> 35 | AU39: =+VLOOKUP($AJ39,Länkar_TTA!$Q:$T,4,FALSE) -> 0 | AX39: 147616.0034 | AY39: =IFERROR(VLOOKUP(I39,Bangods_linjedel!B:F,5,FALSE),0) -> 61.35 | AZ39: =VLOOKUP(I39,'Kap.ber JA'!DK:DN,2,FALSE)*AY39 -> 5521.5 | BA39: =VLOOKUP(I39,'Kap.ber JA'!$DK:$DN,3,FALSE)*AY39 -> 1374240 | BB39: =VLOOKUP(I39,'Kap.ber JA'!$DK:$DN,4,FALSE)*AY39 -> 1379761.5 | BC39: =IFERROR(VLOOKUP(J39,'Kap.ber UA'!$DJ:$DM,2,FALSE)*AY39,0) -> 5521.5 | BD39: =IFERROR(VLOOKUP(J39,'Kap.ber UA'!$DJ:$DM,3,FALSE)*AY39,0) -> 1374240 | BE39: =IFERROR(VLOOKUP(J39,'Kap.ber UA'!$DJ:$DM,4,FALSE)*AY39,0) -> 1379761.5 | BF39: =IF('Beskrivning av åtgärd'!$B$11="Persontrafik",BA39,IF('Beskrivning av åtgärd'!$B$11="Godstrafik",AZ39,BB39)) -> 1379761.5 | BG39: =IF('Beskrivning av åtgärd'!$B$11="Persontrafik",BD39,IF('Beskrivning av åtgärd'!$B$11="Godstrafik",BC39,BE39)) -> 1379761.5
A40: =Länkar_TTA!A39 -> 1418 | B40: =Länkar_TTA!B39 -> 6103 | C40: =TEXT(Länkar_TTA!C39,0) -> 14186103 | D40: =Länkar_TTA!D39 -> Järlåsa | E40: =Länkar_TTA!E39 -> Morgongåva | F40: =Länkar_TTA!F39 -> 431 | G40: =Länkar_TTA!G39 -> Dalabanan | H40: =Länkar_TTA!H39 -> 6 | I40: =Länkar_TTA!I39 -> L2000 | J40: L2000 | T40: =+Kalkylsammanställning!G$2 -> 1 | U40: =Länkar_TTA!M39 -> Ja | V40: Ja | W40: =Länkar_TTA!K39 -> 0 | X40: 0 | Y40: =+IFERROR(VLOOKUP(C40,LinjeLänk_Data!F:G,2,FALSE),"-") -> 14.78999996 | Z40: 14.78999996 | AB40: Dalabanan | AD40: 431 | AF40: =+VLOOKUP(C40,Länkar_TTA!C:O,13,FALSE) ->  | AI40: - | AJ40: Järlåsa-Morgongåva | AL40: =+SUMIF('Linjelänk JA_KAP'!$H:$H,$C40,'Linjelänk JA_KAP'!CY:CY) -> 0 | AM40: =+SUMIF('Linjelänk JA_KAP'!$H:$H,$C40,'Linjelänk JA_KAP'!CZ:CZ) -> 35 | AN40: =+SUMIF('Linjelänk JA_KAP'!$H:$H,$C40,'Linjelänk JA_KAP'!DA:DA) -> 0 | AO40: =+SUMIF('Linjelänk UA_KAP'!$H:$H,$C40,'Linjelänk UA_KAP'!CY:CY) -> 0 | AP40: =+SUMIF('Linjelänk UA_KAP'!$H:$H,$C40,'Linjelänk UA_KAP'!CZ:CZ) -> 35 | AQ40: =+SUMIF('Linjelänk UA_KAP'!$H:$H,$C40,'Linjelänk UA_KAP'!DA:DA) -> 0 | AS40: =+VLOOKUP($AJ40,Länkar_TTA!$Q:$T,2,FALSE) -> 0 | AT40: =+VLOOKUP($AJ40,Länkar_TTA!$Q:$T,3,FALSE) -> 35 | AU40: =+VLOOKUP($AJ40,Länkar_TTA!$Q:$T,4,FALSE) -> 0 | AX40: 165647.9996 | AY40: =IFERROR(VLOOKUP(I40,Bangods_linjedel!B:F,5,FALSE),0) -> 61.35 | AZ40: =VLOOKUP(I40,'Kap.ber JA'!DK:DN,2,FALSE)*AY40 -> 5521.5 | BA40: =VLOOKUP(I40,'Kap.ber JA'!$DK:$DN,3,FALSE)*AY40 -> 1374240 | BB40: =VLOOKUP(I40,'Kap.ber JA'!$DK:$DN,4,FALSE)*AY40 -> 1379761.5 | BC40: =IFERROR(VLOOKUP(J40,'Kap.ber UA'!$DJ:$DM,2,FALSE)*AY40,0) -> 5521.5 | BD40: =IFERROR(VLOOKUP(J40,'Kap.ber UA'!$DJ:$DM,3,FALSE)*AY40,0) -> 1374240 | BE40: =IFERROR(VLOOKUP(J40,'Kap.ber UA'!$DJ:$DM,4,FALSE)*AY40,0) -> 1379761.5 | BF40: =IF('Beskrivning av åtgärd'!$B$11="Persontrafik",BA40,IF('Beskrivning av åtgärd'!$B$11="Godstrafik",AZ40,BB40)) -> 1379761.5 | BG40: =IF('Beskrivning av åtgärd'!$B$11="Persontrafik",BD40,IF('Beskrivning av åtgärd'!$B$11="Godstrafik",BC40,BE40)) -> 1379761.5
A41: =Länkar_TTA!A40 -> 1419 | B41: =Länkar_TTA!B40 -> 1201 | C41: =TEXT(Länkar_TTA!C40,0) -> 14191201 | D41: =Länkar_TTA!D40 -> Hargshamn | E41: =Länkar_TTA!E40 -> Hallstavik | F41: =Länkar_TTA!F40 -> 435 | G41: =Länkar_TTA!G40 -> Hargshamnsbanan | H41: =Länkar_TTA!H40 -> 55 | I41: =Länkar_TTA!I40 -> L1600 | J41: L1600 | T41: =+Kalkylsammanställning!G$2 -> 1 | U41: =Länkar_TTA!M40 -> Nej | V41: Nej | W41: =Länkar_TTA!K40 -> 0 | X41: 0 | Y41: =+IFERROR(VLOOKUP(C41,LinjeLänk_Data!F:G,2,FALSE),"-") -> - | Z41: - | AB41: Hargshamnsbanan | AD41: 435 | AF41: =+VLOOKUP(C41,Länkar_TTA!C:O,13,FALSE) ->  | AI41: - | AJ41: Hargshamn-Hallstavik | AL41: =+SUMIF('Linjelänk JA_KAP'!$H:$H,$C41,'Linjelänk JA_KAP'!CY:CY) -> 0 | AM41: =+SUMIF('Linjelänk JA_KAP'!$H:$H,$C41,'Linjelänk JA_KAP'!CZ:CZ) -> 0 | AN41: =+SUMIF('Linjelänk JA_KAP'!$H:$H,$C41,'Linjelänk JA_KAP'!DA:DA) -> 0 | AO41: =+SUMIF('Linjelänk UA_KAP'!$H:$H,$C41,'Linjelänk UA_KAP'!CY:CY) -> 0 | AP41: =+SUMIF('Linjelänk UA_KAP'!$H:$H,$C41,'Linjelänk UA_KAP'!CZ:CZ) -> 0 | AQ41: =+SUMIF('Linjelänk UA_KAP'!$H:$H,$C41,'Linjelänk UA_KAP'!DA:DA) -> 0 | AS41: =+VLOOKUP($AJ41,Länkar_TTA!$Q:$T,2,FALSE) -> 0 | AT41: =+VLOOKUP($AJ41,Länkar_TTA!$Q:$T,3,FALSE) -> 0 | AU41: =+VLOOKUP($AJ41,Länkar_TTA!$Q:$T,4,FALSE) -> 0 | AX41: 0 | AY41: =IFERROR(VLOOKUP(I41,Bangods_linjedel!B:F,5,FALSE),0) -> 62.99 | AZ41: =VLOOKUP(I41,'Kap.ber JA'!DK:DN,2,FALSE)*AY41 -> 0 | BA41: =VLOOKUP(I41,'Kap.ber JA'!$DK:$DN,3,FALSE)*AY41 -> 0 | BB41: =VLOOKUP(I41,'Kap.ber JA'!$DK:$DN,4,FALSE)*AY41 -> 0 | BC41: =IFERROR(VLOOKUP(J41,'Kap.ber UA'!$DJ:$DM,2,FALSE)*AY41,0) -> 0 | BD41: =IFERROR(VLOOKUP(J41,'Kap.ber UA'!$DJ:$DM,3,FALSE)*AY41,0) -> 0 | BE41: =IFERROR(VLOOKUP(J41,'Kap.ber UA'!$DJ:$DM,4,FALSE)*AY41,0) -> 0 | BF41: =IF('Beskrivning av åtgärd'!$B$11="Persontrafik",BA41,IF('Beskrivning av åtgärd'!$B$11="Godstrafik",AZ41,BB41)) -> 0 | BG41: =IF('Beskrivning av åtgärd'!$B$11="Persontrafik",BD41,IF('Beskrivning av åtgärd'!$B$11="Godstrafik",BC41,BE41)) -> 0
A42: =Länkar_TTA!A41 -> 1421 | B42: =Länkar_TTA!B41 -> 1406 | C42: =TEXT(Länkar_TTA!C41,0) -> 14211406 | D42: =Länkar_TTA!D41 -> Vänge | E42: =Länkar_TTA!E41 -> Uppsala Norra | F42: =Länkar_TTA!F41 -> 431 | G42: =Länkar_TTA!G41 -> Dalabanan | H42: =Länkar_TTA!H41 -> 6 | I42: =Länkar_TTA!I41 -> L2000 | J42: L2000 | T42: =+Kalkylsammanställning!G$2 -> 1 | U42: =Länkar_TTA!M41 -> Ja | V42: Ja | W42: =Länkar_TTA!K41 -> 0 | X42: 0 | Y42: =+IFERROR(VLOOKUP(C42,LinjeLänk_Data!F:G,2,FALSE),"-") -> 9.659999847 | Z42: 9.659999847 | AB42: Dalabanan | AD42: 431 | AF42: =+VLOOKUP(C42,Länkar_TTA!C:O,13,FALSE) ->  | AI42: - | AJ42: Vänge-Uppsala Norra | AL42: =+SUMIF('Linjelänk JA_KAP'!$H:$H,$C42,'Linjelänk JA_KAP'!CY:CY) -> 0 | AM42: =+SUMIF('Linjelänk JA_KAP'!$H:$H,$C42,'Linjelänk JA_KAP'!CZ:CZ) -> 35 | AN42: =+SUMIF('Linjelänk JA_KAP'!$H:$H,$C42,'Linjelänk JA_KAP'!DA:DA) -> 0 | AO42: =+SUMIF('Linjelänk UA_KAP'!$H:$H,$C42,'Linjelänk UA_KAP'!CY:CY) -> 0 | AP42: =+SUMIF('Linjelänk UA_KAP'!$H:$H,$C42,'Linjelänk UA_KAP'!CZ:CZ) -> 35 | AQ42: =+SUMIF('Linjelänk UA_KAP'!$H:$H,$C42,'Linjelänk UA_KAP'!DA:DA) -> 0 | AS42: =+VLOOKUP($AJ42,Länkar_TTA!$Q:$T,2,FALSE) -> 0 | AT42: =+VLOOKUP($AJ42,Länkar_TTA!$Q:$T,3,FALSE) -> 35 | AU42: =+VLOOKUP($AJ42,Länkar_TTA!$Q:$T,4,FALSE) -> 0 | AX42: 108191.9983 | AY42: =IFERROR(VLOOKUP(I42,Bangods_linjedel!B:F,5,FALSE),0) -> 61.35 | AZ42: =VLOOKUP(I42,'Kap.ber JA'!DK:DN,2,FALSE)*AY42 -> 5521.5 | BA42: =VLOOKUP(I42,'Kap.ber JA'!$DK:$DN,3,FALSE)*AY42 -> 1374240 | BB42: =VLOOKUP(I42,'Kap.ber JA'!$DK:$DN,4,FALSE)*AY42 -> 1379761.5 | BC42: =IFERROR(VLOOKUP(J42,'Kap.ber UA'!$DJ:$DM,2,FALSE)*AY42,0) -> 5521.5 | BD42: =IFERROR(VLOOKUP(J42,'Kap.ber UA'!$DJ:$DM,3,FALSE)*AY42,0) -> 1374240 | BE42: =IFERROR(VLOOKUP(J42,'Kap.ber UA'!$DJ:$DM,4,FALSE)*AY42,0) -> 1379761.5 | BF42: =IF('Beskrivning av åtgärd'!$B$11="Persontrafik",BA42,IF('Beskrivning av åtgärd'!$B$11="Godstrafik",AZ42,BB42)) -> 1379761.5 | BG42: =IF('Beskrivning av åtgärd'!$B$11="Persontrafik",BD42,IF('Beskrivning av åtgärd'!$B$11="Godstrafik",BC42,BE42)) -> 1379761.5
A43: =Länkar_TTA!A42 -> 1421 | B43: =Länkar_TTA!B42 -> 1407 | C43: =TEXT(Länkar_TTA!C42,0) -> 14211407 | D43: =Länkar_TTA!D42 -> Vänge | E43: =Länkar_TTA!E42 -> Brunna | F43: =Länkar_TTA!F42 -> 431 | G43: =Länkar_TTA!G42 -> Dalabanan | H43: =Länkar_TTA!H42 -> 6 | I43: =Länkar_TTA!I42 -> L2000 | J43: L2000 | T43: =+Kalkylsammanställning!G$2 -> 1 | U43: =Länkar_TTA!M42 -> Ja | V43: Ja | W43: =Länkar_TTA!K42 -> 0 | X43: 0 | Y43: =+IFERROR(VLOOKUP(C43,LinjeLänk_Data!F:G,2,FALSE),"-") -> 0.8500000238 | Z43: 0.8500000238 | AB43: Dalabanan | AD43: 431 | AF43: =+VLOOKUP(C43,Länkar_TTA!C:O,13,FALSE) ->  | AI43: - | AJ43: Vänge-Brunna | AL43: =+SUMIF('Linjelänk JA_KAP'!$H:$H,$C43,'Linjelänk JA_KAP'!CY:CY) -> 0 | AM43: =+SUMIF('Linjelänk JA_KAP'!$H:$H,$C43,'Linjelänk JA_KAP'!CZ:CZ) -> 35 | AN43: =+SUMIF('Linjelänk JA_KAP'!$H:$H,$C43,'Linjelänk JA_KAP'!DA:DA) -> 0 | AO43: =+SUMIF('Linjelänk UA_KAP'!$H:$H,$C43,'Linjelänk UA_KAP'!CY:CY) -> 0 | AP43: =+SUMIF('Linjelänk UA_KAP'!$H:$H,$C43,'Linjelänk UA_KAP'!CZ:CZ) -> 35 | AQ43: =+SUMIF('Linjelänk UA_KAP'!$H:$H,$C43,'Linjelänk UA_KAP'!DA:DA) -> 0 | AS43: =+VLOOKUP($AJ43,Länkar_TTA!$Q:$T,2,FALSE) -> 0 | AT43: =+VLOOKUP($AJ43,Länkar_TTA!$Q:$T,3,FALSE) -> 35 | AU43: =+VLOOKUP($AJ43,Länkar_TTA!$Q:$T,4,FALSE) -> 0 | AX43: 9520.000267 | AY43: =IFERROR(VLOOKUP(I43,Bangods_linjedel!B:F,5,FALSE),0) -> 61.35 | AZ43: =VLOOKUP(I43,'Kap.ber JA'!DK:DN,2,FALSE)*AY43 -> 5521.5 | BA43: =VLOOKUP(I43,'Kap.ber JA'!$DK:$DN,3,FALSE)*AY43 -> 1374240 | BB43: =VLOOKUP(I43,'Kap.ber JA'!$DK:$DN,4,FALSE)*AY43 -> 1379761.5 | BC43: =IFERROR(VLOOKUP(J43,'Kap.ber UA'!$DJ:$DM,2,FALSE)*AY43,0) -> 5521.5 | BD43: =IFERROR(VLOOKUP(J43,'Kap.ber UA'!$DJ:$DM,3,FALSE)*AY43,0) -> 1374240 | BE43: =IFERROR(VLOOKUP(J43,'Kap.ber UA'!$DJ:$DM,4,FALSE)*AY43,0) -> 1379761.5 | BF43: =IF('Beskrivning av åtgärd'!$B$11="Persontrafik",BA43,IF('Beskrivning av åtgärd'!$B$11="Godstrafik",AZ43,BB43)) -> 1379761.5 | BG43: =IF('Beskrivning av åtgärd'!$B$11="Persontrafik",BD43,IF('Beskrivning av åtgärd'!$B$11="Godstrafik",BC43,BE43)) -> 1379761.5
A44: =Länkar_TTA!A43 -> 1422 | B44: =Länkar_TTA!B43 -> 1405 | C44: =TEXT(Länkar_TTA!C43,0) -> 14221405 | D44: =Länkar_TTA!D43 -> Dannemora | E44: =Länkar_TTA!E43 -> Gimo | F44: =Länkar_TTA!F43 -> 435 | G44: =Länkar_TTA!G43 -> Hargshamnsbanan | H44: =Länkar_TTA!H43 -> 55 | I44: =Länkar_TTA!I43 -> L1600 | J44: L1600 | T44: =+Kalkylsammanställning!G$2 -> 1 | U44: =Länkar_TTA!M43 -> Nej | V44: Nej | W44: =Länkar_TTA!K43 -> 0 | X44: 0 | Y44: =+IFERROR(VLOOKUP(C44,LinjeLänk_Data!F:G,2,FALSE),"-") -> - | Z44: - | AB44: Hargshamnsbanan | AD44: 435 | AF44: =+VLOOKUP(C44,Länkar_TTA!C:O,13,FALSE) ->  | AI44: - | AJ44: Dannemora-Gimo | AL44: =+SUMIF('Linjelänk JA_KAP'!$H:$H,$C44,'Linjelänk JA_KAP'!CY:CY) -> 0 | AM44: =+SUMIF('Linjelänk JA_KAP'!$H:$H,$C44,'Linjelänk JA_KAP'!CZ:CZ) -> 0 | AN44: =+SUMIF('Linjelänk JA_KAP'!$H:$H,$C44,'Linjelänk JA_KAP'!DA:DA) -> 0 | AO44: =+SUMIF('Linjelänk UA_KAP'!$H:$H,$C44,'Linjelänk UA_KAP'!CY:CY) -> 0 | AP44: =+SUMIF('Linjelänk UA_KAP'!$H:$H,$C44,'Linjelänk UA_KAP'!CZ:CZ) -> 0 | AQ44: =+SUMIF('Linjelänk UA_KAP'!$H:$H,$C44,'Linjelänk UA_KAP'!DA:DA) -> 0 | AS44: =+VLOOKUP($AJ44,Länkar_TTA!$Q:$T,2,FALSE) -> 0 | AT44: =+VLOOKUP($AJ44,Länkar_TTA!$Q:$T,3,FALSE) -> 0 | AU44: =+VLOOKUP($AJ44,Länkar_TTA!$Q:$T,4,FALSE) -> 0 | AX44: 0 | AY44: =IFERROR(VLOOKUP(I44,Bangods_linjedel!B:F,5,FALSE),0) -> 62.99 | AZ44: =VLOOKUP(I44,'Kap.ber JA'!DK:DN,2,FALSE)*AY44 -> 0 | BA44: =VLOOKUP(I44,'Kap.ber JA'!$DK:$DN,3,FALSE)*AY44 -> 0 | BB44: =VLOOKUP(I44,'Kap.ber JA'!$DK:$DN,4,FALSE)*AY44 -> 0 | BC44: =IFERROR(VLOOKUP(J44,'Kap.ber UA'!$DJ:$DM,2,FALSE)*AY44,0) -> 0 | BD44: =IFERROR(VLOOKUP(J44,'Kap.ber UA'!$DJ:$DM,3,FALSE)*AY44,0) -> 0 | BE44: =IFERROR(VLOOKUP(J44,'Kap.ber UA'!$DJ:$DM,4,FALSE)*AY44,0) -> 0 | BF44: =IF('Beskrivning av åtgärd'!$B$11="Persontrafik",BA44,IF('Beskrivning av åtgärd'!$B$11="Godstrafik",AZ44,BB44)) -> 0 | BG44: =IF('Beskrivning av åtgärd'!$B$11="Persontrafik",BD44,IF('Beskrivning av åtgärd'!$B$11="Godstrafik",BC44,BE44)) -> 0
A45: =Länkar_TTA!A44 -> 1500 | B45: =Länkar_TTA!B44 -> 1506 | C45: =TEXT(Länkar_TTA!C44,0) -> 15001506 | D45: =Länkar_TTA!D44 -> Nyköpings Central | E45: =Länkar_TTA!E44 -> Nyköping kp västra | F45: =Länkar_TTA!F44 -> 492 | G45: =Länkar_TTA!G44 -> (Sala)-Oxelösund | H45: =Länkar_TTA!H44 -> 18 | I45: =Länkar_TTA!I44 -> L2203 | J45: L2203 | T45: =+Kalkylsammanställning!G$2 -> 1 | U45: =Länkar_TTA!M44 -> Ja | V45: Ja | W45: =Länkar_TTA!K44 -> 0 | X45: 0 | Y45: =+IFERROR(VLOOKUP(C45,LinjeLänk_Data!F:G,2,FALSE),"-") -> - | Z45: - | AB45: (Sala)-Oxelösund | AD45: 492 | AF45: =+VLOOKUP(C45,Länkar_TTA!C:O,13,FALSE) ->  | AI45: - | AJ45: Nyköpings Central-Nyköping kp västra | AL45: =+SUMIF('Linjelänk JA_KAP'!$H:$H,$C45,'Linjelänk JA_KAP'!CY:CY) -> 0 | AM45: =+SUMIF('Linjelänk JA_KAP'!$H:$H,$C45,'Linjelänk JA_KAP'!CZ:CZ) -> 0 | AN45: =+SUMIF('Linjelänk JA_KAP'!$H:$H,$C45,'Linjelänk JA_KAP'!DA:DA) -> 0 | AO45: =+SUMIF('Linjelänk UA_KAP'!$H:$H,$C45,'Linjelänk UA_KAP'!CY:CY) -> 0 | AP45: =+SUMIF('Linjelänk UA_KAP'!$H:$H,$C45,'Linjelänk UA_KAP'!CZ:CZ) -> 0 | AQ45: =+SUMIF('Linjelänk UA_KAP'!$H:$H,$C45,'Linjelänk UA_KAP'!DA:DA) -> 0 | AS45: =+VLOOKUP($AJ45,Länkar_TTA!$Q:$T,2,FALSE) -> 0 | AT45: =+VLOOKUP($AJ45,Länkar_TTA!$Q:$T,3,FALSE) -> 0 | AU45: =+VLOOKUP($AJ45,Länkar_TTA!$Q:$T,4,FALSE) -> 0 | AX45: 0 | AY45: =IFERROR(VLOOKUP(I45,Bangods_linjedel!B:F,5,FALSE),0) -> 58.92 | AZ45: =VLOOKUP(I45,'Kap.ber JA'!DK:DN,2,FALSE)*AY45 -> 113126.4 | BA45: =VLOOKUP(I45,'Kap.ber JA'!$DK:$DN,3,FALSE)*AY45 -> 0 | BB45: =VLOOKUP(I45,'Kap.ber JA'!$DK:$DN,4,FALSE)*AY45 -> 113126.4 | BC45: =IFERROR(VLOOKUP(J45,'Kap.ber UA'!$DJ:$DM,2,FALSE)*AY45,0) -> 113126.4 | BD45: =IFERROR(VLOOKUP(J45,'Kap.ber UA'!$DJ:$DM,3,FALSE)*AY45,0) -> 0 | BE45: =IFERROR(VLOOKUP(J45,'Kap.ber UA'!$DJ:$DM,4,FALSE)*AY45,0) -> 113126.4 | BF45: =IF('Beskrivning av åtgärd'!$B$11="Persontrafik",BA45,IF('Beskrivning av åtgärd'!$B$11="Godstrafik",AZ45,BB45)) -> 113126.4 | BG45: =IF('Beskrivning av åtgärd'!$B$11="Persontrafik",BD45,IF('Beskrivning av åtgärd'!$B$11="Godstrafik",BC45,BE45)) -> 113126.4
A46: =Länkar_TTA!A45 -> 1500 | B46: =Länkar_TTA!B45 -> 1508 | C46: =TEXT(Länkar_TTA!C45,0) -> 15001508 | D46: =Länkar_TTA!D45 -> Nyköpings Central | E46: =Länkar_TTA!E45 -> Skavsta Flygplats Bibana | F46: =Länkar_TTA!F45 -> 0 | G46: =Länkar_TTA!G45 -> Ostlänken | H46: =Länkar_TTA!H45 -> 36 | I46: =Länkar_TTA!I45 -> L4704 | J46: L4704 | T46: =+Kalkylsammanställning!G$2 -> 1 | U46: =Länkar_TTA!M45 -> Ja | V46: Ja | W46: =Länkar_TTA!K45 -> 0 | X46: 0 | Y46: =+IFERROR(VLOOKUP(C46,LinjeLänk_Data!F:G,2,FALSE),"-") -> 7 | Z46: 7 | AB46: Ostlänken | AD46: 0 | AF46: =+VLOOKUP(C46,Länkar_TTA!C:O,13,FALSE) ->  | AI46: - | AJ46: Nyköpings Central-Skavsta Flygplats Bibana | AL46: =+SUMIF('Linjelänk JA_KAP'!$H:$H,$C46,'Linjelänk JA_KAP'!CY:CY) -> 0 | AM46: =+SUMIF('Linjelänk JA_KAP'!$H:$H,$C46,'Linjelänk JA_KAP'!CZ:CZ) -> 16 | AN46: =+SUMIF('Linjelänk JA_KAP'!$H:$H,$C46,'Linjelänk JA_KAP'!DA:DA) -> 0 | AO46: =+SUMIF('Linjelänk UA_KAP'!$H:$H,$C46,'Linjelänk UA_KAP'!CY:CY) -> 0 | AP46: =+SUMIF('Linjelänk UA_KAP'!$H:$H,$C46,'Linjelänk UA_KAP'!CZ:CZ) -> 16 | AQ46: =+SUMIF('Linjelänk UA_KAP'!$H:$H,$C46,'Linjelänk UA_KAP'!DA:DA) -> 0 | AS46: =+VLOOKUP($AJ46,Länkar_TTA!$Q:$T,2,FALSE) -> 0 | AT46: =+VLOOKUP($AJ46,Länkar_TTA!$Q:$T,3,FALSE) -> 16 | AU46: =+VLOOKUP($AJ46,Länkar_TTA!$Q:$T,4,FALSE) -> 0 | AX46: 35840 | AY46: =IFERROR(VLOOKUP(I46,Bangods_linjedel!B:F,5,FALSE),0) -> 7 | AZ46: =VLOOKUP(I46,'Kap.ber JA'!DK:DN,2,FALSE)*AY46 -> 0 | BA46: =VLOOKUP(I46,'Kap.ber JA'!$DK:$DN,3,FALSE)*AY46 -> 71680 | BB46: =VLOOKUP(I46,'Kap.ber JA'!$DK:$DN,4,FALSE)*AY46 -> 71680 | BC46: =IFERROR(VLOOKUP(J46,'Kap.ber UA'!$DJ:$DM,2,FALSE)*AY46,0) -> 0 | BD46: =IFERROR(VLOOKUP(J46,'Kap.ber UA'!$DJ:$DM,3,FALSE)*AY46,0) -> 71680 | BE46: =IFERROR(VLOOKUP(J46,'Kap.ber UA'!$DJ:$DM,4,FALSE)*AY46,0) -> 71680 | BF46: =IF('Beskrivning av åtgärd'!$B$11="Persontrafik",BA46,IF('Beskrivning av åtgärd'!$B$11="Godstrafik",AZ46,BB46)) -> 71680 | BG46: =IF('Beskrivning av åtgärd'!$B$11="Persontrafik",BD46,IF('Beskrivning av åtgärd'!$B$11="Godstrafik",BC46,BE46)) -> 71680
A47: =Länkar_TTA!A46 -> 1500 | B47: =Länkar_TTA!B46 -> 1518 | C47: =TEXT(Länkar_TTA!C46,0) -> 15001518 | D47: =Länkar_TTA!D46 -> Nyköpings Central | E47: =Länkar_TTA!E46 -> Sjösa | F47: =Länkar_TTA!F46 -> 421 | G47: =Länkar_TTA!G46 -> Södra stambanan | H47: =Länkar_TTA!H46 -> 2 | I47: =Länkar_TTA!I46 -> L4703 | J47: L4703 | T47: =+Kalkylsammanställning!G$2 -> 1 | U47: =Länkar_TTA!M46 -> Ja | V47: Ja | W47: =Länkar_TTA!K46 -> 0 | X47: 0 | Y47: =+IFERROR(VLOOKUP(C47,LinjeLänk_Data!F:G,2,FALSE),"-") -> 8.164839745 | Z47: 8.164839745 | AB47: Södra stambanan | AD47: 421 | AF47: =+VLOOKUP(C47,Länkar_TTA!C:O,13,FALSE) ->  | AI47: - | AJ47: Nyköpings Central-Sjösa | AL47: =+SUMIF('Linjelänk JA_KAP'!$H:$H,$C47,'Linjelänk JA_KAP'!CY:CY) -> 0 | AM47: =+SUMIF('Linjelänk JA_KAP'!$H:$H,$C47,'Linjelänk JA_KAP'!CZ:CZ) -> 34 | AN47: =+SUMIF('Linjelänk JA_KAP'!$H:$H,$C47,'Linjelänk JA_KAP'!DA:DA) -> 0 | AO47: =+SUMIF('Linjelänk UA_KAP'!$H:$H,$C47,'Linjelänk UA_KAP'!CY:CY) -> 0 | AP47: =+SUMIF('Linjelänk UA_KAP'!$H:$H,$C47,'Linjelänk UA_KAP'!CZ:CZ) -> 34 | AQ47: =+SUMIF('Linjelänk UA_KAP'!$H:$H,$C47,'Linjelänk UA_KAP'!DA:DA) -> 0 | AS47: =+VLOOKUP($AJ47,Länkar_TTA!$Q:$T,2,FALSE) -> 0 | AT47: =+VLOOKUP($AJ47,Länkar_TTA!$Q:$T,3,FALSE) -> 34 | AU47: =+VLOOKUP($AJ47,Länkar_TTA!$Q:$T,4,FALSE) -> 0 | AX47: 88833.45642 | AY47: =IFERROR(VLOOKUP(I47,Bangods_linjedel!B:F,5,FALSE),0) -> 8.16 | AZ47: =VLOOKUP(I47,'Kap.ber JA'!DK:DN,2,FALSE)*AY47 -> 15544.8 | BA47: =VLOOKUP(I47,'Kap.ber JA'!$DK:$DN,3,FALSE)*AY47 -> 177561.6 | BB47: =VLOOKUP(I47,'Kap.ber JA'!$DK:$DN,4,FALSE)*AY47 -> 193106.4 | BC47: =IFERROR(VLOOKUP(J47,'Kap.ber UA'!$DJ:$DM,2,FALSE)*AY47,0) -> 15544.8 | BD47: =IFERROR(VLOOKUP(J47,'Kap.ber UA'!$DJ:$DM,3,FALSE)*AY47,0) -> 177561.6 | BE47: =IFERROR(VLOOKUP(J47,'Kap.ber UA'!$DJ:$DM,4,FALSE)*AY47,0) -> 193106.4 | BF47: =IF('Beskrivning av åtgärd'!$B$11="Persontrafik",BA47,IF('Beskrivning av åtgärd'!$B$11="Godstrafik",AZ47,BB47)) -> 193106.4 | BG47: =IF('Beskrivning av åtgärd'!$B$11="Persontrafik",BD47,IF('Beskrivning av åtgärd'!$B$11="Godstrafik",BC47,BE47)) -> 193106.4
A48: =Länkar_TTA!A47 -> 1500 | B48: =Länkar_TTA!B47 -> 1519 | C48: =TEXT(Länkar_TTA!C47,0) -> 15001519 | D48: =Länkar_TTA!D47 -> Nyköpings Central | E48: =Länkar_TTA!E47 -> Enstaberga | F48: =Länkar_TTA!F47 -> 421 | G48: =Länkar_TTA!G47 -> Södra stambanan | H48: =Länkar_TTA!H47 -> 2 | I48: =Länkar_TTA!I47 -> L4815 | J48: L4815 | T48: =+Kalkylsammanställning!G$2 -> 1 | U48: =Länkar_TTA!M47 -> Ja | V48: Ja | W48: =Länkar_TTA!K47 -> 0 | X48: 0 | Y48: =+IFERROR(VLOOKUP(C48,LinjeLänk_Data!F:G,2,FALSE),"-") -> 8.885979652 | Z48: 8.885979652 | AB48: Södra stambanan | AD48: 421 | AF48: =+VLOOKUP(C48,Länkar_TTA!C:O,13,FALSE) ->  | AI48: - | AJ48: Nyköpings Central-Enstaberga | AL48: =+SUMIF('Linjelänk JA_KAP'!$H:$H,$C48,'Linjelänk JA_KAP'!CY:CY) -> 0 | AM48: =+SUMIF('Linjelänk JA_KAP'!$H:$H,$C48,'Linjelänk JA_KAP'!CZ:CZ) -> 8 | AN48: =+SUMIF('Linjelänk JA_KAP'!$H:$H,$C48,'Linjelänk JA_KAP'!DA:DA) -> 0 | AO48: =+SUMIF('Linjelänk UA_KAP'!$H:$H,$C48,'Linjelänk UA_KAP'!CY:CY) -> 0 | AP48: =+SUMIF('Linjelänk UA_KAP'!$H:$H,$C48,'Linjelänk UA_KAP'!CZ:CZ) -> 8 | AQ48: =+SUMIF('Linjelänk UA_KAP'!$H:$H,$C48,'Linjelänk UA_KAP'!DA:DA) -> 0 | AS48: =+VLOOKUP($AJ48,Länkar_TTA!$Q:$T,2,FALSE) -> 0 | AT48: =+VLOOKUP($AJ48,Länkar_TTA!$Q:$T,3,FALSE) -> 8 | AU48: =+VLOOKUP($AJ48,Länkar_TTA!$Q:$T,4,FALSE) -> 0 | AX48: 22748.10791 | AY48: =IFERROR(VLOOKUP(I48,Bangods_linjedel!B:F,5,FALSE),0) -> 52.02 | AZ48: =VLOOKUP(I48,'Kap.ber JA'!DK:DN,2,FALSE)*AY48 -> 137462.85 | BA48: =VLOOKUP(I48,'Kap.ber JA'!$DK:$DN,3,FALSE)*AY48 -> 266342.4 | BB48: =VLOOKUP(I48,'Kap.ber JA'!$DK:$DN,4,FALSE)*AY48 -> 403805.25 | BC48: =IFERROR(VLOOKUP(J48,'Kap.ber UA'!$DJ:$DM,2,FALSE)*AY48,0) -> 137462.85 | BD48: =IFERROR(VLOOKUP(J48,'Kap.ber UA'!$DJ:$DM,3,FALSE)*AY48,0) -> 266342.4 | BE48: =IFERROR(VLOOKUP(J48,'Kap.ber UA'!$DJ:$DM,4,FALSE)*AY48,0) -> 403805.25 | BF48: =IF('Beskrivning av åtgärd'!$B$11="Persontrafik",BA48,IF('Beskrivning av åtgärd'!$B$11="Godstrafik",AZ48,BB48)) -> 403805.25 | BG48: =IF('Beskrivning av åtgärd'!$B$11="Persontrafik",BD48,IF('Beskrivning av åtgärd'!$B$11="Godstrafik",BC48,BE48)) -> 403805.25
A49: =Länkar_TTA!A48 -> 1500 | B49: =Länkar_TTA!B48 -> 9386 | C49: =TEXT(Länkar_TTA!C48,0) -> 15009386 | D49: =Länkar_TTA!D48 -> Nyköpings Central | E49: =Länkar_TTA!E48 -> Nyköping Södra | F49: =Länkar_TTA!F48 -> 492 | G49: =Länkar_TTA!G48 -> (Sala)-Oxelösund | H49: =Länkar_TTA!H48 -> 18 | I49: =Länkar_TTA!I48 -> L2203 | J49: L2203 | T49: =+Kalkylsammanställning!G$2 -> 1 | U49: =Länkar_TTA!M48 -> Ja | V49: Ja | W49: =Länkar_TTA!K48 -> 0 | X49: 0 | Y49: =+IFERROR(VLOOKUP(C49,LinjeLänk_Data!F:G,2,FALSE),"-") -> - | Z49: - | AB49: (Sala)-Oxelösund | AD49: 492 | AF49: =+VLOOKUP(C49,Länkar_TTA!C:O,13,FALSE) ->  | AI49: - | AJ49: Nyköpings Central-Nyköping Södra | AL49: =+SUMIF('Linjelänk JA_KAP'!$H:$H,$C49,'Linjelänk JA_KAP'!CY:CY) -> 0 | AM49: =+SUMIF('Linjelänk JA_KAP'!$H:$H,$C49,'Linjelänk JA_KAP'!CZ:CZ) -> 0 | AN49: =+SUMIF('Linjelänk JA_KAP'!$H:$H,$C49,'Linjelänk JA_KAP'!DA:DA) -> 0 | AO49: =+SUMIF('Linjelänk UA_KAP'!$H:$H,$C49,'Linjelänk UA_KAP'!CY:CY) -> 0 | AP49: =+SUMIF('Linjelänk UA_KAP'!$H:$H,$C49,'Linjelänk UA_KAP'!CZ:CZ) -> 0 | AQ49: =+SUMIF('Linjelänk UA_KAP'!$H:$H,$C49,'Linjelänk UA_KAP'!DA:DA) -> 0 | AS49: =+VLOOKUP($AJ49,Länkar_TTA!$Q:$T,2,FALSE) -> 0 | AT49: =+VLOOKUP($AJ49,Länkar_TTA!$Q:$T,3,FALSE) -> 0 | AU49: =+VLOOKUP($AJ49,Länkar_TTA!$Q:$T,4,FALSE) -> 0 | AX49: 0 | AY49: =IFERROR(VLOOKUP(I49,Bangods_linjedel!B:F,5,FALSE),0) -> 58.92 | AZ49: =VLOOKUP(I49,'Kap.ber JA'!DK:DN,2,FALSE)*AY49 -> 113126.4 | BA49: =VLOOKUP(I49,'Kap.ber JA'!$DK:$DN,3,FALSE)*AY49 -> 0 | BB49: =VLOOKUP(I49,'Kap.ber JA'!$DK:$DN,4,FALSE)*AY49 -> 113126.4 | BC49: =IFERROR(VLOOKUP(J49,'Kap.ber UA'!$DJ:$DM,2,FALSE)*AY49,0) -> 113126.4 | BD49: =IFERROR(VLOOKUP(J49,'Kap.ber UA'!$DJ:$DM,3,FALSE)*AY49,0) -> 0 | BE49: =IFERROR(VLOOKUP(J49,'Kap.ber UA'!$DJ:$DM,4,FALSE)*AY49,0) -> 113126.4 | BF49: =IF('Beskrivning av åtgärd'!$B$11="Persontrafik",BA49,IF('Beskrivning av åtgärd'!$B$11="Godstrafik",AZ49,BB49)) -> 113126.4 | BG49: =IF('Beskrivning av åtgärd'!$B$11="Persontrafik",BD49,IF('Beskrivning av åtgärd'!$B$11="Godstrafik",BC49,BE49)) -> 113126.4
A50: =Länkar_TTA!A49 -> 1501 | B50: =Länkar_TTA!B49 -> 1140 | C50: =TEXT(Länkar_TTA!C49,0) -> 15011140 | D50: =Länkar_TTA!D49 -> Vagnhärad | E50: =Länkar_TTA!E49 -> Hölö | F50: =Länkar_TTA!F49 -> 421 | G50: =Länkar_TTA!G49 -> Södra stambanan | H50: =Länkar_TTA!H49 -> 2 | I50: =Länkar_TTA!I49 -> L4800 | J50: L4800 | T50: =+Kalkylsammanställning!G$2 -> 1 | U50: =Länkar_TTA!M49 -> Ja | V50: Ja | W50: =Länkar_TTA!K49 -> 0 | X50: 0 | Y50: =+IFERROR(VLOOKUP(C50,LinjeLänk_Data!F:G,2,FALSE),"-") -> - | Z50: - | AB50: Södra stambanan | AD50: 421 | AF50: =+VLOOKUP(C50,Länkar_TTA!C:O,13,FALSE) ->  | AI50: - | AJ50: Vagnhärad-Hölö | AL50: =+SUMIF('Linjelänk JA_KAP'!$H:$H,$C50,'Linjelänk JA_KAP'!CY:CY) -> 0 | AM50: =+SUMIF('Linjelänk JA_KAP'!$H:$H,$C50,'Linjelänk JA_KAP'!CZ:CZ) -> 0 | AN50: =+SUMIF('Linjelänk JA_KAP'!$H:$H,$C50,'Linjelänk JA_KAP'!DA:DA) -> 0 | AO50: =+SUMIF('Linjelänk UA_KAP'!$H:$H,$C50,'Linjelänk UA_KAP'!CY:CY) -> 0 | AP50: =+SUMIF('Linjelänk UA_KAP'!$H:$H,$C50,'Linjelänk UA_KAP'!CZ:CZ) -> 0 | AQ50: =+SUMIF('Linjelänk UA_KAP'!$H:$H,$C50,'Linjelänk UA_KAP'!DA:DA) -> 0 | AS50: =+VLOOKUP($AJ50,Länkar_TTA!$Q:$T,2,FALSE) -> 0 | AT50: =+VLOOKUP($AJ50,Länkar_TTA!$Q:$T,3,FALSE) -> 0 | AU50: =+VLOOKUP($AJ50,Länkar_TTA!$Q:$T,4,FALSE) -> 0 | AX50: 0 | AY50: =IFERROR(VLOOKUP(I50,Bangods_linjedel!B:F,5,FALSE),0) -> 46.91 | AZ50: =VLOOKUP(I50,'Kap.ber JA'!DK:DN,2,FALSE)*AY50 -> 89363.55 | BA50: =VLOOKUP(I50,'Kap.ber JA'!$DK:$DN,3,FALSE)*AY50 -> 0 | BB50: =VLOOKUP(I50,'Kap.ber JA'!$DK:$DN,4,FALSE)*AY50 -> 89363.55 | BC50: =IFERROR(VLOOKUP(J50,'Kap.ber UA'!$DJ:$DM,2,FALSE)*AY50,0) -> 89363.55 | BD50: =IFERROR(VLOOKUP(J50,'Kap.ber UA'!$DJ:$DM,3,FALSE)*AY50,0) -> 0 | BE50: =IFERROR(VLOOKUP(J50,'Kap.ber UA'!$DJ:$DM,4,FALSE)*AY50,0) -> 89363.55 | BF50: =IF('Beskrivning av åtgärd'!$B$11="Persontrafik",BA50,IF('Beskrivning av åtgärd'!$B$11="Godstrafik",AZ50,BB50)) -> 89363.55 | BG50: =IF('Beskrivning av åtgärd'!$B$11="Persontrafik",BD50,IF('Beskrivning av åtgärd'!$B$11="Godstrafik",BC50,BE50)) -> 89363.55
A51: =Länkar_TTA!A50 -> 1501 | B51: =Länkar_TTA!B50 -> 9322 | C51: =TEXT(Länkar_TTA!C50,0) -> 15019322 | D51: =Länkar_TTA!D50 -> Vagnhärad | E51: =Länkar_TTA!E50 -> Lästringe | F51: =Länkar_TTA!F50 -> 421 | G51: =Länkar_TTA!G50 -> Södra stambanan | H51: =Länkar_TTA!H50 -> 2 | I51: =Länkar_TTA!I50 -> L4800 | J51: L4800 | T51: =+Kalkylsammanställning!G$2 -> 1 | U51: =Länkar_TTA!M50 -> Ja | V51: Ja | W51: =Länkar_TTA!K50 -> 0 | X51: 0 | Y51: =+IFERROR(VLOOKUP(C51,LinjeLänk_Data!F:G,2,FALSE),"-") -> - | Z51: - | AB51: Södra stambanan | AD51: 421 | AF51: =+VLOOKUP(C51,Länkar_TTA!C:O,13,FALSE) ->  | AI51: - | AJ51: Vagnhärad-Lästringe | AL51: =+SUMIF('Linjelänk JA_KAP'!$H:$H,$C51,'Linjelänk JA_KAP'!CY:CY) -> 0 | AM51: =+SUMIF('Linjelänk JA_KAP'!$H:$H,$C51,'Linjelänk JA_KAP'!CZ:CZ) -> 0 | AN51: =+SUMIF('Linjelänk JA_KAP'!$H:$H,$C51,'Linjelänk JA_KAP'!DA:DA) -> 0 | AO51: =+SUMIF('Linjelänk UA_KAP'!$H:$H,$C51,'Linjelänk UA_KAP'!CY:CY) -> 0 | AP51: =+SUMIF('Linjelänk UA_KAP'!$H:$H,$C51,'Linjelänk UA_KAP'!CZ:CZ) -> 0 | AQ51: =+SUMIF('Linjelänk UA_KAP'!$H:$H,$C51,'Linjelänk UA_KAP'!DA:DA) -> 0 | AS51: =+VLOOKUP($AJ51,Länkar_TTA!$Q:$T,2,FALSE) -> 0 | AT51: =+VLOOKUP($AJ51,Länkar_TTA!$Q:$T,3,FALSE) -> 0 | AU51: =+VLOOKUP($AJ51,Länkar_TTA!$Q:$T,4,FALSE) -> 0 | AX51: 0 | AY51: =IFERROR(VLOOKUP(I51,Bangods_linjedel!B:F,5,FALSE),0) -> 46.91 | AZ51: =VLOOKUP(I51,'Kap.ber JA'!DK:DN,2,FALSE)*AY51 -> 89363.55 | BA51: =VLOOKUP(I51,'Kap.ber JA'!$DK:$DN,3,FALSE)*AY51 -> 0 | BB51: =VLOOKUP(I51,'Kap.ber JA'!$DK:$DN,4,FALSE)*AY51 -> 89363.55 | BC51: =IFERROR(VLOOKUP(J51,'Kap.ber UA'!$DJ:$DM,2,FALSE)*AY51,0) -> 89363.55 | BD51: =IFERROR(VLOOKUP(J51,'Kap.ber UA'!$DJ:$DM,3,FALSE)*AY51,0) -> 0 | BE51: =IFERROR(VLOOKUP(J51,'Kap.ber UA'!$DJ:$DM,4,FALSE)*AY51,0) -> 89363.55 | BF51: =IF('Beskrivning av åtgärd'!$B$11="Persontrafik",BA51,IF('Beskrivning av åtgärd'!$B$11="Godstrafik",AZ51,BB51)) -> 89363.55 | BG51: =IF('Beskrivning av åtgärd'!$B$11="Persontrafik",BD51,IF('Beskrivning av åtgärd'!$B$11="Godstrafik",BC51,BE51)) -> 89363.55
A52: =Länkar_TTA!A51 -> 1502 | B52: =Länkar_TTA!B51 -> 9271 | C52: =TEXT(Länkar_TTA!C51,0) -> 15029271 | D52: =Länkar_TTA!D51 -> Gnesta | E52: =Länkar_TTA!E51 -> Kolke | F52: =Länkar_TTA!F51 -> 414 | G52: =Länkar_TTA!G51 -> Västra stambanan | H52: =Länkar_TTA!H51 -> 1 | I52: =Länkar_TTA!I51 -> L2912 | J52: L2912 | T52: =+Kalkylsammanställning!G$2 -> 1 | U52: =Länkar_TTA!M51 -> Ja | V52: Ja | W52: =Länkar_TTA!K51 -> 0 | X52: 0 | Y52: =+IFERROR(VLOOKUP(C52,LinjeLänk_Data!F:G,2,FALSE),"-") -> 5.889999866 | Z52: 5.889999866 | AB52: Västra stambanan | AD52: 414 | AF52: =+VLOOKUP(C52,Länkar_TTA!C:O,13,FALSE) ->  | AI52: - | AJ52: Gnesta-Kolke | AL52: =+SUMIF('Linjelänk JA_KAP'!$H:$H,$C52,'Linjelänk JA_KAP'!CY:CY) -> 43 | AM52: =+SUMIF('Linjelänk JA_KAP'!$H:$H,$C52,'Linjelänk JA_KAP'!CZ:CZ) -> 25 | AN52: =+SUMIF('Linjelänk JA_KAP'!$H:$H,$C52,'Linjelänk JA_KAP'!DA:DA) -> 0 | AO52: =+SUMIF('Linjelänk UA_KAP'!$H:$H,$C52,'Linjelänk UA_KAP'!CY:CY) -> 43 | AP52: =+SUMIF('Linjelänk UA_KAP'!$H:$H,$C52,'Linjelänk UA_KAP'!CZ:CZ) -> 25 | AQ52: =+SUMIF('Linjelänk UA_KAP'!$H:$H,$C52,'Linjelänk UA_KAP'!DA:DA) -> 0 | AS52: =+VLOOKUP($AJ52,Länkar_TTA!$Q:$T,2,FALSE) -> 43 | AT52: =+VLOOKUP($AJ52,Länkar_TTA!$Q:$T,3,FALSE) -> 25 | AU52: =+VLOOKUP($AJ52,Länkar_TTA!$Q:$T,4,FALSE) -> 0 | AX52: 128166.3971 | AY52: =IFERROR(VLOOKUP(I52,Bangods_linjedel!B:F,5,FALSE),0) -> 45.03 | AZ52: =VLOOKUP(I52,'Kap.ber JA'!DK:DN,2,FALSE)*AY52 -> 252168 | BA52: =VLOOKUP(I52,'Kap.ber JA'!$DK:$DN,3,FALSE)*AY52 -> 1959705.6 | BB52: =VLOOKUP(I52,'Kap.ber JA'!$DK:$DN,4,FALSE)*AY52 -> 2211873.6 | BC52: =IFERROR(VLOOKUP(J52,'Kap.ber UA'!$DJ:$DM,2,FALSE)*AY52,0) -> 252168 | BD52: =IFERROR(VLOOKUP(J52,'Kap.ber UA'!$DJ:$DM,3,FALSE)*AY52,0) -> 1959705.6 | BE52: =IFERROR(VLOOKUP(J52,'Kap.ber UA'!$DJ:$DM,4,FALSE)*AY52,0) -> 2211873.6 | BF52: =IF('Beskrivning av åtgärd'!$B$11="Persontrafik",BA52,IF('Beskrivning av åtgärd'!$B$11="Godstrafik",AZ52,BB52)) -> 2211873.6 | BG52: =IF('Beskrivning av åtgärd'!$B$11="Persontrafik",BD52,IF('Beskrivning av åtgärd'!$B$11="Godstrafik",BC52,BE52)) -> 2211873.6
A53: =Länkar_TTA!A52 -> 1502 | B53: =Länkar_TTA!B52 -> 681121 | C53: =TEXT(Länkar_TTA!C52,0) -> 1502681121 | D53: =Länkar_TTA!D52 -> Gnesta | E53: =Länkar_TTA!E52 -> Mölnbo | F53: =Länkar_TTA!F52 -> 414 | G53: =Länkar_TTA!G52 -> Västra stambanan | H53: =Länkar_TTA!H52 -> 1 | I53: =Länkar_TTA!I52 -> L2911 | J53: L2911 | T53: =+Kalkylsammanställning!G$2 -> 1 | U53: =Länkar_TTA!M52 -> Ja | V53: Ja | W53: =Länkar_TTA!K52 -> 0 | X53: 0 | Y53: =+IFERROR(VLOOKUP(C53,LinjeLänk_Data!F:G,2,FALSE),"-") -> 6.650000095 | Z53: 6.650000095 | AB53: Västra stambanan | AD53: 414 | AF53: =+VLOOKUP(C53,Länkar_TTA!C:O,13,FALSE) ->  | AI53: - | AJ53: Gnesta-Mölnbo | AL53: =+SUMIF('Linjelänk JA_KAP'!$H:$H,$C53,'Linjelänk JA_KAP'!CY:CY) -> 43 | AM53: =+SUMIF('Linjelänk JA_KAP'!$H:$H,$C53,'Linjelänk JA_KAP'!CZ:CZ) -> 25 | AN53: =+SUMIF('Linjelänk JA_KAP'!$H:$H,$C53,'Linjelänk JA_KAP'!DA:DA) -> 25 | AO53: =+SUMIF('Linjelänk UA_KAP'!$H:$H,$C53,'Linjelänk UA_KAP'!CY:CY) -> 43 | AP53: =+SUMIF('Linjelänk UA_KAP'!$H:$H,$C53,'Linjelänk UA_KAP'!CZ:CZ) -> 25 | AQ53: =+SUMIF('Linjelänk UA_KAP'!$H:$H,$C53,'Linjelänk UA_KAP'!DA:DA) -> 25 | AS53: =+VLOOKUP($AJ53,Länkar_TTA!$Q:$T,2,FALSE) -> 43 | AT53: =+VLOOKUP($AJ53,Länkar_TTA!$Q:$T,3,FALSE) -> 25 | AU53: =+VLOOKUP($AJ53,Länkar_TTA!$Q:$T,4,FALSE) -> 25 | AX53: 197904.0028 | AY53: =IFERROR(VLOOKUP(I53,Bangods_linjedel!B:F,5,FALSE),0) -> 17.37 | AZ53: =VLOOKUP(I53,'Kap.ber JA'!DK:DN,2,FALSE)*AY53 -> 97272 | BA53: =VLOOKUP(I53,'Kap.ber JA'!$DK:$DN,3,FALSE)*AY53 -> 1033862.4 | BB53: =VLOOKUP(I53,'Kap.ber JA'!$DK:$DN,4,FALSE)*AY53 -> 1131134.4 | BC53: =IFERROR(VLOOKUP(J53,'Kap.ber UA'!$DJ:$DM,2,FALSE)*AY53,0) -> 97272 | BD53: =IFERROR(VLOOKUP(J53,'Kap.ber UA'!$DJ:$DM,3,FALSE)*AY53,0) -> 1033862.4 | BE53: =IFERROR(VLOOKUP(J53,'Kap.ber UA'!$DJ:$DM,4,FALSE)*AY53,0) -> 1131134.4 | BF53: =IF('Beskrivning av åtgärd'!$B$11="Persontrafik",BA53,IF('Beskrivning av åtgärd'!$B$11="Godstrafik",AZ53,BB53)) -> 1131134.4 | BG53: =IF('Beskrivning av åtgärd'!$B$11="Persontrafik",BD53,IF('Beskrivning av åtgärd'!$B$11="Godstrafik",BC53,BE53)) -> 1131134.4
A54: =Länkar_TTA!A53 -> 1504 | B54: =Länkar_TTA!B53 -> 1515 | C54: =TEXT(Länkar_TTA!C53,0) -> 15041515 | D54: =Länkar_TTA!D53 -> Vagnhärad kp ostlanken | E54: =Länkar_TTA!E53 -> Nyköping kp östra | F54: =Länkar_TTA!F53 -> 0 | G54: =Länkar_TTA!G53 -> Ostlänken | H54: =Länkar_TTA!H53 -> 36 | I54: =Länkar_TTA!I53 -> L4700 | J54: L4700 | T54: =+Kalkylsammanställning!G$2 -> 1 | U54: =Länkar_TTA!M53 -> Ja | V54: Ja | W54: =Länkar_TTA!K53 -> 0 | X54: 0 | Y54: =+IFERROR(VLOOKUP(C54,LinjeLänk_Data!F:G,2,FALSE),"-") -> 30.1019001 | Z54: 30.1019001 | AB54: Ostlänken | AD54: 0 | AF54: =+VLOOKUP(C54,Länkar_TTA!C:O,13,FALSE) ->  | AI54: - | AJ54: Vagnhärad kp ostlanken-Nyköping kp östra | AL54: =+SUMIF('Linjelänk JA_KAP'!$H:$H,$C54,'Linjelänk JA_KAP'!CY:CY) -> 24 | AM54: =+SUMIF('Linjelänk JA_KAP'!$H:$H,$C54,'Linjelänk JA_KAP'!CZ:CZ) -> 61 | AN54: =+SUMIF('Linjelänk JA_KAP'!$H:$H,$C54,'Linjelänk JA_KAP'!DA:DA) -> 0 | AO54: =+SUMIF('Linjelänk UA_KAP'!$H:$H,$C54,'Linjelänk UA_KAP'!CY:CY) -> 24 | AP54: =+SUMIF('Linjelänk UA_KAP'!$H:$H,$C54,'Linjelänk UA_KAP'!CZ:CZ) -> 61 | AQ54: =+SUMIF('Linjelänk UA_KAP'!$H:$H,$C54,'Linjelänk UA_KAP'!DA:DA) -> 0 | AS54: =+VLOOKUP($AJ54,Länkar_TTA!$Q:$T,2,FALSE) -> 24 | AT54: =+VLOOKUP($AJ54,Länkar_TTA!$Q:$T,3,FALSE) -> 61 | AU54: =+VLOOKUP($AJ54,Länkar_TTA!$Q:$T,4,FALSE) -> 0 | AX54: 818771.6827 | AY54: =IFERROR(VLOOKUP(I54,Bangods_linjedel!B:F,5,FALSE),0) -> 47.16 | AZ54: =VLOOKUP(I54,'Kap.ber JA'!DK:DN,2,FALSE)*AY54 -> 0 | BA54: =VLOOKUP(I54,'Kap.ber JA'!$DK:$DN,3,FALSE)*AY54 -> 2565504 | BB54: =VLOOKUP(I54,'Kap.ber JA'!$DK:$DN,4,FALSE)*AY54 -> 2565504 | BC54: =IFERROR(VLOOKUP(J54,'Kap.ber UA'!$DJ:$DM,2,FALSE)*AY54,0) -> 0 | BD54: =IFERROR(VLOOKUP(J54,'Kap.ber UA'!$DJ:$DM,3,FALSE)*AY54,0) -> 2565504 | BE54: =IFERROR(VLOOKUP(J54,'Kap.ber UA'!$DJ:$DM,4,FALSE)*AY54,0) -> 2565504 | BF54: =IF('Beskrivning av åtgärd'!$B$11="Persontrafik",BA54,IF('Beskrivning av åtgärd'!$B$11="Godstrafik",AZ54,BB54)) -> 2565504 | BG54: =IF('Beskrivning av åtgärd'!$B$11="Persontrafik",BD54,IF('Beskrivning av åtgärd'!$B$11="Godstrafik",BC54,BE54)) -> 2565504
A55: =Länkar_TTA!A54 -> 1504 | B55: =Länkar_TTA!B54 -> 681131 | C55: =TEXT(Länkar_TTA!C54,0) -> 1504681131 | D55: =Länkar_TTA!D54 -> Vagnhärad kp ostlanken | E55: =Länkar_TTA!E54 -> Järna | F55: =Länkar_TTA!F54 -> 0 | G55: =Länkar_TTA!G54 -> Ostlänken | H55: =Länkar_TTA!H54 -> 36 | I55: =Länkar_TTA!I54 -> L4700 | J55: L4700 | T55: =+Kalkylsammanställning!G$2 -> 1 | U55: =Länkar_TTA!M54 -> Ja | V55: Ja | W55: =Länkar_TTA!K54 -> 0 | X55: 0 | Y55: =+IFERROR(VLOOKUP(C55,LinjeLänk_Data!F:G,2,FALSE),"-") -> 17.05789948 | Z55: 17.05789948 | AB55: Ostlänken | AD55: 0 | AF55: =+VLOOKUP(C55,Länkar_TTA!C:O,13,FALSE) ->  | AI55: - | AJ55: Vagnhärad kp ostlanken-Järna | AL55: =+SUMIF('Linjelänk JA_KAP'!$H:$H,$C55,'Linjelänk JA_KAP'!CY:CY) -> 24 | AM55: =+SUMIF('Linjelänk JA_KAP'!$H:$H,$C55,'Linjelänk JA_KAP'!CZ:CZ) -> 61 | AN55: =+SUMIF('Linjelänk JA_KAP'!$H:$H,$C55,'Linjelänk JA_KAP'!DA:DA) -> 0 | AO55: =+SUMIF('Linjelänk UA_KAP'!$H:$H,$C55,'Linjelänk UA_KAP'!CY:CY) -> 24 | AP55: =+SUMIF('Linjelänk UA_KAP'!$H:$H,$C55,'Linjelänk UA_KAP'!CZ:CZ) -> 61 | AQ55: =+SUMIF('Linjelänk UA_KAP'!$H:$H,$C55,'Linjelänk UA_KAP'!DA:DA) -> 0 | AS55: =+VLOOKUP($AJ55,Länkar_TTA!$Q:$T,2,FALSE) -> 24 | AT55: =+VLOOKUP($AJ55,Länkar_TTA!$Q:$T,3,FALSE) -> 61 | AU55: =+VLOOKUP($AJ55,Länkar_TTA!$Q:$T,4,FALSE) -> 0 | AX55: 463974.8657 | AY55: =IFERROR(VLOOKUP(I55,Bangods_linjedel!B:F,5,FALSE),0) -> 47.16 | AZ55: =VLOOKUP(I55,'Kap.ber JA'!DK:DN,2,FALSE)*AY55 -> 0 | BA55: =VLOOKUP(I55,'Kap.ber JA'!$DK:$DN,3,FALSE)*AY55 -> 2565504 | BB55: =VLOOKUP(I55,'Kap.ber JA'!$DK:$DN,4,FALSE)*AY55 -> 2565504 | BC55: =IFERROR(VLOOKUP(J55,'Kap.ber UA'!$DJ:$DM,2,FALSE)*AY55,0) -> 0 | BD55: =IFERROR(VLOOKUP(J55,'Kap.ber UA'!$DJ:$DM,3,FALSE)*AY55,0) -> 2565504 | BE55: =IFERROR(VLOOKUP(J55,'Kap.ber UA'!$DJ:$DM,4,FALSE)*AY55,0) -> 2565504 | BF55: =IF('Beskrivning av åtgärd'!$B$11="Persontrafik",BA55,IF('Beskrivning av åtgärd'!$B$11="Godstrafik",AZ55,BB55)) -> 2565504 | BG55: =IF('Beskrivning av åtgärd'!$B$11="Persontrafik",BD55,IF('Beskrivning av åtgärd'!$B$11="Godstrafik",BC55,BE55)) -> 2565504
A56: =Länkar_TTA!A55 -> 1505 | B56: =Länkar_TTA!B55 -> 9386 | C56: =TEXT(Länkar_TTA!C55,0) -> 15059386 | D56: =Länkar_TTA!D55 -> Oxelösund | E56: =Länkar_TTA!E55 -> Nyköping Södra | F56: =Länkar_TTA!F55 -> 492 | G56: =Länkar_TTA!G55 -> (Sala)-Oxelösund | H56: =Länkar_TTA!H55 -> 18 | I56: =Länkar_TTA!I55 -> L2203 | J56: L2203 | T56: =+Kalkylsammanställning!G$2 -> 1 | U56: =Länkar_TTA!M55 -> Ja | V56: Ja | W56: =Länkar_TTA!K55 -> 0 | X56: 0 | Y56: =+IFERROR(VLOOKUP(C56,LinjeLänk_Data!F:G,2,FALSE),"-") -> - | Z56: - | AB56: (Sala)-Oxelösund | AD56: 492 | AF56: =+VLOOKUP(C56,Länkar_TTA!C:O,13,FALSE) ->  | AI56: - | AJ56: Oxelösund-Nyköping Södra | AL56: =+SUMIF('Linjelänk JA_KAP'!$H:$H,$C56,'Linjelänk JA_KAP'!CY:CY) -> 0 | AM56: =+SUMIF('Linjelänk JA_KAP'!$H:$H,$C56,'Linjelänk JA_KAP'!CZ:CZ) -> 0 | AN56: =+SUMIF('Linjelänk JA_KAP'!$H:$H,$C56,'Linjelänk JA_KAP'!DA:DA) -> 0 | AO56: =+SUMIF('Linjelänk UA_KAP'!$H:$H,$C56,'Linjelänk UA_KAP'!CY:CY) -> 0 | AP56: =+SUMIF('Linjelänk UA_KAP'!$H:$H,$C56,'Linjelänk UA_KAP'!CZ:CZ) -> 0 | AQ56: =+SUMIF('Linjelänk UA_KAP'!$H:$H,$C56,'Linjelänk UA_KAP'!DA:DA) -> 0 | AS56: =+VLOOKUP($AJ56,Länkar_TTA!$Q:$T,2,FALSE) -> 0 | AT56: =+VLOOKUP($AJ56,Länkar_TTA!$Q:$T,3,FALSE) -> 0 | AU56: =+VLOOKUP($AJ56,Länkar_TTA!$Q:$T,4,FALSE) -> 0 | AX56: 0 | AY56: =IFERROR(VLOOKUP(I56,Bangods_linjedel!B:F,5,FALSE),0) -> 58.92 | AZ56: =VLOOKUP(I56,'Kap.ber JA'!DK:DN,2,FALSE)*AY56 -> 113126.4 | BA56: =VLOOKUP(I56,'Kap.ber JA'!$DK:$DN,3,FALSE)*AY56 -> 0 | BB56: =VLOOKUP(I56,'Kap.ber JA'!$DK:$DN,4,FALSE)*AY56 -> 113126.4 | BC56: =IFERROR(VLOOKUP(J56,'Kap.ber UA'!$DJ:$DM,2,FALSE)*AY56,0) -> 113126.4 | BD56: =IFERROR(VLOOKUP(J56,'Kap.ber UA'!$DJ:$DM,3,FALSE)*AY56,0) -> 0 | BE56: =IFERROR(VLOOKUP(J56,'Kap.ber UA'!$DJ:$DM,4,FALSE)*AY56,0) -> 113126.4 | BF56: =IF('Beskrivning av åtgärd'!$B$11="Persontrafik",BA56,IF('Beskrivning av åtgärd'!$B$11="Godstrafik",AZ56,BB56)) -> 113126.4 | BG56: =IF('Beskrivning av åtgärd'!$B$11="Persontrafik",BD56,IF('Beskrivning av åtgärd'!$B$11="Godstrafik",BC56,BE56)) -> 113126.4
A57: =Länkar_TTA!A56 -> 1506 | B57: =Länkar_TTA!B56 -> 1500 | C57: =TEXT(Länkar_TTA!C56,0) -> 15061500 | D57: =Länkar_TTA!D56 -> Nyköping kp västra | E57: =Länkar_TTA!E56 -> Nyköpings Central | F57: =Länkar_TTA!F56 -> 492 | G57: =Länkar_TTA!G56 -> (Sala)-Oxelösund | H57: =Länkar_TTA!H56 -> 18 | I57: =Länkar_TTA!I56 -> L2203 | J57: L2203 | T57: =+Kalkylsammanställning!G$2 -> 1 | U57: =Länkar_TTA!M56 -> Ja | V57: Ja | W57: =Länkar_TTA!K56 -> 0 | X57: 0 | Y57: =+IFERROR(VLOOKUP(C57,LinjeLänk_Data!F:G,2,FALSE),"-") -> - | Z57: - | AB57: (Sala)-Oxelösund | AD57: 492 | AF57: =+VLOOKUP(C57,Länkar_TTA!C:O,13,FALSE) ->  | AI57: - | AJ57: Nyköping kp västra-Nyköpings Central | AL57: =+SUMIF('Linjelänk JA_KAP'!$H:$H,$C57,'Linjelänk JA_KAP'!CY:CY) -> 0 | AM57: =+SUMIF('Linjelänk JA_KAP'!$H:$H,$C57,'Linjelänk JA_KAP'!CZ:CZ) -> 0 | AN57: =+SUMIF('Linjelänk JA_KAP'!$H:$H,$C57,'Linjelänk JA_KAP'!DA:DA) -> 0 | AO57: =+SUMIF('Linjelänk UA_KAP'!$H:$H,$C57,'Linjelänk UA_KAP'!CY:CY) -> 0 | AP57: =+SUMIF('Linjelänk UA_KAP'!$H:$H,$C57,'Linjelänk UA_KAP'!CZ:CZ) -> 0 | AQ57: =+SUMIF('Linjelänk UA_KAP'!$H:$H,$C57,'Linjelänk UA_KAP'!DA:DA) -> 0 | AS57: =+VLOOKUP($AJ57,Länkar_TTA!$Q:$T,2,FALSE) -> 0 | AT57: =+VLOOKUP($AJ57,Länkar_TTA!$Q:$T,3,FALSE) -> 0 | AU57: =+VLOOKUP($AJ57,Länkar_TTA!$Q:$T,4,FALSE) -> 0 | AX57: 0 | AY57: =IFERROR(VLOOKUP(I57,Bangods_linjedel!B:F,5,FALSE),0) -> 58.92 | AZ57: =VLOOKUP(I57,'Kap.ber JA'!DK:DN,2,FALSE)*AY57 -> 113126.4 | BA57: =VLOOKUP(I57,'Kap.ber JA'!$DK:$DN,3,FALSE)*AY57 -> 0 | BB57: =VLOOKUP(I57,'Kap.ber JA'!$DK:$DN,4,FALSE)*AY57 -> 113126.4 | BC57: =IFERROR(VLOOKUP(J57,'Kap.ber UA'!$DJ:$DM,2,FALSE)*AY57,0) -> 113126.4 | BD57: =IFERROR(VLOOKUP(J57,'Kap.ber UA'!$DJ:$DM,3,FALSE)*AY57,0) -> 0 | BE57: =IFERROR(VLOOKUP(J57,'Kap.ber UA'!$DJ:$DM,4,FALSE)*AY57,0) -> 113126.4 | BF57: =IF('Beskrivning av åtgärd'!$B$11="Persontrafik",BA57,IF('Beskrivning av åtgärd'!$B$11="Godstrafik",AZ57,BB57)) -> 113126.4 | BG57: =IF('Beskrivning av åtgärd'!$B$11="Persontrafik",BD57,IF('Beskrivning av åtgärd'!$B$11="Godstrafik",BC57,BE57)) -> 113126.4
A58: =Länkar_TTA!A57 -> 1506 | B58: =Länkar_TTA!B57 -> 1508 | C58: =TEXT(Länkar_TTA!C57,0) -> 15061508 | D58: =Länkar_TTA!D57 -> Nyköping kp västra | E58: =Länkar_TTA!E57 -> Skavsta Flygplats Bibana | F58: =Länkar_TTA!F57 -> 0 | G58: =Länkar_TTA!G57 -> Ostlänken | H58: =Länkar_TTA!H57 -> 36 | I58: =Länkar_TTA!I57 -> L4706 | J58: L4706 | T58: =+Kalkylsammanställning!G$2 -> 1 | U58: =Länkar_TTA!M57 -> Ja | V58: Ja | W58: =Länkar_TTA!K57 -> 0 | X58: 0 | Y58: =+IFERROR(VLOOKUP(C58,LinjeLänk_Data!F:G,2,FALSE),"-") -> 7.5 | Z58: 7.5 | AB58: Ostlänken | AD58: 0 | AF58: =+VLOOKUP(C58,Länkar_TTA!C:O,13,FALSE) ->  | AI58: - | AJ58: Nyköping kp västra-Skavsta Flygplats Bibana | AL58: =+SUMIF('Linjelänk JA_KAP'!$H:$H,$C58,'Linjelänk JA_KAP'!CY:CY) -> 0 | AM58: =+SUMIF('Linjelänk JA_KAP'!$H:$H,$C58,'Linjelänk JA_KAP'!CZ:CZ) -> 16 | AN58: =+SUMIF('Linjelänk JA_KAP'!$H:$H,$C58,'Linjelänk JA_KAP'!DA:DA) -> 0 | AO58: =+SUMIF('Linjelänk UA_KAP'!$H:$H,$C58,'Linjelänk UA_KAP'!CY:CY) -> 0 | AP58: =+SUMIF('Linjelänk UA_KAP'!$H:$H,$C58,'Linjelänk UA_KAP'!CZ:CZ) -> 16 | AQ58: =+SUMIF('Linjelänk UA_KAP'!$H:$H,$C58,'Linjelänk UA_KAP'!DA:DA) -> 0 | AS58: =+VLOOKUP($AJ58,Länkar_TTA!$Q:$T,2,FALSE) -> 0 | AT58: =+VLOOKUP($AJ58,Länkar_TTA!$Q:$T,3,FALSE) -> 16 | AU58: =+VLOOKUP($AJ58,Länkar_TTA!$Q:$T,4,FALSE) -> 0 | AX58: 38400 | AY58: =IFERROR(VLOOKUP(I58,Bangods_linjedel!B:F,5,FALSE),0) -> 7.5 | AZ58: =VLOOKUP(I58,'Kap.ber JA'!DK:DN,2,FALSE)*AY58 -> 0 | BA58: =VLOOKUP(I58,'Kap.ber JA'!$DK:$DN,3,FALSE)*AY58 -> 76800 | BB58: =VLOOKUP(I58,'Kap.ber JA'!$DK:$DN,4,FALSE)*AY58 -> 76800 | BC58: =IFERROR(VLOOKUP(J58,'Kap.ber UA'!$DJ:$DM,2,FALSE)*AY58,0) -> 0 | BD58: =IFERROR(VLOOKUP(J58,'Kap.ber UA'!$DJ:$DM,3,FALSE)*AY58,0) -> 76800 | BE58: =IFERROR(VLOOKUP(J58,'Kap.ber UA'!$DJ:$DM,4,FALSE)*AY58,0) -> 76800 | BF58: =IF('Beskrivning av åtgärd'!$B$11="Persontrafik",BA58,IF('Beskrivning av åtgärd'!$B$11="Godstrafik",AZ58,BB58)) -> 76800 | BG58: =IF('Beskrivning av åtgärd'!$B$11="Persontrafik",BD58,IF('Beskrivning av åtgärd'!$B$11="Godstrafik",BC58,BE58)) -> 76800
A59: =Länkar_TTA!A58 -> 1506 | B59: =Länkar_TTA!B58 -> 1512 | C59: =TEXT(Länkar_TTA!C58,0) -> 15061512 | D59: =Länkar_TTA!D58 -> Nyköping kp västra | E59: =Länkar_TTA!E58 -> Vrena | F59: =Länkar_TTA!F58 -> 492 | G59: =Länkar_TTA!G58 -> (Sala)-Oxelösund | H59: =Länkar_TTA!H58 -> 18 | I59: =Länkar_TTA!I58 -> L2203 | J59: L2203 | T59: =+Kalkylsammanställning!G$2 -> 1 | U59: =Länkar_TTA!M58 -> Ja | V59: Ja | W59: =Länkar_TTA!K58 -> 0 | X59: 0 | Y59: =+IFERROR(VLOOKUP(C59,LinjeLänk_Data!F:G,2,FALSE),"-") -> - | Z59: - | AB59: (Sala)-Oxelösund | AD59: 492 | AF59: =+VLOOKUP(C59,Länkar_TTA!C:O,13,FALSE) ->  | AI59: - | AJ59: Nyköping kp västra-Vrena | AL59: =+SUMIF('Linjelänk JA_KAP'!$H:$H,$C59,'Linjelänk JA_KAP'!CY:CY) -> 0 | AM59: =+SUMIF('Linjelänk JA_KAP'!$H:$H,$C59,'Linjelänk JA_KAP'!CZ:CZ) -> 0 | AN59: =+SUMIF('Linjelänk JA_KAP'!$H:$H,$C59,'Linjelänk JA_KAP'!DA:DA) -> 0 | AO59: =+SUMIF('Linjelänk UA_KAP'!$H:$H,$C59,'Linjelänk UA_KAP'!CY:CY) -> 0 | AP59: =+SUMIF('Linjelänk UA_KAP'!$H:$H,$C59,'Linjelänk UA_KAP'!CZ:CZ) -> 0 | AQ59: =+SUMIF('Linjelänk UA_KAP'!$H:$H,$C59,'Linjelänk UA_KAP'!DA:DA) -> 0 | AS59: =+VLOOKUP($AJ59,Länkar_TTA!$Q:$T,2,FALSE) -> 0 | AT59: =+VLOOKUP($AJ59,Länkar_TTA!$Q:$T,3,FALSE) -> 0 | AU59: =+VLOOKUP($AJ59,Länkar_TTA!$Q:$T,4,FALSE) -> 0 | AX59: 0 | AY59: =IFERROR(VLOOKUP(I59,Bangods_linjedel!B:F,5,FALSE),0) -> 58.92 | AZ59: =VLOOKUP(I59,'Kap.ber JA'!DK:DN,2,FALSE)*AY59 -> 113126.4 | BA59: =VLOOKUP(I59,'Kap.ber JA'!$DK:$DN,3,FALSE)*AY59 -> 0 | BB59: =VLOOKUP(I59,'Kap.ber JA'!$DK:$DN,4,FALSE)*AY59 -> 113126.4 | BC59: =IFERROR(VLOOKUP(J59,'Kap.ber UA'!$DJ:$DM,2,FALSE)*AY59,0) -> 113126.4 | BD59: =IFERROR(VLOOKUP(J59,'Kap.ber UA'!$DJ:$DM,3,FALSE)*AY59,0) -> 0 | BE59: =IFERROR(VLOOKUP(J59,'Kap.ber UA'!$DJ:$DM,4,FALSE)*AY59,0) -> 113126.4 | BF59: =IF('Beskrivning av åtgärd'!$B$11="Persontrafik",BA59,IF('Beskrivning av åtgärd'!$B$11="Godstrafik",AZ59,BB59)) -> 113126.4 | BG59: =IF('Beskrivning av åtgärd'!$B$11="Persontrafik",BD59,IF('Beskrivning av åtgärd'!$B$11="Godstrafik",BC59,BE59)) -> 113126.4
A60: =Länkar_TTA!A59 -> 1506 | B60: =Länkar_TTA!B59 -> 1515 | C60: =TEXT(Länkar_TTA!C59,0) -> 15061515 | D60: =Länkar_TTA!D59 -> Nyköping kp västra | E60: =Länkar_TTA!E59 -> Nyköping kp östra | F60: =Länkar_TTA!F59 -> 0 | G60: =Länkar_TTA!G59 -> Ostlänken | H60: =Länkar_TTA!H59 -> 36 | I60: =Länkar_TTA!I59 -> L4701 | J60: L4701 | T60: =+Kalkylsammanställning!G$2 -> 1 | U60: =Länkar_TTA!M59 -> Ja | V60: Ja | W60: =Länkar_TTA!K59 -> 0 | X60: 0 | Y60: =+IFERROR(VLOOKUP(C60,LinjeLänk_Data!F:G,2,FALSE),"-") -> 12.57549953 | Z60: 12.57549953 | AB60: Ostlänken | AD60: 0 | AF60: =+VLOOKUP(C60,Länkar_TTA!C:O,13,FALSE) ->  | AI60: - | AJ60: Nyköping kp västra-Nyköping kp östra | AL60: =+SUMIF('Linjelänk JA_KAP'!$H:$H,$C60,'Linjelänk JA_KAP'!CY:CY) -> 24 | AM60: =+SUMIF('Linjelänk JA_KAP'!$H:$H,$C60,'Linjelänk JA_KAP'!CZ:CZ) -> 27 | AN60: =+SUMIF('Linjelänk JA_KAP'!$H:$H,$C60,'Linjelänk JA_KAP'!DA:DA) -> 0 | AO60: =+SUMIF('Linjelänk UA_KAP'!$H:$H,$C60,'Linjelänk UA_KAP'!CY:CY) -> 24 | AP60: =+SUMIF('Linjelänk UA_KAP'!$H:$H,$C60,'Linjelänk UA_KAP'!CZ:CZ) -> 27 | AQ60: =+SUMIF('Linjelänk UA_KAP'!$H:$H,$C60,'Linjelänk UA_KAP'!DA:DA) -> 0 | AS60: =+VLOOKUP($AJ60,Länkar_TTA!$Q:$T,2,FALSE) -> 24 | AT60: =+VLOOKUP($AJ60,Länkar_TTA!$Q:$T,3,FALSE) -> 27 | AU60: =+VLOOKUP($AJ60,Länkar_TTA!$Q:$T,4,FALSE) -> 0 | AX60: 205232.1524 | AY60: =IFERROR(VLOOKUP(I60,Bangods_linjedel!B:F,5,FALSE),0) -> 12.58 | AZ60: =VLOOKUP(I60,'Kap.ber JA'!DK:DN,2,FALSE)*AY60 -> 0 | BA60: =VLOOKUP(I60,'Kap.ber JA'!$DK:$DN,3,FALSE)*AY60 -> 410611.2 | BB60: =VLOOKUP(I60,'Kap.ber JA'!$DK:$DN,4,FALSE)*AY60 -> 410611.2 | BC60: =IFERROR(VLOOKUP(J60,'Kap.ber UA'!$DJ:$DM,2,FALSE)*AY60,0) -> 0 | BD60: =IFERROR(VLOOKUP(J60,'Kap.ber UA'!$DJ:$DM,3,FALSE)*AY60,0) -> 410611.2 | BE60: =IFERROR(VLOOKUP(J60,'Kap.ber UA'!$DJ:$DM,4,FALSE)*AY60,0) -> 410611.2 | BF60: =IF('Beskrivning av åtgärd'!$B$11="Persontrafik",BA60,IF('Beskrivning av åtgärd'!$B$11="Godstrafik",AZ60,BB60)) -> 410611.2 | BG60: =IF('Beskrivning av åtgärd'!$B$11="Persontrafik",BD60,IF('Beskrivning av åtgärd'!$B$11="Godstrafik",BC60,BE60)) -> 410611.2
A61: =Länkar_TTA!A60 -> 1506 | B61: =Länkar_TTA!B60 -> 2000 | C61: =TEXT(Länkar_TTA!C60,0) -> 15062000 | D61: =Länkar_TTA!D60 -> Nyköping kp västra | E61: =Länkar_TTA!E60 -> Norrköpings Central | F61: =Länkar_TTA!F60 -> 0 | G61: =Länkar_TTA!G60 -> Ostlänken | H61: =Länkar_TTA!H60 -> 36 | I61: =Länkar_TTA!I60 -> L4705 | J61: L4705 | T61: =+Kalkylsammanställning!G$2 -> 1 | U61: =Länkar_TTA!M60 -> Ja | V61: Ja | W61: =Länkar_TTA!K60 -> 0 | X61: 0 | Y61: =+IFERROR(VLOOKUP(C61,LinjeLänk_Data!F:G,2,FALSE),"-") -> 46.68999863 | Z61: 46.68999863 | AB61: Ostlänken | AD61: 0 | AF61: =+VLOOKUP(C61,Länkar_TTA!C:O,13,FALSE) ->  | AI61: - | AJ61: Nyköping kp västra-Norrköpings Central | AL61: =+SUMIF('Linjelänk JA_KAP'!$H:$H,$C61,'Linjelänk JA_KAP'!CY:CY) -> 24 | AM61: =+SUMIF('Linjelänk JA_KAP'!$H:$H,$C61,'Linjelänk JA_KAP'!CZ:CZ) -> 43 | AN61: =+SUMIF('Linjelänk JA_KAP'!$H:$H,$C61,'Linjelänk JA_KAP'!DA:DA) -> 0 | AO61: =+SUMIF('Linjelänk UA_KAP'!$H:$H,$C61,'Linjelänk UA_KAP'!CY:CY) -> 24 | AP61: =+SUMIF('Linjelänk UA_KAP'!$H:$H,$C61,'Linjelänk UA_KAP'!CZ:CZ) -> 43 | AQ61: =+SUMIF('Linjelänk UA_KAP'!$H:$H,$C61,'Linjelänk UA_KAP'!DA:DA) -> 0 | AS61: =+VLOOKUP($AJ61,Länkar_TTA!$Q:$T,2,FALSE) -> 24 | AT61: =+VLOOKUP($AJ61,Länkar_TTA!$Q:$T,3,FALSE) -> 43 | AU61: =+VLOOKUP($AJ61,Länkar_TTA!$Q:$T,4,FALSE) -> 0 | AX61: 1001033.571 | AY61: =IFERROR(VLOOKUP(I61,Bangods_linjedel!B:F,5,FALSE),0) -> 89.19 | AZ61: =VLOOKUP(I61,'Kap.ber JA'!DK:DN,2,FALSE)*AY61 -> 0 | BA61: =VLOOKUP(I61,'Kap.ber JA'!$DK:$DN,3,FALSE)*AY61 -> 3824467.2 | BB61: =VLOOKUP(I61,'Kap.ber JA'!$DK:$DN,4,FALSE)*AY61 -> 3824467.2 | BC61: =IFERROR(VLOOKUP(J61,'Kap.ber UA'!$DJ:$DM,2,FALSE)*AY61,0) -> 0 | BD61: =IFERROR(VLOOKUP(J61,'Kap.ber UA'!$DJ:$DM,3,FALSE)*AY61,0) -> 3824467.2 | BE61: =IFERROR(VLOOKUP(J61,'Kap.ber UA'!$DJ:$DM,4,FALSE)*AY61,0) -> 3824467.2 | BF61: =IF('Beskrivning av åtgärd'!$B$11="Persontrafik",BA61,IF('Beskrivning av åtgärd'!$B$11="Godstrafik",AZ61,BB61)) -> 3824467.2 | BG61: =IF('Beskrivning av åtgärd'!$B$11="Persontrafik",BD61,IF('Beskrivning av åtgärd'!$B$11="Godstrafik",BC61,BE61)) -> 3824467.2
A62: =Länkar_TTA!A61 -> 1508 | B62: =Länkar_TTA!B61 -> 1500 | C62: =TEXT(Länkar_TTA!C61,0) -> 15081500 | D62: =Länkar_TTA!D61 -> Skavsta Flygplats Bibana | E62: =Länkar_TTA!E61 -> Nyköpings Central | F62: =Länkar_TTA!F61 -> 0 | G62: =Länkar_TTA!G61 -> Ostlänken | H62: =Länkar_TTA!H61 -> 36 | I62: =Länkar_TTA!I61 -> L4704 | J62: L4704 | T62: =+Kalkylsammanställning!G$2 -> 1 | U62: =Länkar_TTA!M61 -> Ja | V62: Ja | W62: =Länkar_TTA!K61 -> 0 | X62: 0 | Y62: =+IFERROR(VLOOKUP(C62,LinjeLänk_Data!F:G,2,FALSE),"-") -> 7 | Z62: 7 | AB62: Ostlänken | AD62: 0 | AF62: =+VLOOKUP(C62,Länkar_TTA!C:O,13,FALSE) ->  | AI62: - | AJ62: Skavsta Flygplats Bibana-Nyköpings Central | AL62: =+SUMIF('Linjelänk JA_KAP'!$H:$H,$C62,'Linjelänk JA_KAP'!CY:CY) -> 0 | AM62: =+SUMIF('Linjelänk JA_KAP'!$H:$H,$C62,'Linjelänk JA_KAP'!CZ:CZ) -> 16 | AN62: =+SUMIF('Linjelänk JA_KAP'!$H:$H,$C62,'Linjelänk JA_KAP'!DA:DA) -> 0 | AO62: =+SUMIF('Linjelänk UA_KAP'!$H:$H,$C62,'Linjelänk UA_KAP'!CY:CY) -> 0 | AP62: =+SUMIF('Linjelänk UA_KAP'!$H:$H,$C62,'Linjelänk UA_KAP'!CZ:CZ) -> 16 | AQ62: =+SUMIF('Linjelänk UA_KAP'!$H:$H,$C62,'Linjelänk UA_KAP'!DA:DA) -> 0 | AS62: =+VLOOKUP($AJ62,Länkar_TTA!$Q:$T,2,FALSE) -> 0 | AT62: =+VLOOKUP($AJ62,Länkar_TTA!$Q:$T,3,FALSE) -> 16 | AU62: =+VLOOKUP($AJ62,Länkar_TTA!$Q:$T,4,FALSE) -> 0 | AX62: 35840 | AY62: =IFERROR(VLOOKUP(I62,Bangods_linjedel!B:F,5,FALSE),0) -> 7 | AZ62: =VLOOKUP(I62,'Kap.ber JA'!DK:DN,2,FALSE)*AY62 -> 0 | BA62: =VLOOKUP(I62,'Kap.ber JA'!$DK:$DN,3,FALSE)*AY62 -> 71680 | BB62: =VLOOKUP(I62,'Kap.ber JA'!$DK:$DN,4,FALSE)*AY62 -> 71680 | BC62: =IFERROR(VLOOKUP(J62,'Kap.ber UA'!$DJ:$DM,2,FALSE)*AY62,0) -> 0 | BD62: =IFERROR(VLOOKUP(J62,'Kap.ber UA'!$DJ:$DM,3,FALSE)*AY62,0) -> 71680 | BE62: =IFERROR(VLOOKUP(J62,'Kap.ber UA'!$DJ:$DM,4,FALSE)*AY62,0) -> 71680 | BF62: =IF('Beskrivning av åtgärd'!$B$11="Persontrafik",BA62,IF('Beskrivning av åtgärd'!$B$11="Godstrafik",AZ62,BB62)) -> 71680 | BG62: =IF('Beskrivning av åtgärd'!$B$11="Persontrafik",BD62,IF('Beskrivning av åtgärd'!$B$11="Godstrafik",BC62,BE62)) -> 71680
... 77 more rows

Sheet Tidtabellsanalys Person
A1: Linjenr | B1: Tågtyp kalkyl | C1: Linjesträckning | D1: Från nod | E1: Till nod | F1: Nodnr | G1: Km | H1: Dubbelturer/dag | I1: Tåguppehåll = 1 | J1: DIFF Tidtabellstid minuter | K1: DIFF Förseningstid minuter | L1: Slutstation
A3: =+LinjeLänk_Data!A3 -> 10001 | B3: =+VLOOKUP($A3,LINJE_DATA!$A:$C,3,FALSE) -> 2 | C3: =+VLOOKUP($A3,LINJE_DATA!$A:$C,2,FALSE) -> Göteborg Central-Österport | D3: =+'Linjelänk JA_KAP'!J4 -> Göteborg Central | E3: =IFERROR('Linjelänk JA_KAP'!K4,"") -> Gubbero | F3: =LinjeLänk_Data!F3 -> 43009155 | G3: =+LinjeLänk_Data!G3 -> 1.929999948 | H3: =+VLOOKUP($A3,LINJE_DATA!$A:$H,7,FALSE) -> 14 | I3: =+'Linjelänk JA_KAP'!AP4 -> 0 | L3: =IF(AND(I3=1,A3<>A5),"Slutstation","") -> 
A4: =+LinjeLänk_Data!A4 -> 10001 | B4: =+VLOOKUP($A4,LINJE_DATA!$A:$C,3,FALSE) -> 2 | C4: =+VLOOKUP($A4,LINJE_DATA!$A:$C,2,FALSE) -> Göteborg Central-Österport | D4: =+'Linjelänk JA_KAP'!J5 -> Gubbero | E4: =IFERROR('Linjelänk JA_KAP'!K5,"") -> Liseberg | F4: =LinjeLänk_Data!F4 -> 91554385 | G4: =+LinjeLänk_Data!G4 -> 1.090000033 | H4: =+VLOOKUP($A4,LINJE_DATA!$A:$H,7,FALSE) -> 14 | I4: =+'Linjelänk JA_KAP'!AP5 -> 0 | L4: =IF(AND(I4=1,A4<>A6),"Slutstation","") -> 
A5: =+LinjeLänk_Data!A5 -> 10001 | B5: =+VLOOKUP($A5,LINJE_DATA!$A:$C,3,FALSE) -> 2 | C5: =+VLOOKUP($A5,LINJE_DATA!$A:$C,2,FALSE) -> Göteborg Central-Österport | D5: =+'Linjelänk JA_KAP'!J6 -> Liseberg | E5: =IFERROR('Linjelänk JA_KAP'!K6,"") -> Almedal | F5: =LinjeLänk_Data!F5 -> 43859008 | G5: =+LinjeLänk_Data!G5 -> 1.779999971 | H5: =+VLOOKUP($A5,LINJE_DATA!$A:$H,7,FALSE) -> 14 | I5: =+'Linjelänk JA_KAP'!AP6 -> 0
A6: =+LinjeLänk_Data!A6 -> 10001 | B6: =+VLOOKUP($A6,LINJE_DATA!$A:$C,3,FALSE) -> 2 | C6: =+VLOOKUP($A6,LINJE_DATA!$A:$C,2,FALSE) -> Göteborg Central-Österport | D6: =+'Linjelänk JA_KAP'!J7 -> Almedal | E6: =IFERROR('Linjelänk JA_KAP'!K7,"") -> Mölndals Nedre | F6: =LinjeLänk_Data!F6 -> 90084386 | G6: =+LinjeLänk_Data!G6 -> 3.210000038 | H6: =+VLOOKUP($A6,LINJE_DATA!$A:$H,7,FALSE) -> 14 | I6: =+'Linjelänk JA_KAP'!AP7 -> 0
A7: =+LinjeLänk_Data!A7 -> 10001 | B7: =+VLOOKUP($A7,LINJE_DATA!$A:$C,3,FALSE) -> 2 | C7: =+VLOOKUP($A7,LINJE_DATA!$A:$C,2,FALSE) -> Göteborg Central-Österport | D7: =+'Linjelänk JA_KAP'!J8 -> Mölndals Nedre | E7: =IFERROR('Linjelänk JA_KAP'!K8,"") -> Kållered | F7: =LinjeLänk_Data!F7 -> 43864310 | G7: =+LinjeLänk_Data!G7 -> 5.46999979 | H7: =+VLOOKUP($A7,LINJE_DATA!$A:$H,7,FALSE) -> 14 | I7: =+'Linjelänk JA_KAP'!AP8 -> 0
A8: =+LinjeLänk_Data!A8 -> 10001 | B8: =+VLOOKUP($A8,LINJE_DATA!$A:$C,3,FALSE) -> 2 | C8: =+VLOOKUP($A8,LINJE_DATA!$A:$C,2,FALSE) -> Göteborg Central-Österport | D8: =+'Linjelänk JA_KAP'!J9 -> Kållered | E8: =IFERROR('Linjelänk JA_KAP'!K9,"") -> Lindome | F8: =LinjeLänk_Data!F8 -> 43104308 | G8: =+LinjeLänk_Data!G8 -> 4.269999981 | H8: =+VLOOKUP($A8,LINJE_DATA!$A:$H,7,FALSE) -> 14 | I8: =+'Linjelänk JA_KAP'!AP9 -> 0
A9: =+LinjeLänk_Data!A9 -> 10001 | B9: =+VLOOKUP($A9,LINJE_DATA!$A:$C,3,FALSE) -> 2 | C9: =+VLOOKUP($A9,LINJE_DATA!$A:$C,2,FALSE) -> Göteborg Central-Österport | D9: =+'Linjelänk JA_KAP'!J10 -> Lindome | E9: =IFERROR('Linjelänk JA_KAP'!K10,"") -> Anneberg | F9: =LinjeLänk_Data!F9 -> 43084360 | G9: =+LinjeLänk_Data!G9 -> 4.420000076 | H9: =+VLOOKUP($A9,LINJE_DATA!$A:$H,7,FALSE) -> 14 | I9: =+'Linjelänk JA_KAP'!AP10 -> 0
A10: =+LinjeLänk_Data!A10 -> 10001 | B10: =+VLOOKUP($A10,LINJE_DATA!$A:$C,3,FALSE) -> 2 | C10: =+VLOOKUP($A10,LINJE_DATA!$A:$C,2,FALSE) -> Göteborg Central-Österport | D10: =+'Linjelänk JA_KAP'!J11 -> Anneberg | E10: =IFERROR('Linjelänk JA_KAP'!K11,"") -> Ledsgård | F10: =LinjeLänk_Data!F10 -> 43609304 | G10: =+LinjeLänk_Data!G10 -> 1.549999952 | H10: =+VLOOKUP($A10,LINJE_DATA!$A:$H,7,FALSE) -> 14 | I10: =+'Linjelänk JA_KAP'!AP11 -> 0
A11: =+LinjeLänk_Data!A11 -> 10001 | B11: =+VLOOKUP($A11,LINJE_DATA!$A:$C,3,FALSE) -> 2 | C11: =+VLOOKUP($A11,LINJE_DATA!$A:$C,2,FALSE) -> Göteborg Central-Österport | D11: =+'Linjelänk JA_KAP'!J12 -> Ledsgård | E11: =IFERROR('Linjelänk JA_KAP'!K12,"") -> Kungsbacka Hede | F11: =LinjeLänk_Data!F11 -> 93044387 | G11: =+LinjeLänk_Data!G11 -> 1.470000029 | H11: =+VLOOKUP($A11,LINJE_DATA!$A:$H,7,FALSE) -> 14 | I11: =+'Linjelänk JA_KAP'!AP12 -> 0
A12: =+LinjeLänk_Data!A12 -> 10001 | B12: =+VLOOKUP($A12,LINJE_DATA!$A:$C,3,FALSE) -> 2 | C12: =+VLOOKUP($A12,LINJE_DATA!$A:$C,2,FALSE) -> Göteborg Central-Österport | D12: =+'Linjelänk JA_KAP'!J13 -> Kungsbacka Hede | E12: =IFERROR('Linjelänk JA_KAP'!K13,"") -> Kungsbacka | F12: =LinjeLänk_Data!F12 -> 43874304 | G12: =+LinjeLänk_Data!G12 -> 2.549999952 | H12: =+VLOOKUP($A12,LINJE_DATA!$A:$H,7,FALSE) -> 14 | I12: =+'Linjelänk JA_KAP'!AP13 -> 0
A13: =+LinjeLänk_Data!A13 -> 10001 | B13: =+VLOOKUP($A13,LINJE_DATA!$A:$C,3,FALSE) -> 2 | C13: =+VLOOKUP($A13,LINJE_DATA!$A:$C,2,FALSE) -> Göteborg Central-Österport | D13: =+'Linjelänk JA_KAP'!J14 -> Kungsbacka | E13: =IFERROR('Linjelänk JA_KAP'!K14,"") -> Lekarekulle | F13: =LinjeLänk_Data!F13 -> 43049300 | G13: =+LinjeLänk_Data!G13 -> 12.67000008 | H13: =+VLOOKUP($A13,LINJE_DATA!$A:$H,7,FALSE) -> 14 | I13: =+'Linjelänk JA_KAP'!AP14 -> 0
A14: =+LinjeLänk_Data!A14 -> 10001 | B14: =+VLOOKUP($A14,LINJE_DATA!$A:$C,3,FALSE) -> 2 | C14: =+VLOOKUP($A14,LINJE_DATA!$A:$C,2,FALSE) -> Göteborg Central-Österport | D14: =+'Linjelänk JA_KAP'!J15 -> Lekarekulle | E14: =IFERROR('Linjelänk JA_KAP'!K15,"") -> Åsa | F14: =LinjeLänk_Data!F14 -> 93004341 | G14: =+LinjeLänk_Data!G14 -> 4.440000057 | H14: =+VLOOKUP($A14,LINJE_DATA!$A:$H,7,FALSE) -> 14 | I14: =+'Linjelänk JA_KAP'!AP15 -> 0
A15: =+LinjeLänk_Data!A15 -> 10001 | B15: =+VLOOKUP($A15,LINJE_DATA!$A:$C,3,FALSE) -> 2 | C15: =+VLOOKUP($A15,LINJE_DATA!$A:$C,2,FALSE) -> Göteborg Central-Österport | D15: =+'Linjelänk JA_KAP'!J16 -> Åsa | E15: =IFERROR('Linjelänk JA_KAP'!K16,"") -> Frillesås | F15: =LinjeLänk_Data!F15 -> 43414342 | G15: =+LinjeLänk_Data!G15 -> 5.659999847 | H15: =+VLOOKUP($A15,LINJE_DATA!$A:$H,7,FALSE) -> 14 | I15: =+'Linjelänk JA_KAP'!AP16 -> 0
A16: =+LinjeLänk_Data!A16 -> 10001 | B16: =+VLOOKUP($A16,LINJE_DATA!$A:$C,3,FALSE) -> 2 | C16: =+VLOOKUP($A16,LINJE_DATA!$A:$C,2,FALSE) -> Göteborg Central-Österport | D16: =+'Linjelänk JA_KAP'!J17 -> Frillesås | E16: =IFERROR('Linjelänk JA_KAP'!K17,"") -> Väröbacka | F16: =LinjeLänk_Data!F16 -> 43424336 | G16: =+LinjeLänk_Data!G16 -> 7.409999847 | H16: =+VLOOKUP($A16,LINJE_DATA!$A:$H,7,FALSE) -> 14 | I16: =+'Linjelänk JA_KAP'!AP17 -> 0
A17: =+LinjeLänk_Data!A17 -> 10001 | B17: =+VLOOKUP($A17,LINJE_DATA!$A:$C,3,FALSE) -> 2 | C17: =+VLOOKUP($A17,LINJE_DATA!$A:$C,2,FALSE) -> Göteborg Central-Österport | D17: =+'Linjelänk JA_KAP'!J18 -> Väröbacka | E17: =IFERROR('Linjelänk JA_KAP'!K18,"") -> Värö | F17: =LinjeLänk_Data!F17 -> 43369572 | G17: =+LinjeLänk_Data!G17 -> 2 | H17: =+VLOOKUP($A17,LINJE_DATA!$A:$H,7,FALSE) -> 14 | I17: =+'Linjelänk JA_KAP'!AP18 -> 0
A18: =+LinjeLänk_Data!A18 -> 10001 | B18: =+VLOOKUP($A18,LINJE_DATA!$A:$C,3,FALSE) -> 2 | C18: =+VLOOKUP($A18,LINJE_DATA!$A:$C,2,FALSE) -> Göteborg Central-Österport | D18: =+'Linjelänk JA_KAP'!J19 -> Värö | E18: =IFERROR('Linjelänk JA_KAP'!K19,"") -> Varberg | F18: =LinjeLänk_Data!F18 -> 95724200 | G18: =+LinjeLänk_Data!G18 -> 15.43999958 | H18: =+VLOOKUP($A18,LINJE_DATA!$A:$H,7,FALSE) -> 14 | I18: =+'Linjelänk JA_KAP'!AP19 -> 0
A19: =+LinjeLänk_Data!A19 -> 10001 | B19: =+VLOOKUP($A19,LINJE_DATA!$A:$C,3,FALSE) -> 2 | C19: =+VLOOKUP($A19,LINJE_DATA!$A:$C,2,FALSE) -> Göteborg Central-Österport | D19: =+'Linjelänk JA_KAP'!J20 -> Varberg | E19: =IFERROR('Linjelänk JA_KAP'!K20,"") -> Hamra | F19: =LinjeLänk_Data!F19 -> 42009179 | G19: =+LinjeLänk_Data!G19 -> 6.769999981 | H19: =+VLOOKUP($A19,LINJE_DATA!$A:$H,7,FALSE) -> 14 | I19: =+'Linjelänk JA_KAP'!AP20 -> 0
A20: =+LinjeLänk_Data!A20 -> 10001 | B20: =+VLOOKUP($A20,LINJE_DATA!$A:$C,3,FALSE) -> 2 | C20: =+VLOOKUP($A20,LINJE_DATA!$A:$C,2,FALSE) -> Göteborg Central-Österport | D20: =+'Linjelänk JA_KAP'!J21 -> Hamra | E20: =IFERROR('Linjelänk JA_KAP'!K21,"") -> Tyllered | F20: =LinjeLänk_Data!F20 -> 91799538 | G20: =+LinjeLänk_Data!G20 -> 8.81000042 | H20: =+VLOOKUP($A20,LINJE_DATA!$A:$H,7,FALSE) -> 14 | I20: =+'Linjelänk JA_KAP'!AP21 -> 0
A21: =+LinjeLänk_Data!A21 -> 10001 | B21: =+VLOOKUP($A21,LINJE_DATA!$A:$C,3,FALSE) -> 2 | C21: =+VLOOKUP($A21,LINJE_DATA!$A:$C,2,FALSE) -> Göteborg Central-Österport | D21: =+'Linjelänk JA_KAP'!J22 -> Tyllered | E21: =IFERROR('Linjelänk JA_KAP'!K22,"") -> Torebo | F21: =LinjeLänk_Data!F21 -> 95389521 | G21: =+LinjeLänk_Data!G21 -> 8.529999733 | H21: =+VLOOKUP($A21,LINJE_DATA!$A:$H,7,FALSE) -> 14 | I21: =+'Linjelänk JA_KAP'!AP22 -> 0
A22: =+LinjeLänk_Data!A22 -> 10001 | B22: =+VLOOKUP($A22,LINJE_DATA!$A:$C,3,FALSE) -> 2 | C22: =+VLOOKUP($A22,LINJE_DATA!$A:$C,2,FALSE) -> Göteborg Central-Österport | D22: =+'Linjelänk JA_KAP'!J23 -> Torebo | E22: =IFERROR('Linjelänk JA_KAP'!K23,"") -> Falkenberg Personstation | F22: =LinjeLänk_Data!F22 -> 95214201 | G22: =+LinjeLänk_Data!G22 -> 5.010000229 | H22: =+VLOOKUP($A22,LINJE_DATA!$A:$H,7,FALSE) -> 14 | I22: =+'Linjelänk JA_KAP'!AP23 -> 0
A23: =+LinjeLänk_Data!A23 -> 10001 | B23: =+VLOOKUP($A23,LINJE_DATA!$A:$C,3,FALSE) -> 2 | C23: =+VLOOKUP($A23,LINJE_DATA!$A:$C,2,FALSE) -> Göteborg Central-Österport | D23: =+'Linjelänk JA_KAP'!J24 -> Falkenberg Personstation | E23: =IFERROR('Linjelänk JA_KAP'!K24,"") -> Heberg | F23: =LinjeLänk_Data!F23 -> 42014220 | G23: =+LinjeLänk_Data!G23 -> 10.38000011 | H23: =+VLOOKUP($A23,LINJE_DATA!$A:$H,7,FALSE) -> 14 | I23: =+'Linjelänk JA_KAP'!AP24 -> 0
A24: =+LinjeLänk_Data!A24 -> 10001 | B24: =+VLOOKUP($A24,LINJE_DATA!$A:$C,3,FALSE) -> 2 | C24: =+VLOOKUP($A24,LINJE_DATA!$A:$C,2,FALSE) -> Göteborg Central-Österport | D24: =+'Linjelänk JA_KAP'!J25 -> Heberg | E24: =IFERROR('Linjelänk JA_KAP'!K25,"") -> Brännarp | F24: =LinjeLänk_Data!F24 -> 42209048 | G24: =+LinjeLänk_Data!G24 -> 11.53999996 | H24: =+VLOOKUP($A24,LINJE_DATA!$A:$H,7,FALSE) -> 14 | I24: =+'Linjelänk JA_KAP'!AP25 -> 0
A25: =+LinjeLänk_Data!A25 -> 10001 | B25: =+VLOOKUP($A25,LINJE_DATA!$A:$C,3,FALSE) -> 2 | C25: =+VLOOKUP($A25,LINJE_DATA!$A:$C,2,FALSE) -> Göteborg Central-Österport | D25: =+'Linjelänk JA_KAP'!J26 -> Brännarp | E25: =IFERROR('Linjelänk JA_KAP'!K26,"") -> Biskopstorp | F25: =LinjeLänk_Data!F25 -> 90489062 | G25: =+LinjeLänk_Data!G25 -> 10.36999989 | H25: =+VLOOKUP($A25,LINJE_DATA!$A:$H,7,FALSE) -> 14 | I25: =+'Linjelänk JA_KAP'!AP26 -> 0
A26: =+LinjeLänk_Data!A26 -> 10001 | B26: =+VLOOKUP($A26,LINJE_DATA!$A:$C,3,FALSE) -> 2 | C26: =+VLOOKUP($A26,LINJE_DATA!$A:$C,2,FALSE) -> Göteborg Central-Österport | D26: =+'Linjelänk JA_KAP'!J27 -> Biskopstorp | E26: =IFERROR('Linjelänk JA_KAP'!K27,"") -> Furet | F26: =LinjeLänk_Data!F26 -> 90629129 | G26: =+LinjeLänk_Data!G26 -> 7.909999847 | H26: =+VLOOKUP($A26,LINJE_DATA!$A:$H,7,FALSE) -> 14 | I26: =+'Linjelänk JA_KAP'!AP27 -> 0
A27: =+LinjeLänk_Data!A27 -> 10001 | B27: =+VLOOKUP($A27,LINJE_DATA!$A:$C,3,FALSE) -> 2 | C27: =+VLOOKUP($A27,LINJE_DATA!$A:$C,2,FALSE) -> Göteborg Central-Österport | D27: =+'Linjelänk JA_KAP'!J28 -> Furet | E27: =IFERROR('Linjelänk JA_KAP'!K28,"") -> Halmstads Central | F27: =LinjeLänk_Data!F27 -> 91294100 | G27: =+LinjeLänk_Data!G27 -> 2.309999943 | H27: =+VLOOKUP($A27,LINJE_DATA!$A:$H,7,FALSE) -> 14 | I27: =+'Linjelänk JA_KAP'!AP28 -> 1
A28: =+LinjeLänk_Data!A28 -> 10001 | B28: =+VLOOKUP($A28,LINJE_DATA!$A:$C,3,FALSE) -> 2 | C28: =+VLOOKUP($A28,LINJE_DATA!$A:$C,2,FALSE) -> Göteborg Central-Österport | D28: =+'Linjelänk JA_KAP'!J29 -> Halmstads Central | E28: =IFERROR('Linjelänk JA_KAP'!K29,"") -> Halmstads Rangerbangård | F28: =LinjeLänk_Data!F28 -> 41009183 | G28: =+LinjeLänk_Data!G28 -> 1.090000033 | H28: =+VLOOKUP($A28,LINJE_DATA!$A:$H,7,FALSE) -> 14 | I28: =+'Linjelänk JA_KAP'!AP29 -> 0
A29: =+LinjeLänk_Data!A29 -> 10001 | B29: =+VLOOKUP($A29,LINJE_DATA!$A:$C,3,FALSE) -> 2 | C29: =+VLOOKUP($A29,LINJE_DATA!$A:$C,2,FALSE) -> Göteborg Central-Österport | D29: =+'Linjelänk JA_KAP'!J30 -> Halmstads Rangerbangård | E29: =IFERROR('Linjelänk JA_KAP'!K30,"") -> Kistinge | F29: =LinjeLänk_Data!F29 -> 91839282 | G29: =+LinjeLänk_Data!G29 -> 3.599999905 | H29: =+VLOOKUP($A29,LINJE_DATA!$A:$H,7,FALSE) -> 14 | I29: =+'Linjelänk JA_KAP'!AP30 -> 0
A30: =+LinjeLänk_Data!A30 -> 10001 | B30: =+VLOOKUP($A30,LINJE_DATA!$A:$C,3,FALSE) -> 2 | C30: =+VLOOKUP($A30,LINJE_DATA!$A:$C,2,FALSE) -> Göteborg Central-Österport | D30: =+'Linjelänk JA_KAP'!J31 -> Kistinge | E30: =IFERROR('Linjelänk JA_KAP'!K31,"") -> Eldsberga | F30: =LinjeLänk_Data!F30 -> 92829100 | G30: =+LinjeLänk_Data!G30 -> 7.409999847 | H30: =+VLOOKUP($A30,LINJE_DATA!$A:$H,7,FALSE) -> 14 | I30: =+'Linjelänk JA_KAP'!AP31 -> 0
A31: =+LinjeLänk_Data!A31 -> 10001 | B31: =+VLOOKUP($A31,LINJE_DATA!$A:$C,3,FALSE) -> 2 | C31: =+VLOOKUP($A31,LINJE_DATA!$A:$C,2,FALSE) -> Göteborg Central-Österport | D31: =+'Linjelänk JA_KAP'!J32 -> Eldsberga | E31: =IFERROR('Linjelänk JA_KAP'!K32,"") -> Laholm Västra | F31: =LinjeLänk_Data!F31 -> 91004101 | G31: =+LinjeLänk_Data!G31 -> 10.27000046 | H31: =+VLOOKUP($A31,LINJE_DATA!$A:$H,7,FALSE) -> 14 | I31: =+'Linjelänk JA_KAP'!AP32 -> 0
A32: =+LinjeLänk_Data!A32 -> 10001 | B32: =+VLOOKUP($A32,LINJE_DATA!$A:$C,3,FALSE) -> 2 | C32: =+VLOOKUP($A32,LINJE_DATA!$A:$C,2,FALSE) -> Göteborg Central-Österport | D32: =+'Linjelänk JA_KAP'!J33 -> Laholm Västra | E32: =IFERROR('Linjelänk JA_KAP'!K33,"") -> Båstad Norra | F32: =LinjeLänk_Data!F32 -> 41013602 | G32: =+LinjeLänk_Data!G32 -> 10.27000046 | H32: =+VLOOKUP($A32,LINJE_DATA!$A:$H,7,FALSE) -> 14 | I32: =+'Linjelänk JA_KAP'!AP33 -> 0
A33: =+LinjeLänk_Data!A33 -> 10001 | B33: =+VLOOKUP($A33,LINJE_DATA!$A:$C,3,FALSE) -> 2 | C33: =+VLOOKUP($A33,LINJE_DATA!$A:$C,2,FALSE) -> Göteborg Central-Österport | D33: =+'Linjelänk JA_KAP'!J34 -> Båstad Norra | E33: =IFERROR('Linjelänk JA_KAP'!K34,"") -> Förslöv | F33: =LinjeLänk_Data!F33 -> 36023604 | G33: =+LinjeLänk_Data!G33 -> 10.64999962 | H33: =+VLOOKUP($A33,LINJE_DATA!$A:$H,7,FALSE) -> 14 | I33: =+'Linjelänk JA_KAP'!AP34 -> 0
A34: =+LinjeLänk_Data!A34 -> 10001 | B34: =+VLOOKUP($A34,LINJE_DATA!$A:$C,3,FALSE) -> 2 | C34: =+VLOOKUP($A34,LINJE_DATA!$A:$C,2,FALSE) -> Göteborg Central-Österport | D34: =+'Linjelänk JA_KAP'!J35 -> Förslöv | E34: =IFERROR('Linjelänk JA_KAP'!K35,"") -> Vejbyslätt | F34: =LinjeLänk_Data!F34 -> 36049549 | G34: =+LinjeLänk_Data!G34 -> 4.5 | H34: =+VLOOKUP($A34,LINJE_DATA!$A:$H,7,FALSE) -> 14 | I34: =+'Linjelänk JA_KAP'!AP35 -> 0
A35: =+LinjeLänk_Data!A35 -> 10001 | B35: =+VLOOKUP($A35,LINJE_DATA!$A:$C,3,FALSE) -> 2 | C35: =+VLOOKUP($A35,LINJE_DATA!$A:$C,2,FALSE) -> Göteborg Central-Österport | D35: =+'Linjelänk JA_KAP'!J36 -> Vejbyslätt | E35: =IFERROR('Linjelänk JA_KAP'!K36,"") -> Barkåkra | F35: =LinjeLänk_Data!F35 -> 95493603 | G35: =+LinjeLänk_Data!G35 -> 2.369999886 | H35: =+VLOOKUP($A35,LINJE_DATA!$A:$H,7,FALSE) -> 14 | I35: =+'Linjelänk JA_KAP'!AP36 -> 0
A36: =+LinjeLänk_Data!A36 -> 10001 | B36: =+VLOOKUP($A36,LINJE_DATA!$A:$C,3,FALSE) -> 2 | C36: =+VLOOKUP($A36,LINJE_DATA!$A:$C,2,FALSE) -> Göteborg Central-Österport | D36: =+'Linjelänk JA_KAP'!J37 -> Barkåkra | E36: =IFERROR('Linjelänk JA_KAP'!K37,"") -> Ängelholm | F36: =LinjeLänk_Data!F36 -> 36033600 | G36: =+LinjeLänk_Data!G36 -> 5.789999962 | H36: =+VLOOKUP($A36,LINJE_DATA!$A:$H,7,FALSE) -> 14 | I36: =+'Linjelänk JA_KAP'!AP37 -> 0
A37: =+LinjeLänk_Data!A37 -> 10001 | B37: =+VLOOKUP($A37,LINJE_DATA!$A:$C,3,FALSE) -> 2 | C37: =+VLOOKUP($A37,LINJE_DATA!$A:$C,2,FALSE) -> Göteborg Central-Österport | D37: =+'Linjelänk JA_KAP'!J38 -> Ängelholm | E37: =IFERROR('Linjelänk JA_KAP'!K38,"") -> Vegeholm | F37: =LinjeLänk_Data!F37 -> 36009551 | G37: =+LinjeLänk_Data!G37 -> 5.730000019 | H37: =+VLOOKUP($A37,LINJE_DATA!$A:$H,7,FALSE) -> 14 | I37: =+'Linjelänk JA_KAP'!AP38 -> 0
A38: =+LinjeLänk_Data!A38 -> 10001 | B38: =+VLOOKUP($A38,LINJE_DATA!$A:$C,3,FALSE) -> 2 | C38: =+VLOOKUP($A38,LINJE_DATA!$A:$C,2,FALSE) -> Göteborg Central-Österport | D38: =+'Linjelänk JA_KAP'!J39 -> Vegeholm | E38: =IFERROR('Linjelänk JA_KAP'!K39,"") -> Kattarp | F38: =LinjeLänk_Data!F38 -> 95513732 | G38: =+LinjeLänk_Data!G38 -> 7.369999886 | H38: =+VLOOKUP($A38,LINJE_DATA!$A:$H,7,FALSE) -> 14 | I38: =+'Linjelänk JA_KAP'!AP39 -> 0
A39: =+LinjeLänk_Data!A39 -> 10001 | B39: =+VLOOKUP($A39,LINJE_DATA!$A:$C,3,FALSE) -> 2 | C39: =+VLOOKUP($A39,LINJE_DATA!$A:$C,2,FALSE) -> Göteborg Central-Österport | D39: =+'Linjelänk JA_KAP'!J40 -> Kattarp | E39: =IFERROR('Linjelänk JA_KAP'!K40,"") -> Ödåkra | F39: =LinjeLänk_Data!F39 -> 37323709 | G39: =+LinjeLänk_Data!G39 -> 4.949999809 | H39: =+VLOOKUP($A39,LINJE_DATA!$A:$H,7,FALSE) -> 14 | I39: =+'Linjelänk JA_KAP'!AP40 -> 0
A40: =+LinjeLänk_Data!A40 -> 10001 | B40: =+VLOOKUP($A40,LINJE_DATA!$A:$C,3,FALSE) -> 2 | C40: =+VLOOKUP($A40,LINJE_DATA!$A:$C,2,FALSE) -> Göteborg Central-Österport | D40: =+'Linjelänk JA_KAP'!J41 -> Ödåkra | E40: =IFERROR('Linjelänk JA_KAP'!K41,"") -> Maria | F40: =LinjeLänk_Data!F40 -> 37093699 | G40: =+LinjeLänk_Data!G40 -> 3.890000105 | H40: =+VLOOKUP($A40,LINJE_DATA!$A:$H,7,FALSE) -> 14 | I40: =+'Linjelänk JA_KAP'!AP41 -> 0
A41: =+LinjeLänk_Data!A41 -> 10001 | B41: =+VLOOKUP($A41,LINJE_DATA!$A:$C,3,FALSE) -> 2 | C41: =+VLOOKUP($A41,LINJE_DATA!$A:$C,2,FALSE) -> Göteborg Central-Österport | D41: =+'Linjelänk JA_KAP'!J42 -> Maria | E41: =IFERROR('Linjelänk JA_KAP'!K42,"") -> Helsingborgs Central | F41: =LinjeLänk_Data!F41 -> 36993700 | G41: =+LinjeLänk_Data!G41 -> 4.889999866 | H41: =+VLOOKUP($A41,LINJE_DATA!$A:$H,7,FALSE) -> 14 | I41: =+'Linjelänk JA_KAP'!AP42 -> 1
A42: =+LinjeLänk_Data!A42 -> 10001 | B42: =+VLOOKUP($A42,LINJE_DATA!$A:$C,3,FALSE) -> 2 | C42: =+VLOOKUP($A42,LINJE_DATA!$A:$C,2,FALSE) -> Göteborg Central-Österport | D42: =+'Linjelänk JA_KAP'!J43 -> Helsingborgs Central | E42: =IFERROR('Linjelänk JA_KAP'!K43,"") -> Helsingborgs Godsbangård | F42: =LinjeLänk_Data!F42 -> 37003942 | G42: =+LinjeLänk_Data!G42 -> 3 | H42: =+VLOOKUP($A42,LINJE_DATA!$A:$H,7,FALSE) -> 14 | I42: =+'Linjelänk JA_KAP'!AP43 -> 0
A43: =+LinjeLänk_Data!A43 -> 10001 | B43: =+VLOOKUP($A43,LINJE_DATA!$A:$C,3,FALSE) -> 2 | C43: =+VLOOKUP($A43,LINJE_DATA!$A:$C,2,FALSE) -> Göteborg Central-Österport | D43: =+'Linjelänk JA_KAP'!J44 -> Helsingborgs Godsbangård | E43: =IFERROR('Linjelänk JA_KAP'!K44,"") -> Mellannod Hbgb-Ryä | F43: =LinjeLänk_Data!F43 -> 39429603 | G43: =+LinjeLänk_Data!G43 -> 2.395009995 | H43: =+VLOOKUP($A43,LINJE_DATA!$A:$H,7,FALSE) -> 14 | I43: =+'Linjelänk JA_KAP'!AP44 -> 0
A44: =+LinjeLänk_Data!A44 -> 10001 | B44: =+VLOOKUP($A44,LINJE_DATA!$A:$C,3,FALSE) -> 2 | C44: =+VLOOKUP($A44,LINJE_DATA!$A:$C,2,FALSE) -> Göteborg Central-Österport | D44: =+'Linjelänk JA_KAP'!J45 -> Mellannod Hbgb-Ryä | E44: =IFERROR('Linjelänk JA_KAP'!K45,"") -> Rydebäck | F44: =LinjeLänk_Data!F44 -> 96033706 | G44: =+LinjeLänk_Data!G44 -> 4.972690105 | H44: =+VLOOKUP($A44,LINJE_DATA!$A:$H,7,FALSE) -> 14 | I44: =+'Linjelänk JA_KAP'!AP45 -> 0
A45: =+LinjeLänk_Data!A45 -> 10001 | B45: =+VLOOKUP($A45,LINJE_DATA!$A:$C,3,FALSE) -> 2 | C45: =+VLOOKUP($A45,LINJE_DATA!$A:$C,2,FALSE) -> Göteborg Central-Österport | D45: =+'Linjelänk JA_KAP'!J46 -> Rydebäck | E45: =IFERROR('Linjelänk JA_KAP'!K46,"") -> Glumslöv | F45: =LinjeLänk_Data!F45 -> 37063718 | G45: =+LinjeLänk_Data!G45 -> 3.140000105 | H45: =+VLOOKUP($A45,LINJE_DATA!$A:$H,7,FALSE) -> 14 | I45: =+'Linjelänk JA_KAP'!AP46 -> 0
A46: =+LinjeLänk_Data!A46 -> 10001 | B46: =+VLOOKUP($A46,LINJE_DATA!$A:$C,3,FALSE) -> 2 | C46: =+VLOOKUP($A46,LINJE_DATA!$A:$C,2,FALSE) -> Göteborg Central-Österport | D46: =+'Linjelänk JA_KAP'!J47 -> Glumslöv | E46: =IFERROR('Linjelänk JA_KAP'!K47,"") -> Landskrona Östra | F46: =LinjeLänk_Data!F46 -> 37183701 | G46: =+LinjeLänk_Data!G46 -> 7.840000153 | H46: =+VLOOKUP($A46,LINJE_DATA!$A:$H,7,FALSE) -> 14 | I46: =+'Linjelänk JA_KAP'!AP47 -> 0
A47: =+LinjeLänk_Data!A47 -> 10001 | B47: =+VLOOKUP($A47,LINJE_DATA!$A:$C,3,FALSE) -> 2 | C47: =+VLOOKUP($A47,LINJE_DATA!$A:$C,2,FALSE) -> Göteborg Central-Österport | D47: =+'Linjelänk JA_KAP'!J48 -> Landskrona Östra | E47: =IFERROR('Linjelänk JA_KAP'!K48,"") -> Häljarp | F47: =LinjeLänk_Data!F47 -> 37013713 | G47: =+LinjeLänk_Data!G47 -> 4.260000229 | H47: =+VLOOKUP($A47,LINJE_DATA!$A:$H,7,FALSE) -> 14 | I47: =+'Linjelänk JA_KAP'!AP48 -> 0
A48: =+LinjeLänk_Data!A48 -> 10001 | B48: =+VLOOKUP($A48,LINJE_DATA!$A:$C,3,FALSE) -> 2 | C48: =+VLOOKUP($A48,LINJE_DATA!$A:$C,2,FALSE) -> Göteborg Central-Österport | D48: =+'Linjelänk JA_KAP'!J49 -> Häljarp | E48: =IFERROR('Linjelänk JA_KAP'!K49,"") -> Dösjebro | F48: =LinjeLänk_Data!F48 -> 37133831 | G48: =+LinjeLänk_Data!G48 -> 8.909999847 | H48: =+VLOOKUP($A48,LINJE_DATA!$A:$H,7,FALSE) -> 14 | I48: =+'Linjelänk JA_KAP'!AP49 -> 0
A49: =+LinjeLänk_Data!A49 -> 10001 | B49: =+VLOOKUP($A49,LINJE_DATA!$A:$C,3,FALSE) -> 2 | C49: =+VLOOKUP($A49,LINJE_DATA!$A:$C,2,FALSE) -> Göteborg Central-Österport | D49: =+'Linjelänk JA_KAP'!J50 -> Dösjebro | E49: =IFERROR('Linjelänk JA_KAP'!K50,"") -> Kävlinge | F49: =LinjeLänk_Data!F49 -> 38313810 | G49: =+LinjeLänk_Data!G49 -> 6.769999981 | H49: =+VLOOKUP($A49,LINJE_DATA!$A:$H,7,FALSE) -> 14 | I49: =+'Linjelänk JA_KAP'!AP50 -> 0
A50: =+LinjeLänk_Data!A50 -> 10001 | B50: =+VLOOKUP($A50,LINJE_DATA!$A:$C,3,FALSE) -> 2 | C50: =+VLOOKUP($A50,LINJE_DATA!$A:$C,2,FALSE) -> Göteborg Central-Österport | D50: =+'Linjelänk JA_KAP'!J51 -> Kävlinge | E50: =IFERROR('Linjelänk JA_KAP'!K51,"") -> Gunnesbo | F50: =LinjeLänk_Data!F50 -> 38103865 | G50: =+LinjeLänk_Data!G50 -> 8.529999733 | H50: =+VLOOKUP($A50,LINJE_DATA!$A:$H,7,FALSE) -> 14 | I50: =+'Linjelänk JA_KAP'!AP51 -> 0
A51: =+LinjeLänk_Data!A51 -> 10001 | B51: =+VLOOKUP($A51,LINJE_DATA!$A:$C,3,FALSE) -> 2 | C51: =+VLOOKUP($A51,LINJE_DATA!$A:$C,2,FALSE) -> Göteborg Central-Österport | D51: =+'Linjelänk JA_KAP'!J52 -> Gunnesbo | E51: =IFERROR('Linjelänk JA_KAP'!K52,"") -> Lund C | F51: =LinjeLänk_Data!F51 -> 38653801 | G51: =+LinjeLänk_Data!G51 -> 2.420000076 | H51: =+VLOOKUP($A51,LINJE_DATA!$A:$H,7,FALSE) -> 14 | I51: =+'Linjelänk JA_KAP'!AP52 -> 1
A52: =+LinjeLänk_Data!A52 -> 10001 | B52: =+VLOOKUP($A52,LINJE_DATA!$A:$C,3,FALSE) -> 2 | C52: =+VLOOKUP($A52,LINJE_DATA!$A:$C,2,FALSE) -> Göteborg Central-Österport | D52: =+'Linjelänk JA_KAP'!J53 -> Lund C | E52: =IFERROR('Linjelänk JA_KAP'!K53,"") -> Klostergården | F52: =LinjeLänk_Data!F52 -> 38013804 | G52: =+LinjeLänk_Data!G52 -> 2.029999971 | H52: =+VLOOKUP($A52,LINJE_DATA!$A:$H,7,FALSE) -> 14 | I52: =+'Linjelänk JA_KAP'!AP53 -> 0
A53: =+LinjeLänk_Data!A53 -> 10001 | B53: =+VLOOKUP($A53,LINJE_DATA!$A:$C,3,FALSE) -> 2 | C53: =+VLOOKUP($A53,LINJE_DATA!$A:$C,2,FALSE) -> Göteborg Central-Österport | D53: =+'Linjelänk JA_KAP'!J54 -> Klostergården | E53: =IFERROR('Linjelänk JA_KAP'!K54,"") -> Flackarp | F53: =LinjeLänk_Data!F53 -> 38049120 | G53: =+LinjeLänk_Data!G53 -> 1.039999962 | H53: =+VLOOKUP($A53,LINJE_DATA!$A:$H,7,FALSE) -> 14 | I53: =+'Linjelänk JA_KAP'!AP54 -> 0
A54: =+LinjeLänk_Data!A54 -> 10001 | B54: =+VLOOKUP($A54,LINJE_DATA!$A:$C,3,FALSE) -> 2 | C54: =+VLOOKUP($A54,LINJE_DATA!$A:$C,2,FALSE) -> Göteborg Central-Österport | D54: =+'Linjelänk JA_KAP'!J55 -> Flackarp | E54: =IFERROR('Linjelänk JA_KAP'!K55,"") -> Hjärup | F54: =LinjeLänk_Data!F54 -> 91203821 | G54: =+LinjeLänk_Data!G54 -> 1.99000001 | H54: =+VLOOKUP($A54,LINJE_DATA!$A:$H,7,FALSE) -> 14 | I54: =+'Linjelänk JA_KAP'!AP55 -> 0
A55: =+LinjeLänk_Data!A55 -> 10001 | B55: =+VLOOKUP($A55,LINJE_DATA!$A:$C,3,FALSE) -> 2 | C55: =+VLOOKUP($A55,LINJE_DATA!$A:$C,2,FALSE) -> Göteborg Central-Österport | D55: =+'Linjelänk JA_KAP'!J56 -> Hjärup | E55: =IFERROR('Linjelänk JA_KAP'!K56,"") -> Åkarps norra | F55: =LinjeLänk_Data!F55 -> 38213812 | G55: =+LinjeLänk_Data!G55 -> 2.029999971 | H55: =+VLOOKUP($A55,LINJE_DATA!$A:$H,7,FALSE) -> 14 | I55: =+'Linjelänk JA_KAP'!AP56 -> 0
A56: =+LinjeLänk_Data!A56 -> 10001 | B56: =+VLOOKUP($A56,LINJE_DATA!$A:$C,3,FALSE) -> 2 | C56: =+VLOOKUP($A56,LINJE_DATA!$A:$C,2,FALSE) -> Göteborg Central-Österport | D56: =+'Linjelänk JA_KAP'!J57 -> Åkarps norra | E56: =IFERROR('Linjelänk JA_KAP'!K57,"") -> Åkarp | F56: =LinjeLänk_Data!F56 -> 38129588 | G56: =+LinjeLänk_Data!G56 -> 0.5199999809 | H56: =+VLOOKUP($A56,LINJE_DATA!$A:$H,7,FALSE) -> 14 | I56: =+'Linjelänk JA_KAP'!AP57 -> 0
A57: =+LinjeLänk_Data!A57 -> 10001 | B57: =+VLOOKUP($A57,LINJE_DATA!$A:$C,3,FALSE) -> 2 | C57: =+VLOOKUP($A57,LINJE_DATA!$A:$C,2,FALSE) -> Göteborg Central-Österport | D57: =+'Linjelänk JA_KAP'!J58 -> Åkarp | E57: =IFERROR('Linjelänk JA_KAP'!K58,"") -> Burlöv | F57: =LinjeLänk_Data!F57 -> 95883853 | G57: =+LinjeLänk_Data!G57 -> 2.519999981 | H57: =+VLOOKUP($A57,LINJE_DATA!$A:$H,7,FALSE) -> 14 | I57: =+'Linjelänk JA_KAP'!AP58 -> 0
A58: =+LinjeLänk_Data!A58 -> 10001 | B58: =+VLOOKUP($A58,LINJE_DATA!$A:$C,3,FALSE) -> 2 | C58: =+VLOOKUP($A58,LINJE_DATA!$A:$C,2,FALSE) -> Göteborg Central-Österport | D58: =+'Linjelänk JA_KAP'!J59 -> Burlöv | E58: =IFERROR('Linjelänk JA_KAP'!K59,"") -> Arlöv | F58: =LinjeLänk_Data!F58 -> 38533852 | G58: =+LinjeLänk_Data!G58 -> 1.100000024 | H58: =+VLOOKUP($A58,LINJE_DATA!$A:$H,7,FALSE) -> 14 | I58: =+'Linjelänk JA_KAP'!AP59 -> 0
A59: =+LinjeLänk_Data!A59 -> 10001 | B59: =+VLOOKUP($A59,LINJE_DATA!$A:$C,3,FALSE) -> 2 | C59: =+VLOOKUP($A59,LINJE_DATA!$A:$C,2,FALSE) -> Göteborg Central-Österport | D59: =+'Linjelänk JA_KAP'!J60 -> Arlöv | E59: =IFERROR('Linjelänk JA_KAP'!K60,"") -> Malmö godsbangård, persontåg mot Malmö C | F59: =LinjeLänk_Data!F59 -> 38523005 | G59: =+LinjeLänk_Data!G59 -> 2.450000048 | H59: =+VLOOKUP($A59,LINJE_DATA!$A:$H,7,FALSE) -> 14 | I59: =+'Linjelänk JA_KAP'!AP60 -> 0
A60: =+LinjeLänk_Data!A60 -> 10001 | B60: =+VLOOKUP($A60,LINJE_DATA!$A:$C,3,FALSE) -> 2 | C60: =+VLOOKUP($A60,LINJE_DATA!$A:$C,2,FALSE) -> Göteborg Central-Österport | D60: =+'Linjelänk JA_KAP'!J61 -> Malmö godsbangård, persontåg mot Malmö C | E60: =IFERROR('Linjelänk JA_KAP'!K61,"") -> Malmö central | F60: =LinjeLänk_Data!F60 -> 30053800 | G60: =+LinjeLänk_Data!G60 -> 3.025000095 | H60: =+VLOOKUP($A60,LINJE_DATA!$A:$H,7,FALSE) -> 14 | I60: =+'Linjelänk JA_KAP'!AP61 -> 1
A61: =+LinjeLänk_Data!A61 -> 10001 | B61: =+VLOOKUP($A61,LINJE_DATA!$A:$C,3,FALSE) -> 2 | C61: =+VLOOKUP($A61,LINJE_DATA!$A:$C,2,FALSE) -> Göteborg Central-Österport | D61: =+'Linjelänk JA_KAP'!J62 -> Malmö central | E61: =IFERROR('Linjelänk JA_KAP'!K62,"") -> Malmö central tågvändning | F61: =LinjeLänk_Data!F61 -> 38003607 | G61: =+LinjeLänk_Data!G61 -> 0 | H61: =+VLOOKUP($A61,LINJE_DATA!$A:$H,7,FALSE) -> 14 | I61: =+'Linjelänk JA_KAP'!AP62 -> 0
A62: =+LinjeLänk_Data!A62 -> 10001 | B62: =+VLOOKUP($A62,LINJE_DATA!$A:$C,3,FALSE) -> 2 | C62: =+VLOOKUP($A62,LINJE_DATA!$A:$C,2,FALSE) -> Göteborg Central-Österport | D62: =+'Linjelänk JA_KAP'!J63 -> Malmö central tågvändning | E62: =IFERROR('Linjelänk JA_KAP'!K63,"") -> Malmö central | F62: =LinjeLänk_Data!F62 -> 36073800 | G62: =+LinjeLänk_Data!G62 -> 0 | H62: =+VLOOKUP($A62,LINJE_DATA!$A:$H,7,FALSE) -> 14 | I62: =+'Linjelänk JA_KAP'!AP63 -> 0
... 77 more rows

Sheet Persontågslinjer
A1: Linjenr | B1: Linjesträckning | C1: Tågtyp kalkyl | D1: Tågtyp kapacitet | E1: Tågtyp Gångtid | F1: Turer JA | G1: Turer UA | H1: Ange diff turer | K1: Tågbyte UA: Tågtyp kalkyl UA | L1: Diff tågtid minuter t.o.r | M1: Diff förseningstid tåg | N1: Diff PÖ | O1: Diff KÖ
A2: =+LINJE_DATA!A3 -> 10001 | B2: =+LINJE_DATA!B3 -> Göteborg Central-Österport | C2: =+LINJE_DATA!C3 -> 2 | D2: =+LINJE_DATA!D3 -> s | E2: =++IF(LINJE_DATA!E3="",0,LINJE_DATA!E3) -> X55 | F2: =+LINJE_DATA!G3 -> 14 | G2: =+F2+H2 -> 14 | L2: =+Persontåg!P5 -> 0 | M2: =+Persontåg!L5 -> 0 | N2: =+Persontåg!U5+Persontåg!V5 -> 0 | O2: =+Persontåg!W5+Persontåg!X5 -> 0
A3: =+LINJE_DATA!A4 -> 10001R | B3: =+LINJE_DATA!B4 -> Österport-Göteborg Central | C3: =+LINJE_DATA!C4 -> 2 | D3: =+LINJE_DATA!D4 -> s | E3: =++IF(LINJE_DATA!E4="",0,LINJE_DATA!E4) -> X55 | F3: =+LINJE_DATA!G4 -> 14 | G3: =+F3+H3 -> 14 | L3: =+Persontåg!P6 -> 0 | M3: =+Persontåg!L6 -> 0 | N3: =+Persontåg!U6+Persontåg!V6 -> 0 | O3: =+Persontåg!W6+Persontåg!X6 -> 0
A4: =+LINJE_DATA!A5 -> 10002 | B4: =+LINJE_DATA!B5 -> Oslo-Österport | C4: =+LINJE_DATA!C5 -> 4 | D4: =+LINJE_DATA!D5 -> s | E4: =++IF(LINJE_DATA!E5="",0,LINJE_DATA!E5) -> BM73b | F4: =+LINJE_DATA!G5 -> 4 | G4: 4 | L4: =+Persontåg!P7 -> 0 | M4: =+Persontåg!L7 -> 0 | N4: =+Persontåg!U7+Persontåg!V7 -> 0 | O4: =+Persontåg!W7+Persontåg!X7 -> 0
A5: =+LINJE_DATA!A6 -> 10002R | B5: =+LINJE_DATA!B6 -> Österport-Oslo | C5: =+LINJE_DATA!C6 -> 4 | D5: =+LINJE_DATA!D6 -> s | E5: =++IF(LINJE_DATA!E6="",0,LINJE_DATA!E6) -> BM73b | F5: =+LINJE_DATA!G6 -> 4 | G5: 4 | L5: =+Persontåg!P8 -> 0 | M5: =+Persontåg!L8 -> 0 | N5: =+Persontåg!U8+Persontåg!V8 -> 0 | O5: =+Persontåg!W8+Persontåg!X8 -> 0
A6: =+LINJE_DATA!A7 -> 10003 | B6: =+LINJE_DATA!B7 -> Göteborg Central-Österport | C6: =+LINJE_DATA!C7 -> 1 | D6: =+LINJE_DATA!D7 -> Ö | E6: =++IF(LINJE_DATA!E7="",0,LINJE_DATA!E7) -> X74 | F6: =+LINJE_DATA!G7 -> 34 | G6: 34 | L6: =+Persontåg!P9 -> 0 | M6: =+Persontåg!L9 -> 0 | N6: =+Persontåg!U9+Persontåg!V9 -> 0 | O6: =+Persontåg!W9+Persontåg!X9 -> 0
A7: =+LINJE_DATA!A8 -> 10003R | B7: =+LINJE_DATA!B8 -> Österport-Göteborg Central | C7: =+LINJE_DATA!C8 -> 1 | D7: =+LINJE_DATA!D8 -> Ö | E7: =++IF(LINJE_DATA!E8="",0,LINJE_DATA!E8) -> X74 | F7: =+LINJE_DATA!G8 -> 34 | G7: 34 | L7: =+Persontåg!P10 -> 0 | M7: =+Persontåg!L10 -> 0 | N7: =+Persontåg!U10+Persontåg!V10 -> 0 | O7: =+Persontåg!W10+Persontåg!X10 -> 0
A8: =+LINJE_DATA!A9 -> 10401 | B8: =+LINJE_DATA!B9 -> Kristianstads Central-Ystad | C8: =+LINJE_DATA!C9 -> 15 | D8: =+LINJE_DATA!D9 -> L | E8: =++IF(LINJE_DATA!E9="",0,LINJE_DATA!E9) -> X61 | F8: =+LINJE_DATA!G9 -> 13 | G8: 13 | L8: =+Persontåg!P11 -> 0 | M8: =+Persontåg!L11 -> 0 | N8: =+Persontåg!U11+Persontåg!V11 -> 0 | O8: =+Persontåg!W11+Persontåg!X11 -> 0
A9: =+LINJE_DATA!A10 -> 10401R | B9: =+LINJE_DATA!B10 -> Ystad-Kristianstads Central | C9: =+LINJE_DATA!C10 -> 15 | D9: =+LINJE_DATA!D10 -> L | E9: =++IF(LINJE_DATA!E10="",0,LINJE_DATA!E10) -> X61 | F9: =+LINJE_DATA!G10 -> 13 | G9: 13 | L9: =+Persontåg!P12 -> 0 | M9: =+Persontåg!L12 -> 0 | N9: =+Persontåg!U12+Persontåg!V12 -> 0 | O9: =+Persontåg!W12+Persontåg!X12 -> 0
A10: =+LINJE_DATA!A11 -> 10402 | B10: =+LINJE_DATA!B11 -> Kristianstads Central-Simrishamn | C10: =+LINJE_DATA!C11 -> 15 | D10: =+LINJE_DATA!D11 -> L | E10: =++IF(LINJE_DATA!E11="",0,LINJE_DATA!E11) -> X61 | F10: =+LINJE_DATA!G11 -> 7 | G10: 7 | L10: =+Persontåg!P13 -> 0 | M10: =+Persontåg!L13 -> 0 | N10: =+Persontåg!U13+Persontåg!V13 -> 0 | O10: =+Persontåg!W13+Persontåg!X13 -> 0
A11: =+LINJE_DATA!A12 -> 10402R | B11: =+LINJE_DATA!B12 -> Simrishamn-Kristianstads Central | C11: =+LINJE_DATA!C12 -> 15 | D11: =+LINJE_DATA!D12 -> L | E11: =++IF(LINJE_DATA!E12="",0,LINJE_DATA!E12) -> X61 | F11: =+LINJE_DATA!G12 -> 7 | G11: 7 | L11: =+Persontåg!P14 -> 0 | M11: =+Persontåg!L14 -> 0 | N11: =+Persontåg!U14+Persontåg!V14 -> 0 | O11: =+Persontåg!W14+Persontåg!X14 -> 0
A12: =+LINJE_DATA!A13 -> 10403 | B12: =+LINJE_DATA!B13 -> Helsingborgs Central-Simrishamn | C12: =+LINJE_DATA!C13 -> 15 | D12: =+LINJE_DATA!D13 -> L | E12: =++IF(LINJE_DATA!E13="",0,LINJE_DATA!E13) -> X61 | F12: =+LINJE_DATA!G13 -> 19 | G12: 19 | L12: =+Persontåg!P15 -> 0 | M12: =+Persontåg!L15 -> 0 | N12: =+Persontåg!U15+Persontåg!V15 -> 0 | O12: =+Persontåg!W15+Persontåg!X15 -> 0
A13: =+LINJE_DATA!A14 -> 10403R | B13: =+LINJE_DATA!B14 -> Simrishamn-Helsingborgs Central | C13: =+LINJE_DATA!C14 -> 15 | D13: =+LINJE_DATA!D14 -> L | E13: =++IF(LINJE_DATA!E14="",0,LINJE_DATA!E14) -> X61 | F13: =+LINJE_DATA!G14 -> 19 | G13: 19 | L13: =+Persontåg!P16 -> 0 | M13: =+Persontåg!L16 -> 0 | N13: =+Persontåg!U16+Persontåg!V16 -> 0 | O13: =+Persontåg!W16+Persontåg!X16 -> 0
A14: =+LINJE_DATA!A15 -> 10404 | B14: =+LINJE_DATA!B15 -> Båstad Norra-Helsingborgs Central | C14: =+LINJE_DATA!C15 -> 15 | D14: =+LINJE_DATA!D15 -> L | E14: =++IF(LINJE_DATA!E15="",0,LINJE_DATA!E15) -> X61 | F14: =+LINJE_DATA!G15 -> 27 | G14: 27 | L14: =+Persontåg!P17 -> 0 | M14: =+Persontåg!L17 -> 0 | N14: =+Persontåg!U17+Persontåg!V17 -> 0 | O14: =+Persontåg!W17+Persontåg!X17 -> 0
A15: =+LINJE_DATA!A16 -> 10404R | B15: =+LINJE_DATA!B16 -> Helsingborgs Central-Båstad Norra | C15: =+LINJE_DATA!C16 -> 15 | D15: =+LINJE_DATA!D16 -> L | E15: =++IF(LINJE_DATA!E16="",0,LINJE_DATA!E16) -> X61 | F15: =+LINJE_DATA!G16 -> 27 | G15: 27 | L15: =+Persontåg!P18 -> 0 | M15: =+Persontåg!L18 -> 0 | N15: =+Persontåg!U18+Persontåg!V18 -> 0 | O15: =+Persontåg!W18+Persontåg!X18 -> 0
A16: =+LINJE_DATA!A17 -> 10405 | B16: =+LINJE_DATA!B17 -> Hässleholm-Hyllie | C16: =+LINJE_DATA!C17 -> 15 | D16: =+LINJE_DATA!D17 -> L | E16: =++IF(LINJE_DATA!E17="",0,LINJE_DATA!E17) -> X61 | F16: =+LINJE_DATA!G17 -> 16 | G16: 16 | L16: =+Persontåg!P19 -> 0 | M16: =+Persontåg!L19 -> 0 | N16: =+Persontåg!U19+Persontåg!V19 -> 0 | O16: =+Persontåg!W19+Persontåg!X19 -> 0
A17: =+LINJE_DATA!A18 -> 10405R | B17: =+LINJE_DATA!B18 -> Hyllie-Hässleholm | C17: =+LINJE_DATA!C18 -> 15 | D17: =+LINJE_DATA!D18 -> L | E17: =++IF(LINJE_DATA!E18="",0,LINJE_DATA!E18) -> X61 | F17: =+LINJE_DATA!G18 -> 16 | G17: 16 | L17: =+Persontåg!P20 -> 0 | M17: =+Persontåg!L20 -> 0 | N17: =+Persontåg!U20+Persontåg!V20 -> 0 | O17: =+Persontåg!W20+Persontåg!X20 -> 0
A18: =+LINJE_DATA!A19 -> 10406 | B18: =+LINJE_DATA!B19 -> Höör-Malmö central | C18: =+LINJE_DATA!C19 -> 15 | D18: =+LINJE_DATA!D19 -> Ö | E18: =++IF(LINJE_DATA!E19="",0,LINJE_DATA!E19) -> X61 | F18: =+LINJE_DATA!G19 -> 8 | G18: 8 | L18: =+Persontåg!P21 -> 0 | M18: =+Persontåg!L21 -> 0 | N18: =+Persontåg!U21+Persontåg!V21 -> 0 | O18: =+Persontåg!W21+Persontåg!X21 -> 0
A19: =+LINJE_DATA!A20 -> 10406R | B19: =+LINJE_DATA!B20 -> Malmö central-Höör | C19: =+LINJE_DATA!C20 -> 15 | D19: =+LINJE_DATA!D20 -> Ö | E19: =++IF(LINJE_DATA!E20="",0,LINJE_DATA!E20) -> X61 | F19: =+LINJE_DATA!G20 -> 8 | G19: 8 | L19: =+Persontåg!P22 -> 0 | M19: =+Persontåg!L22 -> 0 | N19: =+Persontåg!U22+Persontåg!V22 -> 0 | O19: =+Persontåg!W22+Persontåg!X22 -> 0
A20: =+LINJE_DATA!A21 -> 10501 | B20: =+LINJE_DATA!B21 -> Åstorp-Hyllie | C20: =+LINJE_DATA!C21 -> 15 | D20: =+LINJE_DATA!D21 -> L | E20: =++IF(LINJE_DATA!E21="",0,LINJE_DATA!E21) -> X61 | F20: =+LINJE_DATA!G21 -> 19 | G20: 19 | L20: =+Persontåg!P23 -> 0 | M20: =+Persontåg!L23 -> 0 | N20: =+Persontåg!U23+Persontåg!V23 -> 0 | O20: =+Persontåg!W23+Persontåg!X23 -> 0
A21: =+LINJE_DATA!A22 -> 10501R | B21: =+LINJE_DATA!B22 -> Hyllie-Åstorp | C21: =+LINJE_DATA!C22 -> 15 | D21: =+LINJE_DATA!D22 -> L | E21: =++IF(LINJE_DATA!E22="",0,LINJE_DATA!E22) -> X61 | F21: =+LINJE_DATA!G22 -> 19 | G21: 19 | L21: =+Persontåg!P24 -> 0 | M21: =+Persontåg!L24 -> 0 | N21: =+Persontåg!U24+Persontåg!V24 -> 0 | O21: =+Persontåg!W24+Persontåg!X24 -> 0
A22: =+LINJE_DATA!A23 -> 10502 | B22: =+LINJE_DATA!B23 -> Kävlinge-Malmö central övre | C22: =+LINJE_DATA!C23 -> 15 | D22: =+LINJE_DATA!D23 -> L | E22: =++IF(LINJE_DATA!E23="",0,LINJE_DATA!E23) -> X61 | F22: =+LINJE_DATA!G23 -> 32 | G22: 32 | L22: =+Persontåg!P25 -> 0 | M22: =+Persontåg!L25 -> 0 | N22: =+Persontåg!U25+Persontåg!V25 -> 0 | O22: =+Persontåg!W25+Persontåg!X25 -> 0
A23: =+LINJE_DATA!A24 -> 10502R | B23: =+LINJE_DATA!B24 -> Malmö central övre-Kävlinge | C23: =+LINJE_DATA!C24 -> 15 | D23: =+LINJE_DATA!D24 -> L | E23: =++IF(LINJE_DATA!E24="",0,LINJE_DATA!E24) -> X61 | F23: =+LINJE_DATA!G24 -> 32 | G23: 32 | L23: =+Persontåg!P26 -> 0 | M23: =+Persontåg!L26 -> 0 | N23: =+Persontåg!U26+Persontåg!V26 -> 0 | O23: =+Persontåg!W26+Persontåg!X26 -> 0
A24: =+LINJE_DATA!A25 -> 10503 | B24: =+LINJE_DATA!B25 -> Åstorp-Malmö central övre | C24: =+LINJE_DATA!C25 -> 15 | D24: =+LINJE_DATA!D25 -> L | E24: =++IF(LINJE_DATA!E25="",0,LINJE_DATA!E25) -> X61 | F24: =+LINJE_DATA!G25 -> 6 | G24: 6 | L24: =+Persontåg!P27 -> 0 | M24: =+Persontåg!L27 -> 0 | N24: =+Persontåg!U27+Persontåg!V27 -> 0 | O24: =+Persontåg!W27+Persontåg!X27 -> 0
A25: =+LINJE_DATA!A26 -> 10503R | B25: =+LINJE_DATA!B26 -> Malmö central övre-Åstorp | C25: =+LINJE_DATA!C26 -> 15 | D25: =+LINJE_DATA!D26 -> L | E25: =++IF(LINJE_DATA!E26="",0,LINJE_DATA!E26) -> X61 | F25: =+LINJE_DATA!G26 -> 6 | G25: 6 | L25: =+Persontåg!P28 -> 0 | M25: =+Persontåg!L28 -> 0 | N25: =+Persontåg!U28+Persontåg!V28 -> 0 | O25: =+Persontåg!W28+Persontåg!X28 -> 0
A26: =+LINJE_DATA!A27 -> 10601 | B26: =+LINJE_DATA!B27 -> Halmstads Central-Hässleholm | C26: =+LINJE_DATA!C27 -> 15 | D26: =+LINJE_DATA!D27 -> L | E26: =++IF(LINJE_DATA!E27="",0,LINJE_DATA!E27) -> X61 | F26: =+LINJE_DATA!G27 -> 18 | G26: 18 | L26: =+Persontåg!P29 -> 0 | M26: =+Persontåg!L29 -> 0 | N26: =+Persontåg!U29+Persontåg!V29 -> 0 | O26: =+Persontåg!W29+Persontåg!X29 -> 0
A27: =+LINJE_DATA!A28 -> 10601R | B27: =+LINJE_DATA!B28 -> Hässleholm-Halmstads Central | C27: =+LINJE_DATA!C28 -> 15 | D27: =+LINJE_DATA!D28 -> L | E27: =++IF(LINJE_DATA!E28="",0,LINJE_DATA!E28) -> X61 | F27: =+LINJE_DATA!G28 -> 18 | G27: 18 | L27: =+Persontåg!P30 -> 0 | M27: =+Persontåg!L30 -> 0 | N27: =+Persontåg!U30+Persontåg!V30 -> 0 | O27: =+Persontåg!W30+Persontåg!X30 -> 0
A28: =+LINJE_DATA!A29 -> 10801 | B28: =+LINJE_DATA!B29 -> Helsingborgs Central-Trelleborg | C28: =+LINJE_DATA!C29 -> 15 | D28: =+LINJE_DATA!D29 -> L | E28: =++IF(LINJE_DATA!E29="",0,LINJE_DATA!E29) -> X61 | F28: =+LINJE_DATA!G29 -> 38 | G28: 38 | L28: =+Persontåg!P31 -> 0 | M28: =+Persontåg!L31 -> 0 | N28: =+Persontåg!U31+Persontåg!V31 -> 0 | O28: =+Persontåg!W31+Persontåg!X31 -> 0
A29: =+LINJE_DATA!A30 -> 10801R | B29: =+LINJE_DATA!B30 -> Trelleborg-Helsingborgs Central | C29: =+LINJE_DATA!C30 -> 15 | D29: =+LINJE_DATA!D30 -> L | E29: =++IF(LINJE_DATA!E30="",0,LINJE_DATA!E30) -> X61 | F29: =+LINJE_DATA!G30 -> 38 | G29: 38 | L29: =+Persontåg!P32 -> 0 | M29: =+Persontåg!L32 -> 0 | N29: =+Persontåg!U32+Persontåg!V32 -> 0 | O29: =+Persontåg!W32+Persontåg!X32 -> 0
A30: =+LINJE_DATA!A31 -> 10803 | B30: =+LINJE_DATA!B31 -> Malmö central-Trelleborg | C30: =+LINJE_DATA!C31 -> 15 | D30: =+LINJE_DATA!D31 -> L | E30: =++IF(LINJE_DATA!E31="",0,LINJE_DATA!E31) -> X61 | F30: =+LINJE_DATA!G31 -> 8 | G30: 8 | L30: =+Persontåg!P33 -> 0 | M30: =+Persontåg!L33 -> 0 | N30: =+Persontåg!U33+Persontåg!V33 -> 0 | O30: =+Persontåg!W33+Persontåg!X33 -> 0
A31: =+LINJE_DATA!A32 -> 10803R | B31: =+LINJE_DATA!B32 -> Trelleborg-Malmö central | C31: =+LINJE_DATA!C32 -> 15 | D31: =+LINJE_DATA!D32 -> L | E31: =++IF(LINJE_DATA!E32="",0,LINJE_DATA!E32) -> X61 | F31: =+LINJE_DATA!G32 -> 8 | G31: 8 | L31: =+Persontåg!P34 -> 0 | M31: =+Persontåg!L34 -> 0 | N31: =+Persontåg!U34+Persontåg!V34 -> 0 | O31: =+Persontåg!W34+Persontåg!X34 -> 0
A32: =+LINJE_DATA!A33 -> 10901 | B32: =+LINJE_DATA!B33 -> Hässleholm-Helsingborgs Central | C32: =+LINJE_DATA!C33 -> 15 | D32: =+LINJE_DATA!D33 -> L | E32: =++IF(LINJE_DATA!E33="",0,LINJE_DATA!E33) -> X61 | F32: =+LINJE_DATA!G33 -> 19 | G32: 19 | L32: =+Persontåg!P35 -> 0 | M32: =+Persontåg!L35 -> 0 | N32: =+Persontåg!U35+Persontåg!V35 -> 0 | O32: =+Persontåg!W35+Persontåg!X35 -> 0
A33: =+LINJE_DATA!A34 -> 10901R | B33: =+LINJE_DATA!B34 -> Helsingborgs Central-Hässleholm | C33: =+LINJE_DATA!C34 -> 15 | D33: =+LINJE_DATA!D34 -> L | E33: =++IF(LINJE_DATA!E34="",0,LINJE_DATA!E34) -> X61 | F33: =+LINJE_DATA!G34 -> 19 | G33: 19 | L33: =+Persontåg!P36 -> 0 | M33: =+Persontåg!L36 -> 0 | N33: =+Persontåg!U36+Persontåg!V36 -> 0 | O33: =+Persontåg!W36+Persontåg!X36 -> 0
A34: =+LINJE_DATA!A35 -> 10903 | B34: =+LINJE_DATA!B35 -> Karlshamn-Kristianstads Central | C34: =+LINJE_DATA!C35 -> 15 | D34: =+LINJE_DATA!D35 -> L | E34: =++IF(LINJE_DATA!E35="",0,LINJE_DATA!E35) -> X61 | F34: =+LINJE_DATA!G35 -> 6 | G34: 6 | L34: =+Persontåg!P37 -> 0 | M34: =+Persontåg!L37 -> 0 | N34: =+Persontåg!U37+Persontåg!V37 -> 0 | O34: =+Persontåg!W37+Persontåg!X37 -> 0
A35: =+LINJE_DATA!A36 -> 10903R | B35: =+LINJE_DATA!B36 -> Kristianstads Central-Karlshamn | C35: =+LINJE_DATA!C36 -> 15 | D35: =+LINJE_DATA!D36 -> L | E35: =++IF(LINJE_DATA!E36="",0,LINJE_DATA!E36) -> X61 | F35: =+LINJE_DATA!G36 -> 6 | G35: 6 | L35: =+Persontåg!P38 -> 0 | M35: =+Persontåg!L38 -> 0 | N35: =+Persontåg!U38+Persontåg!V38 -> 0 | O35: =+Persontåg!W38+Persontåg!X38 -> 0
A36: =+LINJE_DATA!A37 -> 10904 | B36: =+LINJE_DATA!B37 -> Kristianstads Central-Helsingborgs Central | C36: =+LINJE_DATA!C37 -> 15 | D36: =+LINJE_DATA!D37 -> L | E36: =++IF(LINJE_DATA!E37="",0,LINJE_DATA!E37) -> X61 | F36: =+LINJE_DATA!G37 -> 19 | G36: 19 | L36: =+Persontåg!P39 -> 0 | M36: =+Persontåg!L39 -> 0 | N36: =+Persontåg!U39+Persontåg!V39 -> 0 | O36: =+Persontåg!W39+Persontåg!X39 -> 0
A37: =+LINJE_DATA!A38 -> 10904R | B37: =+LINJE_DATA!B38 -> Helsingborgs Central-Kristianstads Central | C37: =+LINJE_DATA!C38 -> 15 | D37: =+LINJE_DATA!D38 -> L | E37: =++IF(LINJE_DATA!E38="",0,LINJE_DATA!E38) -> X61 | F37: =+LINJE_DATA!G38 -> 19 | G37: 19 | L37: =+Persontåg!P40 -> 0 | M37: =+Persontåg!L40 -> 0 | N37: =+Persontåg!U40+Persontåg!V40 -> 0 | O37: =+Persontåg!W40+Persontåg!X40 -> 0
A38: =+LINJE_DATA!A39 -> 10905 | B38: =+LINJE_DATA!B39 -> Karlshamn-Älmhult | C38: =+LINJE_DATA!C39 -> 1 | D38: =+LINJE_DATA!D39 -> L | E38: =++IF(LINJE_DATA!E39="",0,LINJE_DATA!E39) -> X61 | F38: =+LINJE_DATA!G39 -> 10 | G38: 10 | L38: =+Persontåg!P41 -> 0 | M38: =+Persontåg!L41 -> 0 | N38: =+Persontåg!U41+Persontåg!V41 -> 0 | O38: =+Persontåg!W41+Persontåg!X41 -> 0
A39: =+LINJE_DATA!A40 -> 10905R | B39: =+LINJE_DATA!B40 -> Älmhult-Karlshamn | C39: =+LINJE_DATA!C40 -> 1 | D39: =+LINJE_DATA!D40 -> L | E39: =++IF(LINJE_DATA!E40="",0,LINJE_DATA!E40) -> X61 | F39: =+LINJE_DATA!G40 -> 10 | G39: 10 | L39: =+Persontåg!P42 -> 0 | M39: =+Persontåg!L42 -> 0 | N39: =+Persontåg!U42+Persontåg!V42 -> 0 | O39: =+Persontåg!W42+Persontåg!X42 -> 0
A40: =+LINJE_DATA!A41 -> 10906 | B40: =+LINJE_DATA!B41 -> Bromölla-Kristianstads Central | C40: =+LINJE_DATA!C41 -> 15 | D40: =+LINJE_DATA!D41 -> L | E40: =++IF(LINJE_DATA!E41="",0,LINJE_DATA!E41) -> X61 | F40: =+LINJE_DATA!G41 -> 6 | G40: 6 | L40: =+Persontåg!P43 -> 0 | M40: =+Persontåg!L43 -> 0 | N40: =+Persontåg!U43+Persontåg!V43 -> 0 | O40: =+Persontåg!W43+Persontåg!X43 -> 0
A41: =+LINJE_DATA!A42 -> 10906R | B41: =+LINJE_DATA!B42 -> Kristianstads Central-Bromölla | C41: =+LINJE_DATA!C42 -> 15 | D41: =+LINJE_DATA!D42 -> L | E41: =++IF(LINJE_DATA!E42="",0,LINJE_DATA!E42) -> X61 | F41: =+LINJE_DATA!G42 -> 6 | G41: 6 | L41: =+Persontåg!P44 -> 0 | M41: =+Persontåg!L44 -> 0 | N41: =+Persontåg!U44+Persontåg!V44 -> 0 | O41: =+Persontåg!W44+Persontåg!X44 -> 0
A42: =+LINJE_DATA!A43 -> 11001 | B42: =+LINJE_DATA!B43 -> Märsta-Södertälje Centrum | C42: =+LINJE_DATA!C43 -> 18 | D42: =+LINJE_DATA!D43 -> L | E42: =++IF(LINJE_DATA!E43="",0,LINJE_DATA!E43) -> X60 | F42: =+LINJE_DATA!G43 -> 76 | G42: 76 | L42: =+Persontåg!P45 -> 0 | M42: =+Persontåg!L45 -> 0 | N42: =+Persontåg!U45+Persontåg!V45 -> 0 | O42: =+Persontåg!W45+Persontåg!X45 -> 0
A43: =+LINJE_DATA!A44 -> 11001R | B43: =+LINJE_DATA!B44 -> Södertälje Centrum-Märsta | C43: =+LINJE_DATA!C44 -> 18 | D43: =+LINJE_DATA!D44 -> L | E43: =++IF(LINJE_DATA!E44="",0,LINJE_DATA!E44) -> X60 | F43: =+LINJE_DATA!G44 -> 76 | G43: 76 | L43: =+Persontåg!P46 -> 0 | M43: =+Persontåg!L46 -> 0 | N43: =+Persontåg!U46+Persontåg!V46 -> 0 | O43: =+Persontåg!W46+Persontåg!X46 -> 0
A44: =+LINJE_DATA!A45 -> 11002 | B44: =+LINJE_DATA!B45 -> Upplands Väsby-Södertälje Centrum | C44: =+LINJE_DATA!C45 -> 18 | D44: =+LINJE_DATA!D45 -> L | E44: =++IF(LINJE_DATA!E45="",0,LINJE_DATA!E45) -> X60 | F44: =+LINJE_DATA!G45 -> 12 | G44: 12 | L44: =+Persontåg!P47 -> 0 | M44: =+Persontåg!L47 -> 0 | N44: =+Persontåg!U47+Persontåg!V47 -> 0 | O44: =+Persontåg!W47+Persontåg!X47 -> 0
A45: =+LINJE_DATA!A46 -> 11002R | B45: =+LINJE_DATA!B46 -> Södertälje Centrum-Upplands Väsby | C45: =+LINJE_DATA!C46 -> 18 | D45: =+LINJE_DATA!D46 -> L | E45: =++IF(LINJE_DATA!E46="",0,LINJE_DATA!E46) -> X60 | F45: =+LINJE_DATA!G46 -> 12 | G45: 12 | L45: =+Persontåg!P48 -> 0 | M45: =+Persontåg!L48 -> 0 | N45: =+Persontåg!U48+Persontåg!V48 -> 0 | O45: =+Persontåg!W48+Persontåg!X48 -> 0
A46: =+LINJE_DATA!A47 -> 11003 | B46: =+LINJE_DATA!B47 -> Sollentuna-Tumba | C46: =+LINJE_DATA!C47 -> 18 | D46: =+LINJE_DATA!D47 -> L | E46: =++IF(LINJE_DATA!E47="",0,LINJE_DATA!E47) -> X60 | F46: =+LINJE_DATA!G47 -> 38 | G46: 38 | L46: =+Persontåg!P49 -> 0 | M46: =+Persontåg!L49 -> 0 | N46: =+Persontåg!U49+Persontåg!V49 -> 0 | O46: =+Persontåg!W49+Persontåg!X49 -> 0
A47: =+LINJE_DATA!A48 -> 11003R | B47: =+LINJE_DATA!B48 -> Tumba-Sollentuna | C47: =+LINJE_DATA!C48 -> 18 | D47: =+LINJE_DATA!D48 -> L | E47: =++IF(LINJE_DATA!E48="",0,LINJE_DATA!E48) -> X60 | F47: =+LINJE_DATA!G48 -> 38 | G47: 38 | L47: =+Persontåg!P50 -> 0 | M47: =+Persontåg!L50 -> 0 | N47: =+Persontåg!U50+Persontåg!V50 -> 0 | O47: =+Persontåg!W50+Persontåg!X50 -> 0
A48: =+LINJE_DATA!A49 -> 11004 | B48: =+LINJE_DATA!B49 -> Uppsala Central-Södertälje Centrum | C48: =+LINJE_DATA!C49 -> 18 | D48: =+LINJE_DATA!D49 -> L | E48: =++IF(LINJE_DATA!E49="",0,LINJE_DATA!E49) -> X60 | F48: =+LINJE_DATA!G49 -> 38 | G48: 38 | L48: =+Persontåg!P51 -> 0 | M48: =+Persontåg!L51 -> 0 | N48: =+Persontåg!U51+Persontåg!V51 -> 0 | O48: =+Persontåg!W51+Persontåg!X51 -> 0
A49: =+LINJE_DATA!A50 -> 11004R | B49: =+LINJE_DATA!B50 -> Södertälje Centrum-Uppsala Central | C49: =+LINJE_DATA!C50 -> 18 | D49: =+LINJE_DATA!D50 -> L | E49: =++IF(LINJE_DATA!E50="",0,LINJE_DATA!E50) -> X60 | F49: =+LINJE_DATA!G50 -> 38 | G49: 38 | L49: =+Persontåg!P52 -> 0 | M49: =+Persontåg!L52 -> 0 | N49: =+Persontåg!U52+Persontåg!V52 -> 0 | O49: =+Persontåg!W52+Persontåg!X52 -> 0
A50: =+LINJE_DATA!A51 -> 11101 | B50: =+LINJE_DATA!B51 -> Kungsängen-Västerhaninge | C50: =+LINJE_DATA!C51 -> 18 | D50: =+LINJE_DATA!D51 -> L | E50: =++IF(LINJE_DATA!E51="",0,LINJE_DATA!E51) -> X60 | F50: =+LINJE_DATA!G51 -> 32 | G50: 32 | L50: =+Persontåg!P53 -> 0 | M50: =+Persontåg!L53 -> 0 | N50: =+Persontåg!U53+Persontåg!V53 -> 0 | O50: =+Persontåg!W53+Persontåg!X53 -> 0
A51: =+LINJE_DATA!A52 -> 11101R | B51: =+LINJE_DATA!B52 -> Västerhaninge-Kungsängen | C51: =+LINJE_DATA!C52 -> 18 | D51: =+LINJE_DATA!D52 -> L | E51: =++IF(LINJE_DATA!E52="",0,LINJE_DATA!E52) -> X60 | F51: =+LINJE_DATA!G52 -> 32 | G51: 32 | L51: =+Persontåg!P54 -> 0 | M51: =+Persontåg!L54 -> 0 | N51: =+Persontåg!U54+Persontåg!V54 -> 0 | O51: =+Persontåg!W54+Persontåg!X54 -> 0
A52: =+LINJE_DATA!A53 -> 11102 | B52: =+LINJE_DATA!B53 -> Bålsta-Västerhaninge | C52: =+LINJE_DATA!C53 -> 18 | D52: =+LINJE_DATA!D53 -> L | E52: =++IF(LINJE_DATA!E53="",0,LINJE_DATA!E53) -> X60 | F52: =+LINJE_DATA!G53 -> 44 | G52: 44 | L52: =+Persontåg!P55 -> 0 | M52: =+Persontåg!L55 -> 0 | N52: =+Persontåg!U55+Persontåg!V55 -> 0 | O52: =+Persontåg!W55+Persontåg!X55 -> 0
A53: =+LINJE_DATA!A54 -> 11102R | B53: =+LINJE_DATA!B54 -> Västerhaninge-Bålsta | C53: =+LINJE_DATA!C54 -> 18 | D53: =+LINJE_DATA!D54 -> L | E53: =++IF(LINJE_DATA!E54="",0,LINJE_DATA!E54) -> X60 | F53: =+LINJE_DATA!G54 -> 44 | G53: 44 | L53: =+Persontåg!P56 -> 0 | M53: =+Persontåg!L56 -> 0 | N53: =+Persontåg!U56+Persontåg!V56 -> 0 | O53: =+Persontåg!W56+Persontåg!X56 -> 0
A54: =+LINJE_DATA!A55 -> 11103 | B54: =+LINJE_DATA!B55 -> Kallhäll-Nynäshamn | C54: =+LINJE_DATA!C55 -> 18 | D54: =+LINJE_DATA!D55 -> Ö | E54: =++IF(LINJE_DATA!E55="",0,LINJE_DATA!E55) -> X60 | F54: =+LINJE_DATA!G55 -> 40 | G54: 40 | L54: =+Persontåg!P57 -> 0 | M54: =+Persontåg!L57 -> 0 | N54: =+Persontåg!U57+Persontåg!V57 -> 0 | O54: =+Persontåg!W57+Persontåg!X57 -> 0
A55: =+LINJE_DATA!A56 -> 11103R | B55: =+LINJE_DATA!B56 -> Nynäshamn-Kallhäll | C55: =+LINJE_DATA!C56 -> 18 | D55: =+LINJE_DATA!D56 -> Ö | E55: =++IF(LINJE_DATA!E56="",0,LINJE_DATA!E56) -> X60 | F55: =+LINJE_DATA!G56 -> 40 | G55: 40 | L55: =+Persontåg!P58 -> 0 | M55: =+Persontåg!L58 -> 0 | N55: =+Persontåg!U58+Persontåg!V58 -> 0 | O55: =+Persontåg!W58+Persontåg!X58 -> 0
A56: =+LINJE_DATA!A57 -> 11104 | B56: =+LINJE_DATA!B57 -> Kallhäll-Västerhaninge | C56: =+LINJE_DATA!C57 -> 18 | D56: =+LINJE_DATA!D57 -> L | E56: =++IF(LINJE_DATA!E57="",0,LINJE_DATA!E57) -> X60 | F56: =+LINJE_DATA!G57 -> 10 | G56: 10 | L56: =+Persontåg!P59 -> 0 | M56: =+Persontåg!L59 -> 0 | N56: =+Persontåg!U59+Persontåg!V59 -> 0 | O56: =+Persontåg!W59+Persontåg!X59 -> 0
A57: =+LINJE_DATA!A58 -> 11104R | B57: =+LINJE_DATA!B58 -> Västerhaninge-Kallhäll | C57: =+LINJE_DATA!C58 -> 18 | D57: =+LINJE_DATA!D58 -> L | E57: =++IF(LINJE_DATA!E58="",0,LINJE_DATA!E58) -> X60 | F57: =+LINJE_DATA!G58 -> 10 | G57: 10 | L57: =+Persontåg!P60 -> 0 | M57: =+Persontåg!L60 -> 0 | N57: =+Persontåg!U60+Persontåg!V60 -> 0 | O57: =+Persontåg!W60+Persontåg!X60 -> 0
A58: =+LINJE_DATA!A59 -> 11105 | B58: =+LINJE_DATA!B59 -> Kallhäll-Handen | C58: =+LINJE_DATA!C59 -> 18 | D58: =+LINJE_DATA!D59 -> L | E58: =++IF(LINJE_DATA!E59="",0,LINJE_DATA!E59) -> X60 | F58: =+LINJE_DATA!G59 -> 12 | G58: 12 | L58: =+Persontåg!P61 -> 0 | M58: =+Persontåg!L61 -> 0 | N58: =+Persontåg!U61+Persontåg!V61 -> 0 | O58: =+Persontåg!W61+Persontåg!X61 -> 0
A59: =+LINJE_DATA!A60 -> 11105R | B59: =+LINJE_DATA!B60 -> Handen-Kallhäll | C59: =+LINJE_DATA!C60 -> 18 | D59: =+LINJE_DATA!D60 -> L | E59: =++IF(LINJE_DATA!E60="",0,LINJE_DATA!E60) -> X60 | F59: =+LINJE_DATA!G60 -> 12 | G59: 12 | L59: =+Persontåg!P62 -> 0 | M59: =+Persontåg!L62 -> 0 | N59: =+Persontåg!U62+Persontåg!V62 -> 0 | O59: =+Persontåg!W62+Persontåg!X62 -> 0
A60: =+LINJE_DATA!A61 -> 11501 | B60: =+LINJE_DATA!B61 -> Södertälje Centrum-Gnesta | C60: =+LINJE_DATA!C61 -> 18 | D60: =+LINJE_DATA!D61 -> L | E60: =++IF(LINJE_DATA!E61="",0,LINJE_DATA!E61) -> X60 | F60: =+LINJE_DATA!G61 -> 25 | G60: 25 | L60: =+Persontåg!P63 -> 0 | M60: =+Persontåg!L63 -> 0 | N60: =+Persontåg!U63+Persontåg!V63 -> 0 | O60: =+Persontåg!W63+Persontåg!X63 -> 0
A61: =+LINJE_DATA!A62 -> 11501R | B61: =+LINJE_DATA!B62 -> Gnesta-Södertälje Centrum | C61: =+LINJE_DATA!C62 -> 18 | D61: =+LINJE_DATA!D62 -> L | E61: =++IF(LINJE_DATA!E62="",0,LINJE_DATA!E62) -> X60 | F61: =+LINJE_DATA!G62 -> 25 | G61: 25 | L61: =+Persontåg!P64 -> 0 | M61: =+Persontåg!L64 -> 0 | N61: =+Persontåg!U64+Persontåg!V64 -> 0 | O61: =+Persontåg!W64+Persontåg!X64 -> 0
A62: =+LINJE_DATA!A63 -> 13001 | B62: =+LINJE_DATA!B63 -> Mölnlycke-Uddevalla Central | C62: =+LINJE_DATA!C63 -> 1 | D62: =+LINJE_DATA!D63 -> Ö | E62: =++IF(LINJE_DATA!E63="",0,LINJE_DATA!E63) -> EC250 | F62: =+LINJE_DATA!G63 -> 10 | G62: 10 | L62: =+Persontåg!P65 -> 0 | M62: =+Persontåg!L65 -> 0 | N62: =+Persontåg!U65+Persontåg!V65 -> 0 | O62: =+Persontåg!W65+Persontåg!X65 -> 0
... 77 more rows

Sheet Bangods_linjedel
H1: Ange | I1: Ange | J1: Ange | K1: Ange | L1: Ange | M1: Ange | BL1: FÖRE VOLYMFÖRÄNDRINGAR | CC1: Tillkommande/försvinnande volymer = KÖ | CJ1: före volymför | CU1: EFTER VOLYMFÖRÄNDRINGAR | DI1: före volymförändring | DS1: Beräknade genomsnitt per sträcka | DY1: Effekter | DZ1: Förändring MSEK, UA-JA (transportköpare KÖ) | EG1: Förändring Banavgifter Budgeteffekt | EM1: ENJA | ET1: ENJA | EU1: ENJA | EV1: ENJA | EW1: ENJA
A2: Stråk | B2: Linjedel | C2: Linjeindelning | E2: Dimesionerande sträcka | F2: Avstånd (km) | G2: Bandel | H2: Gångtidsförändring, min | I2: Avståndsförändring, km | J2: Förändrad förseningstid, minuter | K2: Förändring antal godståg/dygn | L2: Exogent beräknad förändrad tåglängd meter | M2: Externt beräknad kostnadsförändring, totalt kronor | N2: Tåg per år | O2: Volym per år | P2: Fjärrtåg | Q2: Lokaltåg | R2: Systemtåg | S2: Malmtåg | T2: Kombitåg | U2: Tåg/dygn JA | V2: Tåg/dygn UA | W2: Malm (tåg/dygn) | X2: Övriga (tåg/dygn) | Y2: Dieseldrift | Z2: Medelhastighet | AA2: Medeltrpsträcka, km | AB2: Drivmedelskostnad kr/tkm | AC2: Passage Öresund kr | AD2: Kr per minut lok+förare | AE2: Kr/minut vagnar | AF2: Kr/tågkm banavgift | AG2: TRPTID KR/TONH | AH2: FÖRS.TID KR/H | AI2: FOKO exkl BA hela trp | AJ2: BA hela trp | AK2: Totalkostnad (FOKO+BA)/trp | AL2: Elastictet | AM2: El JA | AN2: El UA | AO2: Bruttoton/nettoton | AP2: SPÅR JA | AQ2: SPÅR UA | AR2: KAPAC JA | AS2: KAPAC UA | AT2: a (JA) | AU2: b (JA) | AV2: a (UA) | AW2: b (UA) | AX2: g | AY2: Kap.tillägg JA | AZ2: tdt.tillägg JA | BA2: Kap.tillägg UA | BB2: tdt.tillägg UA | BC2: Kap.tillägg UA nya linjedelar | BD2: tdt.tillägg UA nya linjedelar | BE2: Diff gångtid minuter enkel | BF2: Diff avstånd km enkel | BG2: Total tidsdiff, minuter | BH2: Diff tåg/dygn | BI2: Förseningstid | BJ2: Byte EL-DIESEL | BL2: FÖRÄNDRAD FOKO KR INKL BA | BM2: FÖRÄNDRAD FOKO tid | BN2: FÖRÄNDRAD FOKO DRIVMEDEL | BO2: FÖRÄNDRAD BANAVG | BP2: TRPTID KR | BQ2: FÖRSEN. KR | BR2: Spår JA | BS2: Spår UA | BT2: Tågläge JA kr/tågkm | BU2: Tågläge UA, kr/tågkm | BV2: Trafikdagar Godståg | BW2: Trafikdagar Malmtåg | BY2: Förändring tkm | BZ2: Förändring ton | CA2: Tonkm | CB2: Bruttotonkm | CC2: FOKO tid | CD2: foko drivmedel | CE2: foko banavg | CF2: Transporttid | CG2: Försenings-tid | CI2: Liter diesel JA | CJ2: Liter diesel UA fv | CK2: Liter diesel UA ev | CM2: KWH JA | CN2: KWH UA FV | CO2: KWH UA EV | CP2: JA AVG Tågläge | CQ2: JA AVG Spår | CR2: JA EXT Infra | CT2: JA EXT buller | CU2: UA AVG Tågläge | CV2: UA AVG spår | CW2: UA EXT infra | CY2: UA Ext buller | CZ2: UA-JA BAVG TOT | DA2: UA-JA AVG Tågläge | DB2: UA-JA AVG spår | DC2: UA-JA EXT infra | DD2: UA-JA EXT olyckor | DE2: UA-JA Ext buller | DF2: BTK JA | DG2: BTK UA före volymdiff | DH2: BTK UA | DI2: UA AVG Tågläge | DJ2: UA AVG spår | DK2: UA-JA AVG FÖRE VOLDIFF | DL2: Ton medeltåg | DM2: Ton Bangods | DN2: Bangods/ASEK | DO2: Meter per ton | DP2: diff meter UA | DQ2: meter JA | DR2: meter UA | DS2: Medel-hastighet | DT2: Drivmedel kr/tkm | DU2: Banavgift kr/tkm | DV2: Fokor kr/tågminut | DW2: TRPTID KR/TONH | DX2: FÖRS.TID KR/H | DY2: Total tidsdiff, minuter | DZ2: Fordons-kostnad | EA2: Banavgift | EB2: Transport-tid | EC2: Försenings-tid | ED2: Extern kostnad INFRA | EE2: Extern kostnad OLYCKOR | EF2: Extern kostnad BULLER | EG2: Tågläge | EH2: Spår | EJ2: Genomsnittlig längd, meter JA | EK2: Genomsnittlig längd, meter UA | EL2: Kapacitetstidsvinst | ET2: trpkostnad kr/km | EU2: trpkostn kr/minut | EV2: trptid gods kr/h | EW2: förs,tid gods kr/h | EX2: tot foko ja | EY2: JA buller basår k-block prisnivå prognosår | EZ2: TKM JA | FB2: Banavgifter, kr/tkm JA | FG2: DIESEL | FJ2: ntkm JA | FK2: NTKM UA | FN2: TOT FOKO | FQ2: lokkostnad km | FR2: lokkostnad minut | FS2: tot lok
A3: =IFERROR(VLOOKUP(B3,' Fyrspår JA'!B:Z,25,FALSE),+VLOOKUP(B3,Länkar!I:AD,20,FALSE)) -> Malmbanan | B3: =+BANGODSINDATA!B2 -> L100 | C3: =+BANGODSINDATA!C2 -> Buddbyn-Murjek | E3: =+BANGODSINDATA!D2 -> Lakaträsk-Näsberg | F3: =+IFERROR(BANGODSINDATA!F2,FE3) -> 82.85 | G3: =IFERROR((+VLOOKUP(B3,Länkar!I:AD,22,FALSE)),VLOOKUP(B3,' Fyrspår JA'!B:Z,25,FALSE)) -> 118 | N3: =+IFERROR(BANGODSINDATA!G2,0) -> 8327.68 | O3: =+IF(BANGODSINDATA!H2=0,0,BANGODSINDATA!H2*Kalkylsammanställning!G$2) -> 13988855 | P3: =+IFERROR(BANGODSINDATA!I2,0) -> 1912.06 | Q3: =+IF(BANGODSINDATA!J2="-",0,BANGODSINDATA!J2) -> 0 | R3: =+IFERROR(BANGODSINDATA!K2,0) -> 1497.29 | S3: =+IFERROR(BANGODSINDATA!L2,0) -> 3372.58 | T3: =+IFERROR(BANGODSINDATA!M2,0) -> 1545.76 | U3: =+($S3/BW3)+(P3+Q3+R3+T3)/BV3 -> 29.46 | V3: =+IF(U3+Bangods_linjedel!K3<0,0,U3+Bangods_linjedel!K3) -> 29.46 | W3: =+S3/350 -> 9.635942857 | X3: =+V3-W3 -> 19.82405714 | Y3: =(IF(AM3="nej",100%,INDATABLAD!$D$268)) -> 0 | Z3: =+IF(N3=0,0,SUMPRODUCT(P3:T3,Indata_Kalkylvärden!D$104:H$104)/N3) -> 66.28476959 | AA3: =+IF(N3=0,0,SUMPRODUCT($P3:$T3,Indata_Kalkylvärden!$D$105:$H$105)/Bangods_linjedel!$N3) -> 396.0434359 | AB3: =IF(N3=0,0,(CM3*INDATABLAD!D$266+INDATABLAD!D$267*CI3)/(N3*F3)) -> 40.27116069 | AC3: =+IF(B3='Beskrivning av åtgärd'!$D$171,'Beskrivning av åtgärd'!$B$171*$N3,0) -> 0 | AD3: =+IF(N3=0,0,SUMPRODUCT(P3:T3,Indata_Kalkylvärden!D$117:H$117/Bangods_linjedel!N3)) -> 65.202947 | AE3: =+IF(N3=0,0,SUMPRODUCT(P3:T3,Indata_Kalkylvärden!$D$116:$H$116)/N3)*DN3 -> 24.04252386 | AF3: =+IF(N3=0,0,BT3+BR3*DM3*AO3) -> 68.61354678 | AG3: =+Indata_Kalkylvärden!T$96 -> 1.53 | AH3: =+Indata_Kalkylvärden!T$97 -> 5.355 | AI3: =++IF(AA3=0,0,AA3*AB3+(AA3/Z3)*60*(AD3+AE3)) -> 47942.97884 | AJ3: =+AF3*AA3 -> 27173.94481 | AK3: =+AI3+AJ3 -> 75116.92365 | AL3: =+IF(N3=0,0,SUMPRODUCT($P3:$T3,Indata_Kalkylvärden!$D$118:$H$118)/$N3) -> -0.3974112292 | AM3: =+VLOOKUP($G3,Länkar!$F:$V,16,FALSE) -> Ja | AN3: =+VLOOKUP($G3,Länkar!$F:$V,17,FALSE) -> Ja | AO3: =+IF(N3=0,0,(SUMPRODUCT(P3:T3,Indata_Kalkylvärden!$D$110:$H$110)/N3)) -> 1.756318822 | AP3: =+IFERROR(IF(B3=0,0,VLOOKUP(B3,'Kap.ber JA'!$B:$AI,7,FALSE)),0) -> esp | AQ3: =+IFERROR(IF(B3=0,0,VLOOKUP(B3,'Kap.ber UA'!B:H,7,FALSE)),0) -> esp | AR3: =+IFERROR(IF(B3=0,0,VLOOKUP(B3,'Kap.ber JA'!$B:$AI,8,FALSE)),0) -> 0.5471390942 | AS3: =+IFERROR(IF(B3=0,0,VLOOKUP(B3,'Kap.ber UA'!$B:$AL,8,FALSE)),0) -> 0.5471390942 | AT3: =+IF($AP3="esp",INDATABLAD!$D$568,INDATABLAD!$D$566) -> 2.58 | AU3: =+IF($AP3="Esp",INDATABLAD!$D$569,INDATABLAD!$D$567) -> 0.28 | AV3: =+IF($AQ3="Esp",INDATABLAD!$D$568,INDATABLAD!$D$566) -> 2.58 | AW3: =+IF($AQ3="Esp",INDATABLAD!$D$569,INDATABLAD!$D$567) -> 0.28 | AX3: =+INDATABLAD!$D$565 -> 0.3 | AY3: =+IF((AR3*$AT3<$AU3),0,((AR3*$AT3-$AU3)*F3/10)) -> 9.37546228 | AZ3: =+AX3*F3/10 -> 2.4855 | BA3: =+IF(BC3>0,BC3,IF((AS3*$AV3<$AW3),0,((AS3*$AV3-$AW3)*(F3+BF3)/10))) -> 9.37546228 | BB3: =+IF(BD3>0,BD3,(F3+BF3)/10*AX3) -> 2.4855 | BC3: =SUMIF('Gods_nya linjedelar_UA'!$D$4:$D$18,Bangods_linjedel!B3,'Gods_nya linjedelar_UA'!$J$4:$J$18) -> 0 | BD3: =SUMIF('Gods_nya linjedelar_UA'!$D$4:$D$18,Bangods_linjedel!B3,'Gods_nya linjedelar_UA'!$K$4:$K$18) -> 0 | BE3: =+Bangods_linjedel!H3 -> 0 | BF3: =+Bangods_linjedel!I3 -> 0 | BG3: =(BA3-AY3)+(BB3-AZ3)+BE3 -> 4.440892099e-16 | BH3: =+Bangods_linjedel!K3 -> 0 | BI3: =+IF(Bangods_linjedel!J3=0,(BA3-AY3)*0.05,Bangods_linjedel!J3) -> 0 | BJ3: =+IF(AN3=AM3,0,AN3) -> 0 | BL3: =+BM3+BN3+BO3 -> 3.300505304e-10 | BM3: =+(($BG3+$BI3)*($AD3+AE3)*$N3)+Bangods_linjedel!M3 -> 3.300505304e-10 | BN3: =+(CJ3-CI3)*INDATABLAD!D$267+INDATABLAD!D$266*(CN3-CM3) -> 0 | BO3: =+DK3 -> 0 | BP3: =+((BG3/60*O3*AG3)) -> 1.584136389e-10 | BQ3: =+BI3/60*O3*AH3 -> 0 | BR3: =+IF(N3=0,0,('Beskrivning av åtgärd'!$C$165*(X3)+'Beskrivning av åtgärd'!$D$165*Bangods_linjedel!W3)/Bangods_linjedel!U3) -> 0.02165477451 | BS3: =+IF(O3=0,0,('Beskrivning av åtgärd'!$F$165*(X3)+'Beskrivning av åtgärd'!$G$165*Bangods_linjedel!W3)/Bangods_linjedel!U3) -> 0.02165477451 | BT3: =+IF(U3=0,0,('Beskrivning av åtgärd'!$C$166*(X3)+'Beskrivning av åtgärd'!$D$166*$W3)/$U3) -> 4.726154537 | BU3: =+IF(O3=0,0,('Beskrivning av åtgärd'!$F$166*(X3)+'Beskrivning av åtgärd'!$G$166*$W3)/$U3) -> 4.726154537 | BV3: =BANGODSINDATA!S2 -> 250.0055499 | BW3: =BANGODSINDATA!T2 -> 349.8526971 | BY3: =+IF(N3=0,0,N3*V3/U3*BF3) -> 0 | BZ3: =+IF(O3=0,0,IF('Beskrivning av åtgärd'!B$12="Nej",(((BM3+BN3+BO3*'Beskrivning av åtgärd'!$C$176)/(AK3*N3))*AL3)*O3,((BM3+BN3+BO3*'Beskrivning av åtgärd'!$C$176)/(AK3*N3+BM3+BN3+BO3*'Beskrivning av åtgärd'!$C$176*N3))*AL3*O3)) -> -2.933194863e-12 | CA3: =+BZ3*AA3 -> -1.161672572e-09 | CB3: =+IF(AO3=0,0,AO3*CA3*V3/U3) -> -2.040267403e-09 | CC3: =IF(BZ3=0,0,IF($BZ3<0,((-$BZ3/$O3*BM3)*0.5),(($BZ3/$O3*BM3)*0.5))) -> 3.460263618e-29 | CD3: =IF(BZ3=0,0,IF($BZ3<0,((-$BZ3/$O3*BN3)*0.5),(($BZ3/$O3*BN3)*0.5))) -> 0 | CE3: =IF(BZ3=0,0,IF($BZ3<0,((-$BZ3/$O3*BO3)*0.5),(($BZ3/$O3*BO3)*0.5))) -> 0 | CF3: =+IF($O3=0,0,IF($BZ3<0,((BP3/$O3)*-$BZ3),((BP3/$O3)*$BZ3)))*0.5 -> 1.660815241e-29 | CG3: =+IF($O3=0,0,IF($BZ3<0,((BQ3/$O3)*-$BZ3),((BQ3/$O3)*$BZ3)))*0.5 -> 0 | CI3: =+(($N3*$F3*INDATABLAD!$D$254+Bangods_linjedel!$DF3*INDATABLAD!$D$255))*Y3 -> 0 | CJ3: =+IF($AN3="Nej",(($N3*($F3+$BF3)*INDATABLAD!$D$254+DG3*INDATABLAD!$D$255)),IF($BJ3="Ja",0,(($N3*($F3+$BF3)*INDATABLAD!$D$254+DG3*INDATABLAD!$D$255))*$Y3)) -> 0 | CK3: =+IF($AN3="Nej",(($N3*($F3+$BF3)*INDATABLAD!$D$254+DH3*INDATABLAD!$D$255)),IF($BJ3="ja",0,(($N3*($F3+$BF3)*INDATABLAD!$D$254+DH3*INDATABLAD!$D$255))*$Y3)) -> 0 | CL3: =+CI3-CJ3 -> 0 | CM3: =+DF3*INDATABLAD!$D$256*(1-$Y3) -> 39692883.39 | CN3: =+IF(AN3="Ja",DG3*INDATABLAD!$D$256,IF(AN3="Nej",0,DG3*INDATABLAD!$D$256*(1-Y3))) -> 39692883.39 | CO3: =+IF(DG3=0,0,CN3*DH3/DG3) -> 39692883.39 | CP3: =+$F3*$N3*BT3 -> 3260802.232 | CQ3: =+$DF3*BR3 -> 44078996.9 | CR3: =+DF3*(INDATABLAD!$D$248)+F3*N3*INDATABLAD!$D$249 -> 47339799.13 | CT3: =+IFERROR(VLOOKUP(G3,' Bandelsspec avg o ext'!$A:$T,17,FALSE)*$F3*$N3*DQ3/500,0) -> 40473.26372 | CU3: =+IF(V3=0,0,BU3*($F3+BF3)*$N3*(V3/U3)) -> 3260802.232 | CV3: =+DH3*BS3 -> 44078996.9 | CW3: =+IF(N3=0,0,DH3*(INDATABLAD!$D$248)+N3*(V3/U3)*(F3+BF3)*INDATABLAD!D$249) -> 47339799.13 | CY3: =+IFERROR(IF(V3=0,0,VLOOKUP(G3,' Bandelsspec avg o ext'!$A:$V,18,FALSE)*($F3+BF3)*$N3*(V3/U3)*(DR3/500)),0) -> 40473.26372 | CZ3: =+DA3+DB3 -> 0 | DA3: =+CU3-CP3 -> 0 | DB3: =+CV3-CQ3 -> 0 | DC3: =+CW3-CR3 -> 0 | DD3: =+CX3-CS3 -> 0 | DE3: =+CY3-CT3 -> 0 | DF3: =+O3*F3*AO3 -> 2035532482 | DG3: =+IF(U3=0,0,$O3*($F3+BF3)*V3/U3*$AO3) -> 2035532482 | DH3: =+DF3+CB3 -> 2035532482 | DI3: =($F3+BF3)*$N3*BU3 -> 3260802.232 | DJ3: =+$DG3*BS3 -> 44078996.9 | DK3: =+SUM(DI3:DJ3)-SUM(CP3:CQ3) -> 0 | DL3: =+IF(N3=0,0,SUMPRODUCT(P3:T3,Indata_Kalkylvärden!D$106:H$106)/N3) -> 1540.198547 | DM3: =+IF(N3=0,0,O3/N3) -> 1679.802178 | DN3: =+IF(N3=0,0,DM3/DL3) -> 1.090640023 | DO3: =+IF(N3=0,0,SUMPRODUCT(P3:T3,Indata_Kalkylvärden!D$109:H$109)/Bangods_linjedel!N3) -> 0.4653037451 | DP3: =+IF(N3=0,0,BZ3/N3*DO3) -> -1.638903698e-16 | DQ3: =+IF(N3=0,0,(SUMPRODUCT(P3:T3,Indata_Kalkylvärden!D$108:H$108)/Bangods_linjedel!N3)*DN3) -> 559.3079002 | DR3: =+IF(Bangods_linjedel!L3=0,DQ3+DP3,DQ3+DP3+Bangods_linjedel!L3) -> 559.3079002 | DS3: =+Bangods_linjedel!Z3 -> 66.28476959 | DT3: =+Bangods_linjedel!AB3 -> 40.27116069 | DU3: =+Bangods_linjedel!AF3 -> 68.61354678 | DV3: =+Bangods_linjedel!AD3+Bangods_linjedel!AE3 -> 89.24547086 | DW3: =+Bangods_linjedel!AG3 -> 1.53 | DX3: =+Bangods_linjedel!AH3 -> 5.355 | DY3: =+Bangods_linjedel!BG3 -> 4.440892099e-16 | DZ3: =+(Bangods_linjedel!BM3+Bangods_linjedel!CD3)/1000000 -> 3.300505304e-16 | EA3: =+(Bangods_linjedel!BO3+Bangods_linjedel!CE3)/1000000 -> 0 | EB3: =+(Bangods_linjedel!BP3+Bangods_linjedel!CF3)/1000000 -> 1.584136389e-16 | EC3: =+(Bangods_linjedel!BQ3+Bangods_linjedel!CG3)/1000000 -> 0 | ED3: =+Bangods_linjedel!DC3/1000000 -> 0 | EE3: =+Bangods_linjedel!DD3/1000000 -> 0 | EF3: =+Bangods_linjedel!DE3/1000000 -> 0 | EG3: =+Bangods_linjedel!DA3/1000000 -> 0 | EH3: =+Bangods_linjedel!DB3/1000000 -> 0 | EJ3: =+Bangods_linjedel!DQ3 -> 559.3079002 | EK3: =+Bangods_linjedel!DR3 -> 559.3079002 | EL3: =+Bangods_linjedel!BA3-Bangods_linjedel!AY3 -> 0 | EM3: =+B3 -> L100 | ET3: =+$N3*AB3 -> 335365.3394 | EU3: =+$N3*(AD3+AE3) -> 743207.7228 | EV3: =+$O3*AG3 -> 21402948.15 | EW3: =+$O3*AH3 -> 74910318.53 | EX3: =+IF(Z3=0,0,(ET3*F3+EU3*F3/(Z3/60))) -> 83521586.71 | EY3: =+VLOOKUP(G3,' Bandelsspec avg o ext'!$A:$T,19,FALSE)*$F3*$N3 -> 92859.48256 | EZ3: =+F3*N3 -> 689948.288 | FB3: =+IF(N3=0,0,SUM(CP3:CQ3)/(F3*N3)) -> 68.61354678 | FE3: =+SUMIF(Länkar!I:I,Bangods_linjedel!B3,Länkar!Y:Y)/2 -> 82.84999943 | FG3: =+IF($N3=0,0,IF($G3="d",SUMPRODUCT($P3:$T3,Indata_Kalkylvärden!$I$139:$M$139))/$N3) -> 0 | FJ3: =+F3*O3 -> 1158976637 | FK3: =+FJ3+CA3 -> 1158976637 | FN3: =+ET3+EU3 -> 1078573.062 | FQ3: =+AB3*N3*F3 -> 27785018.37 | FR3: =+N3*F3/(Z3/60)*AD3 -> 40721265.48 | FS3: =+FQ3+FR3 -> 68506283.85
A4: =IFERROR(VLOOKUP(B4,' Fyrspår JA'!B:Z,25,FALSE),+VLOOKUP(B4,Länkar!I:AD,20,FALSE)) -> Malmbanan | B4: =+BANGODSINDATA!B3 -> L101 | C4: =+BANGODSINDATA!C3 -> Murjek-Gällivare | E4: =+BANGODSINDATA!D3 -> Koskivaara-Nattavaara | F4: =+IFERROR(BANGODSINDATA!F3,FE4) -> 81.24 | G4: =IFERROR((+VLOOKUP(B4,Länkar!I:AD,22,FALSE)),VLOOKUP(B4,' Fyrspår JA'!B:Z,25,FALSE)) -> 117 | N4: =+IFERROR(BANGODSINDATA!G3,0) -> 8011.85 | O4: =+IF(BANGODSINDATA!H3=0,0,BANGODSINDATA!H3*Kalkylsammanställning!G$2) -> 13756891 | P4: =+IFERROR(BANGODSINDATA!I3,0) -> 1912.06 | Q4: =+IF(BANGODSINDATA!J3="-",0,BANGODSINDATA!J3) -> 0 | R4: =+IFERROR(BANGODSINDATA!K3,0) -> 1181.45 | S4: =+IFERROR(BANGODSINDATA!L3,0) -> 3372.58 | T4: =+IFERROR(BANGODSINDATA!M3,0) -> 1545.76 | U4: =+($S4/BW4)+(P4+Q4+R4+T4)/BV4 -> 28.2 | V4: =+IF(U4+Bangods_linjedel!K4<0,0,U4+Bangods_linjedel!K4) -> 28.2 | W4: 9.635942857 | X4: =+V4-W4 -> 18.56405714 | Y4: =(IF(AM4="nej",100%,INDATABLAD!$D$268)) -> 0 | Z4: =+IF(N4=0,0,SUMPRODUCT(P4:T4,Indata_Kalkylvärden!D$104:H$104)/N4) -> 65.5469024 | AA4: =+IF(N4=0,0,SUMPRODUCT($P4:$T4,Indata_Kalkylvärden!$D$105:$H$105)/Bangods_linjedel!$N4) -> 391.9448068 | AB4: =IF(N4=0,0,(CM4*INDATABLAD!D$266+INDATABLAD!D$267*CI4)/(N4*F4)) -> 41.25630339 | AC4: =+IF(B4='Beskrivning av åtgärd'!$D$171,'Beskrivning av åtgärd'!$B$171*$N4,0) -> 0 | AD4: =+IF(N4=0,0,SUMPRODUCT(P4:T4,Indata_Kalkylvärden!D$117:H$117/Bangods_linjedel!N4)) -> 65.82021595 | AE4: =+IF(N4=0,0,SUMPRODUCT(P4:T4,Indata_Kalkylvärden!$D$116:$H$116)/N4)*DN4 -> 24.20602025 | AF4: =+IF(N4=0,0,BT4+BR4*DM4*AO4) -> 70.17640707 | AG4: =+Indata_Kalkylvärden!T$96 -> 1.53 | AH4: =+Indata_Kalkylvärden!T$97 -> 5.355 | AI4: =++IF(AA4=0,0,AA4*AB4+(AA4/Z4)*60*(AD4+AE4)) -> 48469.49203 | AJ4: =+AF4*AA4 -> 27505.27831 | AK4: =+AI4+AJ4 -> 75974.77034 | AL4: =+IF(N4=0,0,SUMPRODUCT($P4:$T4,Indata_Kalkylvärden!$D$118:$H$118)/$N4) -> -0.4121982205 | AM4: =+VLOOKUP($G4,Länkar!$F:$V,16,FALSE) -> Ja | AN4: =+VLOOKUP($G4,Länkar!$F:$V,17,FALSE) -> Ja | AO4: =+IF(N4=0,0,(SUMPRODUCT(P4:T4,Indata_Kalkylvärden!$D$110:$H$110)/N4)) -> 1.760233063 | AP4: =+IFERROR(IF(B4=0,0,VLOOKUP(B4,'Kap.ber JA'!$B:$AI,7,FALSE)),0) -> esp | AQ4: =+IFERROR(IF(B4=0,0,VLOOKUP(B4,'Kap.ber UA'!B:H,7,FALSE)),0) -> esp | AR4: =+IFERROR(IF(B4=0,0,VLOOKUP(B4,'Kap.ber JA'!$B:$AI,8,FALSE)),0) -> 0.5803439492 | AS4: =+IFERROR(IF(B4=0,0,VLOOKUP(B4,'Kap.ber UA'!$B:$AL,8,FALSE)),0) -> 0.5803439492 | AT4: =+IF($AP4="esp",INDATABLAD!$D$568,INDATABLAD!$D$566) -> 2.58 | AU4: =+IF($AP4="Esp",INDATABLAD!$D$569,INDATABLAD!$D$567) -> 0.28 | AV4: =+IF($AQ4="Esp",INDATABLAD!$D$568,INDATABLAD!$D$566) -> 2.58 | AW4: =+IF($AQ4="Esp",INDATABLAD!$D$569,INDATABLAD!$D$567) -> 0.28 | AX4: =+INDATABLAD!$D$565 -> 0.3 | AY4: 9.889242748 | AZ4: 2.4372 | BA4: =+IF(BC4>0,BC4,IF((AS4*$AV4<$AW4),0,((AS4*$AV4-$AW4)*(F4+BF4)/10))) -> 9.889242748 | BB4: =+IF(BD4>0,BD4,(F4+BF4)/10*AX4) -> 2.4372 | BC4: =SUMIF('Gods_nya linjedelar_UA'!$D$4:$D$18,Bangods_linjedel!B4,'Gods_nya linjedelar_UA'!$J$4:$J$18) -> 0 | BD4: =SUMIF('Gods_nya linjedelar_UA'!$D$4:$D$18,Bangods_linjedel!B4,'Gods_nya linjedelar_UA'!$K$4:$K$18) -> 0 | BE4: =+Bangods_linjedel!H4 -> 0 | BF4: =+Bangods_linjedel!I4 -> 0 | BG4: =(BA4-AY4)+(BB4-AZ4)+BE4 -> -4.440892099e-16 | BH4: =+Bangods_linjedel!K4 -> 0 | BI4: =+IF(Bangods_linjedel!J4=0,(BA4-AY4)*0.05,Bangods_linjedel!J4) -> 0 | BJ4: =+IF(AN4=AM4,0,AN4) -> 0 | BL4: =+BM4+BN4+BO4 -> -3.203112e-10 | BM4: =+(($BG4+$BI4)*($AD4+AE4)*$N4)+Bangods_linjedel!M4 -> -3.203112e-10 | BN4: =+(CJ4-CI4)*INDATABLAD!D$267+INDATABLAD!D$266*(CN4-CM4) -> 0 | BO4: =+DK4 -> 0 | BP4: =+((BG4/60*O4*AG4)) -> -1.557868148e-10 | BQ4: 0 | BR4: =+IF(N4=0,0,('Beskrivning av åtgärd'!$C$165*(X4)+'Beskrivning av åtgärd'!$D$165*Bangods_linjedel!W4)/Bangods_linjedel!U4) -> 0.02165477451 | BS4: =+IF(O4=0,0,('Beskrivning av åtgärd'!$F$165*(X4)+'Beskrivning av åtgärd'!$G$165*Bangods_linjedel!W4)/Bangods_linjedel!U4) -> 0.02165477451 | BT4: =+IF(U4=0,0,('Beskrivning av åtgärd'!$C$166*(X4)+'Beskrivning av åtgärd'!$D$166*$W4)/$U4) -> 4.726154537 | BU4: =+IF(O4=0,0,('Beskrivning av åtgärd'!$F$166*(X4)+'Beskrivning av åtgärd'!$G$166*$W4)/$U4) -> 4.726154537 | BV4: =BANGODSINDATA!S3 -> 249.9606681 | BW4: =BANGODSINDATA!T3 -> 349.8526971 | BY4: =+IF(N4=0,0,N4*V4/U4*BF4) -> 0 | BZ4: =+IF(O4=0,0,IF('Beskrivning av åtgärd'!B$12="Nej",(((BM4+BN4+BO4*'Beskrivning av åtgärd'!$C$176)/(AK4*N4))*AL4)*O4,((BM4+BN4+BO4*'Beskrivning av åtgärd'!$C$176)/(AK4*N4+BM4+BN4+BO4*'Beskrivning av åtgärd'!$C$176*N4))*AL4*O4)) -> 2.983982883e-12 | CA4: =+BZ4*AA4 -> 1.169556595e-09 | CB4: =+IF(AO4=0,0,AO4*CA4*V4/U4) -> 2.058692187e-09 | CC4: -3.47390678e-29 | CD4: 0 | CE4: 0 | CF4: =+IF($O4=0,0,IF($BZ4<0,((BP4/$O4)*-$BZ4),((BP4/$O4)*$BZ4))) -> -3.379144232e-29 | CG4: =+IF($O4=0,0,IF($BZ4<0,((BQ4/$O4)*-$BZ4),((BQ4/$O4)*$BZ4)))*0.5 -> 0 | CI4: =+(($N4*$F4*INDATABLAD!$D$254+Bangods_linjedel!$DF4*INDATABLAD!$D$255))*Y4 -> 0 | CJ4: =+IF($AN4="Nej",(($N4*($F4+$BF4)*INDATABLAD!$D$254+DG4*INDATABLAD!$D$255)),IF($BJ4="Ja",0,(($N4*($F4+$BF4)*INDATABLAD!$D$254+DG4*INDATABLAD!$D$255))*$Y4)) -> 0 | CK4: =+IF($AN4="Nej",(($N4*($F4+$BF4)*INDATABLAD!$D$254+DH4*INDATABLAD!$D$255)),IF($BJ4="ja",0,(($N4*($F4+$BF4)*INDATABLAD!$D$254+DH4*INDATABLAD!$D$255))*$Y4)) -> 0 | CL4: =+CI4-CJ4 -> 0 | CM4: =+DF4*INDATABLAD!$D$256*(1-$Y4) -> 38361448.42 | CN4: =+IF(AN4="Ja",DG4*INDATABLAD!$D$256,IF(AN4="Nej",0,DG4*INDATABLAD!$D$256*(1-Y4))) -> 38361448.42 | CO4: =+IF(DG4=0,0,CN4*DH4/DG4) -> 38361448.42 | CP4: =+F4*N4*BT4 -> 3076172.198 | CQ4: =+DF4*BR4 -> 42600436.69 | CR4: =+DF4*(INDATABLAD!$D$248)+F4*N4*INDATABLAD!$D$249 -> 45676608.89 | CT4: =+IFERROR(VLOOKUP(G4,' Bandelsspec avg o ext'!$A:$T,17,FALSE)*$F4*$N4*DQ4/500,0) -> 38729.16108 | CU4: 3076172.198 | CV4: =+DH4*BS4 -> 42600436.69 | CW4: =+IF(N4=0,0,DH4*(INDATABLAD!$D$248)+N4*(V4/U4)*(F4+BF4)*INDATABLAD!D$249) -> 45676608.89 | CY4: =+IFERROR(IF(V4=0,0,VLOOKUP(G4,' Bandelsspec avg o ext'!$A:$V,18,FALSE)*($F4+BF4)*$N4*(V4/U4)*(DR4/500)),0) -> 38729.16108 | CZ4: =+DA4+DB4 -> 0 | DA4: 0 | DB4: 0 | DC4: =+CW4-CR4 -> 0 | DD4: 0 | DE4: =+CY4-CT4 -> 0 | DF4: 1967253765 | DG4: 1967253765 | DH4: 1967253765 | DI4: =($F4+BF4)*$N4*BU4 -> 3076172.198 | DJ4: =+$DG4*BS4 -> 42600436.69 | DK4: =+SUM(DI4:DJ4)-SUM(CP4:CQ4) -> 0 | DL4: =+IF(N4=0,0,SUMPRODUCT(P4:T4,Indata_Kalkylvärden!D$106:H$106)/N4) -> 1576.356938 | DM4: 1717.067968 | DN4: 1.089263432 | DO4: =+IF(N4=0,0,SUMPRODUCT(P4:T4,Indata_Kalkylvärden!D$109:H$109)/Bangods_linjedel!N4) -> 0.4650668804 | DP4: =+IF(N4=0,0,BZ4/N4*DO4) -> 1.732123805e-16 | DQ4: =+IF(N4=0,0,(SUMPRODUCT(P4:T4,Indata_Kalkylvärden!D$108:H$108)/Bangods_linjedel!N4)*DN4) -> 567.3285424 | DR4: =+IF(Bangods_linjedel!L4=0,DQ4+DP4,DQ4+DP4+Bangods_linjedel!L4) -> 567.3285424 | DS4: =+Bangods_linjedel!Z4 -> 65.5469024 | DT4: =+Bangods_linjedel!AB4 -> 41.25630339 | DU4: =+Bangods_linjedel!AF4 -> 70.17640707 | DV4: =+Bangods_linjedel!AD4+Bangods_linjedel!AE4 -> 90.0262362 | DW4: =+Bangods_linjedel!AG4 -> 1.53 | DX4: =+Bangods_linjedel!AH4 -> 5.355 | DY4: =+Bangods_linjedel!BG4 -> -4.440892099e-16 | DZ4: =+(Bangods_linjedel!BM4+Bangods_linjedel!CD4)/1000000 -> -3.203112e-16 | EA4: =+(Bangods_linjedel!BO4+Bangods_linjedel!CE4)/1000000 -> 0 | EB4: =+(Bangods_linjedel!BP4+Bangods_linjedel!CF4)/1000000 -> -1.557868148e-16 | EC4: =+(Bangods_linjedel!BQ4+Bangods_linjedel!CG4)/1000000 -> 0 | ED4: =+Bangods_linjedel!DC4/1000000 -> 0 | EE4: =+Bangods_linjedel!DD4/1000000 -> 0 | EF4: =+Bangods_linjedel!DE4/1000000 -> 0 | EG4: =+Bangods_linjedel!DA4/1000000 -> 0 | EH4: =+Bangods_linjedel!DB4/1000000 -> 0 | EJ4: =+Bangods_linjedel!DQ4 -> 567.3285424 | EK4: =+Bangods_linjedel!DR4 -> 567.3285424 | EL4: =+Bangods_linjedel!BA4-Bangods_linjedel!AY4 -> 0 | EM4: =+B4 -> L101 | ET4: =+$N4*AB4 -> 330539.3143 | EU4: =+$N4*(AD4+AE4) -> 721276.7005 | EV4: 21048043.23 | EW4: 73668151.31 | EX4: 80490806.38 | EY4: =+VLOOKUP(G4,' Bandelsspec avg o ext'!$A:$T,19,FALSE)*$F4*$N4 -> 87601.68149 | EZ4: 650882.694 | FB4: 70.17640707 | FE4: =+SUMIF(Länkar!I:I,Bangods_linjedel!B4,Länkar!Y:Y)/2 -> 81.23999953 | FG4: =+IF($N4=0,0,IF($G4="d",SUMPRODUCT($P4:$T4,Indata_Kalkylvärden!$I$139:$M$139))/$N4) -> 0 | FJ4: 1117609825 | FK4: 1117609825 | FN4: 1051816.015 | FQ4: 26853013.89 | FR4: =+IF(Z4=0,0,N4*F4/(Z4/60)*AD4) -> 39215802.34 | FS4: =+FQ4+FR4 -> 66068816.24
A5: =IFERROR(VLOOKUP(B5,' Fyrspår JA'!B:Z,25,FALSE),+VLOOKUP(B5,Länkar!I:AD,20,FALSE)) -> Malmbanan | B5: =+BANGODSINDATA!B4 -> L102 | C5: =+BANGODSINDATA!C4 -> Gällivare-Råtsi | E5: =+BANGODSINDATA!D4 -> Gällivare-Sikträsk | F5: =+IFERROR(BANGODSINDATA!F4,FE5) -> 92.34 | G5: =IFERROR((+VLOOKUP(B5,Länkar!I:AD,22,FALSE)),VLOOKUP(B5,' Fyrspår JA'!B:Z,25,FALSE)) -> 113 | N5: =+IFERROR(BANGODSINDATA!G4,0) -> 5501.62 | O5: =+IF(BANGODSINDATA!H4=0,0,BANGODSINDATA!H4*Kalkylsammanställning!G$2) -> 9724071 | P5: =+IFERROR(BANGODSINDATA!I4,0) -> 1873.82 | Q5: =+IF(BANGODSINDATA!J4="-",0,BANGODSINDATA!J4) -> 0 | R5: =+IFERROR(BANGODSINDATA!K4,0) -> 0 | S5: =+IFERROR(BANGODSINDATA!L4,0) -> 2082.04 | T5: =+IFERROR(BANGODSINDATA!M4,0) -> 1545.76 | U5: 19.63 | V5: =+IF(U5+Bangods_linjedel!K5<0,0,U5+Bangods_linjedel!K5) -> 19.63 | W5: 5.948685714 | X5: 13.68131429 | Y5: =(IF(AM5="nej",100%,INDATABLAD!$D$268)) -> 0 | Z5: =+IF(N5=0,0,SUMPRODUCT(P5:T5,Indata_Kalkylvärden!D$104:H$104)/N5) -> 66.15825884 | AA5: =+IF(N5=0,0,SUMPRODUCT($P5:$T5,Indata_Kalkylvärden!$D$105:$H$105)/Bangods_linjedel!$N5) -> 390.2523257 | AB5: =IF(N5=0,0,(CM5*INDATABLAD!D$266+INDATABLAD!D$267*CI5)/(N5*F5)) -> 43.80557133 | AC5: =+IF(B5='Beskrivning av åtgärd'!$D$171,'Beskrivning av åtgärd'!$B$171*$N5,0) -> 0 | AD5: =+IF(N5=0,0,SUMPRODUCT(P5:T5,Indata_Kalkylvärden!D$117:H$117/Bangods_linjedel!N5)) -> 64.17650596 | AE5: =+IF(N5=0,0,SUMPRODUCT(P5:T5,Indata_Kalkylvärden!$D$116:$H$116)/N5)*DN5 -> 26.54153179 | AF5: 74.22064315 | AG5: =+Indata_Kalkylvärden!T$96 -> 1.53 | AH5: =+Indata_Kalkylvärden!T$97 -> 5.355 | AI5: 49202.71426 | AJ5: 28964.7786 | AK5: 78167.49286 | AL5: =+IF(N5=0,0,SUMPRODUCT($P5:$T5,Indata_Kalkylvärden!$D$118:$H$118)/$N5) -> -0.5832754032 | AM5: =+VLOOKUP($G5,Länkar!$F:$V,16,FALSE) -> Ja | AN5: =+VLOOKUP($G5,Länkar!$F:$V,17,FALSE) -> Ja | AO5: =+IF(N5=0,0,(SUMPRODUCT(P5:T5,Indata_Kalkylvärden!$D$110:$H$110)/N5)) -> 1.815679401 | AP5: =+IFERROR(IF(B5=0,0,VLOOKUP(B5,'Kap.ber JA'!$B:$AI,7,FALSE)),0) -> esp | AQ5: =+IFERROR(IF(B5=0,0,VLOOKUP(B5,'Kap.ber UA'!B:H,7,FALSE)),0) -> esp | AR5: =+IFERROR(IF(B5=0,0,VLOOKUP(B5,'Kap.ber JA'!$B:$AI,8,FALSE)),0) -> 0.3842096323 | AS5: =+IFERROR(IF(B5=0,0,VLOOKUP(B5,'Kap.ber UA'!$B:$AL,8,FALSE)),0) -> 0.3842096323 | AT5: =+IF($AP5="esp",INDATABLAD!$D$568,INDATABLAD!$D$566) -> 2.58 | AU5: =+IF($AP5="Esp",INDATABLAD!$D$569,INDATABLAD!$D$567) -> 0.28 | AV5: =+IF($AQ5="Esp",INDATABLAD!$D$568,INDATABLAD!$D$566) -> 2.58 | AW5: =+IF($AQ5="Esp",INDATABLAD!$D$569,INDATABLAD!$D$567) -> 0.28 | AX5: =+INDATABLAD!$D$565 -> 0.3 | AY5: 6.567782701 | AZ5: 2.7702 | BA5: 6.567782701 | BB5: 2.7702 | BC5: =SUMIF('Gods_nya linjedelar_UA'!$D$4:$D$18,Bangods_linjedel!B5,'Gods_nya linjedelar_UA'!$J$4:$J$18) -> 0 | BD5: =SUMIF('Gods_nya linjedelar_UA'!$D$4:$D$18,Bangods_linjedel!B5,'Gods_nya linjedelar_UA'!$K$4:$K$18) -> 0 | BE5: =+Bangods_linjedel!H5 -> 0 | BF5: =+Bangods_linjedel!I5 -> 0 | BG5: 0 | BH5: =+Bangods_linjedel!K5 -> 0 | BI5: =+IF(Bangods_linjedel!J5=0,(BA5-AY5)*0.05,Bangods_linjedel!J5) -> 0 | BJ5: 0 | BL5: -2.607703209e-09 | BM5: =+(($BG5+$BI5)*($AD5+AE5)*$N5)+Bangods_linjedel!M5 -> 0 | BN5: =+(CJ5-CI5)*INDATABLAD!D$267+INDATABLAD!D$266*(CN5-CM5) -> -2.607703209e-09 | BO5: =+DK5 -> 0 | BP5: 0 | BQ5: 0 | BR5: =+IF(N5=0,0,('Beskrivning av åtgärd'!$C$165*(X5)+'Beskrivning av åtgärd'!$D$165*Bangods_linjedel!W5)/Bangods_linjedel!U5) -> 0.02165477451 | BS5: =+IF(O5=0,0,('Beskrivning av åtgärd'!$F$165*(X5)+'Beskrivning av åtgärd'!$G$165*Bangods_linjedel!W5)/Bangods_linjedel!U5) -> 0.02165477451 | BT5: =+IF(U5=0,0,('Beskrivning av åtgärd'!$C$166*(X5)+'Beskrivning av åtgärd'!$D$166*$W5)/$U5) -> 4.726154537 | BU5: =+IF(O5=0,0,('Beskrivning av åtgärd'!$F$166*(X5)+'Beskrivning av åtgärd'!$G$166*$W5)/$U5) -> 4.726154537 | BV5: =BANGODSINDATA!S4 -> 249.9692982 | BW5: =BANGODSINDATA!T4 -> 349.9226891 | BY5: =+IF(N5=0,0,N5*BF5) -> 0 | BZ5: =+IF(O5=0,0,IF('Beskrivning av åtgärd'!B$12="Nej",(((BM5+BN5+BO5*'Beskrivning av åtgärd'!$C$176)/(AK5*N5))*AL5)*O5,((BM5+BN5+BO5*'Beskrivning av åtgärd'!$C$176)/(AK5*N5+BM5+BN5+BO5*'Beskrivning av åtgärd'!$C$176*N5))*AL5*O5)) -> 3.439245458e-11 | CA5: 1.342173539e-08 | CB5: =+IF(AO5=0,0,AO5*CA5*V5/U5) -> 2.436956847e-08 | CC5: 0 | CD5: -4.611510661e-27 | CE5: 0 | CF5: 0 | CG5: 0 | CI5: =+(($N5*$F5*INDATABLAD!$D$254+Bangods_linjedel!$DF5*INDATABLAD!$D$255))*Y5 -> 0 | CJ5: =+IF($AN5="Nej",(($N5*($F5+$BF5)*INDATABLAD!$D$254+DG5*INDATABLAD!$D$255)),IF($BJ5="Ja",0,(($N5*($F5+$BF5)*INDATABLAD!$D$254+DG5*INDATABLAD!$D$255))*$Y5)) -> 0 | CK5: =+IF($AN5="Nej",(($N5*($F5+$BF5)*INDATABLAD!$D$254+DH5*INDATABLAD!$D$255)),IF($BJ5="ja",0,(($N5*($F5+$BF5)*INDATABLAD!$D$254+DH5*INDATABLAD!$D$255))*$Y5)) -> 0 | CL5: 0 | CM5: =+DF5*INDATABLAD!$D$256*(1-$Y5) -> 31791554.89 | CN5: =+IF(AN5="Ja",DG5*INDATABLAD!$D$256,IF(AN5="Nej",0,DG5*INDATABLAD!$D$256*(1-Y5))) -> 31791554.89 | CO5: 31791554.89 | CP5: 2400979.094 | CQ5: 35304561.67 | CR5: =+DF5*(INDATABLAD!$D$248)+F5*N5*INDATABLAD!$D$249 -> 37705540.76 | CT5: =+IFERROR(VLOOKUP(G5,' Bandelsspec avg o ext'!$A:$T,17,FALSE)*$F5*$N5*DQ5/500,0) -> 75795.78595 | CU5: 2400979.094 | CV5: 35304561.67 | CW5: =+IF(N5=0,0,DH5*(INDATABLAD!$D$248)+N5*(V5/U5)*(F5+BF5)*INDATABLAD!D$249) -> 37705540.76 | CY5: =+IFERROR(IF(V5=0,0,VLOOKUP(G5,' Bandelsspec avg o ext'!$A:$V,18,FALSE)*($F5+BF5)*$N5*(V5/U5)*(DR5/500)),0) -> 75795.78595 | CZ5: 0 | DA5: 0 | DB5: 0 | DC5: 0 | DD5: 0 | DE5: 0 | DF5: 1630336148 | DG5: 1630336148 | DH5: 1630336148 | DI5: 2400979.094 | DJ5: 35304561.67 | DK5: 0 | DL5: =+IF(N5=0,0,SUMPRODUCT(P5:T5,Indata_Kalkylvärden!D$106:H$106)/N5) -> 1454.508075 | DM5: 1767.492302 | DN5: 1.215182186 | DO5: =+IF(N5=0,0,SUMPRODUCT(P5:T5,Indata_Kalkylvärden!D$109:H$109)/Bangods_linjedel!N5) -> 0.5159840093 | DP5: 3.225587483e-15 | DQ5: =+IF(N5=0,0,(SUMPRODUCT(P5:T5,Indata_Kalkylvärden!D$108:H$108)/Bangods_linjedel!N5)*DN5) -> 623.7710303 | DR5: =+IF(Bangods_linjedel!L5=0,DQ5+DP5,DQ5+DP5+Bangods_linjedel!L5) -> 623.7710303 | DS5: =+Bangods_linjedel!Z5 -> 66.15825884 | DT5: =+Bangods_linjedel!AB5 -> 43.80557133 | DU5: =+Bangods_linjedel!AF5 -> 74.22064315 | DV5: =+Bangods_linjedel!AD5+Bangods_linjedel!AE5 -> 90.71803775 | DW5: =+Bangods_linjedel!AG5 -> 1.53 | DX5: =+Bangods_linjedel!AH5 -> 5.355 | DY5: =+Bangods_linjedel!BG5 -> 0 | DZ5: =+(Bangods_linjedel!BM5+Bangods_linjedel!CD5)/1000000 -> -4.611510661e-33 | EA5: =+(Bangods_linjedel!BO5+Bangods_linjedel!CE5)/1000000 -> 0 | EB5: =+(Bangods_linjedel!BP5+Bangods_linjedel!CF5)/1000000 -> 0 | EC5: =+(Bangods_linjedel!BQ5+Bangods_linjedel!CG5)/1000000 -> 0 | ED5: =+Bangods_linjedel!DC5/1000000 -> 0 | EE5: =+Bangods_linjedel!DD5/1000000 -> 0 | EF5: =+Bangods_linjedel!DE5/1000000 -> 0 | EG5: =+Bangods_linjedel!DA5/1000000 -> 0 | EH5: =+Bangods_linjedel!DB5/1000000 -> 0 | EJ5: =+Bangods_linjedel!DQ5 -> 623.7710303 | EK5: =+Bangods_linjedel!DR5 -> 623.7710303 | EL5: =+Bangods_linjedel!BA5-Bangods_linjedel!AY5 -> 0 | EM5: L102 | ET5: 241001.6073 | EU5: 499096.1709 | EV5: 14877828.63 | EW5: 52072400.21 | EX5: 64050720.82 | EY5: =+VLOOKUP(G5,' Bandelsspec avg o ext'!$A:$T,19,FALSE)*$F5*$N5 -> 155929.7009 | EZ5: 508019.5908 | FB5: 74.22064315 | FE5: =+SUMIF(Länkar!I:I,Bangods_linjedel!B5,Länkar!Y:Y)/2 -> 92.33999991 | FG5: =+IF($N5=0,0,IF($G5="d",SUMPRODUCT($P5:$T5,Indata_Kalkylvärden!$I$139:$M$139))/$N5) -> 0 | FJ5: 897920716.1 | FK5: 897920716.1 | FN5: 740097.7782 | FQ5: 22254088.42 | FR5: 29568120.02 | FS5: 51822208.44
A6: =IFERROR(VLOOKUP(B6,' Fyrspår JA'!B:Z,25,FALSE),+VLOOKUP(B6,Länkar!I:AD,20,FALSE)) -> Malmbanan | B6: =+BANGODSINDATA!B5 -> L103 | C6: =+BANGODSINDATA!C5 -> Råtsi-Peuravaara | E6: =+BANGODSINDATA!D5 -> Peuravaara-Kirunavaara | F6: =+IFERROR(BANGODSINDATA!F5,FE6) -> 11.46 | G6: =IFERROR((+VLOOKUP(B6,Länkar!I:AD,22,FALSE)),VLOOKUP(B6,' Fyrspår JA'!B:Z,25,FALSE)) -> 113 | N6: =+IFERROR(BANGODSINDATA!G5,0) -> 9448.43 | O6: =+IF(BANGODSINDATA!H5=0,0,BANGODSINDATA!H5*Kalkylsammanställning!G$2) -> 23035532 | P6: =+IFERROR(BANGODSINDATA!I5,0) -> 1873.82 | Q6: =+IF(BANGODSINDATA!J5="-",0,BANGODSINDATA!J5) -> 0 | R6: =+IFERROR(BANGODSINDATA!K5,0) -> 0 | S6: =+IFERROR(BANGODSINDATA!L5,0) -> 6028.85 | T6: =+IFERROR(BANGODSINDATA!M5,0) -> 1545.76 | U6: 30.91 | V6: =+IF(U6+Bangods_linjedel!K6<0,0,U6+Bangods_linjedel!K6) -> 30.91 | W6: 17.22528571 | X6: 13.68471429 | Y6: =(IF(AM6="nej",100%,INDATABLAD!$D$268)) -> 0 | Z6: =+IF(N6=0,0,SUMPRODUCT(P6:T6,Indata_Kalkylvärden!D$104:H$104)/N6) -> 57.32000449 | AA6: =+IF(N6=0,0,SUMPRODUCT($P6:$T6,Indata_Kalkylvärden!$D$105:$H$105)/Bangods_linjedel!$N6) -> 352.5520113 | AB6: =IF(N6=0,0,(CM6*INDATABLAD!D$266+INDATABLAD!D$267*CI6)/(N6*F6)) -> 57.59627014 | AC6: =+IF(B6='Beskrivning av åtgärd'!$D$171,'Beskrivning av åtgärd'!$B$171*$N6,0) -> 0 | AD6: =+IF(N6=0,0,SUMPRODUCT(P6:T6,Indata_Kalkylvärden!D$117:H$117/Bangods_linjedel!N6)) -> 74.21633302 | AE6: =+IF(N6=0,0,SUMPRODUCT(P6:T6,Indata_Kalkylvärden!$D$116:$H$116)/N6)*DN6 -> 28.45521393 | AF6: 96.09862653 | AG6: =+Indata_Kalkylvärden!T$96 -> 1.53 | AH6: =+Indata_Kalkylvärden!T$97 -> 5.355 | AI6: 58195.134 | AJ6: 33879.76407 | AK6: 92074.89807 | AL6: =+IF(N6=0,0,SUMPRODUCT($P6:$T6,Indata_Kalkylvärden!$D$118:$H$118)/$N6) -> -0.348944056 | AM6: =+VLOOKUP($G6,Länkar!$F:$V,16,FALSE) -> Ja | AN6: =+VLOOKUP($G6,Länkar!$F:$V,17,FALSE) -> Ja | AO6: =+IF(N6=0,0,(SUMPRODUCT(P6:T6,Indata_Kalkylvärden!$D$110:$H$110)/N6)) -> 1.730705253 | AP6: =+IFERROR(IF(B6=0,0,VLOOKUP(B6,'Kap.ber JA'!$B:$AI,7,FALSE)),0) -> esp | AQ6: =+IFERROR(IF(B6=0,0,VLOOKUP(B6,'Kap.ber UA'!B:H,7,FALSE)),0) -> esp | AR6: =+IFERROR(IF(B6=0,0,VLOOKUP(B6,'Kap.ber JA'!$B:$AI,8,FALSE)),0) -> 0.5962746323 | AS6: =+IFERROR(IF(B6=0,0,VLOOKUP(B6,'Kap.ber UA'!$B:$AL,8,FALSE)),0) -> 0.5962746323 | AT6: =+IF($AP6="esp",INDATABLAD!$D$568,INDATABLAD!$D$566) -> 2.58 | AU6: =+IF($AP6="Esp",INDATABLAD!$D$569,INDATABLAD!$D$567) -> 0.28 | AV6: =+IF($AQ6="Esp",INDATABLAD!$D$568,INDATABLAD!$D$566) -> 2.58 | AW6: =+IF($AQ6="Esp",INDATABLAD!$D$569,INDATABLAD!$D$567) -> 0.28 | AX6: =+INDATABLAD!$D$565 -> 0.3 | AY6: 1.44211328 | AZ6: 0.3438 | BA6: 1.44211328 | BB6: 0.3438 | BC6: =SUMIF('Gods_nya linjedelar_UA'!$D$4:$D$18,Bangods_linjedel!B6,'Gods_nya linjedelar_UA'!$J$4:$J$18) -> 0 | BD6: =SUMIF('Gods_nya linjedelar_UA'!$D$4:$D$18,Bangods_linjedel!B6,'Gods_nya linjedelar_UA'!$K$4:$K$18) -> 0 | BE6: =+Bangods_linjedel!H6 -> 0 | BF6: =+Bangods_linjedel!I6 -> 0 | BG6: 5.551115123e-17 | BH6: =+Bangods_linjedel!K6 -> 0 | BI6: =+IF(Bangods_linjedel!J6=0,(BA6-AY6)*0.05,Bangods_linjedel!J6) -> 0 | BJ6: 0 | BL6: 5.385053094e-11 | BM6: =+(($BG6+$BI6)*($AD6+AE6)*$N6)+Bangods_linjedel!M6 -> 5.385053094e-11 | BN6: =+(CJ6-CI6)*INDATABLAD!D$267+INDATABLAD!D$266*(CN6-CM6) -> 0 | BO6: 0 | BP6: 3.260758696e-11 | BQ6: 0 | BR6: =+IF(N6=0,0,('Beskrivning av åtgärd'!$C$165*(X6)+'Beskrivning av åtgärd'!$D$165*Bangods_linjedel!W6)/Bangods_linjedel!U6) -> 0.02165477451 | BS6: =+IF(O6=0,0,('Beskrivning av åtgärd'!$F$165*(X6)+'Beskrivning av åtgärd'!$G$165*Bangods_linjedel!W6)/Bangods_linjedel!U6) -> 0.02165477451 | BT6: =+IF(U6=0,0,('Beskrivning av åtgärd'!$C$166*(X6)+'Beskrivning av åtgärd'!$D$166*$W6)/$U6) -> 4.726154537 | BU6: =+IF(O6=0,0,('Beskrivning av åtgärd'!$F$166*(X6)+'Beskrivning av åtgärd'!$G$166*$W6)/$U6) -> 4.726154537 | BV6: =BANGODSINDATA!S5 -> 249.9692982 | BW6: =BANGODSINDATA!T5 -> 349.9042368 | BY6: 0 | BZ6: =+IF(O6=0,0,IF('Beskrivning av åtgärd'!B$12="Nej",(((BM6+BN6+BO6*'Beskrivning av åtgärd'!$C$176)/(AK6*N6))*AL6)*O6,((BM6+BN6+BO6*'Beskrivning av åtgärd'!$C$176)/(AK6*N6+BM6+BN6+BO6*'Beskrivning av åtgärd'!$C$176*N6))*AL6*O6)) -> -4.975573481e-13 | CA6: -1.754148438e-10 | CB6: -3.035913917e-10 | CC6: 5.815738784e-31 | CD6: 0 | CE6: 0 | CF6: 7.043095206e-31 | CG6: 0 | CI6: =+(($N6*$F6*INDATABLAD!$D$254+Bangods_linjedel!$DF6*INDATABLAD!$D$255))*Y6 -> 0 | CJ6: =+IF($AN6="Nej",(($N6*($F6+$BF6)*INDATABLAD!$D$254+DG6*INDATABLAD!$D$255)),IF($BJ6="Ja",0,(($N6*($F6+$BF6)*INDATABLAD!$D$254+DG6*INDATABLAD!$D$255))*$Y6)) -> 0 | CK6: =+IF($AN6="Nej",(($N6*($F6+$BF6)*INDATABLAD!$D$254+DH6*INDATABLAD!$D$255)),IF($BJ6="ja",0,(($N6*($F6+$BF6)*INDATABLAD!$D$254+DH6*INDATABLAD!$D$255))*$Y6)) -> 0 | CL6: 0 | CM6: =+DF6*INDATABLAD!$D$256*(1-$Y6) -> 8909238.549 | CN6: =+IF(AN6="Ja",DG6*INDATABLAD!$D$256,IF(AN6="Nej",0,DG6*INDATABLAD!$D$256*(1-Y6))) -> 8909238.549 | CO6: 8909238.549 | CP6: 511743.324 | CQ6: 9893720.608 | CR6: =+DF6*(INDATABLAD!$D$248)+F6*N6*INDATABLAD!$D$249 -> 10405463.93 | CT6: =+IFERROR(VLOOKUP(G6,' Bandelsspec avg o ext'!$A:$T,17,FALSE)*$F6*$N6*DQ6/500,0) -> 18408.75703 | CU6: 511743.324 | CV6: 9893720.608 | CW6: =+IF(N6=0,0,DH6*(INDATABLAD!$D$248)+N6*(V6/U6)*(F6+BF6)*INDATABLAD!D$249) -> 10405463.93 | CY6: =+IFERROR(IF(V6=0,0,VLOOKUP(G6,' Bandelsspec avg o ext'!$A:$V,18,FALSE)*($F6+BF6)*$N6*(V6/U6)*(DR6/500)),0) -> 18408.75703 | CZ6: 0 | DA6: 0 | DB6: 0 | DC6: 0 | DD6: 0 | DE6: 0 | DF6: 456884028.2 | DG6: 456884028.2 | DH6: 456884028.2 | DI6: 511743.324 | DJ6: 9893720.608 | DK6: 0 | DL6: =+IF(N6=0,0,SUMPRODUCT(P6:T6,Indata_Kalkylvärden!D$106:H$106)/N6) -> 2100.092895 | DM6: 2438.027482 | DN6: 1.160914113 | DO6: =+IF(N6=0,0,SUMPRODUCT(P6:T6,Indata_Kalkylvärden!D$109:H$109)/Bangods_linjedel!N6) -> 0.3984996251 | DP6: -2.098511781e-17 | DQ6: =+IF(N6=0,0,(SUMPRODUCT(P6:T6,Indata_Kalkylvärden!D$108:H$108)/Bangods_linjedel!N6)*DN6) -> 710.789165 | DR6: =+IF(Bangods_linjedel!L6=0,DQ6+DP6,DQ6+DP6+Bangods_linjedel!L6) -> 710.789165 | DS6: =+Bangods_linjedel!Z6 -> 57.32000449 | DT6: =+Bangods_linjedel!AB6 -> 57.59627014 | DU6: =+Bangods_linjedel!AF6 -> 96.09862653 | DV6: =+Bangods_linjedel!AD6+Bangods_linjedel!AE6 -> 102.671547 | DW6: =+Bangods_linjedel!AG6 -> 1.53 | DX6: =+Bangods_linjedel!AH6 -> 5.355 | DY6: =+Bangods_linjedel!BG6 -> 5.551115123e-17 | DZ6: =+(Bangods_linjedel!BM6+Bangods_linjedel!CD6)/1000000 -> 5.385053094e-17 | EA6: =+(Bangods_linjedel!BO6+Bangods_linjedel!CE6)/1000000 -> 0 | EB6: =+(Bangods_linjedel!BP6+Bangods_linjedel!CF6)/1000000 -> 3.260758696e-17 | EC6: =+(Bangods_linjedel!BQ6+Bangods_linjedel!CG6)/1000000 -> 0 | ED6: =+Bangods_linjedel!DC6/1000000 -> 0 | EE6: =+Bangods_linjedel!DD6/1000000 -> 0 | EF6: =+Bangods_linjedel!DE6/1000000 -> 0 | EG6: =+Bangods_linjedel!DA6/1000000 -> 0 | EH6: =+Bangods_linjedel!DB6/1000000 -> 0 | EJ6: =+Bangods_linjedel!DQ6 -> 710.789165 | EK6: =+Bangods_linjedel!DR6 -> 710.789165 | EL6: =+Bangods_linjedel!BA6-Bangods_linjedel!AY6 -> 0 | EM6: L103 | ET6: 544194.3267 | EU6: 970084.9244 | EV6: 35244363.96 | EW6: 123355273.9 | EX6: 17873423.4 | EY6: =+VLOOKUP(G6,' Bandelsspec avg o ext'!$A:$T,19,FALSE)*$F6*$N6 -> 33234.76812 | EZ6: 108279.0078 | FB6: 96.09862653 | FE6: =+SUMIF(Länkar!I:I,Bangods_linjedel!B6,Länkar!Y:Y)/2 -> 11.4599998 | FG6: =+IF($N6=0,0,IF($G6="d",SUMPRODUCT($P6:$T6,Indata_Kalkylvärden!$I$139:$M$139))/$N6) -> 0 | FJ6: 263987196.7 | FK6: 263987196.7 | FN6: 1514279.251 | FQ6: 6236466.984 | FR6: 8411797.215 | FS6: 14648264.2
A7: =IFERROR(VLOOKUP(B7,' Fyrspår JA'!B:Z,25,FALSE),+VLOOKUP(B7,Länkar!I:AD,20,FALSE)) -> Malmbanan | B7: =+BANGODSINDATA!B6 -> L104 | C7: =+BANGODSINDATA!C6 -> Peuravaara-Riksgränsen | E7: =+BANGODSINDATA!D6 -> Kopparåsen-Vassijaure | F7: =+IFERROR(BANGODSINDATA!F6,FE7) -> 126.24 | G7: =IFERROR((+VLOOKUP(B7,Länkar!I:AD,22,FALSE)),VLOOKUP(B7,' Fyrspår JA'!B:Z,25,FALSE)) -> 111 | N7: =+IFERROR(BANGODSINDATA!G6,0) -> 10840.15 | O7: =+IF(BANGODSINDATA!H6=0,0,BANGODSINDATA!H6*Kalkylsammanställning!G$2) -> 29852170 | P7: =+IFERROR(BANGODSINDATA!I6,0) -> 169.8 | Q7: =+IF(BANGODSINDATA!J6="-",0,BANGODSINDATA!J6) -> 0 | R7: =+IFERROR(BANGODSINDATA!K6,0) -> 0 | S7: =+IFERROR(BANGODSINDATA!L6,0) -> 9124.59 | T7: =+IFERROR(BANGODSINDATA!M6,0) -> 1545.76 | U7: 32.93 | V7: =+IF(U7+Bangods_linjedel!K7<0,0,U7+Bangods_linjedel!K7) -> 32.93 | W7: 26.07025714 | X7: 6.859742857 | Y7: =(IF(AM7="nej",100%,INDATABLAD!$D$268)) -> 0 | Z7: =+IF(N7=0,0,SUMPRODUCT(P7:T7,Indata_Kalkylvärden!D$104:H$104)/N7) -> 51.80841132 | AA7: =+IF(N7=0,0,SUMPRODUCT($P7:$T7,Indata_Kalkylvärden!$D$105:$H$105)/Bangods_linjedel!$N7) -> 330.0855615 | AB7: =IF(N7=0,0,(CM7*INDATABLAD!D$266+INDATABLAD!D$267*CI7)/(N7*F7)) -> 62.38692849 | AC7: =+IF(B7='Beskrivning av åtgärd'!$D$171,'Beskrivning av åtgärd'!$B$171*$N7,0) -> 0 | AD7: =+IF(N7=0,0,SUMPRODUCT(P7:T7,Indata_Kalkylvärden!D$117:H$117/Bangods_linjedel!N7)) -> 82.09158747 | AE7: =+IF(N7=0,0,SUMPRODUCT(P7:T7,Indata_Kalkylvärden!$D$116:$H$116)/N7)*DN7 -> 27.91326593 | AF7: 103.6986724 | AG7: =+Indata_Kalkylvärden!T$96 -> 1.53 | AH7: =+Indata_Kalkylvärden!T$97 -> 5.355 | AI7: 62645.2852 | AJ7: 34229.43451 | AK7: 96874.71971 | AL7: =+IF(N7=0,0,SUMPRODUCT($P7:$T7,Indata_Kalkylvärden!$D$118:$H$118)/$N7) -> -0.1527205078 | AM7: =+VLOOKUP($G7,Länkar!$F:$V,16,FALSE) -> Ja | AN7: =+VLOOKUP($G7,Länkar!$F:$V,17,FALSE) -> Ja | AO7: =+IF(N7=0,0,(SUMPRODUCT(P7:T7,Indata_Kalkylvärden!$D$110:$H$110)/N7)) -> 1.65966463 | AP7: =+IFERROR(IF(B7=0,0,VLOOKUP(B7,'Kap.ber JA'!$B:$AI,7,FALSE)),0) -> esp | AQ7: =+IFERROR(IF(B7=0,0,VLOOKUP(B7,'Kap.ber UA'!B:H,7,FALSE)),0) -> esp | AR7: =+IFERROR(IF(B7=0,0,VLOOKUP(B7,'Kap.ber JA'!$B:$AI,8,FALSE)),0) -> 0.6513112712 | AS7: =+IFERROR(IF(B7=0,0,VLOOKUP(B7,'Kap.ber UA'!$B:$AL,8,FALSE)),0) -> 0.6513112712 | AT7: =+IF($AP7="esp",INDATABLAD!$D$568,INDATABLAD!$D$566) -> 2.58 | AU7: =+IF($AP7="Esp",INDATABLAD!$D$569,INDATABLAD!$D$567) -> 0.28 | AV7: =+IF($AQ7="Esp",INDATABLAD!$D$568,INDATABLAD!$D$566) -> 2.58 | AW7: =+IF($AQ7="Esp",INDATABLAD!$D$569,INDATABLAD!$D$567) -> 0.28 | AX7: =+INDATABLAD!$D$565 -> 0.3 | AY7: 17.678436 | AZ7: 3.7872 | BA7: 17.678436 | BB7: 3.7872 | BC7: =SUMIF('Gods_nya linjedelar_UA'!$D$4:$D$18,Bangods_linjedel!B7,'Gods_nya linjedelar_UA'!$J$4:$J$18) -> 0 | BD7: =SUMIF('Gods_nya linjedelar_UA'!$D$4:$D$18,Bangods_linjedel!B7,'Gods_nya linjedelar_UA'!$K$4:$K$18) -> 0 | BE7: =+Bangods_linjedel!H7 -> 0 | BF7: =+Bangods_linjedel!I7 -> 0 | BG7: -4.440892099e-16 | BH7: =+Bangods_linjedel!K7 -> 0 | BI7: =+IF(Bangods_linjedel!J7=0,(BA7-AY7)*0.05,Bangods_linjedel!J7) -> 0 | BJ7: 0 | BL7: -5.295626656e-10 | BM7: =+(($BG7+$BI7)*($AD7+AE7)*$N7)+Bangods_linjedel!M7 -> -5.295626656e-10 | BN7: =+(CJ7-CI7)*INDATABLAD!D$267+INDATABLAD!D$266*(CN7-CM7) -> 0 | BO7: 0 | BP7: -3.38054178e-10 | BQ7: 0 | BR7: =+IF(N7=0,0,('Beskrivning av åtgärd'!$C$165*(X7)+'Beskrivning av åtgärd'!$D$165*Bangods_linjedel!W7)/Bangods_linjedel!U7) -> 0.02165477451 | BS7: =+IF(O7=0,0,('Beskrivning av åtgärd'!$F$165*(X7)+'Beskrivning av åtgärd'!$G$165*Bangods_linjedel!W7)/Bangods_linjedel!U7) -> 0.02165477451 | BT7: =+IF(U7=0,0,('Beskrivning av åtgärd'!$C$166*(X7)+'Beskrivning av åtgärd'!$D$166*$W7)/$U7) -> 4.726154537 | BU7: =+IF(O7=0,0,('Beskrivning av åtgärd'!$F$166*(X7)+'Beskrivning av åtgärd'!$G$166*$W7)/$U7) -> 4.726154537 | BV7: =BANGODSINDATA!S6 -> 250.0816327 | BW7: =BANGODSINDATA!T6 -> 350.0034522 | BY7: 0 | BZ7: =+IF(O7=0,0,IF('Beskrivning av åtgärd'!B$12="Nej",(((BM7+BN7+BO7*'Beskrivning av åtgärd'!$C$176)/(AK7*N7))*AL7)*O7,((BM7+BN7+BO7*'Beskrivning av åtgärd'!$C$176)/(AK7*N7+BM7+BN7+BO7*'Beskrivning av åtgärd'!$C$176*N7))*AL7*O7)) -> 2.29903125e-12 | CA7: 7.58877021e-10 | CB7: 1.25948135e-09 | CC7: -2.039183612e-29 | CD7: 0 | CE7: 0 | CF7: -2.603486176e-29 | CG7: 0 | CI7: =+(($N7*$F7*INDATABLAD!$D$254+Bangods_linjedel!$DF7*INDATABLAD!$D$255))*Y7 -> 0 | CJ7: =+IF($AN7="Nej",(($N7*($F7+$BF7)*INDATABLAD!$D$254+DG7*INDATABLAD!$D$255)),IF($BJ7="Ja",0,(($N7*($F7+$BF7)*INDATABLAD!$D$254+DG7*INDATABLAD!$D$255))*$Y7)) -> 0 | CK7: =+IF($AN7="Nej",(($N7*($F7+$BF7)*INDATABLAD!$D$254+DH7*INDATABLAD!$D$255)),IF($BJ7="ja",0,(($N7*($F7+$BF7)*INDATABLAD!$D$254+DH7*INDATABLAD!$D$255))*$Y7)) -> 0 | CL7: 0 | CM7: =+DF7*INDATABLAD!$D$256*(1-$Y7) -> 121962928 | CN7: =+IF(AN7="Ja",DG7*INDATABLAD!$D$256,IF(AN7="Nej",0,DG7*INDATABLAD!$D$256*(1-Y7))) -> 121962928 | CO7: 121962928 | CP7: 6467555.971 | CQ7: 135439984.9 | CR7: =+DF7*(INDATABLAD!$D$248)+F7*N7*INDATABLAD!$D$249 -> 141907540.8 | CT7: =+IFERROR(VLOOKUP(G7,' Bandelsspec avg o ext'!$A:$T,17,FALSE)*$F7*$N7*DQ7/500,0) -> 226954.6597 | CU7: 6467555.971 | CV7: 135439984.9 | CW7: =+IF(N7=0,0,DH7*(INDATABLAD!$D$248)+N7*(V7/U7)*(F7+BF7)*INDATABLAD!D$249) -> 141907540.8 | CY7: =+IFERROR(IF(V7=0,0,VLOOKUP(G7,' Bandelsspec avg o ext'!$A:$V,18,FALSE)*($F7+BF7)*$N7*(V7/U7)*(DR7/500)),0) -> 226954.6597 | CZ7: 0 | DA7: 0 | DB7: 0 | DC7: 0 | DD7: 0 | DE7: 0 | DF7: 6254509128 | DG7: 6254509128 | DH7: 6254509128 | DI7: 6467555.971 | DJ7: 135439984.9 | DK7: 0 | DL7: =+IF(N7=0,0,SUMPRODUCT(P7:T7,Indata_Kalkylvärden!D$106:H$106)/N7) -> 2605.790564 | DM7: 2753.852115 | DN7: 1.056820204 | DO7: =+IF(N7=0,0,SUMPRODUCT(P7:T7,Indata_Kalkylvärden!D$109:H$109)/Bangods_linjedel!N7) -> 0.3011181998 | DP7: 6.386259887e-17 | DQ7: =+IF(N7=0,0,(SUMPRODUCT(P7:T7,Indata_Kalkylvärden!D$108:H$108)/Bangods_linjedel!N7)*DN7) -> 725.7446784 | DR7: =+IF(Bangods_linjedel!L7=0,DQ7+DP7,DQ7+DP7+Bangods_linjedel!L7) -> 725.7446784 | DS7: =+Bangods_linjedel!Z7 -> 51.80841132 | DT7: =+Bangods_linjedel!AB7 -> 62.38692849 | DU7: =+Bangods_linjedel!AF7 -> 103.6986724 | DV7: =+Bangods_linjedel!AD7+Bangods_linjedel!AE7 -> 110.0048534 | DW7: =+Bangods_linjedel!AG7 -> 1.53 | DX7: =+Bangods_linjedel!AH7 -> 5.355 | DY7: =+Bangods_linjedel!BG7 -> -4.440892099e-16 | DZ7: =+(Bangods_linjedel!BM7+Bangods_linjedel!CD7)/1000000 -> -5.295626656e-16 | EA7: =+(Bangods_linjedel!BO7+Bangods_linjedel!CE7)/1000000 -> 0 | EB7: =+(Bangods_linjedel!BP7+Bangods_linjedel!CF7)/1000000 -> -3.38054178e-16 | EC7: =+(Bangods_linjedel!BQ7+Bangods_linjedel!CG7)/1000000 -> 0 | ED7: =+Bangods_linjedel!DC7/1000000 -> 0 | EE7: =+Bangods_linjedel!DD7/1000000 -> 0 | EF7: =+Bangods_linjedel!DE7/1000000 -> 0 | EG7: =+Bangods_linjedel!DA7/1000000 -> 0 | EH7: =+Bangods_linjedel!DB7/1000000 -> 0 | EJ7: =+Bangods_linjedel!DQ7 -> 725.7446784 | EK7: =+Bangods_linjedel!DR7 -> 725.7446784 | EL7: =+Bangods_linjedel!BA7-Bangods_linjedel!AY7 -> 0 | EM7: L104 | ET7: 676283.6628 | EU7: 1192469.112 | EV7: 45673820.1 | EW7: 159858370.4 | EX7: 259713270 | EY7: =+VLOOKUP(G7,' Bandelsspec avg o ext'!$A:$T,19,FALSE)*$F7*$N7 -> 401295.445 | EZ7: 1368460.536 | FB7: 103.6986724 | FE7: =+SUMIF(Länkar!I:I,Bangods_linjedel!B7,Länkar!Y:Y)/2 -> 126.2420883 | FG7: =+IF($N7=0,0,IF($G7="d",SUMPRODUCT($P7:$T7,Indata_Kalkylvärden!$I$139:$M$139))/$N7) -> 0 | FJ7: 3768537941 | FK7: 3768537941 | FN7: 1868752.774 | FQ7: 85374049.6 | FR7: 130101381.1 | FS7: 215475430.7
A8: =IFERROR(VLOOKUP(B8,' Fyrspår JA'!B:Z,25,FALSE),+VLOOKUP(B8,Länkar!I:AD,20,FALSE)) -> Malmbanan | B8: =+BANGODSINDATA!B7 -> L105 | C8: =+BANGODSINDATA!C7 -> Råtsi-Svappavaara | E8: =+BANGODSINDATA!D7 -> Aptas-Mertainen | F8: =+IFERROR(BANGODSINDATA!F7,FE8) -> 39.16 | G8: =IFERROR((+VLOOKUP(B8,Länkar!I:AD,22,FALSE)),VLOOKUP(B8,' Fyrspår JA'!B:Z,25,FALSE)) -> 116 | N8: =+IFERROR(BANGODSINDATA!G7,0) -> 3946.81 | O8: =+IF(BANGODSINDATA!H7=0,0,BANGODSINDATA!H7*Kalkylsammanställning!G$2) -> 13311460 | P8: =+IFERROR(BANGODSINDATA!I7,0) -> 0 | Q8: =+IF(BANGODSINDATA!J7="-",0,BANGODSINDATA!J7) -> 0 | R8: =+IFERROR(BANGODSINDATA!K7,0) -> 0 | S8: =+IFERROR(BANGODSINDATA!L7,0) -> 3946.81 | T8: =+IFERROR(BANGODSINDATA!M7,0) -> 0 | U8: 11.28 | V8: =+IF(U8+Bangods_linjedel!K8<0,0,U8+Bangods_linjedel!K8) -> 11.28 | W8: 11.2766 | X8: 0.0034 | Y8: =(IF(AM8="nej",100%,INDATABLAD!$D$268)) -> 0 | Z8: =+IF(N8=0,0,SUMPRODUCT(P8:T8,Indata_Kalkylvärden!D$104:H$104)/N8) -> 45 | AA8: =+IF(N8=0,0,SUMPRODUCT($P8:$T8,Indata_Kalkylvärden!$D$105:$H$105)/Bangods_linjedel!$N8) -> 300 | AB8: =IF(N8=0,0,(CM8*INDATABLAD!D$266+INDATABLAD!D$267*CI8)/(N8*F8)) -> 74.22431674 | AC8: =+IF(B8='Beskrivning av åtgärd'!$D$171,'Beskrivning av åtgärd'!$B$171*$N8,0) -> 0 | AD8: =+IF(N8=0,0,SUMPRODUCT(P8:T8,Indata_Kalkylvärden!D$117:H$117/Bangods_linjedel!N8)) -> 88.21125888 | AE8: =+IF(N8=0,0,SUMPRODUCT(P8:T8,Indata_Kalkylvärden!$D$116:$H$116)/N8)*DN8 -> 31.73956866 | AF8: 122.4778646 | AG8: =+Indata_Kalkylvärden!T$96 -> 1.53 | AH8: =+Indata_Kalkylvärden!T$97 -> 5.355 | AI8: 70247.62604 | AJ8: 36743.35938 | AK8: 106990.9854 | AL8: =+IF(N8=0,0,SUMPRODUCT($P8:$T8,Indata_Kalkylvärden!$D$118:$H$118)/$N8) -> -0.0223 | AM8: =+VLOOKUP($G8,Länkar!$F:$V,16,FALSE) -> Ja | AN8: =+VLOOKUP($G8,Länkar!$F:$V,17,FALSE) -> Ja | AO8: =+IF(N8=0,0,(SUMPRODUCT(P8:T8,Indata_Kalkylvärden!$D$110:$H$110)/N8)) -> 1.612256311 | AP8: =+IFERROR(IF(B8=0,0,VLOOKUP(B8,'Kap.ber JA'!$B:$AI,7,FALSE)),0) -> esp | AQ8: =+IFERROR(IF(B8=0,0,VLOOKUP(B8,'Kap.ber UA'!B:H,7,FALSE)),0) -> esp | AR8: =+IFERROR(IF(B8=0,0,VLOOKUP(B8,'Kap.ber JA'!$B:$AI,8,FALSE)),0) -> 0.3039068889 | AS8: =+IFERROR(IF(B8=0,0,VLOOKUP(B8,'Kap.ber UA'!$B:$AL,8,FALSE)),0) -> 0.3039068889 | AT8: =+IF($AP8="esp",INDATABLAD!$D$568,INDATABLAD!$D$566) -> 2.58 | AU8: =+IF($AP8="Esp",INDATABLAD!$D$569,INDATABLAD!$D$567) -> 0.28 | AV8: =+IF($AQ8="Esp",INDATABLAD!$D$568,INDATABLAD!$D$566) -> 2.58 | AW8: =+IF($AQ8="Esp",INDATABLAD!$D$569,INDATABLAD!$D$567) -> 0.28 | AX8: =+INDATABLAD!$D$565 -> 0.3 | AY8: 1.973976392 | AZ8: 1.1748 | BA8: 1.973976392 | BB8: 1.1748 | BC8: =SUMIF('Gods_nya linjedelar_UA'!$D$4:$D$18,Bangods_linjedel!B8,'Gods_nya linjedelar_UA'!$J$4:$J$18) -> 0 | BD8: =SUMIF('Gods_nya linjedelar_UA'!$D$4:$D$18,Bangods_linjedel!B8,'Gods_nya linjedelar_UA'!$K$4:$K$18) -> 0 | BE8: =+Bangods_linjedel!H8 -> 0 | BF8: =+Bangods_linjedel!I8 -> 0 | BG8: 0 | BH8: =+Bangods_linjedel!K8 -> 0 | BI8: =+IF(Bangods_linjedel!J8=0,(BA8-AY8)*0.05,Bangods_linjedel!J8) -> 0 | BJ8: 0 | BL8: 0 | BM8: =+(($BG8+$BI8)*($AD8+AE8)*$N8)+Bangods_linjedel!M8 -> 0 | BN8: =+(CJ8-CI8)*INDATABLAD!D$267+INDATABLAD!D$266*(CN8-CM8) -> 0 | BO8: 0 | BP8: 0 | BQ8: 0 | BR8: =+IF(N8=0,0,('Beskrivning av åtgärd'!$C$165*(X8)+'Beskrivning av åtgärd'!$D$165*Bangods_linjedel!W8)/Bangods_linjedel!U8) -> 0.02165477451 | BS8: =+IF(O8=0,0,('Beskrivning av åtgärd'!$F$165*(X8)+'Beskrivning av åtgärd'!$G$165*Bangods_linjedel!W8)/Bangods_linjedel!U8) -> 0.02165477451 | BT8: =+IF(U8=0,0,('Beskrivning av åtgärd'!$C$166*(X8)+'Beskrivning av åtgärd'!$D$166*$W8)/$U8) -> 4.726154537 | BU8: =+IF(O8=0,0,('Beskrivning av åtgärd'!$F$166*(X8)+'Beskrivning av åtgärd'!$G$166*$W8)/$U8) -> 4.726154537 | BV8: =BANGODSINDATA!S7 -> 250 | BW8: =BANGODSINDATA!T7 -> 349.8945035 | BY8: 0 | BZ8: =+IF(O8=0,0,IF('Beskrivning av åtgärd'!B$12="Nej",(((BM8+BN8+BO8*'Beskrivning av åtgärd'!$C$176)/(AK8*N8))*AL8)*O8,((BM8+BN8+BO8*'Beskrivning av åtgärd'!$C$176)/(AK8*N8+BM8+BN8+BO8*'Beskrivning av åtgärd'!$C$176*N8))*AL8*O8)) -> 0 | CA8: 0 | CB8: 0 | CC8: 0 | CD8: 0 | CE8: 0 | CF8: 0 | CG8: 0 | CI8: =+(($N8*$F8*INDATABLAD!$D$254+Bangods_linjedel!$DF8*INDATABLAD!$D$255))*Y8 -> 0 | CJ8: =+IF($AN8="Nej",(($N8*($F8+$BF8)*INDATABLAD!$D$254+DG8*INDATABLAD!$D$255)),IF($BJ8="Ja",0,(($N8*($F8+$BF8)*INDATABLAD!$D$254+DG8*INDATABLAD!$D$255))*$Y8)) -> 0 | CK8: =+IF($AN8="Nej",(($N8*($F8+$BF8)*INDATABLAD!$D$254+DH8*INDATABLAD!$D$255)),IF($BJ8="ja",0,(($N8*($F8+$BF8)*INDATABLAD!$D$254+DH8*INDATABLAD!$D$255))*$Y8)) -> 0 | CL8: 0 | CM8: =+DF8*INDATABLAD!$D$256*(1-$Y8) -> 16388419.47 | CN8: =+IF(AN8="Ja",DG8*INDATABLAD!$D$256,IF(AN8="Nej",0,DG8*INDATABLAD!$D$256*(1-Y8))) -> 16388419.47 | CO8: 16388419.47 | CP8: 730460.643 | CQ8: 18199360.43 | CR8: =+DF8*(INDATABLAD!$D$248)+F8*N8*INDATABLAD!$D$249 -> 18929821.07 | CT8: =+IFERROR(VLOOKUP(G8,' Bandelsspec avg o ext'!$A:$T,17,FALSE)*$F8*$N8*DQ8/500,0) -> 0 | CU8: 730460.643 | CV8: 18199360.43 | CW8: =+IF(N8=0,0,DH8*(INDATABLAD!$D$248)+N8*(V8/U8)*(F8+BF8)*INDATABLAD!D$249) -> 18929821.07 | CY8: =+IFERROR(IF(V8=0,0,VLOOKUP(G8,' Bandelsspec avg o ext'!$A:$V,18,FALSE)*($F8+BF8)*$N8*(V8/U8)*(DR8/500)),0) -> 0 | CZ8: 0 | DA8: 0 | DB8: 0 | DC8: 0 | DD8: 0 | DE8: 0 | DF8: 840431767.8 | DG8: 840431767.8 | DH8: 840431767.8 | DI8: 730460.643 | DJ8: 18199360.43 | DK8: 0 | DL8: =+IF(N8=0,0,SUMPRODUCT(P8:T8,Indata_Kalkylvärden!D$106:H$106)/N8) -> 3000 | DM8: 3372.71366 | DN8: 1.124237887 | DO8: =+IF(N8=0,0,SUMPRODUCT(P8:T8,Indata_Kalkylvärden!D$109:H$109)/Bangods_linjedel!N8) -> 0.2347333333 | DP8: 0 | DQ8: =+IF(N8=0,0,(SUMPRODUCT(P8:T8,Indata_Kalkylvärden!D$108:H$108)/Bangods_linjedel!N8)*DN8) -> 843.4032626 | DR8: =+IF(Bangods_linjedel!L8=0,DQ8+DP8,DQ8+DP8+Bangods_linjedel!L8) -> 843.4032626 | DS8: =+Bangods_linjedel!Z8 -> 45 | DT8: =+Bangods_linjedel!AB8 -> 74.22431674 | DU8: =+Bangods_linjedel!AF8 -> 122.4778646 | DV8: =+Bangods_linjedel!AD8+Bangods_linjedel!AE8 -> 119.9508275 | DW8: =+Bangods_linjedel!AG8 -> 1.53 | DX8: =+Bangods_linjedel!AH8 -> 5.355 | DY8: =+Bangods_linjedel!BG8 -> 0 | DZ8: =+(Bangods_linjedel!BM8+Bangods_linjedel!CD8)/1000000 -> 0 | EA8: =+(Bangods_linjedel!BO8+Bangods_linjedel!CE8)/1000000 -> 0 | EB8: =+(Bangods_linjedel!BP8+Bangods_linjedel!CF8)/1000000 -> 0 | EC8: =+(Bangods_linjedel!BQ8+Bangods_linjedel!CG8)/1000000 -> 0 | ED8: =+Bangods_linjedel!DC8/1000000 -> 0 | EE8: =+Bangods_linjedel!DD8/1000000 -> 0 | EF8: =+Bangods_linjedel!DE8/1000000 -> 0 | EG8: =+Bangods_linjedel!DA8/1000000 -> 0 | EH8: =+Bangods_linjedel!DB8/1000000 -> 0 | EJ8: =+Bangods_linjedel!DQ8 -> 843.4032626 | EK8: =+Bangods_linjedel!DR8 -> 843.4032626 | EL8: =+Bangods_linjedel!BA8-Bangods_linjedel!AY8 -> 0 | EM8: L105 | ET8: 292949.2756 | EU8: 473423.1256 | EV8: 20366533.8 | EW8: 71282868.3 | EX8: 36190893.1 | EY8: =+VLOOKUP(G8,' Bandelsspec avg o ext'!$A:$T,19,FALSE)*$F8*$N8 -> 0 | EZ8: 154557.0796 | FB8: 122.4778646 | FE8: =+SUMIF(Länkar!I:I,Bangods_linjedel!B8,Länkar!Y:Y)/2 -> 0 | FG8: =+IF($N8=0,0,IF($G8="d",SUMPRODUCT($P8:$T8,Indata_Kalkylvärden!$I$139:$M$139))/$N8) -> 0 | FJ8: 521276773.6 | FK8: 521276773.6 | FN8: 766372.4012 | FQ8: 11471893.63 | FR8: 18178232.75 | FS8: 29650126.38
A9: =IFERROR(VLOOKUP(B9,' Fyrspår JA'!B:Z,25,FALSE),+VLOOKUP(B9,Länkar!I:AD,20,FALSE)) -> Malmbanan | B9: =+BANGODSINDATA!B8 -> L106 | C9: =+BANGODSINDATA!C8 -> Gällivare-Koskullskulle | E9: =+BANGODSINDATA!D8 -> Gällivare-Koskullskulle | F9: =+IFERROR(BANGODSINDATA!F8,FE9) -> 8.55 | G9: =IFERROR((+VLOOKUP(B9,Länkar!I:AD,22,FALSE)),VLOOKUP(B9,' Fyrspår JA'!B:Z,25,FALSE)) -> 114 | N9: =+IFERROR(BANGODSINDATA!G8,0) -> 6172.01 | O9: =+IF(BANGODSINDATA!H8=0,0,BANGODSINDATA!H8*Kalkylsammanställning!G$2) -> 17457636 | P9: =+IFERROR(BANGODSINDATA!I8,0) -> 1737.49 | Q9: =+IF(BANGODSINDATA!J8="-",0,BANGODSINDATA!J8) -> 0 | R9: =+IFERROR(BANGODSINDATA!K8,0) -> 0 | S9: =+IFERROR(BANGODSINDATA!L8,0) -> 4434.52 | T9: =+IFERROR(BANGODSINDATA!M8,0) -> 0 | U9: 19.62 | V9: =+IF(U9+Bangods_linjedel!K9<0,0,U9+Bangods_linjedel!K9) -> 19.62 | W9: 12.67005714 | X9: 6.949942857 | Y9: =(IF(AM9="nej",100%,INDATABLAD!$D$268)) -> 0 | Z9: =+IF(N9=0,0,SUMPRODUCT(P9:T9,Indata_Kalkylvärden!D$104:H$104)/N9) -> 52.03778024 | AA9: =+IF(N9=0,0,SUMPRODUCT($P9:$T9,Indata_Kalkylvärden!$D$105:$H$105)/Bangods_linjedel!$N9) -> 328.1511209 | AB9: =IF(N9=0,0,(CM9*INDATABLAD!D$266+INDATABLAD!D$267*CI9)/(N9*F9)) -> 66.10851106 | AC9: =+IF(B9='Beskrivning av åtgärd'!$D$171,'Beskrivning av åtgärd'!$B$171*$N9,0) -> 0 | AD9: =+IF(N9=0,0,SUMPRODUCT(P9:T9,Indata_Kalkylvärden!D$117:H$117/Bangods_linjedel!N9)) -> 77.32563871 | AE9: =+IF(N9=0,0,SUMPRODUCT(P9:T9,Indata_Kalkylvärden!$D$116:$H$116)/N9)*DN9 -> 31.56636207 | AF9: 109.602704 | AG9: =+Indata_Kalkylvärden!T$96 -> 1.53 | AH9: =+Indata_Kalkylvärden!T$97 -> 5.355 | AI9: 62894.06976 | AJ9: 35966.25018 | AK9: 98860.31994 | AL9: =+IF(N9=0,0,SUMPRODUCT($P9:$T9,Indata_Kalkylvärden!$D$118:$H$118)/$N9) -> -0.2986032521 | AM9: =+VLOOKUP($G9,Länkar!$F:$V,16,FALSE) -> Ja | AN9: =+VLOOKUP($G9,Länkar!$F:$V,17,FALSE) -> Ja | AO9: =+IF(N9=0,0,(SUMPRODUCT(P9:T9,Indata_Kalkylvärden!$D$110:$H$110)/N9)) -> 1.712245019 | AP9: =+IFERROR(IF(B9=0,0,VLOOKUP(B9,'Kap.ber JA'!$B:$AI,7,FALSE)),0) -> esp | AQ9: =+IFERROR(IF(B9=0,0,VLOOKUP(B9,'Kap.ber UA'!B:H,7,FALSE)),0) -> esp | AR9: =+IFERROR(IF(B9=0,0,VLOOKUP(B9,'Kap.ber JA'!$B:$AI,8,FALSE)),0) -> 0.3532595661 | AS9: =+IFERROR(IF(B9=0,0,VLOOKUP(B9,'Kap.ber UA'!$B:$AL,8,FALSE)),0) -> 0.3532595661 | AT9: =+IF($AP9="esp",INDATABLAD!$D$568,INDATABLAD!$D$566) -> 2.58 | AU9: =+IF($AP9="Esp",INDATABLAD!$D$569,INDATABLAD!$D$567) -> 0.28 | AV9: =+IF($AQ9="Esp",INDATABLAD!$D$568,INDATABLAD!$D$566) -> 2.58 | AW9: =+IF($AQ9="Esp",INDATABLAD!$D$569,INDATABLAD!$D$567) -> 0.28 | AX9: =+INDATABLAD!$D$565 -> 0.3 | AY9: 0.5398552769 | AZ9: 0.2565 | BA9: 0.5398552769 | BB9: 0.2565 | BC9: =SUMIF('Gods_nya linjedelar_UA'!$D$4:$D$18,Bangods_linjedel!B9,'Gods_nya linjedelar_UA'!$J$4:$J$18) -> 0 | BD9: =SUMIF('Gods_nya linjedelar_UA'!$D$4:$D$18,Bangods_linjedel!B9,'Gods_nya linjedelar_UA'!$K$4:$K$18) -> 0 | BE9: =+Bangods_linjedel!H9 -> 0 | BF9: =+Bangods_linjedel!I9 -> 0 | BG9: 0 | BH9: =+Bangods_linjedel!K9 -> 0 | BI9: =+IF(Bangods_linjedel!J9=0,(BA9-AY9)*0.05,Bangods_linjedel!J9) -> 0 | BJ9: 0 | BL9: 0 | BM9: =+(($BG9+$BI9)*($AD9+AE9)*$N9)+Bangods_linjedel!M9 -> 0 | BN9: =+(CJ9-CI9)*INDATABLAD!D$267+INDATABLAD!D$266*(CN9-CM9) -> 0 | BO9: =+DK9 -> 0 | BP9: 0 | BQ9: 0 | BR9: =+IF(N9=0,0,('Beskrivning av åtgärd'!$C$165*(X9)+'Beskrivning av åtgärd'!$D$165*Bangods_linjedel!W9)/Bangods_linjedel!U9) -> 0.02165477451 | BS9: =+IF(O9=0,0,('Beskrivning av åtgärd'!$F$165*(X9)+'Beskrivning av åtgärd'!$G$165*Bangods_linjedel!W9)/Bangods_linjedel!U9) -> 0.02165477451 | BT9: =+IF(U9=0,0,('Beskrivning av åtgärd'!$C$166*(X9)+'Beskrivning av åtgärd'!$D$166*$W9)/$U9) -> 4.726154537 | BU9: =+IF(O9=0,0,('Beskrivning av åtgärd'!$F$166*(X9)+'Beskrivning av åtgärd'!$G$166*$W9)/$U9) -> 4.726154537 | BV9: =BANGODSINDATA!S8 -> 249.9985612 | BW9: =BANGODSINDATA!T8 -> 350.0015785 | BY9: 0 | BZ9: =+IF(O9=0,0,IF('Beskrivning av åtgärd'!B$12="Nej",(((BM9+BN9+BO9*'Beskrivning av åtgärd'!$C$176)/(AK9*N9))*AL9)*O9,((BM9+BN9+BO9*'Beskrivning av åtgärd'!$C$176)/(AK9*N9+BM9+BN9+BO9*'Beskrivning av åtgärd'!$C$176*N9))*AL9*O9)) -> 0 | CA9: 0 | CB9: 0 | CC9: 0 | CD9: 0 | CE9: 0 | CF9: 0 | CG9: 0 | CI9: =+(($N9*$F9*INDATABLAD!$D$254+Bangods_linjedel!$DF9*INDATABLAD!$D$255))*Y9 -> 0 | CJ9: =+IF($AN9="Nej",(($N9*($F9+$BF9)*INDATABLAD!$D$254+DG9*INDATABLAD!$D$255)),IF($BJ9="Ja",0,(($N9*($F9+$BF9)*INDATABLAD!$D$254+DG9*INDATABLAD!$D$255))*$Y9)) -> 0 | CK9: =+IF($AN9="Nej",(($N9*($F9+$BF9)*INDATABLAD!$D$254+DH9*INDATABLAD!$D$255)),IF($BJ9="ja",0,(($N9*($F9+$BF9)*INDATABLAD!$D$254+DH9*INDATABLAD!$D$255))*$Y9)) -> 0 | CL9: 0 | CM9: =+DF9*INDATABLAD!$D$256*(1-$Y9) -> 4983702.066 | CN9: =+IF(AN9="Ja",DG9*INDATABLAD!$D$256,IF(AN9="Nej",0,DG9*INDATABLAD!$D$256*(1-Y9))) -> 4983702.066 | CO9: 4983702.066 | CP9: 249402.4147 | CQ9: 5534407.409 | CR9: =+DF9*(INDATABLAD!$D$248)+F9*N9*INDATABLAD!$D$249 -> 5783809.824 | CT9: =+IFERROR(VLOOKUP(G9,' Bandelsspec avg o ext'!$A:$T,17,FALSE)*$F9*$N9*DQ9/500,0) -> 181579.3341 | CU9: 249402.4147 | CV9: 5534407.409 | CW9: =+IF(N9=0,0,DH9*(INDATABLAD!$D$248)+N9*(V9/U9)*(F9+BF9)*INDATABLAD!D$249) -> 5783809.824 | CY9: =+IFERROR(IF(V9=0,0,VLOOKUP(G9,' Bandelsspec avg o ext'!$A:$V,18,FALSE)*($F9+BF9)*$N9*(V9/U9)*(DR9/500)),0) -> 181579.3341 | CZ9: 0 | DA9: 0 | DB9: 0 | DC9: 0 | DD9: 0 | DE9: 0 | DF9: 255574464.9 | DG9: 255574464.9 | DH9: 255574464.9 | DI9: 249402.4147 | DJ9: 5534407.409 | DK9: 0 | DL9: =+IF(N9=0,0,SUMPRODUCT(P9:T9,Indata_Kalkylvärden!D$106:H$106)/N9) -> 2301.282202 | DM9: 2828.517128 | DN9: 1.229104855 | DO9: =+IF(N9=0,0,SUMPRODUCT(P9:T9,Indata_Kalkylvärden!D$109:H$109)/Bangods_linjedel!N9) -> 0.3714748788 | DP9: 0 | DQ9: =+IF(N9=0,0,(SUMPRODUCT(P9:T9,Indata_Kalkylvärden!D$108:H$108)/Bangods_linjedel!N9)*DN9) -> 797.1618119 | DR9: =+IF(Bangods_linjedel!L9=0,DQ9+DP9,DQ9+DP9+Bangods_linjedel!L9) -> 797.1618119 | DS9: =+Bangods_linjedel!Z9 -> 52.03778024 | DT9: =+Bangods_linjedel!AB9 -> 66.10851106 | DU9: =+Bangods_linjedel!AF9 -> 109.602704 | DV9: =+Bangods_linjedel!AD9+Bangods_linjedel!AE9 -> 108.8920008 | DW9: =+Bangods_linjedel!AG9 -> 1.53 | DX9: =+Bangods_linjedel!AH9 -> 5.355 | DY9: =+Bangods_linjedel!BG9 -> 0 | DZ9: =+(Bangods_linjedel!BM9+Bangods_linjedel!CD9)/1000000 -> 0 | EA9: =+(Bangods_linjedel!BO9+Bangods_linjedel!CE9)/1000000 -> 0 | EB9: =+(Bangods_linjedel!BP9+Bangods_linjedel!CF9)/1000000 -> 0 | EC9: =+(Bangods_linjedel!BQ9+Bangods_linjedel!CG9)/1000000 -> 0 | ED9: =+Bangods_linjedel!DC9/1000000 -> 0 | EE9: =+Bangods_linjedel!DD9/1000000 -> 0 | EF9: =+Bangods_linjedel!DE9/1000000 -> 0 | EG9: =+Bangods_linjedel!DA9/1000000 -> 0 | EH9: =+Bangods_linjedel!DB9/1000000 -> 0 | EJ9: =+Bangods_linjedel!DQ9 -> 797.1618119 | EK9: =+Bangods_linjedel!DR9 -> 797.1618119 | EL9: =+Bangods_linjedel!BA9-Bangods_linjedel!AY9 -> 0 | EM9: L106 | ET9: 408022.3914 | EU9: 672082.5178 | EV9: 26710183.08 | EW9: 93485640.78 | EX9: 10114130.24 | EY9: =+VLOOKUP(G9,' Bandelsspec avg o ext'!$A:$T,19,FALSE)*$F9*$N9 -> 292300.0703 | EZ9: 52770.6855 | FB9: 109.602704 | FE9: =+SUMIF(Länkar!I:I,Bangods_linjedel!B9,Länkar!Y:Y)/2 -> 0 | FG9: =+IF($N9=0,0,IF($G9="d",SUMPRODUCT($P9:$T9,Indata_Kalkylvärden!$I$139:$M$139))/$N9) -> 0 | FJ9: 149262787.8 | FK9: 149262787.8 | FN9: 1080104.909 | FQ9: 3488591.446 | FR9: 4704882.041 | FS9: 8193473.487
A10: =IFERROR(VLOOKUP(B10,' Fyrspår JA'!B:Z,25,FALSE),+VLOOKUP(B10,Länkar!I:AD,20,FALSE)) -> Malmbanan | B10: =+BANGODSINDATA!B9 -> L107 | C10: =+BANGODSINDATA!C9 -> Buddbyn-Boden Central | E10: =+BANGODSINDATA!D9 -> Boden Central-Buddbyn | F10: =+IFERROR(BANGODSINDATA!F9,FE10) -> 3.85 | G10: =IFERROR((+VLOOKUP(B10,Länkar!I:AD,22,FALSE)),VLOOKUP(B10,' Fyrspår JA'!B:Z,25,FALSE)) -> 120 | N10: =+IFERROR(BANGODSINDATA!G9,0) -> 9007 | O10: =+IF(BANGODSINDATA!H9=0,0,BANGODSINDATA!H9*Kalkylsammanställning!G$2) -> 14085350 | P10: =+IFERROR(BANGODSINDATA!I9,0) -> 1987.31 | Q10: =+IF(BANGODSINDATA!J9="-",0,BANGODSINDATA!J9) -> 604.07 | R10: =+IFERROR(BANGODSINDATA!K9,0) -> 1497.29 | S10: =+IFERROR(BANGODSINDATA!L9,0) -> 3372.58 | T10: =+IFERROR(BANGODSINDATA!M9,0) -> 1545.76 | U10: 32.18 | V10: =+IF(U10+Bangods_linjedel!K10<0,0,U10+Bangods_linjedel!K10) -> 32.18 | W10: 9.635942857 | X10: 22.54405714 | Y10: =(IF(AM10="nej",100%,INDATABLAD!$D$268)) -> 0 | Z10: =+IF(N10=0,0,SUMPRODUCT(P10:T10,Indata_Kalkylvärden!D$104:H$104)/N10) -> 66.56497724 | AA10: =+IF(N10=0,0,SUMPRODUCT($P10:$T10,Indata_Kalkylvärden!$D$105:$H$105)/Bangods_linjedel!$N10) -> 389.6351726 | AB10: =IF(N10=0,0,(CM10*INDATABLAD!D$266+INDATABLAD!D$267*CI10)/(N10*F10)) -> 38.34525174 | AC10: =+IF(B10='Beskrivning av åtgärd'!$D$171,'Beskrivning av åtgärd'!$B$171*$N10,0) -> 0 | AD10: =+IF(N10=0,0,SUMPRODUCT(P10:T10,Indata_Kalkylvärden!D$117:H$117/Bangods_linjedel!N10)) -> 64.02183359 | AE10: =+IF(N10=0,0,SUMPRODUCT(P10:T10,Indata_Kalkylvärden!$D$116:$H$116)/N10)*DN10 -> 23.15415543 | AF10: 65.55822634 | AG10: =+Indata_Kalkylvärden!T$96 -> 1.53 | AH10: =+Indata_Kalkylvärden!T$97 -> 5.355 | AI10: 45557.50831 | AJ10: 25543.79084 | AK10: 71101.29914 | AL10: =+IF(N10=0,0,SUMPRODUCT($P10:$T10,Indata_Kalkylvärden!$D$118:$H$118)/$N10) -> -0.4431458822 | AM10: =+VLOOKUP($G10,Länkar!$F:$V,16,FALSE) -> Ja | AN10: =+VLOOKUP($G10,Länkar!$F:$V,17,FALSE) -> Ja | AO10: =+IF(N10=0,0,(SUMPRODUCT(P10:T10,Indata_Kalkylvärden!$D$110:$H$110)/N10)) -> 1.796352082 | AP10: =+IFERROR(IF(B10=0,0,VLOOKUP(B10,'Kap.ber JA'!$B:$AI,7,FALSE)),0) -> esp | AQ10: =+IFERROR(IF(B10=0,0,VLOOKUP(B10,'Kap.ber UA'!B:H,7,FALSE)),0) -> esp | AR10: =+IFERROR(IF(B10=0,0,VLOOKUP(B10,'Kap.ber JA'!$B:$AI,8,FALSE)),0) -> 0.5081685267 | AS10: =+IFERROR(IF(B10=0,0,VLOOKUP(B10,'Kap.ber UA'!$B:$AL,8,FALSE)),0) -> 0.5081685267 | AT10: =+IF($AP10="esp",INDATABLAD!$D$568,INDATABLAD!$D$566) -> 2.58 | AU10: =+IF($AP10="Esp",INDATABLAD!$D$569,INDATABLAD!$D$567) -> 0.28 | AV10: =+IF($AQ10="Esp",INDATABLAD!$D$568,INDATABLAD!$D$566) -> 2.58 | AW10: =+IF($AQ10="Esp",INDATABLAD!$D$569,INDATABLAD!$D$567) -> 0.28 | AX10: =+INDATABLAD!$D$565 -> 0.3 | AY10: 0.3969637976 | AZ10: 0.1155 | BA10: 0.3969637976 | BB10: 0.1155 | BC10: =SUMIF('Gods_nya linjedelar_UA'!$D$4:$D$18,Bangods_linjedel!B10,'Gods_nya linjedelar_UA'!$J$4:$J$18) -> 0 | BD10: =SUMIF('Gods_nya linjedelar_UA'!$D$4:$D$18,Bangods_linjedel!B10,'Gods_nya linjedelar_UA'!$K$4:$K$18) -> 0 | BE10: =+Bangods_linjedel!H10 -> 0 | BF10: =+Bangods_linjedel!I10 -> 0 | BG10: -1.387778781e-17 | BH10: =+Bangods_linjedel!K10 -> 0 | BI10: =+IF(Bangods_linjedel!J10=0,(BA10-AY10)*0.05,Bangods_linjedel!J10) -> 0 | BJ10: 0 | BL10: -1.089675757e-11 | BM10: =+(($BG10+$BI10)*($AD10+AE10)*$N10)+Bangods_linjedel!M10 -> -1.089675757e-11 | BN10: =+(CJ10-CI10)*INDATABLAD!D$267+INDATABLAD!D$266*(CN10-CM10) -> 0 | BO10: 0 | BP10: -4.984574212e-12 | BQ10: 0 | BR10: =+IF(N10=0,0,('Beskrivning av åtgärd'!$C$165*(X10)+'Beskrivning av åtgärd'!$D$165*Bangods_linjedel!W10)/Bangods_linjedel!U10) -> 0.02165477451 | BS10: =+IF(O10=0,0,('Beskrivning av åtgärd'!$F$165*(X10)+'Beskrivning av åtgärd'!$G$165*Bangods_linjedel!W10)/Bangods_linjedel!U10) -> 0.02165477451 | BT10: =+IF(U10=0,0,('Beskrivning av åtgärd'!$C$166*(X10)+'Beskrivning av åtgärd'!$D$166*$W10)/$U10) -> 4.726154537 | BU10: =+IF(O10=0,0,('Beskrivning av åtgärd'!$F$166*(X10)+'Beskrivning av åtgärd'!$G$166*$W10)/$U10) -> 4.726154537 | BV10: =BANGODSINDATA!S9 -> 249.9747116 | BW10: =BANGODSINDATA!T9 -> 349.8526971 | BY10: 0 | BZ10: =+IF(O10=0,0,IF('Beskrivning av åtgärd'!B$12="Nej",(((BM10+BN10+BO10*'Beskrivning av åtgärd'!$C$176)/(AK10*N10))*AL10)*O10,((BM10+BN10+BO10*'Beskrivning av åtgärd'!$C$176)/(AK10*N10+BM10+BN10+BO10*'Beskrivning av åtgärd'!$C$176*N10))*AL10*O10)) -> 1.062071979e-13 | CA10: 4.13820599e-11 | CB10: 7.433674946e-11 | CC10: -4.108219134e-32 | CD10: 0 | CE10: 0 | CF10: -3.758498439e-32 | CG10: 0 | CI10: =+(($N10*$F10*INDATABLAD!$D$254+Bangods_linjedel!$DF10*INDATABLAD!$D$255))*Y10 -> 0 | CJ10: =+IF($AN10="Nej",(($N10*($F10+$BF10)*INDATABLAD!$D$254+DG10*INDATABLAD!$D$255)),IF($BJ10="Ja",0,(($N10*($F10+$BF10)*INDATABLAD!$D$254+DG10*INDATABLAD!$D$255))*$Y10)) -> 0 | CK10: =+IF($AN10="Nej",(($N10*($F10+$BF10)*INDATABLAD!$D$254+DH10*INDATABLAD!$D$255)),IF($BJ10="ja",0,(($N10*($F10+$BF10)*INDATABLAD!$D$254+DH10*INDATABLAD!$D$255))*$Y10)) -> 0 | CL10: 0 | CM10: =+DF10*INDATABLAD!$D$256*(1-$Y10) -> 1899566.253 | CN10: =+IF(AN10="Ja",DG10*INDATABLAD!$D$256,IF(AN10="Nej",0,DG10*INDATABLAD!$D$256*(1-Y10))) -> 1899566.253 | CO10: 1899566.253 | CP10: 163888.6246 | CQ10: 2109470.712 | CR10: =+DF10*(INDATABLAD!$D$248)+F10*N10*INDATABLAD!$D$249 -> 2273359.337 | CT10: =+IFERROR(VLOOKUP(G10,' Bandelsspec avg o ext'!$A:$T,17,FALSE)*$F10*$N10*DQ10/500,0) -> 661409.4122 | CU10: 163888.6246 | CV10: 2109470.712 | CW10: =+IF(N10=0,0,DH10*(INDATABLAD!$D$248)+N10*(V10/U10)*(F10+BF10)*INDATABLAD!D$249) -> 2273359.337 | CY10: =+IFERROR(IF(V10=0,0,VLOOKUP(G10,' Bandelsspec avg o ext'!$A:$V,18,FALSE)*($F10+BF10)*$N10*(V10/U10)*(DR10/500)),0) -> 661409.4122 | CZ10: 0 | DA10: 0 | DB10: 0 | DC10: 0 | DD10: 0 | DE10: 0 | DF10: 97413654.02 | DG10: 97413654.02 | DH10: 97413654.02 | DI10: 163888.6246 | DJ10: 2109470.712 | DK10: 0 | DL10: =+IF(N10=0,0,SUMPRODUCT(P10:T10,Indata_Kalkylvärden!D$106:H$106)/N10) -> 1446.690187 | DM10: 1563.822582 | DN10: 1.080965777 | DO10: =+IF(N10=0,0,SUMPRODUCT(P10:T10,Indata_Kalkylvärden!D$109:H$109)/Bangods_linjedel!N10) -> 0.4980274999 | DP10: 5.872555264e-18 | DQ10: =+IF(N10=0,0,(SUMPRODUCT(P10:T10,Indata_Kalkylvärden!D$108:H$108)/Bangods_linjedel!N10)*DN10) -> 535.467465 | DR10: =+IF(Bangods_linjedel!L10=0,DQ10+DP10,DQ10+DP10+Bangods_linjedel!L10) -> 535.467465 | DS10: =+Bangods_linjedel!Z10 -> 66.56497724 | DT10: =+Bangods_linjedel!AB10 -> 38.34525174 | DU10: =+Bangods_linjedel!AF10 -> 65.55822634 | DV10: =+Bangods_linjedel!AD10+Bangods_linjedel!AE10 -> 87.17598901 | DW10: =+Bangods_linjedel!AG10 -> 1.53 | DX10: =+Bangods_linjedel!AH10 -> 5.355 | DY10: =+Bangods_linjedel!BG10 -> -1.387778781e-17 | DZ10: =+(Bangods_linjedel!BM10+Bangods_linjedel!CD10)/1000000 -> -1.089675757e-17 | EA10: =+(Bangods_linjedel!BO10+Bangods_linjedel!CE10)/1000000 -> 0 | EB10: =+(Bangods_linjedel!BP10+Bangods_linjedel!CF10)/1000000 -> -4.984574212e-18 | EC10: =+(Bangods_linjedel!BQ10+Bangods_linjedel!CG10)/1000000 -> 0 | ED10: =+Bangods_linjedel!DC10/1000000 -> 0 | EE10: =+Bangods_linjedel!DD10/1000000 -> 0 | EF10: =+Bangods_linjedel!DE10/1000000 -> 0 | EG10: =+Bangods_linjedel!DA10/1000000 -> 0 | EH10: =+Bangods_linjedel!DB10/1000000 -> 0 | EJ10: =+Bangods_linjedel!DQ10 -> 535.467465 | EK10: =+Bangods_linjedel!DR10 -> 535.467465 | EL10: =+Bangods_linjedel!BA10-Bangods_linjedel!AY10 -> 0 | EM10: L107 | ET10: 345375.6824 | EU10: 785194.133 | EV10: 21550585.5 | EW10: 75427049.25 | EX10: 4054550.381 | EY10: =+VLOOKUP(G10,' Bandelsspec avg o ext'!$A:$T,19,FALSE)*$F10*$N10 -> 1585062.053 | EZ10: 34676.95 | FB10: 65.55822634 | FE10: =+SUMIF(Länkar!I:I,Bangods_linjedel!B10,Länkar!Y:Y)/2 -> 3.849999905 | FG10: =+IF($N10=0,0,IF($G10="d",SUMPRODUCT($P10:$T10,Indata_Kalkylvärden!$I$139:$M$139))/$N10) -> 0 | FJ10: 54228597.5 | FK10: 54228597.5 | FN10: 1130569.815 | FQ10: 1329696.377 | FR10: 2001126.13 | FS10: 3330822.508
A11: =IFERROR(VLOOKUP(B11,' Fyrspår JA'!B:Z,25,FALSE),+VLOOKUP(B11,Länkar!I:AD,20,FALSE)) -> Malmbanan | B11: =+BANGODSINDATA!B10 -> L108 | C11: =+BANGODSINDATA!C10 -> Kiruna Malmbangård-Peuravaara | E11: =+BANGODSINDATA!D10 -> Peuravaara-Kiruna Malmbangård | F11: =+IFERROR(BANGODSINDATA!F10,FE11) -> 3.5 | G11: =IFERROR((+VLOOKUP(B11,Länkar!I:AD,22,FALSE)),VLOOKUP(B11,' Fyrspår JA'!B:Z,25,FALSE)) -> 112 | N11: =+IFERROR(BANGODSINDATA!G10,0) -> 13932.36 | O11: =+IF(BANGODSINDATA!H10=0,0,BANGODSINDATA!H10*Kalkylsammanställning!G$2) -> 45519220 | P11: =+IFERROR(BANGODSINDATA!I10,0) -> 1704.03 | Q11: =+IF(BANGODSINDATA!J10="-",0,BANGODSINDATA!J10) -> 0 | R11: =+IFERROR(BANGODSINDATA!K10,0) -> 0 | S11: =+IFERROR(BANGODSINDATA!L10,0) -> 12228.34 | T11: =+IFERROR(BANGODSINDATA!M10,0) -> 0 | U11: 41.76 | V11: =+IF(U11+Bangods_linjedel!K11<0,0,U11+Bangods_linjedel!K11) -> 41.76 | W11: 34.93811429 | X11: 6.821885714 | Y11: =(IF(AM11="nej",100%,INDATABLAD!$D$268)) -> 0 | Z11: =+IF(N11=0,0,SUMPRODUCT(P11:T11,Indata_Kalkylvärden!D$104:H$104)/N11) -> 48.05771599 | AA11: =+IF(N11=0,0,SUMPRODUCT($P11:$T11,Indata_Kalkylvärden!$D$105:$H$105)/Bangods_linjedel!$N11) -> 312.2309501 | AB11: =IF(N11=0,0,(CM11*INDATABLAD!D$266+INDATABLAD!D$267*CI11)/(N11*F11)) -> 73.83873232 | AC11: =+IF(B11='Beskrivning av åtgärd'!$D$171,'Beskrivning av åtgärd'!$B$171*$N11,0) -> 0 | AD11: =+IF(N11=0,0,SUMPRODUCT(P11:T11,Indata_Kalkylvärden!D$117:H$117/Bangods_linjedel!N11)) -> 83.48187879 | AE11: =+IF(N11=0,0,SUMPRODUCT(P11:T11,Indata_Kalkylvärden!$D$116:$H$116)/N11)*DN11 -> 32.86547189 | AF11: 121.8661618 | AG11: =+Indata_Kalkylvärden!T$96 -> 1.53 | AH11: =+Indata_Kalkylvärden!T$97 -> 5.355 | AI11: 68409.25733 | AJ11: 38050.38747 | AK11: 106459.6448 | AL11: =+IF(N11=0,0,SUMPRODUCT($P11:$T11,Indata_Kalkylvärden!$D$118:$H$118)/$N11) -> -0.1423446779 | AM11: =+VLOOKUP($G11,Länkar!$F:$V,16,FALSE) -> Ja | AN11: =+VLOOKUP($G11,Länkar!$F:$V,17,FALSE) -> Ja | AO11: =+IF(N11=0,0,(SUMPRODUCT(P11:T11,Indata_Kalkylvärden!$D$110:$H$110)/N11)) -> 1.655699268 | AP11: =+IFERROR(IF(B11=0,0,VLOOKUP(B11,'Kap.ber JA'!$B:$AI,7,FALSE)),0) -> dsp | AQ11: =+IFERROR(IF(B11=0,0,VLOOKUP(B11,'Kap.ber UA'!B:H,7,FALSE)),0) -> dsp | AR11: =+IFERROR(IF(B11=0,0,VLOOKUP(B11,'Kap.ber JA'!$B:$AI,8,FALSE)),0) -> 0.1045937042 | AS11: =+IFERROR(IF(B11=0,0,VLOOKUP(B11,'Kap.ber UA'!$B:$AL,8,FALSE)),0) -> 0.1045937042 | AT11: =+IF($AP11="esp",INDATABLAD!$D$568,INDATABLAD!$D$566) -> 4 | AU11: =+IF($AP11="Esp",INDATABLAD!$D$569,INDATABLAD!$D$567) -> 2 | AV11: =+IF($AQ11="Esp",INDATABLAD!$D$568,INDATABLAD!$D$566) -> 4 | AW11: =+IF($AQ11="Esp",INDATABLAD!$D$569,INDATABLAD!$D$567) -> 2 | AX11: =+INDATABLAD!$D$565 -> 0.3 | AY11: 0 | AZ11: 0.105 | BA11: 0 | BB11: 0.105 | BC11: =SUMIF('Gods_nya linjedelar_UA'!$D$4:$D$18,Bangods_linjedel!B11,'Gods_nya linjedelar_UA'!$J$4:$J$18) -> 0 | BD11: =SUMIF('Gods_nya linjedelar_UA'!$D$4:$D$18,Bangods_linjedel!B11,'Gods_nya linjedelar_UA'!$K$4:$K$18) -> 0 | BE11: =+Bangods_linjedel!H11 -> 0 | BF11: =+Bangods_linjedel!I11 -> 0 | BG11: -1.387778781e-17 | BH11: =+Bangods_linjedel!K11 -> 0 | BI11: =+IF(Bangods_linjedel!J11=0,(BA11-AY11)*0.05,Bangods_linjedel!J11) -> 0 | BJ11: 0 | BL11: -2.249579932e-11 | BM11: =+(($BG11+$BI11)*($AD11+AE11)*$N11)+Bangods_linjedel!M11 -> -2.249579932e-11 | BN11: =+(CJ11-CI11)*INDATABLAD!D$267+INDATABLAD!D$266*(CN11-CM11) -> 0 | BO11: 0 | BP11: -1.610850495e-11 | BQ11: 0 | BR11: =+IF(N11=0,0,('Beskrivning av åtgärd'!$C$165*(X11)+'Beskrivning av åtgärd'!$D$165*Bangods_linjedel!W11)/Bangods_linjedel!U11) -> 0.02165477451 | BS11: =+IF(O11=0,0,('Beskrivning av åtgärd'!$F$165*(X11)+'Beskrivning av åtgärd'!$G$165*Bangods_linjedel!W11)/Bangods_linjedel!U11) -> 0.02165477451 | BT11: =+IF(U11=0,0,('Beskrivning av åtgärd'!$C$166*(X11)+'Beskrivning av åtgärd'!$D$166*$W11)/$U11) -> 4.726154537 | BU11: =+IF(O11=0,0,('Beskrivning av åtgärd'!$F$166*(X11)+'Beskrivning av åtgärd'!$G$166*$W11)/$U11) -> 4.726154537 | BV11: =BANGODSINDATA!S10 -> 249.8577713 | BW11: =BANGODSINDATA!T10 -> 349.9811105 | BY11: 0 | BZ11: =+IF(O11=0,0,IF('Beskrivning av åtgärd'!B$12="Nej",(((BM11+BN11+BO11*'Beskrivning av åtgärd'!$C$176)/(AK11*N11))*AL11)*O11,((BM11+BN11+BO11*'Beskrivning av åtgärd'!$C$176)/(AK11*N11+BM11+BN11+BO11*'Beskrivning av åtgärd'!$C$176*N11))*AL11*O11)) -> 9.827154273e-14 | CA11: 3.068341716e-11 | CB11: 5.080251133e-11 | CC11: -2.428311496e-32 | CD11: 0 | CE11: 0 | CF11: -3.477668625e-32 | CG11: 0 | CI11: =+(($N11*$F11*INDATABLAD!$D$254+Bangods_linjedel!$DF11*INDATABLAD!$D$255))*Y11 -> 0 | CJ11: =+IF($AN11="Nej",(($N11*($F11+$BF11)*INDATABLAD!$D$254+DG11*INDATABLAD!$D$255)),IF($BJ11="Ja",0,(($N11*($F11+$BF11)*INDATABLAD!$D$254+DG11*INDATABLAD!$D$255))*$Y11)) -> 0 | CK11: =+IF($AN11="Nej",(($N11*($F11+$BF11)*INDATABLAD!$D$254+DH11*INDATABLAD!$D$255)),IF($BJ11="ja",0,(($N11*($F11+$BF11)*INDATABLAD!$D$254+DH11*INDATABLAD!$D$255))*$Y11)) -> 0 | CL11: 0 | CM11: =+DF11*INDATABLAD!$D$256*(1-$Y11) -> 5143739.003 | CN11: =+IF(AN11="Ja",DG11*INDATABLAD!$D$256,IF(AN11="Nej",0,DG11*INDATABLAD!$D$256*(1-Y11))) -> 5143739.003 | CO11: 5143739.003 | CP11: 230462.7025 | CQ11: 5712128.629 | CR11: =+DF11*(INDATABLAD!$D$248)+F11*N11*INDATABLAD!$D$249 -> 5942591.331 | CT11: =+IFERROR(VLOOKUP(G11,' Bandelsspec avg o ext'!$A:$T,17,FALSE)*$F11*$N11*DQ11/500,0) -> 578305.9433 | CU11: 230462.7025 | CV11: 5712128.629 | CW11: =+IF(N11=0,0,DH11*(INDATABLAD!$D$248)+N11*(V11/U11)*(F11+BF11)*INDATABLAD!D$249) -> 5942591.331 | CY11: =+IFERROR(IF(V11=0,0,VLOOKUP(G11,' Bandelsspec avg o ext'!$A:$V,18,FALSE)*($F11+BF11)*$N11*(V11/U11)*(DR11/500)),0) -> 578305.9433 | CZ11: 0 | DA11: 0 | DB11: 0 | DC11: 0 | DD11: 0 | DE11: 0 | DF11: 263781487.3 | DG11: 263781487.3 | DH11: 263781487.3 | DI11: 230462.7025 | DJ11: 5712128.629 | DK11: 0 | DL11: =+IF(N11=0,0,SUMPRODUCT(P11:T11,Indata_Kalkylvärden!D$106:H$106)/N11) -> 2696.432285 | DM11: 3267.157897 | DN11: 1.211659538 | DO11: =+IF(N11=0,0,SUMPRODUCT(P11:T11,Indata_Kalkylvärden!D$109:H$109)/Bangods_linjedel!N11) -> 0.2941431992 | DP11: 2.074731486e-18 | DQ11: =+IF(N11=0,0,(SUMPRODUCT(P11:T11,Indata_Kalkylvärden!D$108:H$108)/Bangods_linjedel!N11)*DN11) -> 855.4874939 | DR11: =+IF(Bangods_linjedel!L11=0,DQ11+DP11,DQ11+DP11+Bangods_linjedel!L11) -> 855.4874939 | DS11: =+Bangods_linjedel!Z11 -> 48.05771599 | DT11: =+Bangods_linjedel!AB11 -> 73.83873232 | DU11: =+Bangods_linjedel!AF11 -> 121.8661618 | DV11: =+Bangods_linjedel!AD11+Bangods_linjedel!AE11 -> 116.3473507 | DW11: =+Bangods_linjedel!AG11 -> 1.53 | DX11: =+Bangods_linjedel!AH11 -> 5.355 | DY11: =+Bangods_linjedel!BG11 -> -1.387778781e-17 | DZ11: =+(Bangods_linjedel!BM11+Bangods_linjedel!CD11)/1000000 -> -2.249579932e-17 | EA11: =+(Bangods_linjedel!BO11+Bangods_linjedel!CE11)/1000000 -> 0 | EB11: =+(Bangods_linjedel!BP11+Bangods_linjedel!CF11)/1000000 -> -1.610850495e-17 | EC11: =+(Bangods_linjedel!BQ11+Bangods_linjedel!CG11)/1000000 -> 0 | ED11: =+Bangods_linjedel!DC11/1000000 -> 0 | EE11: =+Bangods_linjedel!DD11/1000000 -> 0 | EF11: =+Bangods_linjedel!DE11/1000000 -> 0 | EG11: =+Bangods_linjedel!DA11/1000000 -> 0 | EH11: =+Bangods_linjedel!DB11/1000000 -> 0 | EJ11: =+Bangods_linjedel!DQ11 -> 855.4874939 | EK11: =+Bangods_linjedel!DR11 -> 855.4874939 | EL11: =+Bangods_linjedel!BA11-Bangods_linjedel!AY11 -> 0 | EM11: L108 | ET11: 1028747.801 | EU11: 1620993.175 | EV11: 69644406.6 | EW11: 243755423.1 | EX11: 10683945.33 | EY11: =+VLOOKUP(G11,' Bandelsspec avg o ext'!$A:$T,19,FALSE)*$F11*$N11 -> 867467.0285 | EZ11: 48763.26 | FB11: 121.8661618 | FE11: =+SUMIF(Länkar!I:I,Bangods_linjedel!B11,Länkar!Y:Y)/2 -> 0 | FG11: =+IF($N11=0,0,IF($G11="d",SUMPRODUCT($P11:$T11,Indata_Kalkylvärden!$I$139:$M$139))/$N11) -> 0 | FJ11: 159317270 | FK11: 159317270 | FN11: 2649740.975 | FQ11: 3600617.302 | FR11: 5082449.48 | FS11: 8683066.782
